Workbook

Sheet Introduction
A1: Oil Production Greenhouse gas Emissions Estimator (OPGEE)
A3: Model version: | C3: 3.0a - Model for public comment | F3: Date: | G3: 2021-07-09
A7: Authors
B9: Adam R. Brandt | E9: Department of Energy Resources Engineering, Stanford University
B10: Mohammad S. Masnadi | E10: Chemical & Petroleum Engineering Department, University of Pittsburgh
B11: Jeffrey S. Rutherford | E11: Department of Energy Resources Engineering, Stanford University
B12: Hassan M. El-Houjeiri | E12: Formerly of: Department of Energy Resources Engineering, Stanford University
B13: Kourosh Vafi | E13: Formerly of: Department of Energy Resources Engineering, Stanford University
B14: Quinn Langfitt | E14: California Air Resources Board
B15: James Duffy | E15: California Air Resources Board
B16: Sylvia Sleep | E16: Department of Civil and Environmental Engineering, University of Toronto
B17: Diana Pacheco | E17: Department of Civil and Environmental Engineering, University of Toronto
B18: Zainab Dadashi | E18: Department of Chemical and Petroleum Engineering, University of Calgary
B19: Andrea Orellana | E19: Department of Chemical and Petroleum Engineering, University of Calgary
B20: Heather MacLean | E20: Department of Civil and Environmental Engineering, University of Toronto
B21: Scott McNally | E21: Formerly of: Department of Energy Resources Engineering, Stanford University
B22: Jacob Englander | E22: Department of Energy Resources Engineering, Stanford University
B23: Joule Bergerson | E23: Department of Chemical and Petroleum Engineering, University of Calgary
A26: Overview
B28: This model computes the greenhouse gas emissions from conventional and unconventional upstream oil operations, including all major upstream processes.
B29: Large process stages included:
C30: Exploration
C31: Drilling and development
C32: Production and extraction
C33: Separations and surface operations
C34: Treatment and waste disposal
C35: Transport
A38: Acknowledgements
B40: Major funding for OPGEE development has been provided by:
C41: California Air Resouces Board
D42: Funding provided by Sponsored Research Agreements 10-418, 13-408, 18ISD011
C43: Aramco Services Company
D44: Funding provided by Sponsored Research Agreement A-0422-2016
B45: Additional support for OPGEE development and applications has been provided by:
C46: Carnegie Endowment for International Peace
D47: Gifts to Brandt research program through Stanford University, with primary funding from Carnegie Endowment for International Peace, Blue Moon Fund, Oak Foundation, William and Flora Hewlett Foundation, Energy Foundation, ClimateWorks Foundation, Rockefeller Family Fund, and Sloan Foundation
C48: Ford Motor Company
D49: Gifts to Brandt research program through Stanford University through University Research Partnership program
C50: Chevron Corporation
D51: Gift to Brandt research program through Stanford University
C52: Stanford University School of Earth Sciences
D53: Faculty and student support funds
B55: OPGEE is an open-source project which has benefitted from feedback, discussion, and constructive comments from many model users. We acknowledge these contributions.
C56: In particular, we would like to acknowledge significant contributions from:
C57: Trevor Demayo | E57: Chevron, Inc.
C58: Deborah Gordon | E58: Carnegie Endowment for International Peace
C59: Chris Malins | E59: International Council on Clean Transportation
B61: Any errors or omissions of course remain the responsibility of model authors
A65: Copyright statement
B67: Copyright © 2012-2018 The Board of Trustees of the Leland Stanford Junior University
B68: All rights reserved.
B70: The Oil Production Greenhouse Gas Emissions Estimator (OPGEE) Program (Software), source code, binary files, and operating manuals are being provided free of charge. Software may be downloaded, modified and redistributed freely under the following terms and conditions:
B72: Redistributions of any of the following: Software's source code, executables, and any other materials provided must
C73: * retain the above copyright notice
C74: * require that the source and executable with any modifications be made publicly available under these same terms and conditions and
C75: * be sent to: Adam Brandt, Department of Energy Resources Engineering, Stanford University, abrandt@stanford.edu
C76: * include this entire Agreement with any redistribution
B78: Neither the name of Stanford University nor the names of the contributors may be used to endorse or promote products derived from this Software without specific prior written permission.
B80: Software is being provided “AS IS” and With All Faults. Users acknowledge that Stanford or contributors will not provide any maintenance or support for Software.
B82: Stanford makes no representations and extends no warranties of any kind, either express or implied.
B84: Stanford disclaims any express or implied warranty of merchantability, or fitness for a particular purpose, of non-infringement, or arising out of any course of dealing.
B86: Stanford is not liable for any special, consequential, lost profits, expectation, punitive or other indirect damages in connection with any claim arising out of or related to the use of Software whether grounded in tort (including negligence), strict liability, contract, or otherwise; and,
B88: Users will indemnify, hold harmless and defend Stanford against any claim of any kind arising out of or related to the exercise of any rights in this Agreement.
A92: Internal model version

Sheet Model coverage
A1: Model coverage
B3: This sheet provides an overview of the model stages and outlines which sub-processes are included or excluded from each model stage
B4: Some emissions sources have the potential to reduce effective emissions through offsets. These are marked with -.
A7: 1 Emissions magnitude estimation
A9: Importance code | C9: Estimated size | E9: Degree of treatment
A10: * | C10: 0.01 | D10: g/MJ | E10: Generally excluded
A11: ** | C11: 0.1 | D11: g/MJ | E11: Included with defaults or excluded
A12: *** | C12: 1 | D12: g/MJ | E12: Included with ease of customization
A13: **** | C13: 10 | D13: g/MJ | E13: Included with significant treatment and uncertainty analysis
A16: 2 Inclusion and exclusion in current model version
B19: Main stage | C19: Process | D19: Sub-process | G19: Emissions source | K19: Variants | L19: Sensitivity code | M19: Estimated magnitude (gCO2 eq./MJ) | N19: Included?
B20: Exploration | C20: Seismic exploration | D20: Terrestrial seismic | G20: Vehicular emissions | K20: - | L20: * | M20: =IF(L20="*","<= 0.01 g",IF(L20="**","~ 0.1 g",IF(L20="***","~ 1 g",IF(L20="****","~ 10 g","Error")))) -> <= 0.01 g | N20: 1
G21: Data processing | K21: - | L21: * | M21: <= 0.01 g | N21: 0
G22: Consumed materials (charges etc.) | K22: - | L22: * | M22: <= 0.01 g | N22: 0
G23: Land use impacts | K23: - | L23: * | M23: <= 0.01 g | N23: 0
D24: Oceanic seismic | G24: Ship emissions | K24: - | L24: * | M24: <= 0.01 g | N24: 1
G25: Data processing | K25: - | L25: * | M25: <= 0.01 g | N25: 0
G26: Consumed materials | K26: - | L26: * | M26: <= 0.01 g | N26: 0
C27: Exploratory drilling | D27: Terrestrial drilling | G27: Prime mover emissions | K27: - | L27: * | M27: <= 0.01 g | N27: 1
G28: Land clearing and construction | K28: - | L28: * | M28: <= 0.01 g | N28: 0
G29: Vents and upset emissions | K29: - | L29: * | M29: <= 0.01 g | N29: 0
G30: Drilling flares | K30: - | L30: * | M30: <= 0.01 g | N30: 0
G31: Casing and cement | K31: - | L31: * | M31: <= 0.01 g | N31: 0
G32: Other material consumption (e.g., frac sand) | K32: - | L32: * | M32: <= 0.01 g | N32: 0
G33: Land use impacts | K33: - | L33: * | M33: <= 0.01 g | N33: 0
G34: Indirect land use impacts (opening of inaccessible land) | K34: - | L34: * | M34: <= 0.01 g | N34: 0
D35: Offshore drilling | G35: Prime mover emissions | K35: - | L35: * | M35: <= 0.01 g | N35: 1
G36: Drilling flares | K36: - | L36: * | M36: <= 0.01 g | N36: 0
G37: Vents and upset emissions | K37: - | L37: * | M37: <= 0.01 g | N37: 0
G38: Casing and cement | K38: - | L38: * | M38: <= 0.01 g | N38: 0
C39: Waste handling and disposal | D39: Mud and fluid handling | G39: Energy consumption (other than prime mover) | K39: - | L39: * | M39: <= 0.01 g | N39: 0
G40: Fugitives from mud | K40: - | L40: * | M40: <= 0.01 g | N40: 0
G41: Disposal of mud | K41: - | L41: * | M41: <= 0.01 g | N41: 0
D42: Fracturing fluid disposal | G42: Processing and disposal of fracturing fluid | K42: - | L42: * | M42: <= 0.01 g | N42: 0
D43: Produced water disposal | G43: Processing of produced water | K43: - | L43: * | M43: <= 0.01 g | N43: 0
G44: Disposal of produced water (remote or on-site reinjection) | K44: - | L44: * | M44: <= 0.01 g | N44: 0
B47: Main stage | C47: Process | D47: Sub-process | G47: Emissions source | K47: Variants | L47: Sensitivity code | M47: Estimated magnitude | N47: Included?
B48: Drilling and development | C48: Developmental drilling | D48: Terrestrial drilling | G48: Prime mover emissions | K48: - | L48: ** | M48: =IF(L48="*","<= 0.01 g",IF(L48="**","~ 0.1 g",IF(L48="***","~ 1 g",IF(L48="****","~ 10 g","Error")))) -> ~ 0.1 g | N48: 1
G49: Drilling flares | K49: - | L49: * | M49: <= 0.01 g | N49: 0
G50: Vents and upset emissions | K50: - | L50: ** | M50: ~ 0.1 g | N50: 0
G51: Land use impacts | K51: - | L51: ** | M51: ~ 0.1 g | N51: 1
G52: Clearing and construction | K52: - | L52: * | M52: <= 0.01 g | N52: 0
G53: Casing and cement embodied emissions | K53: - | L53: * | M53: <= 0.01 g | N53: 1
G54: Other materials consumption (e.g., frac sand) | K54: - | L54: * | M54: <= 0.01 g | N54: 1
D55: Oceanic drilling | G55: Prime mover emissions | K55: - | L55: ** | M55: ~ 0.1 g | N55: 1
G56: Drilling flares | K56: - | L56: * | M56: <= 0.01 g | N56: 0
G57: Vents and upset emissions | K57: - | L57: ** | M57: ~ 0.1 g | N57: 0
G58: Casing and cement embodied emissions | K58: - | L58: * | M58: <= 0.01 g | N58: 1
C59: Processing capital investment | D59: Oil/gas/water separators | G59: Separator assembly | K59: - | L59: * | M59: <= 0.01 g | N59: 0
G60: Separator fabrication | K60: - | L60: * | M60: <= 0.01 g | N60: 1
G61: Separator transport | K61: - | L61: * | M61: <= 0.01 g | N61: 1
G62: Raw materials manufacture | K62: - | L62: * | M62: <= 0.01 g | N62: 1
D63: Water reinjection wells | G63: Various drilling emissions from reinjection wells (see above) | K63: - | L63: * | M63: <= 0.01 g | N63: 1
D64: Pumps | G64: Pump assembly | K64: - | L64: * | M64: <= 0.01 g | N64: 0
G65: Pump fabrication and raw materials manufacture | K65: - | L65: * | M65: <= 0.01 g | N65: 1
G66: Pump transport | K66: - | L66: * | M66: <= 0.01 g | N66: 1
C67: Storage capital investment | D67: Storage capital investment | G67: Tank assembly | K67: - | L67: * | M67: <= 0.01 g | N67: 0
G68: Tank fabrication | K68: - | L68: * | M68: <= 0.01 g | N68: 1
G69: Tank transport | K69: - | L69: * | M69: <= 0.01 g | N69: 1
G70: Raw materials manufacture | K70: - | L70: * | M70: <= 0.01 g | N70: 1
G71: Land use impacts | K71: - | L71: * | M71: <= 0.01 g | N71: 1
C72: Transport capital investment | D72: Pipeline capital investment | G72: Pipeline assembly | K72: - | L72: * | M72: <= 0.01 g | N72: 0
G73: Pipe fabrication | K73: - | L73: * | M73: <= 0.01 g | N73: 1
G74: Pipe transport | K74: - | L74: * | M74: <= 0.01 g | N74: 1
G75: Raw materials manufacture | K75: - | L75: * | M75: <= 0.01 g | N75: 1
G76: Land use impacts | K76: - | L76: * | M76: <= 0.01 g | N76: 1
D77: Other transport capital investment | G77: Other infrastructure fabrication and assembly | K77: - | L77: * | M77: <= 0.01 g | N77: 1
B81: Main stage | C81: Process | D81: Sub-process | G81: Emissions source | K81: Variants | L81: Sensitivity code | M81: Estimated magnitude | N81: Included?
B82: Production and extraction | C82: Lifting | D82: Pumping | G82: Combustion for pump driver | K82: - | L82: *** | M82: =IF(L82="*","<= 0.01 g",IF(L82="**","~ 0.1 g",IF(L82="***","~ 1 g",IF(L82="****","~ 10 g","Error")))) -> ~ 1 g | N82: 1
G83: Electricity for pump driver | K83: - | L83: *** | M83: ~ 1 g | N83: 1
G84: Casing and wellhead fugitive emissions | K84: - | L84: *** | M84: ~ 1 g | N84: 1
D85: Gas lift | G85: Compressor prime mover emissions | K85: - | L85: *** | M85: ~ 1 g | N85: 1
G86: Compression electricity emissions | K86: - | L86: *** | M86: ~ 1 g | N86: 1
G87: Casing and wellhead fugitive emissions | K87: - | L87: *** | M87: ~ 1 g | N87: 1
C88: Injection | D88: Gas injection | G88: External gas processing (e.g., N2 production) | K88: - | L88: ** | M88: ~ 0.1 g | N88: 0
G89: Gas compression energy | L89: *** | M89: =IF(L89="*","<= 0.01 g",IF(L89="**","~ 0.1 g",IF(L89="***","~ 1 g",IF(L89="****","~ 10 g","Error")))) -> ~ 1 g | N89: 1
G90: - Gas sequestration credit (CO2 flood) | K90: - | L90: *** | M90: ~ 1 g | N90: 1
D91: Steam injection | G91: Water pre-treatment | K91: - | L91: * | M91: <= 0.01 g | N91: 0
G92: OTSG fuel combustion | K92: NG, produced oil | L92: **** | M92: ~ 10 g | N92: 1
G93: Turbine gas consumption (combined cycle) | K93: Low, med, high efficiency | L93: **** | M93: ~ 10 g | N93: 1
G94: HRSG duct firing (combined cycle) | K94: - | L94: *** | M94: ~ 1 g | N94: 1
G95: - Electricity co-production offsets (combined cycle) | K95: Grid mix variation | L95: **** | M95: ~ 10 g | N95: 1
G96: Steam pumping energy (if any) | K96: - | L96: * | M96: <= 0.01 g | N96: 0
D97: Polymer flood | G97: Polymer embodied energy | K97: - | L97: * | M97: <= 0.01 g | N97: 0
G98: Polymer mixing | K98: - | L98: * | M98: <= 0.01 g | N98: 0
G99: Polymer/water mixture pumping energy | K99: - | L99: * | M99: <= 0.01 g | N99: 0
D100: Surfactant/other injection | G100: Surfactant/other embodied energy | K100: - | L100: * | M100: <= 0.01 g | N100: 0
G101: Surfactant/other mixing | K101: - | L101: * | M101: <= 0.01 g | N101: 0
G102: Surfactant/other mixture pumping energy | K102: - | L102: * | M102: <= 0.01 g | N102: 0
B105: Main stage | C105: Process | D105: Sub-process | G105: Emissions source | K105: Variants | L105: Sensitivity code | M105: Estimated magnitude | N105: Included?
B106: Separation and surface processing | C106: Fluid separation | D106: Oil-water-gas separation | G106: Oil-water-gas separation | K106: - | L106: ** | M106: =IF(L106="*","<= 0.01 g",IF(L106="**","~ 0.1 g",IF(L106="***","~ 1 g",IF(L106="****","~ 10 g","Error")))) -> ~ 0.1 g | N106: 1
G107: Oil-water-gas separation with heater-treaters | K107: - | L107: ** | M107: ~ 0.1 g | N107: 1
G108: Associated gas venting | K108: Variations in flare efficiency | L108: **** | M108: ~ 10 g | N108: 1
G109: Associated gas flaring | K109: Variations in flare efficiency | L109: **** | M109: ~ 10 g | N109: 1
C110: Separation | D110: Solid separation from fluids | G110: Solids removal from separation | K110: - | L110: * | M110: <= 0.01 g | N110: 0
C111: Gas treatment | D111: Gas treatment | G111: Produced gas dehydration | K111: - | L111: * | M111: <= 0.01 g | N111: 1
G112: Produced gas venting and flaring | K112: - | L112: *** | M112: ~ 1 g | N112: 1
C113: Water treatment and disposal | D113: Water treatment | G113: Produced water cleanup | K113: - | L113: ** | M113: ~ 0.1 g | N113: 1
G114: Produced water handling and pumping | K114: - | L114: ** | M114: ~ 0.1 g | N114: 1
D115: Water reinjection and disposal | G115: Produced water reinjection | K115: - | L115: *** | M115: ~ 1 g | N115: 1
G116: Produced water disposal | K116: - | L116: ** | M116: ~ 0.1 g | N116: 1
C117: Storage (as part of separation) | D117: Storage | G117: Storage pumping energy | K117: - | L117: * | M117: <= 0.01 g | N117: 0
G118: Tank assembly and installation | K118: - | L118: * | M118: <= 0.01 g | N118: 1
G119: Evaporative and fugitive emissions | K119: - | L119: ** | M119: ~ 0.1 g | N119: 1
G120: Tank materials manufacture | K120: - | L120: * | M120: <= 0.01 g | N120: 1
G121: Land use impacts | K121: - | L121: * | M121: <= 0.01 g | N121: 1
B124: Main stage | C124: Process | D124: Sub-process | G124: Emissions source | K124: Variants | L124: Sensitivity code | M124: Estimated magnitude | N124: Included?
B125: Maintenance and workovers | C125: Well workover | D125: Terrestrial well workover | G125: Workover rig energy use | K125: - | L125: * | M125: =IF(L125="*","<= 0.01 g",IF(L125="**","~ 0.1 g",IF(L125="***","~ 1 g",IF(L125="****","~ 10 g","Error")))) -> <= 0.01 g | N125: 0
G126: Fugitive emissions during workover | K126: - | L126: ** | M126: ~ 0.1 g | N126: 1
G127: Embodied energy in consumed replacement parts | K127: - | L127: * | M127: <= 0.01 g | N127: 0
D128: Offshore well workover | G128: Workover rig energy use | K128: - | L128: * | M128: <= 0.01 g | N128: 0
G129: Fugitive emissions during workover | K129: - | L129: ** | M129: ~ 0.1 g | N129: 1
G130: Embodied energy in consumed replacement parts | L130: * | M130: <= 0.01 g | N130: 0
C131: Other | D131: Other maintenance | G131: Solids removal from separation | K131: - | L131: * | M131: <= 0.01 g | N131: 0
B136: Main stage | C136: Process | D136: Sub-process | G136: Emissions source | K136: Variants | L136: Sensitivity code | M136: Estimated magnitude | N136: Included?
B137: Waste treatment and disposal | C137: Water processing waste | D137: Water treatment waste disposal | G137: Subsurface disposal of concentrated WW residuals | K137: - | L137: * | M137: =IF(L137="*","<= 0.01 g",IF(L137="**","~ 0.1 g",IF(L137="***","~ 1 g",IF(L137="****","~ 10 g","Error")))) -> <= 0.01 g | N137: 0
G138: Surface disposal of separated solids | K138: - | L138: * | M138: <= 0.01 g | N138: 0
G139: Surface disposal of concentrated WW residuals | K139: - | L139: * | M139: <= 0.01 g | N139: 0
C140: Other waste separation and disposal | D140: Other waste separation and processing | G140: Other waste separation and processing | K140: - | L140: * | M140: <= 0.01 g | N140: 0
G141: Other waste storage | K141: - | L141: * | M141: <= 0.01 g | N141: 0
G142: Spills and other upsets | K142: - | L142: * | M142: <= 0.01 g | N142: 0
D143: Other waste disposal | G143: Other waste transport | K143: - | L143: * | M143: <= 0.01 g | N143: 0
G144: Other waste disposal (non-hazardous) | K144: - | L144: * | M144: <= 0.01 g | N144: 0
G145: Other waste disposal (hazardous) | K145: - | L145: * | M145: <= 0.01 g | N145: 0
C146: Solid waste disposal and project decommissioning | D146: Solid waste disposal | G146: Solid waste separation and processing | K146: - | L146: * | M146: <= 0.01 g | N146: 0
G147: Solid waste transport and disposal | K147: - | L147: * | M147: <= 0.01 g | N147: 0
D148: End of life and decommissioning | G148: Demolition and decommissioning | K148: - | L148: * | M148: <= 0.01 g | N148: 0
G149: Scrap and waste disposal | K149: - | L149: * | M149: <= 0.01 g | N149: 0
G150: - Credit for waste recycling (embodied energy) | K150: - | L150: * | M150: <= 0.01 g | N150: 0
B154: Main stage | C154: Process | D154: Sub-process | G154: Emissions source | K154: Variants | L154: Sensitivity code | M154: Estimated magnitude | N154: Included?
B155: Crude product transport | C155: Pipeline transport | D155: Pipeline transport | G155: Combustion for pump prime mover | K155: - | L155: *** | M155: =IF(L155="*","<= 0.01 g",IF(L155="**","~ 0.1 g",IF(L155="***","~ 1 g",IF(L155="****","~ 10 g","Error")))) -> ~ 1 g | N155: 1
G156: Electricity for pump use | K156: - | L156: *** | M156: ~ 1 g | N156: 1
G157: Process upsets (one-time events) | K157: - | L157: * | M157: <= 0.01 g | N157: 1
G158: Leaks (pipeline losses) | K158: - | L158: *** | M158: ~ 1 g | N158: 1
D159: Pipeline construction | G159: Construction equipment energy use | K159: - | L159: * | M159: <= 0.01 g | N159: 0
G160: Embodied energy in pipeline materials (cement and steel) | K160: - | L160: * | M160: <= 0.01 g | N160: 1
G161: Land use impacts | K161: - | L161: * | M161: <= 0.01 g | N161: 1
C162: Tanker transport | D162: Tanker transport | G162: Combustion in tanker prime mover (bunker fuels) | K162: - | L162: *** | M162: ~ 1 g | N162: 1
G163: Loading and unloading pumping | K163: - | L163: * | M163: <= 0.01 g | N163: 1
G164: Flares | K164: - | L164: * | M164: <= 0.01 g | N164: 1
G165: Vents, leaks and upsets | K165: - | L165: * | M165: <= 0.01 g | N165: 1
D166: Tanker construction | G166: Embodied energy in tanker materials (steel) | K166: - | L166: * | M166: <= 0.01 g | N166: 0
G167: Construction energy | K167: - | L167: * | M167: <= 0.01 g | N167: 0
C168: Storage (as part of transport) | D168: Storage | G168: Storage pumping energy | K168: - | L168: * | M168: <= 0.01 g | N168: 0
G169: Tank assembly and installation | K169: - | L169: * | M169: <= 0.01 g | N169: 1
G170: Evaporative and fugitive emissions | K170: - | L170: ** | M170: ~ 0.1 g | N170: 1
G171: Tank materials manufacture | K171: - | L171: * | M171: <= 0.01 g | N171: 1
G172: Land use impacts | K172: - | L172: * | M172: <= 0.01 g | N172: 0

Sheet How to use
A1: How to use OPGEE
A3: 1. Quick start
A5: 1. Input data for fields to be modeled on the "Inputs" sheet. The Inputs sheet includes the most important parameters governing emissions from oil production operations.
A6: 2. Any data that you do not enter for a field will be filled with a reasonable default value.
B7: * Some data are entered as a single static default value for all fields.
B8: * Some data are entered using "smart default" values that depend on values of other entered datapoints.
A9: 3. Enter the number of fields to be modeled in the "Inputs" sheet, top left (Inputs C2)
A10: 4. Press the "Run assessment" button
A11: 5. Results are presented on the "Results" tab for each modeled field
B12: * The top section of the Results sheet (called "Complete Inputs") contains the final values used in modeling each field
B13: * Some input values that were entered by the user or filled as default are later changed during a variety of algorithmic adjustments. These are labeled using colors (see below).
B14: * The bottom section ("Outputs") presents resulting energy intensity and emissions estimates.
B15: * Row 185 presents results of error checking process for each field
A18: 2. Detailed user guide
A20: 2.1 Adjusted data inputs
A22: As noted above, some input values are changed during algorithmic analysis or error checking. These cells are colored for ease of debugging.
A24: The resulting color scheme is outlined below:
B26: 1234 | C26: Cell has been changed to a value using OPGEE default or "smart default" relationships. See model documentation for more description of data sources and assumptions used in smart defaults.
B27: 1234 | C27: Cell value has been adjusted using VBA macros to correct for physically inconsistent or out-of-specification data inputs. See model documentation for adjustment process.
B28: 1234 | C28: Cell value is outside of the range normally encountered in petroleum engineering literature. Proceed with caution and check data integrity.
A31: 2.2 Debugging using the "Active Field" sheet
A33: At the bottom of the "Results" sheets, you will find a series of error checks for each field assessed. These can be helpful in model debugging.
A34: The "Active Field" sheet is the sheet where the current field under assessment is stored. The foumulas in the Active Field sheet should not be changed by the user, or unpredictable model results may occur.
A35: At any point in the assessment of multiple fields, the Active Field sheet gives more insight into the settings and results for the particular field being modeled at a given time.
A36: If debugging is required for a field, follow steps below:
B37: * Note the number of the field which is causing problems ("Inputs" row 5)
B38: * Set "Inputs" C2 equal to the number of the problematic field and press "Run assessment" button.
B39: * After the macro runs, all model sheets will contain data and results for the field of interest.
B40: * The "Energy Consumption" and "GHG Emissions" sheets offer summary results on energy use and emissions.
B41: * Detailed computations can be tracked on the red (process stage) and blue (supplemental) worksheets.
A42: Use the error checks at the bottom of the "Active Field" sheet to facilitate debugging.
A44: 2.3 Changing detailed model calculations
A46: Any OPGEE worksheet can be changed as desired by the user. However, some caution is to be excercised in changing computations on red and blue worksheets.
A48: Input cells are colored according to whether they should be treated by the user as a free cell to change, or a cell that holds a forumla dependent on other cells:
B49: User free | C49: A user input cell that can be freely changed.
B50: Default free | C50: A default input cell that holds the default value of an input. This should generally be left as populated in OPGEE.
B51: User dependent | C51: A cell that involves a calculation based on user or default inputs. Should not be changed without proper attention to implications.
B52: Default dependent | C52: A cell that involves a calculation using default vlaues. This should generally be left as populated in OPGEE.
A54: Note that any cell changed in one of the red or blue detailed calculations worksheets will propogate to ALL fields entered in the "Inputs" sheet.
A57: TEST
A61: Nomenclature
A64: Parameters | G64: Sheets | L64: Streams | Q64: Acroynms
A65: \alpha | B65: Solar absorbance | G65: AGR | H65: Acid gas removal | L65: PC | M65: Petroleum coke | Q65: ABS | R65: Absorbents
A66: \delta | B66: Change | G66: BM | H66: Bitumen mining | Q66: AGR | R66: Acid gas removal
A67: \epsilon | B67: Loss | G67: CGW | H67: CO2 gas injection wells | L67: CO | M67: Crude oil | Q67: AIR | R67: Air stripping
A68: \eta | B68: Efficiency | G68: CH | H68: Chiller | L68: LPG | M68: Liquified petroleum gas | Q68: AL | R68: Aerated lagoons
A69: \gamma | B69: Specific gravity | G69: CRC | H69: CO2 reinjection compressor | Q69: ANS | R69: Alaska North Slope
A70: \lambda | B70: Fraction or share | G70: CS | H70: Crude oil storage | L70: C1 | M70: Methane | Q70: API | R70: American Petroleum Institute
A71: \rho | B71: Density | G71: DD | H71: Drilling & development | L71: C2 | M71: Ethane | Q71: ARB | R71: California Air Resources Board
A72: a1, a2, a3… | B72: Constants in fitting equations or from data | G72: DE | H72: Demethanizer | L72: C3 | M72: Propane | Q72: AS | R72: Activated sludge
A73: C | B73: Capacity | G73: EGI | H73: Electricity generation and imports | L73: C4 | M73: Butane | Q73: BHP | R73: Brake horsepower
A74: C | B74: Concentration | G74: EX | H74: Exploration | L74: CO | M74: Carbon monoxide | Q74: CHOPS | R74: Cold heavy oil production with sand
A75: D | B75: Diameter | G75: FGC | H75: Fuel gas consumed | L75: CO2 | M75: Carbon dioxide | Q75: CSS | R75: Cyclic steam stimulation
A76: D | B76: Distance | G76: FGI | H76: Fuel gas imports | L76: H2 | M76: Hydrogen | Q76: CWL | R76: Wetlands
A77: API | B77: Degrees API | G77: FL | H77: Flaring | L77: H2O | M77: Water | Q77: DAF | R77: Dissolved air flotation
A78: e | B78: Energy quantity - Specific (per unit of something) | G78: GD | H78: Gas dehydration | L78: H2S | M78: Hydrogen sulfide | Q78: DEA | R78: Di-ethanol amine
A79: E | B79: Energy quantity - Gross | G79: GDI | H79: Gas distribution | L79: N2 | M79: Nitroen | Q79: DGA | R79: Diglycolamine
A80: EF | B80: Emissions factor | G80: GFC | H80: Gas flooding compressor | L80: O2 | M80: Oxygen | Q80: DMF | R80: Dual media filtration
A81: EL | B81: Energy loss | G81: GG | H81: Gas gathering system | L81: SO2 | M81: Sulfur dioxide | Q81: DOGGR | R81: State of California Department of Conservations Division of Oil, Gas and Geothermal Resources
A82: EM | B82: Emissions | G82: GLC | H82: Gas lifting compressor | Q82: EDR | R82: Electrodialysis reversal
A83: f | B83: Friction factor | G83: GPA | H83: Gas partition A | L83: EL | M83: Electricity | Q83: EGOR | R83: Onsite electricity generation to oil ratio
A84: f | B84: Fraction of a quantity | G84: GPB | H84: Gas partition B | Q84: EOR | R84: Enhanced oil recovery
A85: FOR | B85: Flaring oil ratio | G85: GRC | H85: Gas reinjection compressor | Q85: EPA | R85: Environmental Protection Agency
A86: GOR | B86: Gas oil ratio | G86: GSW | H86: Gas storage well | Q86: ERCB | R86: Alberta Energy Resources Conservation Board
A87: GWP | B87: Global warming potential | G87: HD | H87: Heavy oil dilution | Q87: FOR | R87: Flaring to oil ratio
A88: h | B88: Height | G88: HGW | H88: Hydrocarbon gas injection wells | Q88: FWKO | R88: Free-water knockouts
A89: h | B89: Enthalpy | G89: HT | H89: Heater-treater (dewatering) | Q89: GAC | R89: Granular activated carbon
A90: H | B90: Head | G90: HU | H90: Heavy oil upgrading | Q90: GGFR | R90: Global Gas Flaring Reduction Partnership at the World Bank
A91: I | B91: Solar insolation | G91: LL | H91: LNG liquefaction | Q91: GHG | R91: Greenhouse gases
A92: I | B92: Process intensity factor | G92: LR | H92: LNG regasification | Q92: GLR | R92: Gas to liquid ratio
A93: l | B93: Load factor | G93: LT | H93: LNG transport | Q93: GOR | R93: Gas to oil ratio
A94: L | B94: Length | G94: M | H94: Maintenance | Q94: GREET | R94: Greenhouse Gases, Regulated Emissions, and Energy Use in Transportation Model
A95: m | B95: Mass | G95: ME | H95: Membrane | Q95: GT | R95: Gas turbine
A96: MW | B96: Molecular weight | G96: MWT | H96: Makeup water treatment | Q96: GWP | R96: Global warming potential
A97: N | B97: Number (count of something) | G97: NLI | H97: Natural gas liquids production and imports | Q97: HHV | R97: Higher heating value
A98: p | B98: Pressure | G98: OT | H98: Oil transport | Q98: HRSG | R98: Heat recovery steam generator
A99: P | B99: Power | G99: PMC | H99: Pre-membrane compressor | Q99: HYDRO | R99: Hydrocyclones
A100: Q | B100: Flow rate | G100: PSC | H100: Post-storage compressor | Q100: IPCC | R100: Intergovernmental Panel on Climate Change
A101: R | B101: Ratio | G101: PT | H101: Petcoke transport | Q101: LCA | R101: Life cycle assessment
A102: r | B102: Radius | G102: PWT | H102: Produced water treatment | Q102: LHV | R102: Lower heating value
A103: RVP | B103: Reid vapor pressure | G103: RE | H103: Reservoir | Q103: MEA | R103: Monoethanolamine
A104: T | B104: Temperature | G104: RH | H104: Ryan-Holmes process | Q104: MF | R104: Microfiltration
A105: U | B105: Effectiveness (heat exchange) | G105: S | H105: Stabilizer | Q105: NF | R105: Nanofiltration
A106: v | B106: Velocity | G106: SE | H106: Separation | Q106: NGL | R106: Natural gas liquid
A107: V | B107: Volume | G107: SG | H107: Steam generation | Q107: NOAA | R107: National Oceanic and Atmospheric Administration
A108: W | B108: Weight | G108: SGW | H108: Sour gas injection well | Q108: OPGEE | R108: Oil Production Greenhouse Gas Emissions Estimator
A109: W | B109: Well | G109: SIW | H109: Steam injection well | Q109: ORG | R109: Organoclay
A110: W | B110: Work | G110: SRC | H110: Sour gas reinjection compressor | Q110: OTSG | R110: Once-through steam generators
A111: w | B111: Mass fraction | G111: SS | H111: Storage separator | Q111: OZO | R111: Ozone
A112: WOR | B112: Water oil ratio | G112: STC | H112: Storage compressor | Q112: RBC | R112: Rotating biological contactors
A113: x | B113: Mole fraction | G113: TRC | H113: Transmission compressor | Q113: RO | R113: Reverse osmosis
A114: y | B114: Binary variable | G114: VRC | H114: Vapor recovery unit compressor | Q114: RVP | R114: Reid vapor pressure
A115: Y | B115: Process yield factor | G115: VT | H115: Venting | Q115: SAGD | R115: Steam assisted gravity drainage
G116: WD | H116: Waste disposal | Q116: SCO | R116: Synthetic crude oil
G117: WI | H117: Water injection | Q117: SOR | R117: Steam to oil ratio
G118: WO | H118: Wellbore and downhole pump | Q118: SSF | R118: Slow sand filtration
Q119: TDS | R119: Total dissolved solids
Q120: TEG | R120: Triethylene glycol
Q121: TEOR | R121: Thermal enhanced oil recovery
Q122: TF | R122: Trickling filters
Q123: THC | R123: Total hydrocarbon
Q124: UF | R124: Ultrafiltration
Q125: VFF | R125: Venting, flaring and fugitives
Q126: VOC | R126: Volatile organic compounds
Q127: VOR | R127: Venting to oil ratio
Q128: W\ | R128: S
Q129: WOR | R129: Water to oil ratio
Q130: WTR | R130: Well to refinery
A262: Amine | B262: Amine-based process
A263: B | B263: Barge
A264: BP | B264: Booster pump
A265: C | B265: Compressor
A266: CP | B266: Circulation pump
A267: D | B267: Driver
A268: DR | B268: Drill rig
A269: EG | B269: Electricity generator
A270: F | B270: Fan
A271: G | B271: Generator
A272: GP | B272: Glycol pump
A273: GS | B273: Generator set
A274: GT | B274: Gas turbine
A275: HRSG | B275: Heat recovery steam generator
A276: M | B276: Motor
A277: OTSG | B277: Once-through steam generator
A278: P | B278: Pipeline
A279: R | B279: Roof
A280: RE | B280: Reciprocating engine
A281: RP | B281: Reflux pump
A282: SMR | B282: Steam-methane-reformer
A283: T | B283: Tanker
A284: T | B284: Tank
A285: TR | B285: Truck
A286: V | B286: Vent
A287: W | B287: Well
A289: avg | B289: Average
A290: atm | B290: Atmospheric
A291: b | B291: Base
A292: wf | B292: Bottomhole (well-formation)
A293: comb | B293: Combusted
A294: dir | B294: Direct
A295: d | B295: Discharge
A296: ent | B296: Entrained
A297: exp | B297: Exported
A298: gen | B298: Generated
A299: gr | B299: Gross
A300: heat | B300: Heated
A301: im | B301: Imported
A302: ind | B302: Indirect
A303: inj | B303: Injected (as in an injected stream)
A304: in | B304: Input
A305: l | B305: Lost
A306: mu | B306: Make-up
A307: max | B307: Maximum
A308: min | B308: Minimum
A309: net | B309: Net
A310: new | B310: New
A311: ot | B311: Other
A312: out | B312: Output
A313: rem | B313: Removed
A314: req | B314: Required
A315: res | B315: Reservoir
A316: rec | B316: recovered
A317: ref | B317: refinery
A318: s | B318: Stages
A319: sc | B319: Standard conditions
A320: str | B320: Stripped
A321: s | B321: Suction
A322: th | B322: Thermal
A323: tot | B323: Total
A324: to | B324: Turn over
A325: wh | B325: Wellhead
A326: trav | B326: traverse
A327: lift | B327: lifting

Sheet Inputs
A1: Inputs and settings | H1: THIS IS BETA SOFTWARE, NOT FOR CITATION OR DISTRIBUTION
A2: Fields: | B2: 1 | C2: 1 | E2: Realizations: | F2: 1 | G2: Functional unit: | I2: Oil | K2: Energy measure: | M2: LHV | O2: Oil boundary: | Q2: Refinery | S2: Gas boundary: | U2: Field | W2: Co-production: | Y2: Stream-specific | AA2: Fugitives model: | AC2: Component | AE2: Defaults: | AF2: CA-LCFS
E3: For uncertainty analysis choose > 1 realization | O3: =IF(AND(I2="Gas",Oil_boundary_setting="Refinery"),"ERROR: Secondary product boundary must be set to `field'","") ->  | U3: =IF(AND(I2="Oil",OR(Gas_boundary_setting="Distribution",Gas_boundary_setting="Transmission")),"ERROR: Secondary product boundary must be set to `field'","") -> 
A5: Variable | F5: Unit | G5: Default | H5: Field 1 | I5: Field 2 | J5: Field 3 | K5: Field 4 | L5: Field 5 | M5: Field 6 | N5: Field 7 | O5: Field 8 | P5: Field 9 | Q5: Field 10 | R5: Field 11 | S5: Field 12 | T5: Field 13 | U5: Field 14 | V5: Field 15 | W5: Field 16 | X5: Field 17 | Y5: Field 18 | Z5: Field 19 | AA5: Field 20 | AB5: Field 21 | AC5: Field 22 | AD5: Field 23 | AE5: Field 24 | AF5: Field 25 | AG5: Field 26 | AH5: Field 27 | AI5: Field 28 | AJ5: Field 29 | AK5: Field 30 | AL5: Field 31 | AM5: Field 32 | AN5: Field 33 | AO5: Field 34 | AP5: Field 35 | AQ5: Field 36 | AR5: Field 37 | AS5: Field 38 | AT5: Field 39 | AU5: Field 40 | AV5: Field 41 | AW5: Field 42 | AX5: Field 43 | AY5: Field 44 | AZ5: Field 45 | BA5: Field 46 | BB5: Field 47 | BC5: Field 48 | BD5: Field 49 | BE5: Field 50 | BF5: Field 51 | BG5: Field 52 | BH5: Field 53 | BI5: Field 54 | BJ5: Field 55 | BK5: Field 56 | BL5: Field 57 | BM5: Field 58 | BN5: Field 59 | BO5: Field 60 | BP5: Field 61 | BQ5: Field 62 | BR5: Field 63 | BS5: Field 64 | BT5: Field 65 | BU5: Field 66 | BV5: Field 67 | BW5: Field 68 | BX5: Field 69 | BY5: Field 70 | BZ5: Field 71 | CA5: Field 72 | CB5: Field 73 | CC5: Field 74 | CD5: Field 75 | CE5: Field 76 | CF5: Field 77 | CG5: Field 78 | CH5: Field 79 | CI5: Field 80 | CJ5: Field 81 | CK5: Field 82 | CL5: Field 83 | CM5: Field 84 | CN5: Field 85 | CO5: Field 86 | CP5: Field 87 | CQ5: Field 88 | CR5: Field 89 | CS5: Field 90 | CT5: Field 91 | CU5: Field 92 | CV5: Field 93 | CW5: Field 94 | CX5: Field 95 | CY5: Field 96 | CZ5: Field 97 | DA5: Field 98 | DB5: Field 99 | DC5: Field 100 | DD5: Field 101 | DE5: Field 102 | DF5: Field 103 | DG5: Field 104 | DH5: Field 105 | DI5: Field 106 | DJ5: Field 107 | DK5: Field 108 | DL5: Field 109 | DM5: Field 110 | DN5: Field 111 | DO5: Field 112 | DP5: Field 113 | DQ5: Field 114 | DR5: Field 115 | DS5: Field 116 | DT5: Field 117 | DU5: Field 118 | DV5: Field 119 | DW5: Field 120 | DX5: Field 121 | DY5: Field 122 | DZ5: Field 123 | EA5: Field 124 | EB5: Field 125 | EC5: Field 126 | ED5: Field 127 | EE5: Field 128 | EF5: Field 129 | EG5: Field 130 | EH5: Field 131 | EI5: Field 132 | EJ5: Field 133 | EK5: Field 134 | EL5: Field 135 | EM5: Field 136 | EN5: Field 137 | EO5: Field 138 | EP5: Field 139 | EQ5: Field 140 | ER5: Field 141 | ES5: Field 142 | ET5: Field 143 | EU5: Field 144 | EV5: Field 145 | EW5: Field 146 | EX5: Field 147 | EY5: Field 148 | EZ5: Field 149 | FA5: Field 150 | FB5: Field 151 | FC5: Field 152 | FD5: Field 153 | FE5: Field 154 | FF5: Field 155 | FG5: Field 156 | FH5: Field 157 | FI5: Field 158 | FJ5: Field 159 | FK5: Field 160 | FL5: Field 161 | FM5: Field 162 | FN5: Field 163 | FO5: Field 164 | FP5: Field 165 | FQ5: Field 166 | FR5: Field 167 | FS5: Field 168 | FT5: Field 169 | FU5: Field 170 | FV5: Field 171 | FW5: Field 172 | FX5: Field 173 | FY5: Field 174 | FZ5: Field 175 | GA5: Field 176 | GB5: Field 177 | GC5: Field 178 | GD5: Field 179 | GE5: Field 180 | GF5: Field 181 | GG5: Field 182 | GH5: Field 183 | GI5: Field 184 | GJ5: Field 185 | GK5: Field 186 | GL5: Field 187 | GM5: Field 188 | GN5: Field 189 | GO5: Field 190 | GP5: Field 191 | GQ5: Field 192 | GR5: Field 193 | GS5: Field 194 | GT5: Field 195 | GU5: Field 196 | GV5: Field 197 | GW5: Field 198 | GX5: Field 199 | GY5: Field 200 | GZ5: Field 201 | HA5: Field 202 | HB5: Field 203 | HC5: Field 204 | HD5: Field 205 | HE5: Field 206 | HF5: Field 207 | HG5: Field 208 | HH5: Field 209 | HI5: Field 210 | HJ5: Field 211 | HK5: Field 212 | HL5: Field 213 | HM5: Field 214 | HN5: Field 215 | HO5: Field 216 | HP5: Field 217 | HQ5: Field 218 | HR5: Field 219 | HS5: Field 220 | HT5: Field 221 | HU5: Field 222 | HV5: Field 223 | HW5: Field 224 | HX5: Field 225 | HY5: Field 226 | HZ5: Field 227 | IA5: Field 228 | IB5: Field 229 | IC5: Field 230 | ID5: Field 231 | IE5: Field 232 | IF5: Field 233 | IG5: Field 234 | IH5: Field 235 | II5: Field 236 | IJ5: Field 237 | IK5: Field 238 | IL5: Field 239 | IM5: Field 240 | IN5: Field 241 | IO5: Field 242 | IP5: Field 243 | IQ5: Field 244 | IR5: Field 245 | IS5: Field 246 | IT5: Field 247 | IU5: Field 248 | IV5: Field 249 | IW5: Field 250 | IX5: Field 251 | IY5: Field 252 | IZ5: Field 253 | JA5: Field 254 | JB5: Field 255 | JC5: Field 256 | JD5: Field 257 | JE5: Field 258 | JF5: Field 259 | JG5: Field 260 | JH5: Field 261 | JI5: Field 262 | JJ5: Field 263 | JK5: Field 264 | JL5: Field 265 | JM5: Field 266 | JN5: Field 267 | JO5: Field 268 | JP5: Field 269 | JQ5: Field 270 | JR5: Field 271 | JS5: Field 272 | JT5: Field 273 | JU5: Field 274 | JV5: Field 275 | JW5: Field 276 | JX5: Field 277 | JY5: Field 278 | JZ5: Field 279 | KA5: Field 280 | KB5: Field 281 | KC5: Field 282 | KD5: Field 283 | KE5: Field 284 | KF5: Field 285 | KG5: Field 286 | KH5: Field 287 | KI5: Field 288 | KJ5: Field 289 | KK5: Field 290 | KL5: Field 291 | KM5: Field 292 | KN5: Field 293 | KO5: Field 294 | KP5: Field 295 | KQ5: Field 296 | KR5: Field 297 | KS5: Field 298 | KT5: Field 299 | KU5: Field 300 | KV5: Field 301 | KW5: Field 302 | KX5: Field 303 | KY5: Field 304 | KZ5: Field 305 | LA5: Field 306 | LB5: Field 307 | LC5: Field 308 | LD5: Field 309 | LE5: Field 310 | LF5: Field 311 | LG5: Field 312 | LH5: Field 313 | LI5: Field 314 | LJ5: Field 315 | LK5: Field 316 | LL5: Field 317 | LM5: Field 318 | LN5: Field 319 | LO5: Field 320 | LP5: Field 321 | LQ5: Field 322 | LR5: Field 323 | LS5: Field 324 | LT5: Field 325 | LU5: Field 326 | LV5: Field 327 | LW5: Field 328 | LX5: Field 329 | LY5: Field 330 | LZ5: Field 331 | MA5: Field 332 | MB5: Field 333 | MC5: Field 334 | MD5: Field 335 | ME5: Field 336 | MF5: Field 337 | MG5: Field 338 | MH5: Field 339 | MI5: Field 340 | MJ5: Field 341 | MK5: Field 342 | ML5: Field 343 | MM5: Field 344 | MN5: Field 345 | MO5: Field 346 | MP5: Field 347 | MQ5: Field 348 | MR5: Field 349 | MS5: Field 350 | MT5: Field 351 | MU5: Field 352 | MV5: Field 353 | MW5: Field 354 | MX5: Field 355 | MY5: Field 356 | MZ5: Field 357 | NA5: Field 358 | NB5: Field 359 | NC5: Field 360 | ND5: Field 361 | NE5: Field 362 | NF5: Field 363 | NG5: Field 364 | NH5: Field 365 | NI5: Field 366 | NJ5: Field 367 | NK5: Field 368 | NL5: Field 369 | NM5: Field 370 | NN5: Field 371 | NO5: Field 372 | NP5: Field 373 | NQ5: Field 374 | NR5: Field 375 | NS5: Field 376 | NT5: Field 377 | NU5: Field 378 | NV5: Field 379 | NW5: Field 380 | NX5: Field 381 | NY5: Field 382 | NZ5: Field 383 | OA5: Field 384 | OB5: Field 385 | OC5: Field 386 | OD5: Field 387 | OE5: Field 388 | OF5: Field 389 | OG5: Field 390 | OH5: Field 391 | OI5: Field 392 | OJ5: Field 393 | OK5: Field 394 | OL5: Field 395 | OM5: Field 396 | ON5: Field 397 | OO5: Field 398 | OP5: Field 399 | OQ5: Field 400 | OR5: Field 401 | OS5: Field 402 | OT5: Field 403 | OU5: Field 404 | OV5: Field 405 | OW5: Field 406 | OX5: Field 407 | OY5: Field 408 | OZ5: Field 409 | PA5: Field 410 | PB5: Field 411 | PC5: Field 412 | PD5: Field 413 | PE5: Field 414 | PF5: Field 415 | PG5: Field 416 | PH5: Field 417 | PI5: Field 418 | PJ5: Field 419 | PK5: Field 420 | PL5: Field 421 | PM5: Field 422 | PN5: Field 423 | PO5: Field 424 | PP5: Field 425 | PQ5: Field 426 | PR5: Field 427 | PS5: Field 428 | PT5: Field 429 | PU5: Field 430 | PV5: Field 431 | PW5: Field 432 | PX5: Field 433 | PY5: Field 434 | PZ5: Field 435 | QA5: Field 436 | QB5: Field 437 | QC5: Field 438 | QD5: Field 439 | QE5: Field 440 | QF5: Field 441 | QG5: Field 442 | QH5: Field 443 | QI5: Field 444 | QJ5: Field 445 | QK5: Field 446 | QL5: Field 447 | QM5: Field 448 | QN5: Field 449 | QO5: Field 450 | QP5: Field 451 | QQ5: Field 452 | QR5: Field 453 | QS5: Field 454 | QT5: Field 455 | QU5: Field 456 | QV5: Field 457 | QW5: Field 458 | QX5: Field 459 | QY5: Field 460 | QZ5: Field 461 | RA5: Field 462 | RB5: Field 463 | RC5: Field 464 | RD5: Field 465 | RE5: Field 466 | RF5: Field 467 | RG5: Field 468 | RH5: Field 469 | RI5: Field 470 | RJ5: Field 471 | RK5: Field 472 | RL5: Field 473 | RM5: Field 474 | RN5: Field 475 | RO5: Field 476 | RP5: Field 477 | RQ5: Field 478 | RR5: Field 479 | RS5: Field 480 | RT5: Field 481 | RU5: Field 482 | RV5: Field 483 | RW5: Field 484 | RX5: Field 485 | RY5: Field 486 | RZ5: Field 487 | SA5: Field 488 | SB5: Field 489 | SC5: Field 490 | SD5: Field 491 | SE5: Field 492 | SF5: Field 493 | SG5: Field 494 | SH5: Field 495 | SI5: Field 496 | SJ5: Field 497 | SK5: Field 498 | SL5: Field 499 | SM5: Field 500
G6: =IF(G21="","NA",G21) -> Generic | H6: =IF(H21="","NA",H21) -> NA | I6: NA | J6: NA | K6: NA | L6: NA | M6: NA | N6: NA | O6: NA | P6: NA | Q6: NA | R6: NA | S6: NA | T6: NA | U6: NA | V6: NA | W6: NA | X6: NA | Y6: NA | Z6: NA | AA6: NA | AB6: NA | AC6: NA | AD6: NA | AE6: NA | AF6: NA | AG6: NA | AH6: NA | AI6: NA | AJ6: NA | AK6: NA | AL6: NA | AM6: NA | AN6: NA | AO6: NA | AP6: NA | AQ6: NA | AR6: NA | AS6: NA | AT6: NA | AU6: NA | AV6: NA | AW6: NA | AX6: NA | AY6: NA | AZ6: NA | BA6: NA | BB6: NA | BC6: NA | BD6: NA | BE6: NA | BF6: NA | BG6: NA | BH6: NA | BI6: NA | BJ6: NA | BK6: NA | BL6: NA | BM6: NA | BN6: NA | BO6: NA | BP6: NA | BQ6: NA | BR6: NA | BS6: NA | BT6: =IF(BT21="","NA",BT21) -> NA | BU6: NA | BV6: NA | BW6: NA | BX6: NA | BY6: NA | BZ6: NA | CA6: NA | CB6: NA | CC6: NA | CD6: NA | CE6: NA | CF6: NA | CG6: NA | CH6: NA | CI6: NA | CJ6: NA | CK6: NA | CL6: NA | CM6: NA | CN6: NA | CO6: NA | CP6: NA | CQ6: NA | CR6: NA | CS6: NA | CT6: NA | CU6: NA | CV6: NA | CW6: NA | CX6: NA | CY6: NA | CZ6: NA | DA6: NA | DB6: NA | DC6: NA | DD6: NA | DE6: NA | DF6: NA | DG6: NA | DH6: NA | DI6: NA | DJ6: NA | DK6: NA | DL6: NA | DM6: NA | DN6: NA | DO6: NA | DP6: NA | DQ6: NA | DR6: NA | DS6: NA | DT6: NA | DU6: NA | DV6: NA | DW6: NA | DX6: NA | DY6: NA | DZ6: NA | EA6: NA | EB6: NA | EC6: NA | ED6: NA | EE6: NA | EF6: NA | EG6: NA | EH6: =IF(EH21="","NA",EH21) -> NA | EI6: NA | EJ6: NA | EK6: NA | EL6: NA | EM6: NA | EN6: NA | EO6: NA | EP6: NA | EQ6: NA | ER6: NA | ES6: NA | ET6: NA | EU6: NA | EV6: NA | EW6: NA | EX6: NA | EY6: NA | EZ6: NA | FA6: NA | FB6: NA | FC6: NA | FD6: NA | FE6: NA | FF6: NA | FG6: NA | FH6: NA | FI6: NA | FJ6: NA | FK6: NA | FL6: NA | FM6: NA | FN6: NA | FO6: NA | FP6: NA | FQ6: NA | FR6: NA | FS6: NA | FT6: NA | FU6: NA | FV6: =IF(FV21="","NA",FV21) -> NA | FW6: NA | FX6: NA | FY6: NA | FZ6: NA | GA6: NA | GB6: NA | GC6: NA | GD6: NA | GE6: NA | GF6: NA | GG6: NA | GH6: NA | GI6: NA | GJ6: NA | GK6: NA | GL6: NA | GM6: NA | GN6: NA | GO6: NA | GP6: NA | GQ6: NA | GR6: =IF(GR21="","NA",GR21) -> NA | GS6: NA | GT6: NA | GU6: NA | GV6: NA | GW6: NA | GX6: NA | GY6: NA | GZ6: NA | HA6: NA | HB6: NA | HC6: NA | HD6: NA | HE6: NA | HF6: NA | HG6: NA | HH6: NA | HI6: NA | HJ6: NA | HK6: NA | HL6: NA | HM6: NA | HN6: NA | HO6: NA | HP6: NA | HQ6: NA | HR6: NA | HS6: NA | HT6: NA | HU6: NA | HV6: NA | HW6: NA | HX6: NA | HY6: NA | HZ6: NA | IA6: NA | IB6: NA | IC6: NA | ID6: NA | IE6: NA | IF6: NA | IG6: NA | IH6: =IF(IH21="","NA",IH21) -> NA | II6: =IF(II21="","NA",II21) -> NA | IJ6: =IF(IJ21="","NA",IJ21) -> NA | IK6: NA | IL6: NA | IM6: NA | IN6: NA | IO6: NA | IP6: NA | IQ6: =IF(HC21="","NA",HC21) -> NA | IR6: NA | IS6: NA | IT6: NA | IU6: NA | IV6: NA | IW6: NA | IX6: NA | IY6: NA | IZ6: NA | JA6: NA | JB6: NA | JC6: NA | JD6: NA | JE6: NA | JF6: NA | JG6: =IF(HS21="","NA",HS21) -> NA | JH6: NA | JI6: NA | JJ6: NA | JK6: NA | JL6: NA | JM6: NA | JN6: NA | JO6: NA | JP6: NA | JQ6: NA | JR6: NA | JS6: NA | JT6: NA | JU6: NA | JV6: NA | JW6: NA | JX6: NA | JY6: NA | JZ6: NA | KA6: NA | KB6: NA | KC6: NA | KD6: NA | KE6: NA | KF6: NA | KG6: NA | KH6: NA | KI6: NA | KJ6: NA | KK6: NA | KL6: NA | KM6: NA | KN6: NA | KO6: NA | KP6: NA | KQ6: NA | KR6: NA | KS6: NA | KT6: NA | KU6: NA | KV6: NA | KW6: NA | KX6: NA | KY6: NA | KZ6: NA | LA6: NA | LB6: NA | LC6: NA | LD6: NA | LE6: NA | LF6: NA | LG6: NA | LH6: NA | LI6: NA | LJ6: NA | LK6: NA | LL6: NA | LM6: NA | LN6: NA | LO6: NA | LP6: NA | LQ6: NA | LR6: NA | LS6: =IF(KE21="","NA",KE21) -> NA | LT6: NA | LU6: NA | LV6: NA | LW6: NA | LX6: NA | LY6: NA | LZ6: NA | MA6: NA | MB6: NA | MC6: NA | MD6: NA | ME6: NA | MF6: NA | MG6: NA | MH6: NA | MI6: NA | MJ6: NA | MK6: NA | ML6: NA | MM6: NA | MN6: NA | MO6: NA | MP6: NA | MQ6: NA | MR6: NA | MS6: NA | MT6: NA | MU6: NA | MV6: NA | MW6: NA | MX6: NA | MY6: NA | MZ6: NA | NA6: NA | NB6: NA | NC6: NA | ND6: NA | NE6: NA | NF6: NA | NG6: NA | NH6: NA | NI6: NA | NJ6: NA | NK6: NA | NL6: NA | NM6: NA | NN6: NA | NO6: NA | NP6: NA | NQ6: NA | NR6: NA | NS6: NA | NT6: NA | NU6: NA | NV6: NA | NW6: NA | NX6: NA | NY6: NA | NZ6: NA | OA6: NA | OB6: NA | OC6: NA | OD6: NA | OE6: =IF(MQ21="","NA",MQ21) -> NA | OF6: NA | OG6: NA | OH6: NA | OI6: NA | OJ6: NA | OK6: NA | OL6: NA | OM6: NA | ON6: NA | OO6: NA | OP6: NA | OQ6: =IF(OQ21="","NA",OQ21) -> NA | OR6: =IF(OR21="","NA",OR21) -> NA | OS6: NA | OT6: NA | OU6: NA | OV6: NA | OW6: NA | OX6: NA | OY6: NA | OZ6: NA | PA6: NA | PB6: NA | PC6: NA | PD6: NA | PE6: NA | PF6: NA | PG6: NA | PH6: NA | PI6: NA | PJ6: NA | PK6: NA | PL6: NA | PM6: NA | PN6: NA | PO6: NA | PP6: NA | PQ6: NA | PR6: NA | PS6: NA | PT6: NA | PU6: NA | PV6: NA | PW6: NA | PX6: NA | PY6: NA | PZ6: NA | QA6: NA | QB6: NA | QC6: NA | QD6: NA | QE6: NA | QF6: NA | QG6: NA | QH6: NA | QI6: NA | QJ6: NA | QK6: NA | QL6: NA | QM6: NA | QN6: NA | QO6: NA | QP6: NA | QQ6: NA | QR6: NA | QS6: NA | QT6: NA | QU6: NA | QV6: NA | QW6: NA | QX6: NA | QY6: NA | QZ6: NA | RA6: NA | RB6: NA | RC6: NA | RD6: =IF(RD21="","NA",RD21) -> NA | RE6: NA | RF6: NA | RG6: NA | RH6: NA | RI6: NA | RJ6: NA | RK6: NA | RL6: NA | RM6: NA | RN6: NA | RO6: NA | RP6: NA | RQ6: NA | RR6: NA | RS6: NA | RT6: NA | RU6: NA | RV6: NA | RW6: NA | RX6: NA | RY6: NA | RZ6: NA | SA6: NA | SB6: NA | SC6: NA | SD6: NA | SE6: NA | SF6: NA | SG6: NA | SH6: NA | SI6: NA | SJ6: NA | SK6: NA | SL6: NA | SM6: NA
A7: Production methods
A8: Notes: Enter "1" where applicable and "0" where not applicable
B9: Downhole pump | F9: NA | G9: 1
B10: Water reinjection | F10: NA | G10: 1
B11: Natural gas reinjection | F11: NA | G11: 1
B12: Water flooding | F12: NA | G12: 0
B13: Gas lifting | F13: NA | G13: 0
B14: Gas flooding | F14: NA | G14: 0
B15: Steam flooding | F15: NA | G15: 0
B16: Oil sands mine (integrated with upgrader) | F16: NA | G16: 0
B17: Oil sands mine (non-integrated with upgrader) | F17: NA | G17: 0
A19: Field properties
B20: Field location (Country) | F20: NA | G20: Generic
B21: Field name | F21: NA | G21: Generic
B22: Field age | F22: yr. | G22: 38
B23: Field depth | F23: ft | G23: 7240
B24: Oil production volume | F24: bbl/d | G24: 2098
B25: Number of producing wells | F25: - | G25: 24
B26: Number of water injecting wells | F26: - | G26: 20
B27: Production tubing diameter | F27: in | G27: 2.78
B28: Productivity index | F28: bbl/psi-d | G28: 6.8
B29: Reservoir pressure | F29: psi | G29: 1556.6
B30: Reservoir temperature | F30: ◦F | G30: 200
B31: Offshore? | F31: 0-1 | G31: 0
A33: Fluid properties
B34: API gravity | F34: deg. API | G34: 32.8
B35: Gas composition
C36: N2 | F36: mol% | G36: =IF(Inputs!$AF$2="Global ",'Regionalized defaults'!$C$9,IF(Inputs!$AF$2="CA-LCFS",'Regionalized defaults'!$D$9)) -> 2.7
C37: CO2 | F37: mol% | G37: =IF(Inputs!$AF$2="Global ",'Regionalized defaults'!$C$10,IF(Inputs!$AF$2="CA-LCFS",'Regionalized defaults'!$D$10)) -> 6.9
C38: C1 | F38: mol% | G38: =IF(Inputs!$AF$2="Global ",'Regionalized defaults'!$C$11,IF(Inputs!$AF$2="CA-LCFS",'Regionalized defaults'!$D$11)) -> 83.3
C39: C2 | F39: mol% | G39: =IF(Inputs!$AF$2="Global ",'Regionalized defaults'!$C$12,IF(Inputs!$AF$2="CA-LCFS",'Regionalized defaults'!$D$12)) -> 4.9
C40: C3 | F40: mol% | G40: =IF(Inputs!$AF$2="Global ",'Regionalized defaults'!$C$13,IF(Inputs!$AF$2="CA-LCFS",'Regionalized defaults'!$D$13)) -> 1.5
C41: C4+ | F41: mol% | G41: =IF(Inputs!$AF$2="Global ",'Regionalized defaults'!$C$14,IF(Inputs!$AF$2="CA-LCFS",'Regionalized defaults'!$D$14)) -> 0.7
C42: H2S | F42: mol% | G42: =IF(Inputs!$AF$2="Global ",'Regionalized defaults'!$C$15,IF(Inputs!$AF$2="CA-LCFS",'Regionalized defaults'!$D$15)) -> 0
A44: Production practices
A45: Notes: Enter "NA" where not applicable
B46: Gas-to-oil ratio (GOR) | F46: scf/bbl oil | G46: 2429.3
B47: Water-to-oil ratio (WOR) | F47: bbl water/bbl oil | G47: 6
B48: Water injection ratio | F48: bbl water/bbl oil | G48: 7
B49: Gas lifting injection ratio | F49: scf/bbl liquid | G49: 364
B50: Gas flooding injection ratio | F50: scf/bbl oil | G50: 3644
B51: Flood gas | F51: NA | G51: 1
C52: 1= Natural gas
C53: 2= Nitrogen (N2)
C54: 3= Carbon Dioxide (CO2)
B57: Carbon dioxide flooding and sequestration parameters
C58: Fraction of CO2 breaking through to producers | F58: % | G58: 59
C59: Source of makeup CO2 | F59: NA | G59: 1
D60: 1= Natural subsurface reservoir
D61: 2= Anthropogenic
C62: Percentage of sequestration credit assigned to the oilfield | F62: % | G62: 0
B63: Steam-to-oil ratio (SOR) | F63: bbl steam/bbl oil | G63: 3
B64: Fraction of required electricity generated onsite | F64: - | G64: 0
B65: Fraction of remaining natural gas reinjected | F65: - | G65: 0.5
B66: Fraction of produced water reinjected | F66: - | G66: 1
B67: Fraction of steam generation via cogeneration | F67: - | G67: 0
B68: Fraction of steam generation via solar thermal | F68: - | G68: 0
A69: Processing practices
B70: Heater/treater | F70: NA | G70: 0
B71: Stabilizer column | F71: NA | G71: 1
B72: Upgrader type | G72: 0
C73: 0 = None
C74: 1 = Delayed coking
C75: 2 = Hydroconversion
C76: 3 = Combined hydroconversion and fluid coking
B77: Associated Gas Processing Path | F77: NA | G77: 5
C78: 1= None | G78: Notes:
C79: 2= Minimal: Dehydrator | G79: Choose paths 6, 7, 8 only if gas flooding is ON and CO2 is the flood gas
C80: 3= Acid Gas: Dehydrator + Amine Process | G80: Choose path 1 for oil sands mining as no gas is generated at mines
C81: 4= Wet Gas: Dehydrator + Demethanizer
C82: 5= Acid Wet Gas: Dehydrator + Amine Process + Demethanizer
C83: 6= Sour gas reinjection: Dehydration then direct injection of sour CO2-rich stream
C84: 7= CO2-EOR Membrane: Dehydrator + Compressor + Membrane + Amine Process + Demethanizer
C85: 8= CO2-EOR Ryan Holmes: Dehydrator + Ryan Holmes Process (Demethanizer Included)
B86: Flaring-to-oil ratio | F86: scf/bbl oil | G86: 143
B87: Venting-to-oil ratio (purposeful) | F87: scf/bbl oil | G87: 5
B88: Volume fraction of diluent | F88: - | G88: 0
A90: Land use impacts
B91: Crude ecosystem carbon richness
C92: Low carbon richness (semi-arid grasslands) | F92: NA | G92: 0
C93: Moderate carbon richness (mixed) | F93: NA | G93: 1
C94: High carbon richness (forested) | F94: NA | G94: 0
B95: Field development intensity
C96: Low intensity development and low oxidation | F96: NA | G96: 0
C97: Moderate intensity development and moderate oxidation | F97: NA | G97: 1
C98: High intensity development and high oxidation | F98: NA | G98: 0
A100: Crude oil transport
B101: Fraction of oil transported by each mode
C102: Ocean tanker | F102: - | G102: 1
C103: Barge | F103: - | G103: 0
C104: Pipeline | F104: - | G104: 1
C105: Rail | F105: - | G105: 0
C106: Truck | G106: 0
B107: Transport distance (one way)
C108: Ocean tanker | F108: Mile | G108: 5082
C109: Barge | F109: Mile | G109: 500
C110: Pipeline | F110: Mile | G110: 750
C111: Rail | F111: Mile | G111: 800
C112: Truck | F112: Mile | G112: 100
B113: Ocean tanker size, if applicable | F113: Ton | G113: 250000
A115: Small sources emissions | F115: gCO2eq/MJ | G115: 0.5

Sheet Secondary inputs
A1: Secondary inputs | G1: Field: | H1: =Field_name -> Girassol | P1: =HYPERLINK("#Home_Inputs","To: Inputs") -> To: Inputs | R1: =HYPERLINK("#Home_ActiveField","To: Active") -> To: Active | T1: =HYPERLINK("#Home_FlowSheet","To: Flows") -> To: Flows
A3: This sheet is where secondary inputs are modfied by the user. The values here are used througout the model sheets.
A5: Exploration [EX] | F5: =HYPERLINK("#Home_EX","To sheet") -> To sheet
M6: User | N6: Default | O6: Units | Q6: User reference | U6: Default reference | Y6: Notes
B7: Distance of travel for survey | K7: Distance_survey | M7: =N7 -> 10000 | N7: 10000 | O7: mi | Y7: Estimate accounting for long-distance travel of specialized equipment
B8: Weight of land survey vehicle | K8: Weight_land_survey | M8: =N8 -> 25 | N8: 25 | O8: tons | Y8: Assume 25 tons for heavy-duty truck, 100 tons for siesmic survey ship
B9: Weight of ocean survey vehicle | K9: Weight_ocean_survey | M9: =N9 -> 100 | N9: 100 | O9: tons
B10: Number of dry wells drilled per field found | K10: Number_wells_dry | M10: =N10 -> 1 | N10: 1 | O10: wells
B11: Number of exploratory/scientific wells drilled after field discovery | K11: Number_wells_exploratory | M11: =N11 -> 3 | N11: 3 | O11: wells
A13: Drilling & development [DD] | F13: =HYPERLINK("#Home_DD","To sheet") -> To sheet
M14: User | N14: Default | O14: Units | Q14: User reference | U14: Default reference | Y14: Notes | AA14: Options
B15: Rig efficiency | D15: Low: Mud pump 60%, Rotary table 40%; Med: MP 65%, RT 45%; High: MP 70%, RT 50% | K15: eta_rig | M15: =N15 -> Med | N15: Med | O15: - | AA15: Low | AB15: Med | AC15: High
B16: Well complexity | D16: Simple = Surface casing plus production casing; Moderate = Surface, intermediate, production; Complex = Surface, Intermediate 1, Intermediate 2, Production | K16: Well_complexity | M16: Moderate | N16: Moderate | O16: - | P16: =IF(Field_depth>15000,IF(M16<>"Complex","Warning",""),"") ->  | Y16: If a very deep field, suggest using complex well design. | AA16: Simple | AB16: Moderate | AC16: Complex
B17: Hole size | K17: Well_size | M17: Med | N17: Med | O17: - | AA17: Small | AB17: Med | AC17: Large
B18: Horizontal well? | D18: 0 = All wells vertical; 1 = All wells horizontal; (0 -> 1): Fraction of wells that are horizontal | K18: Fraction_wells_horizontal | M18: 0 | N18: 0 | O18: Fraction of wells horizontal
B19: Length of lateral | K19: Length_lateral | M19: 5000 | N19: 5000 | O19: ft
B20: Oil field productivity category (Low = USA, Med = Global average, High = OPEC) | K20: Well_productivity_crude_oil | M20: Med | N20: Med | O20: - | AA20: Low | AB20: Med | AC20: High
B21: Gas field productivity category | K21: Well_productivity_natural_gas | M21: Med | N21: Med | O21: - | AA21: Low | AB21: Med | AC21: High
B22: Fraction of wells fractured | K22: Fraction_wells_fractured | M22: 0 | N22: 0 | O22: 0-1
B23: Fracturing fluid injection volume | K23: Volume_per_well_fractured | M23: 3 | N23: 3 | O23: million gallons fluid
B24: Fracturing pressure gradient (rock strength) | K24: Pressure_gradient_fracturing | M24: 0.7 | N24: 0.7 | O24: psi/ft
B25: Timeframe of land use analysis (1 = 30 years, 2 = 150 years) | K25: Timeframe_land_use | M25: 1 | N25: 1 | O25: - | Y25: If default timeframe of 30 years is chosen, modified versions of Yeh et al. (2010) calculations are used. See documenation for calculation differences.
B26: Fracturing flowback flared? | K26: Flaring_fracturing_flowback | M26: 0 | N26: 0 | O26: Binary 0-1
B27: Fracturing flowback captured with reduced emissons completions? | K27: REC_fracturing_flowback | M27: 1 | N27: 1 | O27: Binary 0-1
B28: Workovers needed over lifetime of well | K28: Number_well_workovers | M28: 4 | N28: 4 | O28: Workovers per well
B30: Well productivity table
D31: Cum. oil | E31: Cum. gas
D33: bbl | E33: bcf
C34: Low | D34: 150000 | E34: 1
C35: Med | D35: 800000 | E35: 4
C36: High | D36: 7000000 | E36: 10
B38: Cumulative production oil | K38: Cum_prod_oil | M38: =IF(Well_productivity_crude_oil="Low",D34,IF(Well_productivity_crude_oil="Med",D35,IF(Well_productivity_crude_oil="High",D36,"ERROR"))) -> 800000 | O38: bbl/well
B39: Cumulative production gas | K39: Cum_prod_gas | M39: =IF(Well_productivity_natural_gas="Low",E34,IF(Well_productivity_natural_gas="Med",E35,IF(Well_productivity_natural_gas="High",E36,"ERROR"))) -> 4 | O39: bcf/well
B41: Hole size reference table
E42: Simple | I42: Moderate | M42: Complex | R42: Notes:
E43: Small | F43: Med | G43: Large | H43: Extra-large | I43: Small | J43: Med | K43: Large | L43: Extra-large | M43: Small | N43: Med | O43: Large | P43: Extra-large | R43: Conductor casing is assumed inserted by drive or auger, not conventional drilling system. Conducor casing placement not modeled in GHGfrack
C44: Conductor casing | E44: - | F44: - | G44: - | H44: - | I44: - | J44: - | K44: - | L44: - | M44: - | N44: - | O44: - | P44: - | R44: To customize drilling design further, please use the GHGfrack model.
C45: Surface casing | E45: 12.25 | F45: 12.25 | G45: 14.75 | H45: 14.75 | I45: 12.25 | J45: 14.75 | K45: 14.75 | L45: 14.75 | M45: 14.375 | N45: 14.375 | O45: 17.5 | P45: 17.5 | Q45: in.
C46: Intermediate casing 1 | E46: 5.875 | F46: 6.125 | G46: 6.5 | H46: 7.875 | I46: 8.75 | J46: 10.625 | K46: 10.625 | L46: 12.25 | M46: 10.625 | N46: 10.625 | O46: 12.25 | P46: 14.75 | Q46: in.
C47: Intermediate casing 2 | E47: 5.875 | F47: 6.125 | G47: 6.5 | H47: 7.875 | I47: 5.875 | J47: 5.875 | K47: 6.125 | L47: 7.875 | M47: 6.5 | N47: 7.875 | O47: 9.5 | P47: 12.25 | Q47: in.
C48: Production casing | E48: 5.875 | F48: 6.125 | G48: 6.5 | H48: 7.875 | I48: 5.875 | J48: 5.875 | K48: 6.125 | L48: 7.875 | M48: 5.875 | N48: 6.5 | O48: 7.875 | P48: 9.5 | Q48: in.
B50: Drilling energy intensity reference tables
C51: Vertical drilling
D52: Low efficiency | H52: Med efficiency | M52: High efficiency
D53: Small | E53: Med | F53: Large | G53: Extra-large | I53: Small | J53: Med | K53: Large | L53: Extra-large | N53: Small | O53: Med | P53: Large | Q53: Extra-large
C54: Simple | D54: 0.3431898098 | E54: 0.3368935729 | F54: 0.4508989914 | G54: 0.4232928346 | H54: Simple | I54: 0.3121256775 | J54: 0.3061297216 | K54: 0.411186966 | L54: 0.3869063284 | M54: Simple | N54: 0.2863960964 | O54: 0.2806819383 | P54: 0.3779574987 | Q54: 0.3565033639 | R54: gal diesel fuel/ft
C55: Moderate | D55: 0.3535795369 | E55: 0.3586592564 | F55: 0.4996855387 | G55: 0.4389962069 | H55: Moderate | I55: 0.322376125 | J55: 0.3259643561 | K55: 0.4587711943 | L55: 0.4019987991 | M55: Moderate | N55: 0.2964136321 | O55: 0.3119776867 | P55: 0.4229793891 | Q55: 0.3709670165 | R55: gal diesel fuel/ft
C56: Complex | D56: 0.6476966523 | E56: 0.4870229396 | F56: 0.6354207479 | G56: 0.7275762032 | H56: Complex | I56: 0.5968402245 | J56: 0.445997621 | K56: 0.5707533635 | L56: 0.670511789 | M56: Complex | N56: 0.5536398596 | O56: 0.4035761225 | P56: 0.5295273371 | Q56: 0.621998704 | R56: gal diesel fuel/ft
C58: Horizontal drilling
D59: Low efficiency | H59: Med efficiency | M59: High efficiency
D60: Small | E60: Med | F60: Large | G60: Extra-large | I60: Small | J60: Med | K60: Large | L60: Extra-large | N60: Small | O60: Med | P60: Large | Q60: Extra-large
C61: Simple | D61: 0.239708483 | E61: 0.2329457391 | F61: 0.2319883045 | G61: 0.2720280639 | H61: Simple | I61: 0.2207175639 | J61: 0.2144057251 | K61: 0.213487793 | L61: 0.5803204149 | M61: Simple | N61: 0.2045729664 | O61: 0.1986568113 | P61: 0.1977772681 | Q61: 0.23245575 | R61: gal additional diesel fuel/ft lateral
C62: Moderate | D62: 0.3230511524 | E62: 0.3230511524 | F62: 0.3040114245 | G62: 0.3130609845 | H62: Moderate | I62: 0.298240373 | J62: 0.298240373 | K62: 0.2804816624 | L62: 0.2786538352 | M62: Moderate | N62: 0.2770289106 | O62: 0.2770289106 | P62: 0.2603925669 | Q62: 0.2681979362 | R62: gal additional diesel fuel/ft lateral
C63: Complex | D63: 0.5160812411 | E63: 0.4292008299 | F63: 0.4087676643 | G63: 0.4990412427 | H63: Complex | I63: 0.4781406673 | J63: 0.3969608922 | K63: 0.3780347922 | L63: 0.4624312478 | M63: Complex | N63: 0.4454471081 | O63: 0.3692839204 | P63: 0.3516581759 | Q63: 0.430875557 | R63: gal additional diesel fuel/ft lateral
B65: Vertical drilling intensity | K65: Drilling_fuel_per_foot_vertical | M65: =IF(Eta_rig="Low",VLOOKUP(Well_complexity,'Secondary inputs'!C54:G56,IF(Well_size="Small",2,IF(Well_size="Med",3,IF(Well_size="Large",4,5))),FALSE),IF(Eta_rig="Med",VLOOKUP(Well_complexity,'Secondary inputs'!H54:L56,IF(Well_size="Small",2,IF(Well_size="Med",3,IF(Well_size="Large",4,5))),FALSE),IF(Eta_rig="High",VLOOKUP(Well_complexity,'Secondary inputs'!M54:Q56,IF(Well_size="Small",2,IF(Well_size="Med",3,IF(Well_size="Large",4,5))),FALSE)))) -> 0.3259643561 | N65: 0.326 | O65: gal diesel fuel/ft vertical
B66: Horizontal drilling intensity | K66: Drilling_fuel_per_foot_horizontal | M66: =Drilling_fuel_per_foot_vertical+IF(Eta_rig="Low",VLOOKUP(Well_complexity,'Secondary inputs'!C61:G63,IF(Well_size="Small",2,IF(Well_size="Med",3,IF(Well_size="Large",4,5))),FALSE),IF(Eta_rig="Med",VLOOKUP(Well_complexity,'Secondary inputs'!H61:L63,IF(Well_size="Small",2,IF(Well_size="Med",3,IF(Well_size="Large",4,5))),FALSE),IF(Eta_rig="High",VLOOKUP(Well_complexity,'Secondary inputs'!M61:Q63,IF(Well_size="Small",2,IF(Well_size="Med",3,IF(Well_size="Large",4,5))),FALSE)))) -> 0.624204729 | N66: 0.624 | O66: gal diesel fuel/ft lateral
B68: Fracuring rig energy consumption table
C69: psi/ft | D69: a | E69: b | F69: c | M69: <--Change to left
C70: 0.6 | D70: 588.55 | E70: -488.77 | F70: 1184.5 | G70: - | L70: a | M70: =VLOOKUP('Secondary inputs'!M24,C70:F78,2) -> 511.3 | N70: =VLOOKUP('Secondary inputs'!N24,C70:F78,2) -> 511.3 | O70: -
C71: 0.65 | D71: 599.49 | E71: -246.27 | F71: 1349.2 | G71: - | L71: b | M71: =VLOOKUP('Secondary inputs'!M24,C70:F78,3) -> 575.63 | N71: =VLOOKUP('Secondary inputs'!N24,C70:F78,3) -> 575.63 | O71: -
C72: 0.7 | D72: 511.3 | E72: 575.63 | F72: 964.32 | G72: - | L72: c | M72: =VLOOKUP('Secondary inputs'!M24,C70:F78,4) -> 964.32 | N72: =VLOOKUP('Secondary inputs'!N24,C70:F78,4) -> 964.32 | O72: -
C73: 0.75 | D73: 499.47 | E73: 924.06 | F73: 1012.5 | G73: -
C74: 0.8 | D74: 566.77 | E74: 1090.4 | F74: 1101.6 | G74: -
C75: 0.85 | D75: 570.18 | E75: 1378.2 | F75: 1162.6 | G75: -
C76: 0.9 | D76: 523.67 | E76: 1882.7 | F76: 1233.9 | G76: -
C77: 0.95 | D77: 664.49 | E77: 1512.6 | F77: 1922.7 | G77: -
C78: 1 | D78: 477.57 | E78: 3025.4 | F78: 752.02 | G78: -
B80: Diesel use per well for fracturing | K80: Fracturing_fuel_per_well | M80: =N80 -> 7292.91 | N80: =('Secondary inputs'!M70*Volume_per_well_fractured^2+'Secondary inputs'!M71*Volume_per_well_fractured+'Secondary inputs'!M72) -> 7292.91 | O80: gal diesel/well
A84: Reservoir [RE] | F84: =HYPERLINK("#Home_RE","To sheet") -> To sheet
M85: User | N85: Default | O85: Units | Q85: User reference | U85: Default reference | Y85: Notes
B86: Excess pressure in injector well (injector well interface flowing pressure - avg res. pressure) | K86: Pressure_excess_injector | M86: =N86 -> 500 | N86: 500 | O86: psi
B87: Reservoir permeability | K87: Permeability_reservoir | M87: =N87 -> 100 | N87: 100 | O87: mD
B88: Reservoir thickness | K88: Pay_thickness_reservoir | M88: =N88 -> 50 | N88: 50 | O88: ft | U88: Assumption
A91: Well and downhole pump [WO] | F91: =HYPERLINK("#Home_WO","To sheet") -> To sheet
M92: User | N92: Default | O92: Units | Q92: User reference | U92: Default reference | Y92: Notes
B93: Produced water properties
C94: Concentration of dissolved solids (TDS) | K94: W_TDS | M94: =N94 -> 5000 | N94: 5000 | O94: mg/L | U94: Vlasopoulos et al. (2006)
B95: Well description
C96: Well head pressure | K96: Wellhead_pressure | M96: =N96 -> 500 | N96: =IF(AND('Active Field'!J59="California",'Active Field'!J54=1),100,IF(Res_press<500,Res_press,500)) -> 500 | O96: psi | U96: Manning, F., and Thompson, R. (1991), Masnadi et al. 2019. | Y96: Reduced wellhead pressure somewhat to comport better with gas processing equipment pressures run in Aspen HYSYS proxy models described in Masnadi et al. 2019
C97: Wellhead temperature | K97: Wellhead_temperature | M97: =N97 -> 91.30016619 | N97: =IF(Res_temp<150,Res_temp,150) -> 91.30016619 | O97: °F
C98: Friction factor | K98: Friction_factor | M98: =N98 -> 0.02 | N98: 0.02 | O98: - | U98: Moody 2008, see documentation
B99: Downhole pump characteristics
C100: Pump efficiency | K100: Eta_pump_well | M100: =N100 -> 65 | N100: 65 | O100: %
C101: Prime mover type | E101: 1 = NG engine, 2 = Electric motor, 3 = Diesel engine, 4 = NG turbine | K101: Prime_mover_type_well | M101: =N101 -> 1 | N101: 1 | O101: NA | Y101: 1 = NG engine, 2 = Electric motor, 3 = Diesel engine, 4 = NG turbine
A103: Bitumen mining [BM] | F103: =HYPERLINK("#Home_BM","To sheet") -> To sheet
M104: User | N104: Default | O104: Units | Q104: User reference | U104: Default reference | Y104: Notes
B105: Mined bitumen temperature | K105: Temperature_mined_bitumen | M105: =N105 -> 80 | N105: 80 | O105: °F
B106: Mined bitumen pressure | K106: Pressure_mined_bitumen | M106: =N106 -> 14.7 | N106: 14.7 | O106: psia
B107: Crude bitumen specific gravity | K107: API_bitumen | M107: =N107 -> 8 | N107: 8 | O107: API | Y107: Default bitumen API gravity in GHGenius 4.0c
B108: Fraction of gas consumed in different types of NG engines and turbines
C109: Fraction consumed in NG engines | K109: Fraction_natural_gas_engine_mined_bitumen | M109: =N109 -> 0 | N109: 0 | O109: logical 0-1
C110: Fraction consumed in NG turbines | K110: Fraction_natural_gas_turbine_mined_bitumen | M110: =N110 -> 0 | N110: 0 | O110: logical 0-1
C111: Fraction consumed in NG boilers | K111: Fraction_natural_gas_boiler_mined_bitumen | M111: =N111 -> 1 | N111: 1 | O111: logical 0-1
A113: Separation [SE] | F113: =HYPERLINK("#Home_SE","To sheet") -> To sheet
M114: User | N114: Default | O114: Units | Q114: User reference | U114: Default reference | Y114: Notes
B115: Separator stages and properties
C116: Number of separator stages | K116: Number_stages_separator | M116: =N116 -> 2 | N116: =IF(Wellhead_pressure>=1000,3,IF(Wellhead_pressure>=500,2,1)) -> 2 | O116: stages
C117: First stage separator pressure | K117: Pressure_first_separator | M117: =N117 -> 500 | N117: =MIN(Wellhead_pressure,Res_press) -> 500 | O117: psia
C118: Second stage separator pressure | K118: Pressure_second_separator | M118: =N118 -> 250 | N118: 250 | O118: psia
C119: Third stage separator pressure | K119: Pressure_third_separator | M119: =N119 -> 100 | N119: 100 | O119: psia
B120: Output stream properties from separator
C121: Separator pressure (final if multi-stage) | K121: Pressure_outlet_separator | M121: =N121 -> 100 | N121: 100 | O121: psia
C122: Separator gas outlet pressure after boosting compressors | K122: Pressure_after_boosting_separator | M122: =N122 -> 500 | N122: 500 | O122: psia | U122: Masnadi et al. 2019 | Y122: Comports with typical pressures in downstream gas processing equipment.
C123: Separator temperature (final if multi-stage) | K123: Temperature_outlet_separator | M123: 90 | N123: 90 | O123: ◦F
C124: Entrained water as a fraction of oil emulsion | K124: Water_content_oil_emulsion | M124: 14 | N124: 14 | O124: wt. % | U124: Manning, F. and Thompson, R. (1991)
B125: Compressor efficiency | K125: Eta_compressor_separator | M125: 75 | N125: 75 | O125: %
B126: Prime mover type | K126: Prime_mover_type_separator_compressor | M126: 2 | N126: 2 | O126: NA | Y126: 1 = Electric motor, 2 = NG engine
A128: Crude oil dewatering [HT] | F128: =HYPERLINK("#Home_HT","To sheet") -> To sheet
M129: User | N129: Default | O129: Units | Q129: User reference | U129: Default reference | Y129: Notes
B130: Treating temperature | K130: Temperature_heater_treater | M130: =N130 -> 165 | N130: 165 | O130: ◦F | U130: Manning, F. and Thompson, R. (1991)
B131: Heat loss | K131: Heat_loss_heater_treater | M131: =N131 -> 2 | N131: 2 | O131: % | U131: Manning, F. and Thompson, R. (1991)
B132: Type of heater | E132: Options = "Gas" or "Elec" | K132: Type_heater_treater | M132: =N132 -> Gas | N132: Gas | O132: -
B133: Heater fuel use - Gas | K133: Eta_heater_treater_gas | M133: =N133 -> 0.8 | N133: =0.8 -> 0.8 | O133: btu useful output/btu LHV fuel energy consumed | U133: EPA (2008) | Y133: Nominal heater efficiency (80%) <http://www.epa.gov/climateleadership/documents/resources/draft_reforestation_offset_protocol.pdf>
B134: Heater fuel use - Electric | K134: Eta_heater_treater_electric | M134: =N134 -> 0.0003663368056 | N134: =1055.05/3600000/0.8 -> 0.0003663368056 | O134: kWh/btu | Y134: Nominal heater efficiency 80% and using definitions of kWh and btu in J (3.6e6 and 1055 respectively)
A136: Crude oil stabilization [S] | F136: =HYPERLINK("#Home_S","To sheet") -> To sheet
M137: User | N137: Default | O137: Units | Q137: User reference | U137: Default reference | Y137: Notes
B138: Stabilizer pressure | K138: P_S | M138: =N138 -> 100 | N138: 100 | O138: psi | Y138: The higher the operating pressure, the higher is the oil yield
B139: Stabilizer temperature | K139: T_S | M139: 344 | N139: 344 | O139: ◦F
B140: Heat loss | K140: Eps_S | M140: 2 | N140: 2 | O140: %
B141: Type of heater | E141: Options = "Gas" or "Elec" | K141: Type_S | M141: Gas | N141: Gas | O141: -
B142: Heater fuel use - Gas | K142: Eta_S_fg | M142: 0.8 | N142: =0.8 -> 0.8 | O142: btu useful output/btu fuel energy consumed | Y142: Nominal heater efficiency (80%) <http://www.epa.gov/climateleadership/documents/resources/draft_reforestation_offset_protocol.pdf>
B143: Heater fuel use - Electric | K143: Eta_S_el | M143: 0.0003663368056 | N143: =1055.05/3600000/0.8 -> 0.0003663368056 | O143: kWh/btu | Y143: Nominal heater efficiency 80% and using definitions of kWh and btu in J (3.6e6 and 1055 respectively)
A145: Heavy oil upgrading [HU] | F145: =HYPERLINK("#Home_HU","To sheet") -> To sheet
M146: User | N146: Default | O146: Units | Q146: User reference | U146: Default reference | Y146: Notes
B147: Cogeneration in upgrading? | K147: Cogeneration_upgrading | M147: =N147 -> 1 | N147: 1 | O147: logical 0-1
B148: Upgrader process gas composition | K148: Composition_upgrader_gas | L148: N2 | M148: 0 | N148: 0 | O148: mol%
L149: O2 | M149: 0 | N149: 0 | O149: mol%
L150: CO2 | M150: 10 | N150: 10 | O150: mol%
L151: H2O | M151: 0 | N151: 0 | O151: mol%
L152: CH4 | M152: 25 | N152: 25 | O152: mol%
L153: C2H6 | M153: 15 | N153: 15 | O153: mol%
L154: C3H8 | M154: 10 | N154: 10 | O154: mol%
L155: C4H10 | M155: 5 | N155: 5 | O155: mol%
L156: CO | M156: 0 | N156: 0 | O156: mol%
L157: H2 | M157: 33 | N157: =100-SUM(N148:N156,N158:N159) -> 33 | O157: mol%
L158: H2S | M158: 2 | N158: 2 | O158: mol%
L159: SO2 | M159: 0 | N159: 0 | O159: mol%
A162: Heavy oil dilution [HD] | F162: =HYPERLINK("#Home_HD","To sheet") -> To sheet
M163: User | N163: Default | O163: Units | Q163: User reference | U163: Default reference | Y163: Notes
B164: Given diluent or dilbit API? | K164: Known_API_diluent_or_dilbit | M164: =N164 -> Diluent | N164: Diluent | O164: - | Y164: Enter 'Diluent' if diluent API is more certain than dilbit API; this way dilbit API will be computed based on volumetric fraction of diluent, bitumen API, and diluent API. Enter "Dilbit" if dilbit API is more certain than diluent API; this way diluent API will be computed based on volumetric fraction of diluent, bitumen API, and dilbit API.
C165: Dilbit API gravity | K165: API_dilbit_input | M165: 23 | N165: 23 | O165: deg. API
C166: Diluent API gravity | K166: API_diluent_input | M166: 55.2 | N166: ='Fuel Specs'!D358 -> 55.2 | O166: deg. API
B167: Diluent temperature | K167: Temperature_diluent | M167: 60 | N167: 60 | O167: °F
B168: Diluent pressure | K168: Pressure_diluent | M168: 14.7 | N168: 14.7 | O168: psia
B169: Final diluted crude mixture temperature | K169: Temperature_diluted_bitumen | M169: 60 | N169: 60 | O169: °F
B170: Final diluted crude mixture pressure | K170: Pressure_diluted_bitumen | M170: 14.7 | N170: 14.7 | O170: psia
B171: Standard temperature before dilution (for calculating volume at standard temperature) | K171: Standard_temperature_before_dilution | M171: 60 | N171: 60 | O171: °F | Y171: Assume volumetric fraction of diluent is measured at standard temperauture 60F
B172: Standard pressure before dilution (for calculating volume at standard temperature) | K172: Standard_pressure_before_dilution | M172: 14.7 | N172: 14.7 | O172: psia
A174: Crude oil storage [CS] | F174: =HYPERLINK("#Home_CS","To sheet") -> To sheet
M175: User | N175: Default | O175: Units | Q175: User reference | U175: Default reference | Y175: Notes
B176: Storage gas recovery fraction | K176: f_FG_CS_VRU | M176: =N176 -> 6 | N176: 6 | O176: % tanks equipped | Y176: Based upon analysis of GHGRP data (RY2015), 44% of storage tanks in the production segment are equipped with flares or VRUs
B177: Storage gas flare fraction | K177: f_FG_CS_FL | M177: =N177 -> 43 | N177: 43 | O177: % tanks equipped
A179: Produced water treatment [PWT] | F179: =HYPERLINK("#Home_PWT","To sheet") -> To sheet
M180: User | N180: Default | O180: Units | Q180: User reference | U180: Default reference | Y180: Notes
B181: Fraction of excess water disposed in sub-surface | K181: fraction_disp_water_subsurface | M181: =N181 -> 1 | N181: 1 | O181: -
B182: Fraction of excess water disposed in surface waters | K182: fraction_disp_water_surface | L182: =IF(M182+M181=1,"OK","ERROR") -> OK | M182: =N182 -> 0 | N182: 0 | O182: -
B184: Water treatment technologies table | I184: Produced water | U184: Sources: Vlasopoulos, N. et al. (2006) | Y184: Enter "1" where applicable and "0" where not applicable
C185: Technologies_prod_water_treatment | I185: Apply | J185: Apply | K185: Code | L185: Volume loss | M185: Volume loss | N185: EC | O185: EC | Y185: No more than one option is allowed in each treatment stage
I186: ="--" -> -- | J186: ="--" -> -- | K186: ="--" -> -- | L186: % | M186: % | N186: kWh/bbl input | O186: kWh/bbl input | Y186: Categorization of treatment technologies is based on Vlasopoulos et al. (2006), originally from Dillon (2003)
I187: User | J187: Default | K187: ="--" -> -- | L187: User | M187: Default | N187: User | O187: Default | Y187: Values of energy consumption can be changed in the user columns
C188: Stage 1 of treatment | I188: =IF(OR(SUM(I189:I190)=0,SUM(I189:I190)=1),"OK","ERROR") -> OK
D189: Dissolved air flotation | I189: 1 | J189: 1 | K189: DAF | L189: 0 | M189: 0 | N189: 0.03513458 | O189: =0.221*0.15898 -> 0.03513458
D190: Hydrocyclones | I190: 0 | J190: 0 | K190: HYDRO | L190: 0 | M190: 0 | N190: 0.04880686 | O190: =0.307*0.15898 -> 0.04880686
C191: Stage 2 of treatment | I191: =IF(OR(SUM(I192:I199)=0,SUM(I192:I199)=1),"OK","ERROR") -> OK
D192: Rotating biological contactors | I192: 1 | J192: 1 | K192: RBC | L192: 0 | M192: 0 | N192: 0.0349756 | O192: =0.22*0.15898 -> 0.0349756
D193: Absorbents | I193: 0 | J193: 0 | K193: ABS | L193: 0 | M193: 0 | N193: 0.0174878 | O193: =0.11*0.15898 -> 0.0174878
D194: Activated sludge | I194: 0 | J194: 0 | K194: AS | L194: 0 | M194: 0 | N194: 0.1462616 | O194: =0.92*0.15898 -> 0.1462616
D195: Trickling filters | I195: 0 | J195: 0 | K195: TF | L195: 0 | M195: 0 | N195: 0.0365654 | O195: =0.23*0.15898 -> 0.0365654
D196: Air stripping | I196: 0 | J196: 0 | K196: AIR | L196: 0 | M196: 0 | N196: 0.10524476 | O196: =0.662*0.15898 -> 0.10524476
D197: Aerated lagoons | I197: 0 | J197: 0 | K197: AL | L197: 0 | M197: 0 | N197: 0.095388 | O197: =0.6*0.15898 -> 0.095388
D198: Wetlands | I198: 0 | J198: 0 | K198: CWL | L198: 26 | M198: 26 | N198: 0.00222572 | O198: =0.014*0.15898 -> 0.00222572
D199: Microfiltration - used as a combined stage 1 and stage 2 technology | I199: 0 | J199: 0 | K199: MF | L199: 0 | M199: 0 | N199: 0.031796 | O199: =0.2*0.15898 -> 0.031796
C200: Stage 3 of treatment | I200: =IF(OR(SUM(I201:I207)=0,SUM(I201:I207)=1),"OK","ERROR") -> OK
D201: Dual media filtration | I201: 1 | J201: 1 | K201: DMF | L201: 0 | M201: 0 | N201: 0.00429246 | O201: =0.027*0.15898 -> 0.00429246
D202: Granular activated carbon | I202: 0 | J202: 0 | K202: GAC | L202: 0 | M202: 0 | N202: 0.02607272 | O202: =0.164*0.15898 -> 0.02607272 | Y202: Side calculations for warm lime softener (WLS)
D203: Slow sand filtration | I203: 0 | J203: 0 | K203: SSF | L203: 0 | M203: 0 | N203: 0.00111286 | O203: =0.007*0.15898 -> 0.00111286 | U203: From COSIA 2014, flow rate in OTSG SAGD system of produced water into WLS is 856388 kg/h =
D204: Ozone | I204: 0 | J204: 0 | K204: OZO | L204: 0 | M204: 0 | N204: 0.2432394 | O204: =1.53*0.15898 -> 0.2432394 | Y204: =856388/3.79/42/60/60 -> 1.494443746 | Z204: bbl/sec
D205: Organoclay | I205: 0 | J205: 0 | K205: ORG | L205: 0 | M205: 0 | N205: 0.0143082 | O205: =0.09*0.15898 -> 0.0143082 | Y205: Power consumption rate is 0.5 MW for the WLS/evaporator
D206: Ultrafiltration | I206: 0 | J206: 0 | K206: UF | L206: 0 | M206: 0 | N206: 0.031796 | O206: =0.2*0.15898 -> 0.031796 | Y206: =0.5*1000000/3600000 -> 0.1388888889 | Z206: kWh/sec
D207: Nanofiltration | I207: 0 | J207: 0 | K207: NF | L207: 0 | M207: 0 | N207: 0.08791594 | O207: =0.553*0.15898 -> 0.08791594 | Y207: =Y206/Y204 -> 0.09293684638 | Z207: kWh/bbl water treated
C208: Stage 4 of treatment | I208: =IF(OR(SUM(I209:I210)=0,SUM(I209:I210)=1),"OK","ERROR") -> OK
D209: Reverse osmosis | I209: 0 | J209: 0 | K209: RO | L209: 0 | M209: 0 | N209: 0.2019046 | O209: =1.27*0.15898 -> 0.2019046
D210: Electrodialysis reversal | I210: 0 | J210: 0 | K210: EDR | L210: 0 | M210: 0 | N210: 0.47694 | O210: =3*0.15898 -> 0.47694
D211: Warm lime softening | I211: 0 | J211: 0 | K211: WLS | L211: 0 | M211: 0 | N211: =Y207 -> 0.09293684638 | O211: =Y207 -> 0.09293684638 | U211: COSIA 2014
A213: Makeup water treatment [MWT] | F213: =HYPERLINK("#Home_MWT","To sheet") -> To sheet
M214: User | N214: Default | O214: Units | Q214: User reference | U214: Default reference | Y214: Notes
B215: Makeup water properties
C216: Makeup water temperature | K216: Temperature_makeup_H2O | M216: =N216 -> 60 | N216: 60 | O216: °F
C217: Makeup water pressure | K217: Pressure_makeup_H2O | M217: =N217 -> 90 | N217: 90 | O217: psia
B219: Water treatment technologies table | I219: Produced water | U219: Vlasopoulos, N. et al. (2006) | Y219: Enter "1" where applicable and "0" where not applicable
C220: Technologies_makeup_water_treatment | I220: Apply | J220: Apply | K220: Code | L220: Volume loss | M220: Volume loss | N220: EC | O220: EC | Y220: No more than one option is allowed in each treatment stage
I221: ="--" -> -- | J221: ="--" -> -- | K221: ="--" -> -- | L221: % | M221: % | N221: kWh/bbl input | O221: kWh/bbl input | Y221: Categorization of treatment technologies is based on Vlasopoulos et al. (2006), originally from Dillon (2003)
I222: User | J222: Default | K222: ="--" -> -- | L222: User | M222: Default | N222: User | O222: Default | Y222: Values of energy consumption can be changed in the user columns
C223: Stage 1 of treatment | I223: =IF(OR(SUM(I224:I225)=0,SUM(I224:I225)=1),"OK","ERROR") -> OK
D224: Dissolved air flotation | I224: 1 | J224: 1 | K224: DAF | L224: 0 | M224: 0 | N224: 0.03513458 | O224: =0.221*0.15898 -> 0.03513458
D225: Hydrocyclones | I225: 0 | J225: 0 | K225: HYDRO | L225: 0 | M225: 0 | N225: 0.04880686 | O225: =0.307*0.15898 -> 0.04880686
C226: Stage 2 of treatment | I226: =IF(OR(SUM(I227:I234)=0,SUM(I227:I234)=1),"OK","ERROR") -> OK
D227: Rotating biological contactors | I227: 1 | J227: 1 | K227: RBC | L227: 0 | M227: 0 | N227: 0.0349756 | O227: =0.22*0.15898 -> 0.0349756
D228: Absorbents | I228: 0 | J228: 0 | K228: ABS | L228: 0 | M228: 0 | N228: 0.0174878 | O228: =0.11*0.15898 -> 0.0174878
D229: Activated sludge | I229: 0 | J229: 0 | K229: AS | L229: 0 | M229: 0 | N229: 0.1462616 | O229: =0.92*0.15898 -> 0.1462616
... 494 more rows

Sheet Results
H1: THIS IS BETA SOFTWARE, NOT FOR CITATION OR DISTRIBUTION
B2: 2 | C2: 2 | G2: Key: | I2: = Changed to default | M2: = Adjusted using macro | R2: = Outside of literature range
B3: Start | C3: End
A5: Variable | F5: Unit | G5: Default | H5: Field 1 | I5: Field 2 | J5: Field 3 | K5: Field 4 | L5: Field 5 | M5: Field 6 | N5: Field 7 | O5: Field 8 | P5: Field 9 | Q5: Field 10 | R5: Field 11 | S5: Field 12 | T5: Field 13 | U5: Field 14 | V5: Field 15 | W5: Field 16 | X5: Field 17 | Y5: Field 18 | Z5: Field 19 | AA5: Field 20 | AB5: Field 21 | AC5: Field 22 | AD5: Field 23 | AE5: Field 24 | AF5: Field 25 | AG5: Field 26 | AH5: Field 27 | AI5: Field 28 | AJ5: Field 29 | AK5: Field 30 | AL5: Field 31 | AM5: Field 32 | AN5: Field 33 | AO5: Field 34 | AP5: Field 35 | AQ5: Field 36 | AR5: Field 37 | AS5: Field 38 | AT5: Field 39 | AU5: Field 40 | AV5: Field 41 | AW5: Field 42 | AX5: Field 43 | AY5: Field 44 | AZ5: Field 45 | BA5: Field 46 | BB5: Field 47 | BC5: Field 48 | BD5: Field 49 | BE5: Field 50 | BF5: Field 51 | BG5: Field 52 | BH5: Field 53 | BI5: Field 54 | BJ5: Field 55 | BK5: Field 56 | BL5: Field 57 | BM5: Field 58 | BN5: Field 59 | BO5: Field 60 | BP5: Field 61 | BQ5: Field 62 | BR5: Field 63 | BS5: Field 64 | BT5: Field 65 | BU5: Field 66 | BV5: Field 67 | BW5: Field 68 | BX5: Field 69 | BY5: Field 70 | BZ5: Field 71 | CA5: Field 72 | CB5: Field 73 | CC5: Field 74 | CD5: Field 75 | CE5: Field 76 | CF5: Field 77 | CG5: Field 78 | CH5: Field 79 | CI5: Field 80 | CJ5: Field 81 | CK5: Field 82 | CL5: Field 83 | CM5: Field 84 | CN5: Field 85 | CO5: Field 86 | CP5: Field 87 | CQ5: Field 88 | CR5: Field 89 | CS5: Field 90 | CT5: Field 91 | CU5: Field 92 | CV5: Field 93 | CW5: Field 94 | CX5: Field 95 | CY5: Field 96 | CZ5: Field 97 | DA5: Field 98 | DB5: Field 99 | DC5: Field 100 | DD5: Field 101 | DE5: Field 102 | DF5: Field 103 | DG5: Field 104 | DH5: Field 105 | DI5: Field 106 | DJ5: Field 107 | DK5: Field 108 | DL5: Field 109 | DM5: Field 110 | DN5: Field 111 | DO5: Field 112 | DP5: Field 113 | DQ5: Field 114 | DR5: Field 115 | DS5: Field 116 | DT5: Field 117 | DU5: Field 118 | DV5: Field 119 | DW5: Field 120 | DX5: Field 121 | DY5: Field 122 | DZ5: Field 123 | EA5: Field 124 | EB5: Field 125 | EC5: Field 126 | ED5: Field 127 | EE5: Field 128 | EF5: Field 129 | EG5: Field 130 | EH5: Field 131 | EI5: Field 132 | EJ5: Field 133 | EK5: Field 134 | EL5: Field 135 | EM5: Field 136 | EN5: Field 137 | EO5: Field 138 | EP5: Field 139 | EQ5: Field 140 | ER5: Field 141 | ES5: Field 142 | ET5: Field 143 | EU5: Field 144 | EV5: Field 145 | EW5: Field 146 | EX5: Field 147 | EY5: Field 148 | EZ5: Field 149 | FA5: Field 150 | FB5: Field 151 | FC5: Field 152 | FD5: Field 153 | FE5: Field 154 | FF5: Field 155 | FG5: Field 156 | FH5: Field 157 | FI5: Field 158 | FJ5: Field 159 | FK5: Field 160 | FL5: Field 161 | FM5: Field 162 | FN5: Field 163 | FO5: Field 164 | FP5: Field 165 | FQ5: Field 166 | FR5: Field 167 | FS5: Field 168 | FT5: Field 169 | FU5: Field 170 | FV5: Field 171 | FW5: Field 172 | FX5: Field 173 | FY5: Field 174 | FZ5: Field 175 | GA5: Field 176 | GB5: Field 177 | GC5: Field 178 | GD5: Field 179 | GE5: Field 180 | GF5: Field 181 | GG5: Field 182 | GH5: Field 183 | GI5: Field 184 | GJ5: Field 185 | GK5: Field 186 | GL5: Field 187 | GM5: Field 188 | GN5: Field 189 | GO5: Field 190 | GP5: Field 191 | GQ5: Field 192 | GR5: Field 193 | GS5: Field 194 | GT5: Field 195 | GU5: Field 196 | GV5: Field 197 | GW5: Field 198 | GX5: Field 199 | GY5: Field 200 | GZ5: Field 201 | HA5: Field 202 | HB5: Field 203 | HC5: Field 204 | HD5: Field 205 | HE5: Field 206 | HF5: Field 207 | HG5: Field 208 | HH5: Field 209 | HI5: Field 210 | HJ5: Field 211 | HK5: Field 212 | HL5: Field 213 | HM5: Field 214 | HN5: Field 215 | HO5: Field 216 | HP5: Field 217 | HQ5: Field 218 | HR5: Field 219 | HS5: Field 220 | HT5: Field 221 | HU5: Field 222 | HV5: Field 223 | HW5: Field 224 | HX5: Field 225 | HY5: Field 226 | HZ5: Field 227 | IA5: Field 228 | IB5: Field 229 | IC5: Field 230 | ID5: Field 231 | IE5: Field 232 | IF5: Field 233 | IG5: Field 234 | IH5: Field 235 | II5: Field 236 | IJ5: Field 237 | IK5: Field 238 | IL5: Field 239 | IM5: Field 240 | IN5: Field 241 | IO5: Field 242 | IP5: Field 243 | IQ5: Field 244 | IR5: Field 245 | IS5: Field 246 | IT5: Field 247 | IU5: Field 248 | IV5: Field 249 | IW5: Field 250 | IX5: Field 251 | IY5: Field 252 | IZ5: Field 253 | JA5: Field 254 | JB5: Field 255 | JC5: Field 256 | JD5: Field 257 | JE5: Field 258 | JF5: Field 259 | JG5: Field 260 | JH5: Field 261 | JI5: Field 262 | JJ5: Field 263 | JK5: Field 264 | JL5: Field 265 | JM5: Field 266 | JN5: Field 267 | JO5: Field 268 | JP5: Field 269 | JQ5: Field 270 | JR5: Field 271 | JS5: Field 272 | JT5: Field 273 | JU5: Field 274 | JV5: Field 275 | JW5: Field 276 | JX5: Field 277 | JY5: Field 278 | JZ5: Field 279 | KA5: Field 280 | KB5: Field 281 | KC5: Field 282 | KD5: Field 283 | KE5: Field 284 | KF5: Field 285 | KG5: Field 286 | KH5: Field 287 | KI5: Field 288 | KJ5: Field 289 | KK5: Field 290 | KL5: Field 291 | KM5: Field 292 | KN5: Field 293 | KO5: Field 294 | KP5: Field 295 | KQ5: Field 296 | KR5: Field 297 | KS5: Field 298 | KT5: Field 299 | KU5: Field 300 | KV5: Field 301 | KW5: Field 302 | KX5: Field 303 | KY5: Field 304 | KZ5: Field 305 | LA5: Field 306 | LB5: Field 307 | LC5: Field 308 | LD5: Field 309 | LE5: Field 310 | LF5: Field 311 | LG5: Field 312 | LH5: Field 313 | LI5: Field 314 | LJ5: Field 315 | LK5: Field 316 | LL5: Field 317 | LM5: Field 318 | LN5: Field 319 | LO5: Field 320 | LP5: Field 321 | LQ5: Field 322 | LR5: Field 323 | LS5: Field 324 | LT5: Field 325 | LU5: Field 326 | LV5: Field 327 | LW5: Field 328 | LX5: Field 329 | LY5: Field 330 | LZ5: Field 331 | MA5: Field 332 | MB5: Field 333 | MC5: Field 334 | MD5: Field 335 | ME5: Field 336 | MF5: Field 337 | MG5: Field 338 | MH5: Field 339 | MI5: Field 340 | MJ5: Field 341 | MK5: Field 342 | ML5: Field 343 | MM5: Field 344 | MN5: Field 345 | MO5: Field 346 | MP5: Field 347 | MQ5: Field 348 | MR5: Field 349 | MS5: Field 350 | MT5: Field 351 | MU5: Field 352 | MV5: Field 353 | MW5: Field 354 | MX5: Field 355 | MY5: Field 356 | MZ5: Field 357 | NA5: Field 358 | NB5: Field 359 | NC5: Field 360 | ND5: Field 361 | NE5: Field 362 | NF5: Field 363 | NG5: Field 364 | NH5: Field 365 | NI5: Field 366 | NJ5: Field 367 | NK5: Field 368 | NL5: Field 369 | NM5: Field 370 | NN5: Field 371 | NO5: Field 372 | NP5: Field 373 | NQ5: Field 374 | NR5: Field 375 | NS5: Field 376 | NT5: Field 377 | NU5: Field 378 | NV5: Field 379 | NW5: Field 380 | NX5: Field 381 | NY5: Field 382 | NZ5: Field 383 | OA5: Field 384 | OB5: Field 385 | OC5: Field 386 | OD5: Field 387 | OE5: Field 388 | OF5: Field 389 | OG5: Field 390 | OH5: Field 391 | OI5: Field 392 | OJ5: Field 393 | OK5: Field 394 | OL5: Field 395 | OM5: Field 396 | ON5: Field 397 | OO5: Field 398 | OP5: Field 399 | OQ5: Field 400 | OR5: Field 401 | OS5: Field 402 | OT5: Field 403 | OU5: Field 404 | OV5: Field 405 | OW5: Field 406 | OX5: Field 407 | OY5: Field 408 | OZ5: Field 409 | PA5: Field 410 | PB5: Field 411 | PC5: Field 412 | PD5: Field 413 | PE5: Field 414 | PF5: Field 415 | PG5: Field 416 | PH5: Field 417 | PI5: Field 418 | PJ5: Field 419 | PK5: Field 420 | PL5: Field 421 | PM5: Field 422 | PN5: Field 423 | PO5: Field 424 | PP5: Field 425 | PQ5: Field 426 | PR5: Field 427 | PS5: Field 428 | PT5: Field 429 | PU5: Field 430 | PV5: Field 431 | PW5: Field 432 | PX5: Field 433 | PY5: Field 434 | PZ5: Field 435 | QA5: Field 436 | QB5: Field 437 | QC5: Field 438 | QD5: Field 439 | QE5: Field 440 | QF5: Field 441 | QG5: Field 442 | QH5: Field 443 | QI5: Field 444 | QJ5: Field 445 | QK5: Field 446 | QL5: Field 447 | QM5: Field 448 | QN5: Field 449 | QO5: Field 450 | QP5: Field 451 | QQ5: Field 452 | QR5: Field 453 | QS5: Field 454 | QT5: Field 455 | QU5: Field 456 | QV5: Field 457 | QW5: Field 458 | QX5: Field 459 | QY5: Field 460 | QZ5: Field 461 | RA5: Field 462 | RB5: Field 463 | RC5: Field 464 | RD5: Field 465 | RE5: Field 466 | RF5: Field 467 | RG5: Field 468 | RH5: Field 469 | RI5: Field 470 | RJ5: Field 471 | RK5: Field 472 | RL5: Field 473 | RM5: Field 474 | RN5: Field 475 | RO5: Field 476 | RP5: Field 477 | RQ5: Field 478 | RR5: Field 479 | RS5: Field 480 | RT5: Field 481 | RU5: Field 482 | RV5: Field 483 | RW5: Field 484 | RX5: Field 485 | RY5: Field 486 | RZ5: Field 487 | SA5: Field 488 | SB5: Field 489 | SC5: Field 490 | SD5: Field 491 | SE5: Field 492 | SF5: Field 493 | SG5: Field 494 | SH5: Field 495 | SI5: Field 496 | SJ5: Field 497 | SK5: Field 498 | SL5: Field 499 | SM5: Field 500
G6: =IF(G21="","NA",G21) -> NA | H6: =IF(H21="","NA",H21) -> NA | I6: NA | J6: NA | K6: NA | L6: NA | M6: NA | N6: NA | O6: NA | P6: NA | Q6: NA | R6: NA | S6: NA | T6: NA | U6: NA | V6: NA | W6: NA | X6: NA | Y6: NA | Z6: NA | AA6: NA | AB6: NA | AC6: NA | AD6: NA | AE6: NA | AF6: NA | AG6: NA | AH6: NA | AI6: NA | AJ6: NA | AK6: NA | AL6: NA | AM6: NA | AN6: NA | AO6: NA | AP6: NA | AQ6: NA | AR6: NA | AS6: NA | AT6: NA | AU6: NA | AV6: NA | AW6: NA | AX6: NA | AY6: NA | AZ6: NA | BA6: NA | BB6: NA | BC6: NA | BD6: NA | BE6: NA | BF6: NA | BG6: NA | BH6: NA | BI6: NA | BJ6: NA | BK6: NA | BL6: NA | BM6: NA | BN6: NA | BO6: NA | BP6: NA | BQ6: NA | BR6: NA | BS6: NA | BT6: =IF(BT21="","NA",BT21) -> NA | BU6: NA | BV6: NA | BW6: NA | BX6: NA | BY6: NA | BZ6: NA | CA6: NA | CB6: NA | CC6: NA | CD6: NA | CE6: NA | CF6: NA | CG6: NA | CH6: NA | CI6: NA | CJ6: NA | CK6: NA | CL6: NA | CM6: NA | CN6: NA | CO6: NA | CP6: NA | CQ6: NA | CR6: NA | CS6: NA | CT6: NA | CU6: NA | CV6: NA | CW6: NA | CX6: NA | CY6: NA | CZ6: NA | DA6: NA | DB6: NA | DC6: NA | DD6: NA | DE6: NA | DF6: NA | DG6: NA | DH6: NA | DI6: NA | DJ6: NA | DK6: NA | DL6: NA | DM6: NA | DN6: NA | DO6: NA | DP6: NA | DQ6: NA | DR6: NA | DS6: NA | DT6: NA | DU6: NA | DV6: NA | DW6: NA | DX6: NA | DY6: NA | DZ6: NA | EA6: NA | EB6: NA | EC6: NA | ED6: NA | EE6: NA | EF6: =IF(EF21="","NA",EF21) -> NA | EG6: NA | EH6: NA | EI6: NA | EJ6: NA | EK6: NA | EL6: NA | EM6: NA | EN6: NA | EO6: NA | EP6: NA | EQ6: NA | ER6: NA | ES6: NA | ET6: NA | EU6: NA | EV6: NA | EW6: NA | EX6: NA | EY6: NA | EZ6: NA | FA6: NA | FB6: NA | FC6: NA | FD6: NA | FE6: NA | FF6: NA | FG6: NA | FH6: NA | FI6: NA | FJ6: NA | FK6: NA | FL6: NA | FM6: NA | FN6: NA | FO6: NA | FP6: NA | FQ6: NA | FR6: NA | FS6: NA | FT6: NA | FU6: NA | FV6: NA | FW6: NA | FX6: NA | FY6: NA | FZ6: NA | GA6: NA | GB6: NA | GC6: NA | GD6: NA | GE6: NA | GF6: NA | GG6: NA | GH6: NA | GI6: NA | GJ6: NA | GK6: NA | GL6: NA | GM6: NA | GN6: NA | GO6: NA | GP6: NA | GQ6: NA | GR6: =IF(GR21="","NA",GR21) -> NA | GS6: NA | GT6: NA | GU6: NA | GV6: NA | GW6: NA | GX6: NA | GY6: NA | GZ6: NA | HA6: NA | HB6: NA | HC6: NA | HD6: NA | HE6: NA | HF6: NA | HG6: NA | HH6: NA | HI6: NA | HJ6: NA | HK6: NA | HL6: NA | HM6: NA | HN6: NA | HO6: NA | HP6: NA | HQ6: NA | HR6: NA | HS6: NA | HT6: NA | HU6: NA | HV6: NA | HW6: NA | HX6: NA | HY6: NA | HZ6: NA | IA6: NA | IB6: NA | IC6: NA | ID6: NA | IE6: NA | IF6: NA | IG6: NA | IH6: NA | II6: NA | IJ6: NA | IK6: NA | IL6: NA | IM6: NA | IN6: NA | IO6: NA | IP6: NA | IQ6: NA | IR6: NA | IS6: NA | IT6: NA | IU6: NA | IV6: NA | IW6: NA | IX6: NA | IY6: NA | IZ6: NA | JA6: NA | JB6: NA | JC6: NA | JD6: =IF(JD21="","NA",JD21) -> NA | JE6: NA | JF6: NA | JG6: NA | JH6: NA | JI6: NA | JJ6: NA | JK6: NA | JL6: NA | JM6: NA | JN6: NA | JO6: NA | JP6: NA | JQ6: NA | JR6: NA | JS6: NA | JT6: NA | JU6: NA | JV6: NA | JW6: NA | JX6: NA | JY6: NA | JZ6: NA | KA6: NA | KB6: NA | KC6: NA | KD6: NA | KE6: NA | KF6: NA | KG6: NA | KH6: NA | KI6: NA | KJ6: NA | KK6: NA | KL6: NA | KM6: NA | KN6: NA | KO6: NA | KP6: NA | KQ6: NA | KR6: NA | KS6: NA | KT6: NA | KU6: NA | KV6: NA | KW6: NA | KX6: NA | KY6: NA | KZ6: NA | LA6: NA | LB6: NA | LC6: NA | LD6: NA | LE6: NA | LF6: NA | LG6: NA | LH6: NA | LI6: NA | LJ6: NA | LK6: NA | LL6: NA | LM6: NA | LN6: NA | LO6: NA | LP6: =IF(LP21="","NA",LP21) -> NA | LQ6: NA | LR6: NA | LS6: NA | LT6: NA | LU6: NA | LV6: NA | LW6: NA | LX6: NA | LY6: NA | LZ6: NA | MA6: NA | MB6: NA | MC6: NA | MD6: NA | ME6: NA | MF6: NA | MG6: NA | MH6: NA | MI6: NA | MJ6: NA | MK6: NA | ML6: NA | MM6: NA | MN6: NA | MO6: NA | MP6: NA | MQ6: NA | MR6: NA | MS6: NA | MT6: NA | MU6: NA | MV6: NA | MW6: NA | MX6: NA | MY6: NA | MZ6: NA | NA6: NA | NB6: NA | NC6: NA | ND6: NA | NE6: NA | NF6: NA | NG6: NA | NH6: NA | NI6: NA | NJ6: NA | NK6: NA | NL6: NA | NM6: NA | NN6: NA | NO6: NA | NP6: NA | NQ6: NA | NR6: NA | NS6: NA | NT6: NA | NU6: NA | NV6: NA | NW6: NA | NX6: NA | NY6: NA | NZ6: NA | OA6: NA | OB6: =IF(OB21="","NA",OB21) -> NA | OC6: NA | OD6: NA | OE6: NA | OF6: NA | OG6: NA | OH6: NA | OI6: NA | OJ6: NA | OK6: NA | OL6: NA | OM6: NA | ON6: NA | OO6: NA | OP6: NA | OQ6: NA | OR6: NA | OS6: NA | OT6: NA | OU6: NA | OV6: NA | OW6: NA | OX6: NA | OY6: NA | OZ6: NA | PA6: NA | PB6: NA | PC6: NA | PD6: NA | PE6: NA | PF6: NA | PG6: NA | PH6: NA | PI6: NA | PJ6: NA | PK6: NA | PL6: NA | PM6: NA | PN6: NA | PO6: NA | PP6: NA | PQ6: NA | PR6: NA | PS6: NA | PT6: NA | PU6: NA | PV6: NA | PW6: NA | PX6: NA | PY6: NA | PZ6: NA | QA6: NA | QB6: NA | QC6: NA | QD6: NA | QE6: NA | QF6: NA | QG6: NA | QH6: NA | QI6: NA | QJ6: NA | QK6: NA | QL6: NA | QM6: NA | QN6: =IF(QN21="","NA",QN21) -> NA | QO6: NA | QP6: NA | QQ6: NA | QR6: NA | QS6: NA | QT6: NA | QU6: NA | QV6: NA | QW6: NA | QX6: NA | QY6: NA | QZ6: NA | RA6: NA | RB6: NA | RC6: NA | RD6: NA | RE6: NA | RF6: NA | RG6: NA | RH6: NA | RI6: NA | RJ6: NA | RK6: NA | RL6: NA | RM6: NA | RN6: NA | RO6: NA | RP6: NA | RQ6: NA | RR6: NA | RS6: NA | RT6: NA | RU6: NA | RV6: NA | RW6: NA | RX6: NA | RY6: NA | RZ6: NA | SA6: NA | SB6: NA | SC6: NA | SD6: NA | SE6: NA | SF6: NA | SG6: NA | SH6: NA | SI6: NA | SJ6: NA | SK6: NA | SL6: NA | SM6: NA
A7: Production methods
A8: Notes: Enter "1" where applicable and "0" where not applicable
B9: Downhole pump | F9: NA
B10: Water reinjection | F10: NA
B11: Natural gas reinjection | F11: NA
B12: Water flooding | F12: NA
B13: Gas lifting | F13: NA
B14: Gas flooding | F14: NA
B15: Steam flooding | F15: NA
B16: Oil sands mine (integrated with upgrader) | F16: NA
B17: Oil sands mine (non-integrated with upgrader) | F17: NA
A19: Field properties
B20: Field location (Country) | F20: NA
B21: Field name | F21: NA
B22: Field age | F22: yr.
B23: Field depth | F23: ft
B24: Oil production volume | F24: bbl/d
B25: Number of producing wells | F25: -
B26: Number of water injecting wells | F26: -
B27: Production tubing diameter | F27: in
B28: Productivity index | F28: bbl/psi-d
B29: Reservoir pressure | F29: psi
B30: Reservoir temperature | F30: ◦F
B31: Offshore? | F31: 0-1
A33: Fluid properties
B34: API gravity | F34: deg. API
B35: Gas composition
C36: N2 | F36: mol%
C37: CO2 | F37: mol%
C38: C1 | F38: mol%
C39: C2 | F39: mol%
C40: C3 | F40: mol%
C41: C4+ | F41: mol%
C42: H2S | F42: mol%
A44: Production practices
A45: Notes: Enter "NA" where not applicable
B46: Gas-to-oil ratio (GOR) | F46: scf/bbl oil
B47: Water-to-oil ratio (WOR) | F47: bbl water/bbl oil
B48: Water injection ratio | F48: bbl water/bbl oil
B49: Gas lifting injection ratio | F49: scf/bbl liquid
B50: Gas flooding injection ratio | F50: scf/bbl oil
B51: Flood gas | F51: NA
C52: 1= Natural gas
C53: 2= Nitrogen (N2)
C54: 3= Carbon Dioxide (CO2)
B55: Liquids unloading practice
C56: 1= plunger, 2 = no plunger, 3= none
B57: Carbon dioxide flooding and sequestration parameters
C58: Percentage of newly acquired CO2 (total injected CO2 includes both new and recycled) | F58: %
C59: Source of CO2 | F59: NA
D60: 1= Natural subsurface reservoir
D61: 2= Anthropogenic
C62: Percentage of sequestration credit assigned to the oilfield | F62: %
B63: Steam-to-oil ratio (SOR) | F63: bbl steam/bbl oil
B64: Fraction of required electricity generated onsite | F64: -
B65: Fraction of remaining natural gas reinjected | F65: -
B66: Fraction of produced water reinjected | F66: -
B67: Fraction of steam generation via cogeneration | F67: -
B68: Fraction of steam generation via solar thermal | F68: -
A69: Processing practices
B70: Heater/treater | F70: NA
B71: Stabilizer column | F71: NA
B72: Upgrader type
C73: 0 = None
C74: 1 = Delayed coking
C75: 2 = Hydroconversion
C76: 3 = Combined hydroconversion and fluid coking
B77: Associated Gas Processing Path | F77: NA
A78: Notes: Choose paths 6 or 7 only if gas flooding is ON and CO2 is the flood gas | C78: 1= None
C79: 2= Minimal: Dehydrator
C80: 3= Acid Gas: Dehydrator + Amine Process
C81: 4= Wet Gas: Dehydrator + Demethanizer
C82: 5= Acid Wet Gas: Dehydrator + Amine Process + Demethanizer
C83: 6= Sour gas reinjection: Dehydration then direct injection of sour CO2-rich stream
C84: 7= CO2-EOR Membrane: Dehydrator + Compressor + Membrane + Amine Process + Demethanizer
C85: 8= CO2-EOR Ryan Holmes: Dehydrator + Ryan Holmes Process (Demethanizer Included)
B86: Flaring-to-oil ratio | F86: scf/bbl oil
B87: Venting-to-oil ratio | F87: scf/bbl oil
B88: Volume fraction of diluent | F88: -
A90: Land use impacts
B91: Crude ecosystem carbon richness
C92: Low carbon richness (semi-arid grasslands) | F92: NA
C93: Moderate carbon richness (mixed) | F93: NA
C94: High carbon richness (forested) | F94: NA
B95: Field development intensity
C96: Low intensity development and low oxidation | F96: NA
C97: Moderate intensity development and moderate oxidation | F97: NA
C98: High intensity development and high oxidation | F98: NA
A100: Transport and storage
B101: Fraction of oil transported by each mode
C102: Ocean tanker | F102: -
C103: Barge | F103: -
C104: Pipeline | F104: -
C105: Rail | F105: -
C106: Truck
B107: Transport distance (one way)
C108: Ocean tanker | F108: Mile
C109: Barge | F109: Mile
C110: Pipeline | F110: Mile
C111: Rail | F111: Mile
C112: Truck | F112: Mile
B113: Ocean tanker size, if applicable | F113: Ton
A115: Small sources emissions | F115: gCO2eq/MJ
F125: Unit | G125: Default | H125: Field 1 | J125: Field 3 | K125: Field 4 | L125: Field 5 | M125: Field 6 | N125: Field 7 | O125: Field 8 | P125: Field 9 | Q125: Field 10 | R125: Field 11 | S125: Field 12 | T125: Field 13 | U125: Field 14 | V125: Field 15 | W125: Field 16 | X125: Field 17 | Y125: Field 18 | Z125: Field 19 | AA125: Field 20 | AB125: Field 21 | AC125: Field 22 | AD125: Field 23 | AE125: Field 24 | AF125: Field 25 | AG125: Field 26 | AH125: Field 27 | AI125: Field 28 | AJ125: Field 29 | AK125: Field 30 | AL125: Field 31 | AM125: Field 32 | AN125: Field 33 | AO125: Field 34 | AP125: Field 35 | AQ125: Field 36 | AR125: Field 37 | AS125: Field 38 | AT125: Field 39 | AU125: Field 40 | AV125: Field 41 | AW125: Field 42 | AX125: Field 43 | AY125: Field 44 | AZ125: Field 45 | BA125: Field 46 | BB125: Field 47 | BC125: Field 48 | BD125: Field 49 | BE125: Field 50 | BF125: Field 51 | BG125: Field 52 | BH125: Field 53 | BI125: Field 54 | BJ125: Field 55 | BK125: Field 56 | BL125: Field 57 | BM125: Field 58 | BN125: Field 59 | BO125: Field 60 | BP125: Field 61 | BQ125: Field 62 | BR125: Field 63 | BS125: Field 64 | BT125: Field 65 | BU125: Field 66 | BV125: Field 67 | BW125: Field 68 | BX125: Field 69 | BY125: Field 70 | BZ125: Field 71 | CA125: Field 72 | CB125: Field 73 | CC125: Field 74 | CD125: Field 75 | CE125: Field 76 | CF125: Field 77 | CG125: Field 78 | CH125: Field 79 | CI125: Field 80 | CJ125: Field 81 | CK125: Field 82 | CL125: Field 83 | CM125: Field 84 | CN125: Field 85 | CO125: Field 86 | CP125: Field 87 | CQ125: Field 88 | CR125: Field 89 | CS125: Field 90 | CT125: Field 91 | CU125: Field 92 | CV125: Field 93 | CW125: Field 94 | CX125: Field 95 | CY125: Field 96 | CZ125: Field 97 | DA125: Field 98 | DB125: Field 99 | DC125: Field 100 | DD125: Field 101 | DE125: Field 102 | DF125: Field 103 | DG125: Field 104 | DH125: Field 105 | DI125: Field 106 | DJ125: Field 107 | DK125: Field 108 | DL125: Field 109 | DM125: Field 110 | DN125: Field 111 | DO125: Field 112 | DP125: Field 113 | DQ125: Field 114 | DR125: Field 115 | DS125: Field 116 | DT125: Field 117 | DU125: Field 118 | DV125: Field 119 | DW125: Field 120 | DX125: Field 121 | DY125: Field 122 | DZ125: Field 123 | EA125: Field 124 | EB125: Field 125 | EC125: Field 126 | ED125: Field 127 | EE125: Field 128 | EF125: Field 129 | EG125: Field 130 | EH125: Field 131 | EI125: Field 132 | EJ125: Field 133 | EK125: Field 134 | EL125: Field 135 | EM125: Field 136 | EN125: Field 137 | EO125: Field 138 | EP125: Field 139 | EQ125: Field 140 | ER125: Field 141 | ES125: Field 142 | ET125: Field 143 | EU125: Field 144 | EV125: Field 145 | EW125: Field 146 | EX125: Field 147 | EY125: Field 148 | EZ125: Field 149 | FA125: Field 150 | FB125: Field 151 | FC125: Field 152 | FD125: Field 153 | FE125: Field 154 | FF125: Field 155 | FG125: Field 156 | FH125: Field 157 | FI125: Field 158 | FJ125: Field 159 | FK125: Field 160 | FL125: Field 161 | FM125: Field 162 | FN125: Field 163 | FO125: Field 164 | FP125: Field 165 | FQ125: Field 166 | FR125: Field 167 | FS125: Field 168 | FT125: Field 169 | FU125: Field 170 | FV125: Field 171 | FW125: Field 172 | FX125: Field 173 | FY125: Field 174 | FZ125: Field 175 | GA125: Field 176 | GB125: Field 177 | GC125: Field 178 | GD125: Field 179 | GE125: Field 180 | GF125: Field 181 | GG125: Field 182 | GH125: Field 183 | GI125: Field 184 | GJ125: Field 185 | GK125: Field 186 | GL125: Field 187 | GM125: Field 188 | GN125: Field 189 | GO125: Field 190 | GP125: Field 191 | GQ125: Field 192 | GR125: Field 193 | GS125: Field 194 | GT125: Field 195 | GU125: Field 196 | GV125: Field 197 | GW125: Field 198 | GX125: Field 199 | GY125: Field 200 | GZ125: Field 201 | HA125: Field 202 | HB125: Field 203 | HC125: Field 204 | HD125: Field 205 | HE125: Field 206 | HF125: Field 207 | HG125: Field 208 | HH125: Field 209 | HI125: Field 210 | HJ125: Field 211 | HK125: Field 212 | HL125: Field 213 | HM125: Field 214 | HN125: Field 215 | HO125: Field 216 | HP125: Field 217 | HQ125: Field 218 | HR125: Field 219 | HS125: Field 220 | HT125: Field 221 | HU125: Field 222 | HV125: Field 223 | HW125: Field 224 | HX125: Field 225 | HY125: Field 226 | HZ125: Field 227 | IA125: Field 228 | IB125: Field 229 | IC125: Field 230 | ID125: Field 231 | IE125: Field 232 | IF125: Field 233 | IG125: Field 234 | IH125: Field 235 | II125: Field 236 | IJ125: Field 237 | IK125: Field 238 | IL125: Field 239 | IM125: Field 240 | IN125: Field 241 | IO125: Field 242 | IP125: Field 243 | IQ125: Field 244 | IR125: Field 245 | IS125: Field 246 | IT125: Field 247 | IU125: Field 248 | IV125: Field 249 | IW125: Field 250 | IX125: Field 251 | IY125: Field 252 | IZ125: Field 253 | JA125: Field 254 | JB125: Field 255 | JC125: Field 256 | JD125: Field 257 | JE125: Field 258 | JF125: Field 259 | JG125: Field 260 | JH125: Field 261 | JI125: Field 262 | JJ125: Field 263 | JK125: Field 264 | JL125: Field 265 | JM125: Field 266 | JN125: Field 267 | JO125: Field 268 | JP125: Field 269 | JQ125: Field 270 | JR125: Field 271 | JS125: Field 272 | JT125: Field 273 | JU125: Field 274 | JV125: Field 275 | JW125: Field 276 | JX125: Field 277 | JY125: Field 278 | JZ125: Field 279 | KA125: Field 280 | KB125: Field 281 | KC125: Field 282 | KD125: Field 283 | KE125: Field 284 | KF125: Field 285 | KG125: Field 286 | KH125: Field 287 | KI125: Field 288 | KJ125: Field 289 | KK125: Field 290 | KL125: Field 291 | KM125: Field 292 | KN125: Field 293 | KO125: Field 294 | KP125: Field 295 | KQ125: Field 296 | KR125: Field 297 | KS125: Field 298 | KT125: Field 299 | KU125: Field 300 | KV125: Field 301 | KW125: Field 302 | KX125: Field 303 | KY125: Field 304 | KZ125: Field 305 | LA125: Field 306 | LB125: Field 307 | LC125: Field 308 | LD125: Field 309 | LE125: Field 310 | LF125: Field 311 | LG125: Field 312 | LH125: Field 313 | LI125: Field 314 | LJ125: Field 315 | LK125: Field 316 | LL125: Field 317 | LM125: Field 318 | LN125: Field 319 | LO125: Field 320 | LP125: Field 321 | LQ125: Field 322 | LR125: Field 323 | LS125: Field 324 | LT125: Field 325 | LU125: Field 326 | LV125: Field 327 | LW125: Field 328 | LX125: Field 329 | LY125: Field 330 | LZ125: Field 331 | MA125: Field 332 | MB125: Field 333 | MC125: Field 334 | MD125: Field 335 | ME125: Field 336 | MF125: Field 337 | MG125: Field 338 | MH125: Field 339 | MI125: Field 340 | MJ125: Field 341 | MK125: Field 342 | ML125: Field 343 | MM125: Field 344 | MN125: Field 345 | MO125: Field 346 | MP125: Field 347 | MQ125: Field 348 | MR125: Field 349 | MS125: Field 350 | MT125: Field 351 | MU125: Field 352 | MV125: Field 353 | MW125: Field 354 | MX125: Field 355 | MY125: Field 356 | MZ125: Field 357 | NA125: Field 358 | NB125: Field 359 | NC125: Field 360 | ND125: Field 361 | NE125: Field 362 | NF125: Field 363 | NG125: Field 364 | NH125: Field 365 | NI125: Field 366 | NJ125: Field 367 | NK125: Field 368 | NL125: Field 369 | NM125: Field 370 | NN125: Field 371 | NO125: Field 372 | NP125: Field 373 | NQ125: Field 374 | NR125: Field 375 | NS125: Field 376 | NT125: Field 377 | NU125: Field 378 | NV125: Field 379 | NW125: Field 380 | NX125: Field 381 | NY125: Field 382 | NZ125: Field 383 | OA125: Field 384 | OB125: Field 385 | OC125: Field 386 | OD125: Field 387 | OE125: Field 388 | OF125: Field 389 | OG125: Field 390 | OH125: Field 391 | OI125: Field 392 | OJ125: Field 393 | OK125: Field 394 | OL125: Field 395 | OM125: Field 396 | ON125: Field 397 | OO125: Field 398 | OP125: Field 399 | OR125: Field 401 | OS125: Field 402 | OT125: Field 403 | OU125: Field 404 | OV125: Field 405 | OW125: Field 406 | OX125: Field 407 | OY125: Field 408 | OZ125: Field 409 | PA125: Field 410 | PB125: Field 411 | PC125: Field 412 | PD125: Field 413 | PE125: Field 414 | PF125: Field 415 | PG125: Field 416 | PH125: Field 417 | PI125: Field 418 | PJ125: Field 419 | PK125: Field 420 | PL125: Field 421 | PM125: Field 422 | PN125: Field 423 | PO125: Field 424 | PP125: Field 425 | PQ125: Field 426 | PR125: Field 427 | PS125: Field 428 | PT125: Field 429 | PU125: Field 430 | PV125: Field 431 | PW125: Field 432 | PX125: Field 433 | PY125: Field 434 | PZ125: Field 435 | QA125: Field 436 | QB125: Field 437 | QC125: Field 438 | QD125: Field 439 | QE125: Field 440 | QF125: Field 441 | QG125: Field 442 | QH125: Field 443 | QI125: Field 444 | QJ125: Field 445 | QK125: Field 446 | QL125: Field 447 | QM125: Field 448 | QN125: Field 449 | QO125: Field 450 | QP125: Field 451 | QQ125: Field 452 | QR125: Field 453 | QS125: Field 454 | QT125: Field 455 | QU125: Field 456 | QV125: Field 457 | QW125: Field 458 | QX125: Field 459 | QY125: Field 460 | QZ125: Field 461 | RA125: Field 462 | RB125: Field 463 | RC125: Field 464 | RD125: Field 465 | RE125: Field 466 | RF125: Field 467 | RG125: Field 468 | RH125: Field 469 | RI125: Field 470 | RJ125: Field 471 | RK125: Field 472 | RL125: Field 473 | RM125: Field 474 | RN125: Field 475 | RO125: Field 476 | RP125: Field 477 | RQ125: Field 478 | RR125: Field 479 | RS125: Field 480 | RT125: Field 481 | RU125: Field 482 | RV125: Field 483 | RW125: Field 484 | RX125: Field 485 | RY125: Field 486 | RZ125: Field 487 | SA125: Field 488 | SB125: Field 489 | SC125: Field 490 | SD125: Field 491 | SE125: Field 492 | SF125: Field 493 | SG125: Field 494 | SH125: Field 495 | SI125: Field 496 | SJ125: Field 497 | SK125: Field 498 | SL125: Field 499 | SM125: Field 500
A127: Field name
A129: Exploration (e)
B130: Total energy consumption | F130: MJ/MJ
B131: Total GHG emissions | F131: gCO2eq/MJ
C132: Combustion/land use | F132: gCO2eq/MJ
C133: VFF | F133: gCO2eq/MJ
A135: Drilling & Development (d)
B136: Total energy consumption | F136: MJ/MJ
B137: Total GHG emissions | F137: gCO2eq/MJ
C138: Combustion/land use | F138: gCO2eq/MJ
C139: VFF | F139: gCO2eq/MJ
A141: Crude production & extraction (p)
B142: Total energy consumption | F142: MJ/MJ
B143: Total GHG emissions | F143: gCO2eq/MJ
C144: Combustion/land use | F144: gCO2eq/MJ
C145: VFF | F145: gCO2eq/MJ
A147: Surface processing (s)
B148: Total energy consumption | F148: MJ/MJ
B149: Total GHG emissions | F149: gCO2eq/MJ
C150: Combustion/land use | F150: gCO2eq/MJ
C151: VFF | F151: gCO2eq/MJ
A153: Liquefied natural gas
B154: Total energy consumption | F154: MJ/MJ
B155: Total GHG emissions | F155: gCO2eq/MJ
C156: Combustion/land use | F156: gCO2eq/MJ
C157: VFF | F157: gCO2eq/MJ
A159: Maintenance (m)
B160: Total energy consumption | F160: MJ/MJ
B161: Total GHG emissions | F161: gCO2eq/MJ
C162: Combustion/land use | F162: gCO2eq/MJ
C163: VFF | F163: gCO2eq/MJ
A165: Waste disposal (w)
B166: Total energy consumption | F166: MJ/MJ
B167: Total GHG emissions | F167: gCO2eq/MJ
C168: Combustion/land use | F168: gCO2eq/MJ
C169: VFF | F169: gCO2eq/MJ
A171: Crude transport (t)
B172: Total energy consumption | F172: MJ/MJ
B173: Total GHG emissions | F173: gCO2eq/MJ
C174: Combustion/land use | F174: gCO2eq/MJ
C175: VFF | F175: gCO2eq/MJ
B176: Loss factor | F176: NA
A178: Gas Distribution
B179: Total energy consumption | F179: MJ/MJ
B180: Total GHG emissions | F180: gCO2eq/MJ
C181: Combustion/land use | F181: gCO2eq/MJ
C182: VFF | F182: gCO2eq/MJ
A184: Other small sources | F184: gCO2eq/MJ
A186: Offsite emissions credit/debit | F186: gCO2eq/MJ
A188: Lifecycle energy consumption | F188: MJ/MJ
A190: Carbon dioxide sequestration
B191: Total CO2 sequestered | F191: gCO2/MJ
A193: Lifecycle GHG emissions | F193: gCO2eq/MJ
A196: Field-by-field check
A197: Overall check | C197: OK
A199: Uncertainty realizations
F200: Mean
F201: Median
F202: SD
F203: 1%-ile
F204: 5%-ile
F205: 10%-ile
F206: 25%-ile
F207: 50%-ile
F208: 75%-ile
F209: 90%-ile
F210: 95%-ile
F211: 99%-ile
A216: GREET specific outputs
A217: Sheet | B217: Cell
A218: Petroleum | B218: B82 | C218: Energy efficiency - Recovery overall eff. | F218: %
A219: Petroleum | B219: B87 | C219: Shares of process fuels | E219: Crude oil / SCO | F219: %
A220: Petroleum | B220: B88 | C220: Shares of process fuels | E220: Residual oil | F220: %
A221: Petroleum | B221: B89 | C221: Shares of process fuels | E221: Diesel fuel | F221: %
A222: Petroleum | B222: B90 | C222: Shares of process fuels | E222: Gasoline | F222: %
A223: Petroleum | B223: B91 | C223: Shares of process fuels | E223: Natural gas | F223: %
A224: Petroleum | B224: B92 | C224: Shares of process fuels | E224: Coal | F224: %
A225: Petroleum | B225: B93 | C225: Shares of process fuels | E225: Liquefied petroleum gas | F225: %
A226: Petroleum | B226: B94 | C226: Shares of process fuels | E226: Electricity | F226: %
A227: Petroleum | B227: B95 | C227: Shares of process fuels | E227: Hydrogen | F227: %
A228: Petroleum | B228: B96 | C228: Shares of process fuels | E228: Petcoke | F228: %
A229: Petroleum | B229: B97 | C229: Shares of process fuels | E229: Butane | F229: %
A230: Petroleum | B230: B98 | C230: Shares of process fuels | E230: Blendstock | F230: %
A231: Petroleum | B231: B99 | C231: Shares of process fuels | E231: GTL | F231: %
A232: Petroleum | B232: B100 | C232: Shares of process fuels | E232: Produced gas | F232: %
A233: Petroleum | B233: B101 | C233: Shares of process fuels | E233: Refinery still gas | F233: %
A234: Petroleum | B234: B102 | C234: Shares of process fuels | E234: Diluent flared | F234: %
A235: Petroleum | B235: B103 | C235: Shares of process fuels | E235: Natural gas flared | F235: %
A236: Petroleum | B236: B143 | C236: CO2 from VFF | F236: g/mmbtu
A237: Petroleum | B237: B144 | C237: CH4 from VFF | F237: g/mmbtu

Sheet Uncertainty
A1: Uncertainty analysis
A3: 1 Inputs to uncertainty analysis
A5: Types of distributions available (do not change)
B6: Normal
B7: Triangular
B8: Uniform
B9: Lognormal
B10: Binary
A13: Uncertainty functions
B14: Triangular:
B15: Function Triangular(lower, middle, upper, random)
B16: Fc = (middle - lower) / (upper - lower)
B17: If random < Fc Then
B18: Triangular = lower + (random * (upper - lower) * (middle - lower)) ^ (0.5)
B19: Else
B20: Triangular = upper - ((1 - random) * (upper - lower) * (upper - middle)) ^ (0.5)
B21: End If
B22: End Function
B25: Lower = Lower bound of triangle
B26: Upper = Upper bound of triangle
B27: Middle = Best guess to middle of triangle
B28: Random = Random number over 0-1
A34: 2 Results holder
H36: Default | I36: 1 | J36: =I36+1 -> 2 | K36: =J36+1 -> 3 | L36: 4 | M36: 5 | N36: 6 | O36: 7 | P36: 8 | Q36: 9 | R36: 10 | S36: 11 | T36: 12 | U36: 13 | V36: 14 | W36: 15 | X36: 16 | Y36: 17 | Z36: 18 | AA36: 19 | AB36: 20 | AC36: 21 | AD36: 22 | AE36: 23 | AF36: 24 | AG36: 25 | AH36: 26 | AI36: 27 | AJ36: 28 | AK36: 29 | AL36: 30 | AM36: 31 | AN36: 32 | AO36: 33 | AP36: 34 | AQ36: 35 | AR36: 36 | AS36: 37 | AT36: 38 | AU36: 39 | AV36: 40 | AW36: 41 | AX36: 42 | AY36: 43 | AZ36: 44 | BA36: 45 | BB36: 46 | BC36: 47 | BD36: 48 | BE36: 49 | BF36: 50 | BG36: 51 | BH36: 52 | BI36: 53 | BJ36: 54 | BK36: 55 | BL36: 56 | BM36: 57 | BN36: 58 | BO36: 59 | BP36: 60 | BQ36: 61 | BR36: 62 | BS36: 63 | BT36: 64 | BU36: 65 | BV36: 66 | BW36: =BV36+1 -> 67 | BX36: 68 | BY36: 69 | BZ36: 70 | CA36: 71 | CB36: 72 | CC36: 73 | CD36: 74 | CE36: 75 | CF36: 76 | CG36: 77 | CH36: 78 | CI36: 79 | CJ36: 80 | CK36: 81 | CL36: 82 | CM36: 83 | CN36: 84 | CO36: 85 | CP36: 86 | CQ36: 87 | CR36: 88 | CS36: 89 | CT36: 90 | CU36: 91 | CV36: 92 | CW36: 93 | CX36: 94 | CY36: 95 | CZ36: 96 | DA36: 97 | DB36: 98 | DC36: 99 | DD36: 100 | DE36: 101 | DF36: 102 | DG36: 103 | DH36: 104 | DI36: 105 | DJ36: 106 | DK36: 107 | DL36: 108 | DM36: 109 | DN36: 110 | DO36: 111 | DP36: 112 | DQ36: 113 | DR36: 114 | DS36: 115 | DT36: 116 | DU36: 117 | DV36: 118 | DW36: 119 | DX36: 120 | DY36: 121 | DZ36: 122 | EA36: 123 | EB36: 124 | EC36: 125 | ED36: 126 | EE36: 127 | EF36: 128 | EG36: 129 | EH36: 130 | EI36: =EH36+1 -> 131 | EJ36: 132 | EK36: 133 | EL36: 134 | EM36: 135 | EN36: 136 | EO36: 137 | EP36: 138 | EQ36: 139 | ER36: 140 | ES36: 141 | ET36: 142 | EU36: 143 | EV36: 144 | EW36: 145 | EX36: 146 | EY36: 147 | EZ36: 148 | FA36: 149 | FB36: 150 | FC36: 151 | FD36: 152 | FE36: 153 | FF36: 154 | FG36: 155 | FH36: 156 | FI36: 157 | FJ36: 158 | FK36: 159 | FL36: 160 | FM36: 161 | FN36: 162 | FO36: 163 | FP36: 164 | FQ36: 165 | FR36: 166 | FS36: 167 | FT36: 168 | FU36: 169 | FV36: 170 | FW36: 171 | FX36: 172 | FY36: 173 | FZ36: 174 | GA36: 175 | GB36: 176 | GC36: 177 | GD36: 178 | GE36: 179 | GF36: 180 | GG36: 181 | GH36: 182 | GI36: 183 | GJ36: 184 | GK36: 185 | GL36: 186 | GM36: 187 | GN36: 188 | GO36: 189 | GP36: 190 | GQ36: 191 | GR36: 192 | GS36: 193 | GT36: 194 | GU36: =GT36+1 -> 195 | GV36: 196 | GW36: 197 | GX36: 198 | GY36: 199 | GZ36: 200 | HA36: 201 | HB36: 202 | HC36: 203 | HD36: 204 | HE36: 205 | HF36: 206 | HG36: 207 | HH36: 208 | HI36: 209 | HJ36: 210 | HK36: 211 | HL36: 212 | HM36: 213 | HN36: 214 | HO36: 215 | HP36: 216 | HQ36: 217 | HR36: 218 | HS36: 219 | HT36: 220 | HU36: 221 | HV36: 222 | HW36: 223 | HX36: 224 | HY36: 225 | HZ36: 226 | IA36: 227 | IB36: 228 | IC36: 229 | ID36: 230 | IE36: 231 | IF36: 232 | IG36: 233 | IH36: 234 | II36: 235 | IJ36: 236 | IK36: 237 | IL36: 238 | IM36: 239 | IN36: 240 | IO36: 241 | IP36: 242 | IQ36: 243 | IR36: 244 | IS36: 245 | IT36: 246 | IU36: 247 | IV36: 248 | IW36: 249 | IX36: 250 | IY36: 251 | IZ36: 252 | JA36: 253 | JB36: 254 | JC36: 255 | JD36: 256 | JE36: 257 | JF36: 258 | JG36: =JF36+1 -> 259 | JH36: 260 | JI36: 261 | JJ36: 262 | JK36: 263 | JL36: 264 | JM36: 265 | JN36: 266 | JO36: 267 | JP36: 268 | JQ36: 269 | JR36: 270 | JS36: 271 | JT36: 272 | JU36: 273 | JV36: 274 | JW36: 275 | JX36: 276 | JY36: 277 | JZ36: 278 | KA36: 279 | KB36: 280 | KC36: 281 | KD36: 282 | KE36: 283 | KF36: 284 | KG36: 285 | KH36: 286 | KI36: 287 | KJ36: 288 | KK36: 289 | KL36: 290 | KM36: 291 | KN36: 292 | KO36: 293 | KP36: 294 | KQ36: 295 | KR36: 296 | KS36: 297 | KT36: 298 | KU36: 299 | KV36: 300 | KW36: 301 | KX36: 302 | KY36: 303 | KZ36: 304 | LA36: 305 | LB36: 306 | LC36: 307 | LD36: 308 | LE36: 309 | LF36: 310 | LG36: 311 | LH36: 312 | LI36: 313 | LJ36: 314 | LK36: 315 | LL36: 316 | LM36: 317 | LN36: 318 | LO36: 319 | LP36: 320 | LQ36: 321 | LR36: 322 | LS36: =LR36+1 -> 323 | LT36: 324 | LU36: 325 | LV36: 326 | LW36: 327 | LX36: 328 | LY36: 329 | LZ36: 330 | MA36: 331 | MB36: 332 | MC36: 333 | MD36: 334 | ME36: 335 | MF36: 336 | MG36: 337 | MH36: 338 | MI36: 339 | MJ36: 340 | MK36: 341 | ML36: 342 | MM36: 343 | MN36: 344 | MO36: 345 | MP36: 346 | MQ36: 347 | MR36: 348 | MS36: 349 | MT36: 350 | MU36: 351 | MV36: 352 | MW36: 353 | MX36: 354 | MY36: 355 | MZ36: 356 | NA36: 357 | NB36: 358 | NC36: 359 | ND36: 360 | NE36: 361 | NF36: 362 | NG36: 363 | NH36: 364 | NI36: 365 | NJ36: 366 | NK36: 367 | NL36: 368 | NM36: 369 | NN36: 370 | NO36: 371 | NP36: 372 | NQ36: 373 | NR36: 374 | NS36: 375 | NT36: 376 | NU36: 377 | NV36: 378 | NW36: 379 | NX36: 380 | NY36: 381 | NZ36: 382 | OA36: 383 | OB36: 384 | OC36: 385 | OD36: 386 | OE36: =OD36+1 -> 387 | OF36: 388 | OG36: 389 | OH36: 390 | OI36: 391 | OJ36: 392 | OK36: 393 | OL36: 394 | OM36: 395 | ON36: 396 | OO36: 397 | OP36: 398 | OQ36: 399 | OR36: 400 | OS36: 401 | OT36: 402 | OU36: 403 | OV36: 404 | OW36: 405 | OX36: 406 | OY36: 407 | OZ36: 408 | PA36: 409 | PB36: 410 | PC36: 411 | PD36: 412 | PE36: 413 | PF36: 414 | PG36: 415 | PH36: 416 | PI36: 417 | PJ36: 418 | PK36: 419 | PL36: 420 | PM36: 421 | PN36: 422 | PO36: 423 | PP36: 424 | PQ36: 425 | PR36: 426 | PS36: 427 | PT36: 428 | PU36: 429 | PV36: 430 | PW36: 431 | PX36: 432 | PY36: 433 | PZ36: 434 | QA36: 435 | QB36: 436 | QC36: 437 | QD36: 438 | QE36: 439 | QF36: 440 | QG36: 441 | QH36: 442 | QI36: 443 | QJ36: 444 | QK36: 445 | QL36: 446 | QM36: 447 | QN36: 448 | QO36: 449 | QP36: 450 | QQ36: =QP36+1 -> 451 | QR36: 452 | QS36: 453 | QT36: 454 | QU36: 455 | QV36: 456 | QW36: 457 | QX36: 458 | QY36: 459 | QZ36: 460 | RA36: 461 | RB36: 462 | RC36: 463 | RD36: 464 | RE36: 465 | RF36: 466 | RG36: 467 | RH36: 468 | RI36: 469 | RJ36: 470 | RK36: 471 | RL36: 472 | RM36: 473 | RN36: 474 | RO36: 475 | RP36: 476 | RQ36: 477 | RR36: 478 | RS36: 479 | RT36: 480 | RU36: 481 | RV36: 482 | RW36: 483 | RX36: 484 | RY36: 485 | RZ36: 486 | SA36: 487 | SB36: 488 | SC36: 489 | SD36: 490 | SE36: 491 | SF36: 492 | SG36: 493 | SH36: 494 | SI36: 495 | SJ36: 496 | SK36: 497 | SL36: 498 | SM36: 499 | SN36: 500
G37: Mean | J37: 5.391639184
G38: Median | J38: 5.504055863
G39: SD | J39: 1.241438007
G40: 1%-ile | J40: 3.472593536
G41: 5%-ile | J41: 3.717559047
G42: 10%-ile | J42: 4.023765937
G43: 25%-ile | J43: 4.525877562
G44: 50%-ile | J44: 5.504055863
G45: 75%-ile | J45: 6.233386064
G46: 90%-ile | J46: 6.899671275
G47: 95%-ile | J47: 7.038148839
G48: 99%-ile | J48: 7.148930891
G51: Iteration 1 | J51: 5.85601748
G52: Iteration 2 | J52: 4.50654921
G53: Iteration 3 | J53: 4.091811912
G54: Iteration 4 | J54: 6.332182463
G55: Iteration 5 | J55: 3.411352158
G56: Iteration 6 | J56: 4.583862618
G57: Iteration 7 | J57: 7.176626403
G58: Iteration 8 | J58: 5.936996866
G59: Iteration 9 | J59: 5.152094246
G60: Iteration 10 | J60: 6.868898483
G61: Iteration 11
G62: Iteration 12
G63: Iteration 13
G64: Iteration 14
G65: Iteration 15
G66: Iteration 16
G67: Iteration 17
G68: Iteration 18
G69: Iteration 19
G70: Iteration 20
G71: Iteration 21
G72: Iteration 22
G73: Iteration 23
G74: Iteration 24
G75: Iteration 25
G76: Iteration 26
G77: Iteration 27
G78: Iteration 28
G79: Iteration 29
G80: Iteration 30
G81: Iteration 31
G82: Iteration 32
G83: Iteration 33
G84: Iteration 34
G85: Iteration 35
G86: Iteration 36
G87: Iteration 37
G88: Iteration 38
G89: Iteration 39
G90: Iteration 40
G91: Iteration 41
G92: Iteration 42
G93: Iteration 43
G94: Iteration 44
G95: Iteration 45
G96: Iteration 46
G97: Iteration 47
G98: Iteration 48
G99: Iteration 49
G100: Iteration 50
G101: Iteration 51
G102: Iteration 52
G103: Iteration 53
G104: Iteration 54
G105: Iteration 55
G106: Iteration 56
G107: Iteration 57
G108: Iteration 58
G109: Iteration 59
G110: Iteration 60
G111: Iteration 61
G112: Iteration 62
G113: Iteration 63
G114: Iteration 64
G115: Iteration 65
G116: Iteration 66
G117: Iteration 67
G118: Iteration 68
G119: Iteration 69
G120: Iteration 70
G121: Iteration 71
G122: Iteration 72
G123: Iteration 73
G124: Iteration 74
G125: Iteration 75
G126: Iteration 76
G127: Iteration 77
G128: Iteration 78
G129: Iteration 79
G130: Iteration 80
G131: Iteration 81
G132: Iteration 82
G133: Iteration 83
G134: Iteration 84
G135: Iteration 85
G136: Iteration 86
G137: Iteration 87
G138: Iteration 88
G139: Iteration 89
G140: Iteration 90
G141: Iteration 91
G142: Iteration 92
G143: Iteration 93
G144: Iteration 94
G145: Iteration 95
G146: Iteration 96
G147: Iteration 97
G148: Iteration 98
G149: Iteration 99
G150: Iteration 100
G151: Iteration 101
G152: Iteration 102
G153: Iteration 103
G154: Iteration 104
G155: Iteration 105
G156: Iteration 106
G157: Iteration 107
G158: Iteration 108
G159: Iteration 109
G160: Iteration 110
G161: Iteration 111
G162: Iteration 112
G163: Iteration 113
G164: Iteration 114
G165: Iteration 115
G166: Iteration 116
G167: Iteration 117
G168: Iteration 118
G169: Iteration 119
G170: Iteration 120
G171: Iteration 121
G172: Iteration 122
G173: Iteration 123
G174: Iteration 124
G175: Iteration 125
G176: Iteration 126
G177: Iteration 127
G178: Iteration 128
G179: Iteration 129
G180: Iteration 130
G181: Iteration 131
G182: Iteration 132
G183: Iteration 133
G184: Iteration 134
G185: Iteration 135
G186: Iteration 136
G187: Iteration 137
G188: Iteration 138
G189: Iteration 139
G190: Iteration 140
G191: Iteration 141
G192: Iteration 142
G193: Iteration 143
G194: Iteration 144
G195: Iteration 145
G196: Iteration 146
G197: Iteration 147
G198: Iteration 148
G199: Iteration 149
G200: Iteration 150
G201: Iteration 151
G202: Iteration 152
G203: Iteration 153
G204: Iteration 154
G205: Iteration 155
G206: Iteration 156
G207: Iteration 157
G208: Iteration 158
G209: Iteration 159
G210: Iteration 160
G211: Iteration 161
G212: Iteration 162
G213: Iteration 163
G214: Iteration 164
... 836 more rows

Sheet Active Field
A1: Active field | G1: Field: | H1: =Field_name -> Girassol | P1: =HYPERLINK("#Home_Inputs","To: Inputs") -> To: Inputs | R1: =HYPERLINK("#Home_ActiveField","To: Active") -> To: Active | T1: =HYPERLINK("#Home_FlowSheet","To: Flows") -> To: Flows
B2: 0 | C2: 0
A3: Summary results
B5: Model error check: | AN5: Source-specific venting and fugitive emissions
B6: =J158 ->  | G6: Total Process and Transport Emissions | L6: Summary GHG emissions | U6: Source-specific venting and fugitive emissions | AR6: Carbon dioxide emissions (gCO2eq/MJ) | AU6: Methane emissions ( gCO2eq/MJ)
G7: ='GHG Summary'!M19+(Small_sources_adder*'Energy Summary'!F128*10^-6)-'GHG Summary'!G108 ->  | H7: tCO2eq/d | AH7: Summary GHG emissions | AR7: Venting | AS7: Fugitives | AT7: Sum | AU7: Venting | AV7: Fugitives | AW7: Sum
G8: includes CO2 sequestration credit | AH8: GHG emissions gCO2eq/MJ | AN8: Wellhead | AR8: ='VFF Summary'!H88 -> 0 | AS8: ='VFF Summary'!I88 -> 0.002235268923 | AT8: =AR8+AS8 -> 0.002235268923 | AU8: ='VFF Summary'!J88*GWP_CH4 -> 0 | AV8: ='VFF Summary'!K88*GWP_CH4 -> 2.333986124 | AW8: =AU8+AV8 -> 2.333986124
AH9: Exploration | AK9: =(G171)*G215 ->  | AN9: Separator | AR9: ='VFF Summary'!H99 -> 0 | AS9: ='VFF Summary'!I99 -> 0.001173879083 | AT9: =AR9+AS9 -> 0.001173879083 | AU9: ='VFF Summary'!J99*GWP_CH4 -> 0 | AV9: ='VFF Summary'!K99*GWP_CH4 -> 1.225721641 | AW9: =AU9+AV9 -> 1.225721641
B10: Field: | E10: =H1 -> Girassol | AH10: Drilling | AK10: =(G177)*G215 ->  | AN10: Purposeful venting | AR10: ='VFF Summary'!H100 -> 0.3182093128 | AS10: ='VFF Summary'!I100 -> 0 | AT10: 0.3182093128 | AU10: ='VFF Summary'!J100*GWP_CH4 -> 332.2625359 | AV10: ='VFF Summary'!K100*GWP_CH4 -> 0 | AW10: 332.2625359
B11: Oil product boundary: | E11: =Inputs!Q2 -> Refinery | I11: Primary product exports | AH11: Production | AK11: =(G183)*G215 ->  | AN11: Misc. | AR11: ='VFF Summary'!H101 -> 0 | AS11: ='VFF Summary'!I101 -> 0 | AT11: 0 | AU11: ='VFF Summary'!J101*GWP_CH4 -> 0 | AV11: ='VFF Summary'!K101*GWP_CH4 -> 0 | AW11: 0
B12: Gas product boundary: | C12: Active field smart default loop | E12: =Inputs!U2 -> Field | I12: =Inputs!I2 -> Oil | AH12: Processing | AK12: =(G189)*G215 ->  | AN12: Gathering | AR12: ='VFF Summary'!H102 ->  | AS12: ='VFF Summary'!I102 -> 0 | AU12: ='VFF Summary'!J102*GWP_CH4 ->  | AV12: ='VFF Summary'!K102*GWP_CH4 -> 0
B13: Primary product: | E13: =Inputs!I2 -> Oil | I13: ='Energy Summary'!F121 ->  | J13: MJ/d | AH13: Liquefied natural gas | AK13: =(G195)*G215 ->  | AN13: Dehydrator | AR13: ='VFF Summary'!H103 -> 0 | AS13: ='VFF Summary'!I103 ->  | AU13: ='VFF Summary'!J103*GWP_CH4 -> 0 | AV13: ='VFF Summary'!K103*GWP_CH4 -> 
B14: Co-product method: | E14: =Inputs!Y2 -> Stream-specific | AH14: Maintenance | AK14: =(G201)*G215 -> 0 | AN14: AGR | AR14: ='VFF Summary'!H104 -> 0 | AS14: ='VFF Summary'!I104 -> 0 | AT14: 0 | AU14: ='VFF Summary'!J104*GWP_CH4 -> 0 | AV14: ='VFF Summary'!K104*GWP_CH4 -> 0 | AW14: 0
AH15: Waste | AK15: =(G207)*G215 -> 0 | AN15: Demethanizer | AR15: ='VFF Summary'!H105 -> 0 | AS15: ='VFF Summary'!I105 -> 0.00457269595 | AT15: 0.00457269595 | AU15: ='VFF Summary'!J105*GWP_CH4 -> 0 | AV15: ='VFF Summary'!K105*GWP_CH4 -> 4.774642007 | AW15: 4.774642007
AH16: VFF | AK16: =(G172+G178+G184+G190+G202+G208+G196+G221+G214)*G215 ->  | AN16: Lifting gas compressor | AR16: ='VFF Summary'!H106 -> 0 | AS16: ='VFF Summary'!I106 -> 0.0004273565061 | AT16: 0.0004273565061 | AU16: ='VFF Summary'!J106*GWP_CH4 -> 0 | AV16: ='VFF Summary'!K106*GWP_CH4 -> 0.4462300464 | AW16: 0.4462300464
AH17: Misc. | AK17: =(G223)*G215 -> 0.5331226099 | AN17: HC reinjection compressor | AR17: ='VFF Summary'!H107 -> 0 | AS17: ='VFF Summary'!I107 -> 0 | AT17: 0 | AU17: ='VFF Summary'!J107*GWP_CH4 -> 0 | AV17: ='VFF Summary'!K107*GWP_CH4 -> 0 | AW17: 0
AH18: Transport* | AK18: =G212+G219 ->  | AN18: HC reinjection wells | AR18: ='VFF Summary'!H108 -> 0 | AS18: ='VFF Summary'!I108 ->  | AU18: ='VFF Summary'!J108*GWP_CH4 -> 0 | AV18: ='VFF Summary'!K108*GWP_CH4 -> 
C19: Secondary product imports | F19: Secondary product exports | AH19: Offsite emissions | AK19: =G225*G215 ->  | AN19: Transmission compressor | AR19: ='VFF Summary'!H109 ->  | AS19: ='VFF Summary'!I109 -> 0 | AU19: ='VFF Summary'!J109*GWP_CH4 ->  | AV19: ='VFF Summary'!K109*GWP_CH4 -> 0
AH20: CO2 Sequestration | AK20: =G230 ->  | AN20: Storage compressor | AR20: ='VFF Summary'!H110 ->  | AS20: ='VFF Summary'!I110 -> 0 | AU20: ='VFF Summary'!J110*GWP_CH4 ->  | AV20: ='VFF Summary'!K110*GWP_CH4 -> 0
AH21: Net lifecycle emissions | AK21: =G232 ->  | AN21: Storage wells | AR21: ='VFF Summary'!H111 -> 0 | AS21: ='VFF Summary'!I111 ->  | AU21: ='VFF Summary'!J111*GWP_CH4 -> 0 | AV21: ='VFF Summary'!K111*GWP_CH4 -> 
C22: ='Energy Summary'!F94*J_per_btu ->  | D22: MJ/d | F22: ='Energy Summary'!F122 ->  | G22: MJ/d | AH22: * VFF included | AN22: Storage separator | AR22: ='VFF Summary'!H112 -> 0 | AS22: ='VFF Summary'!I112 -> 0 | AT22: 0 | AU22: ='VFF Summary'!J112*GWP_CH4 -> 0 | AV22: ='VFF Summary'!K112*GWP_CH4 -> 0 | AW22: 0
AN23: Post-storage compressor | AR23: ='VFF Summary'!H113 -> 0 | AS23: ='VFF Summary'!I113 -> 0 | AT23: 0 | AU23: ='VFF Summary'!J113*GWP_CH4 -> 0 | AV23: ='VFF Summary'!K113*GWP_CH4 -> 0 | AW23: 0
C24: Debits applied for imports | F24: Credits applied for exports | L24: Summary energy consumption | AH24: Summary energy consumption | AN24: Distribution piping | AR24: ='VFF Summary'!H121 -> 0 | AS24: ='VFF Summary'!I121 -> 0 | AT24: 0 | AU24: ='VFF Summary'!J121*GWP_CH4 -> 0 | AV24: ='VFF Summary'!K121*GWP_CH4 -> 0 | AW24: =AU24+AV24 -> 0
AH25: Energy consumption MJ/MJ | AN25: Customer meter | AR25: ='VFF Summary'!H122 -> 0 | AS25: ='VFF Summary'!I122 -> 0 | AT25: 0 | AU25: ='VFF Summary'!J122*GWP_CH4 -> 0 | AV25: ='VFF Summary'!K122*GWP_CH4 -> 0 | AW25: 0
AH26: Exploration | AK26: =G169*G215 ->  | AN26: End use appliances and equip. | AR26: ='VFF Summary'!H123 -> 0 | AS26: ='VFF Summary'!I123 -> 0 | AT26: 0 | AU26: ='VFF Summary'!J123*GWP_CH4 -> 0 | AV26: ='VFF Summary'!K123*GWP_CH4 -> 0 | AW26: 0
C27: ='GHG Summary'!H95 ->  | D27: tCO2eq/d | F27: =(IF(Inputs!I2="Oil",-'Energy Summary'!E85*'Fuel Cycle'!D47) - ('Energy Summary'!E87*'Fuel Cycle'!D47) + IF(Inputs!I2="Oil",0,-'Energy Summary'!E89*'Fuel Cycle'!D48))/1000000 ->  | G27: tCO2eq/d | AH27: Drilling | AK27: =G175*G215 ->  | AN27: Pre-membrane chiller | AR27: ='VFF Summary'!H124 -> 0 | AS27: ='VFF Summary'!I124 -> 0 | AT27: 0 | AU27: ='VFF Summary'!J124*GWP_CH4 -> 0 | AV27: ='VFF Summary'!K124*GWP_CH4 -> 0 | AW27: 0
AH28: Production | AK28: =G181*G215 ->  | AN28: Pre-membrane compressor | AR28: ='VFF Summary'!H125 -> 0 | AS28: ='VFF Summary'!I125 -> 0 | AT28: 0 | AU28: ='VFF Summary'!J125*GWP_CH4 -> 0 | AV28: ='VFF Summary'!K125*GWP_CH4 -> 0 | AW28: 0
AH29: Processing | AK29: =G187*G215 ->  | AN29: Ryan Holmes Process | AR29: ='VFF Summary'!H126 -> 0 | AS29: ='VFF Summary'!I126 -> 0 | AT29: 0 | AU29: ='VFF Summary'!J126*GWP_CH4 -> 0 | AV29: ='VFF Summary'!K126*GWP_CH4 -> 0 | AW29: 0
B30: Key results for carbon intensity calculation | AH30: Liquefied natural gas | AK30: =G193*G215 ->  | AN30: Sour gas compressor | AR30: ='VFF Summary'!H127 -> 0 | AS30: ='VFF Summary'!I127 -> 0 | AT30: 0 | AU30: ='VFF Summary'!J127*GWP_CH4 -> 0 | AV30: ='VFF Summary'!K127*GWP_CH4 -> 0 | AW30: 0
B31: Parameter | G31: Value | H31: Unit | AH31: Maintenance | AK31: =G199*G215 ->  | AN31: Sour gas injection wells | AR31: ='VFF Summary'!H128 -> 0 | AS31: ='VFF Summary'!I128 -> 0 | AT31: 0 | AU31: ='VFF Summary'!J128*GWP_CH4 -> 0 | AV31: ='VFF Summary'!K128*GWP_CH4 -> 0 | AW31: 0
B32: Total emissions (allocation) | G32: =G7+C27 ->  | H32: tCO2eq/d | AH32: Waste | AK32: =G205*G215 ->  | AN32: CO2 reinjection compressor | AR32: ='VFF Summary'!H129 -> 0 | AS32: ='VFF Summary'!I129 -> 0 | AT32: 0 | AU32: ='VFF Summary'!J129*GWP_CH4 -> 0 | AV32: ='VFF Summary'!K129*GWP_CH4 -> 0 | AW32: 0
B33: Total emissions (displacement) | G33: =G7+F27+C27 ->  | H33: tCO2eq/d | AH33: Transport | AK33: =G211+G218 ->  | AN33: CO2 reinjection wells | AR33: ='VFF Summary'!H130 -> 0 | AS33: ='VFF Summary'!I130 -> 0 | AT33: 0 | AU33: ='VFF Summary'!J130*GWP_CH4 -> 0 | AV33: ='VFF Summary'!K130*GWP_CH4 -> 0 | AW33: 0
B34: Denominator for computing CI (allocation) | G34: =I13+F22 ->  | H34: MJ/d | AH34: Total | AK34: =G227 ->  | AN34: Gas flooding compressor | AR34: ='VFF Summary'!H131 -> 0 | AS34: ='VFF Summary'!I131 -> 0 | AT34: 0 | AU34: ='VFF Summary'!J131*GWP_CH4 -> 0 | AV34: ='VFF Summary'!K131*GWP_CH4 -> 0 | AW34: 0
B35: Denominator for computing CI (displacement) | G35: =I13 ->  | H35: MJ/d | AN35: Vents - HC tanks | AR35: ='VFF Summary'!H132 -> 0 | AS35: ='VFF Summary'!I132 -> 0 | AT35: 0 | AU35: ='VFF Summary'!J132*GWP_CH4 -> 0 | AV35: ='VFF Summary'!K132*GWP_CH4 -> 0 | AW35: 0
AN36: VRU compressor | AR36: ='VFF Summary'!H133 -> 0 | AS36: ='VFF Summary'!I133 -> 0 | AT36: 0 | AU36: ='VFF Summary'!J133*GWP_CH4 -> 0 | AV36: ='VFF Summary'!K133*GWP_CH4 -> 0 | AW36: 0
B37: Summary carbon intensity using varying co-product allocation methodologies | AN37: Mine face fugitives | AR37: ='GHG Summary'!H169 -> 0 | AS37: ='GHG Summary'!I169 -> 0 | AT37: 0 | AU37: ='GHG Summary'!J169*GWP_CH4 -> 0 | AV37: ='GHG Summary'!K169*GWP_CH4 -> 0 | AW37: 0
B38: Co-product allocation method | G38: Value | H38: Unit | AN38: Liquefaction flaring and fugitives | AR38: ='GHG Summary'!H170 -> 0 | AS38: ='GHG Summary'!I170 -> 0 | AT38: 0 | AU38: ='GHG Summary'!J170*GWP_CH4 -> 0 | AV38: ='GHG Summary'!K170*GWP_CH4 -> 0 | AW38: 0
B39: Allocation | G39: =(G32/G34)*1000000 ->  | H39: gCO2eq/MJ | AN39: Completions | AR39: ='GHG Summary'!H171 -> 0 | AS39: ='GHG Summary'!I171 -> 0 | AT39: 0 | AU39: ='GHG Summary'!J171*GWP_CH4 -> 0 | AV39: ='GHG Summary'!K171*GWP_CH4 -> 0 | AW39: 0
B40: Displacement | G40: =(G33/G35)*1000000 ->  | H40: gCO2eq/MJ | AN40: Workovers | AR40: ='GHG Summary'!H172 -> 0 | AS40: ='GHG Summary'!I172 -> 0 | AT40: 0 | AU40: ='GHG Summary'!J172*GWP_CH4 -> 0 | AV40: ='GHG Summary'!K172*GWP_CH4 -> 0 | AW40: 0
AN41: Stabilizer | AR41: ='GHG Summary'!H173 -> 0 | AS41: ='GHG Summary'!I173 -> 0 | AT41: 0 | AU41: ='GHG Summary'!J173*GWP_CH4 -> 0 | AV41: ='GHG Summary'!K173*GWP_CH4 -> 0 | AW41: 0
A43: Active field working sheet
M45: Realization | N45: Mean | O45: Standard deviation | P45: Low range | Q45: High range | R45: Prob. yes (binary) | S45: Distribution type | T45: Random number
J46: Active | K46: Determin. default | L46: Unit | V46: Notes | Z46: Gas field defaults
A47: Production methods | T47: (drawn in VBA) | KA47: 0.6 | KB47: 0.7 | KC47: 16 | KD47: 3.3 | KE47: 4.8 | KF47: 14 | KG47: 4.11 | KH47: 5.3 | KI47: 6.1 | KJ47: 4.7 | KK47: 26 | KL47: 0.15 | KM47: 56 | KN47: 10 | KO47: 14 | KP47: 1.15 | KQ47: 0.036 | KR47: 1.69 | KS47: 19.7 | KT47: 0 | KU47: 0 | KV47: 0 | KW47: 9.07
B48: Downhole pump | F48: Downhole_pump_01 | J48: 0 | K48: 1 | L48: - | M48: =IF(Inputs!$F$2=1,K48,IF(T48<R48,1,0)) -> 1 | N48: 0 | O48: 0 | P48: 0 | Q48: 0 | R48: 0.95 | S48: Binary | T48: 0.9342557192 | V48: If gas lifting applies then "0"
B49: Water reinjection | F49: Water_reinjection_01 | J49: 1 | K49: 1 | L49: - | M49: =IF(Water_flooding_01=1,0,IF(Inputs!$F$2=1,K49,IF(T49<R49,1,0))) -> 1 | N49: 0 | O49: 0 | P49: 0 | Q49: 0 | R49: 0.25 | S49: Binary | T49: 0.3364961743 | V49: If water flooding applies then "0"
B50: Natural gas reinjection | F50: Natural_gas_reinjection_01 | J50: 1 | K50: 1 | L50: - | M50: =IF(Gas_flooding_01=1,0,IF(Inputs!$F$2=1,K50,IF(T50<R50,1,0))) -> 1 | N50: 0 | O50: 0 | P50: 0 | Q50: 0 | R50: 0.95 | S50: Binary | T50: 0.6402118206 | V50: If gas flooding applies then "0"
B51: Water flooding | F51: Water_flooding_01 | I51: =IF(AND(J49=1,J51=1),"ERROR","OK") -> OK | J51: 0 | K51: 0 | L51: - | M51: =IF(J49=1,0,IF(Inputs!$F$2=1,K51,IF(T51<R51,1,0))) -> 0 | N51: 0 | O51: 0 | P51: 0 | Q51: 0 | R51: 0.75 | S51: Binary | T51: 0.8852538466 | V51: This is used for injecting amounts of water larger than the amount of produced water
B52: Gas lifting | F52: Gas_lifting_01 | I52: =IF(AND(J48=1,J52=1),"ERROR","OK") -> OK | J52: 1 | K52: 0 | L52: - | M52: =IF(J48=1,0,IF(Inputs!$F$2=1,K52,IF(T52<R52,1,0))) -> 0 | N52: 0 | O52: 0 | P52: 0 | Q52: 0 | R52: 0 | S52: Binary | T52: 0.619060874 | V52: This is used for gas lifting. If downhole pump applies then "0"
B53: Gas flooding | F53: Gas_flooding_01 | I53: =IF(AND(J50=1,J53=1, J90=1),"ERROR","OK") -> OK | J53: 0 | K53: 0 | L53: - | M53: =IF(Inputs!$F$2=1,K53,IF(Natural_gas_reinjection_01=1,0,IF(T53<R53,1,0))) -> 0 | N53: 0 | O53: 0 | P53: 0 | Q53: 0 | R53: 0.05 | S53: Binary | T53: 0.1983404756 | V53: This is used for injecting a different type of gas (e.g. N2) or amounts of gas larger than the amount of produced gas
B54: Steam flooding | F54: Steam_flooding_01 | H54: =IF(J54=1,IF(AND(J55=1,J56=1),"ERROR","OK"),"OK") -> OK | I54: =IF(J70=1,IF(J54=1,"ERROR","OK"),"OK") -> OK | J54: 0 | K54: 0 | L54: - | M54: =IF(Inputs!$F$2=1,K54,IF(Gas_flooding_01=1,0,IF(T54<R54,1,0))) -> 0 | N54: 0 | O54: 0 | P54: 0 | Q54: 0 | R54: 0 | S54: Binary | T54: 0.5558996201 | V54: This is used for injecting steam
B55: Oil sands mine (integrated with upgrader) | F55: Oil_sands_mine_int_01 | I55: =IF(J55=1,IF(J111=0,"ERROR","OK"),"OK") -> OK | J55: 0 | K55: 0 | L55: - | M55: =IF(Inputs!$F$2=1,K55,IF(OR(J54=1,J53=1,J52=1,J51=1,J50=1,J49=1,J48=1),0,IF(T55<R55,1,0))) -> 0 | N55: 0 | O55: 0 | P55: 0 | Q55: 0 | R55: 0 | S55: Binary | T55: 0.8845283389
B56: Oil sands mine (non-integrated with upgrader) | F56: Oil_sands_mine_nonint_01 | J56: 0 | K56: 0 | L56: - | M56: =IF(Inputs!$F$2=1,K56,IF(OR(J54=1,J53=1,J52=1,J51=1,J50=1,J49=1,J48=1),0,IF(T56<R56,1,0))) -> 0 | N56: 0 | O56: 0 | P56: 0 | Q56: 0 | R56: 0 | S56: Binary | T56: 0.6322237253
A58: Field properties
B59: Field location (Country) | F59: Country | I59: =IF(ISNA(MATCH(J59,#REF!,0))=TRUE,"ERROR","OK") -> OK | J59: Angola | K59: Generic | L59: - | M59: Generic | V59: =IF(I59="ERROR","Check the spelling of the field location (The location name must be spelled exactly the same as in the 'Flaring' sheet, Table 4.1)","") -> 
B60: Field name | F60: Field_name | J60: Girassol | K60: Generic | L60: - | M60: Generic | Z60: Gas field defaults
B61: Field age | F61: Field_age | J61: 12 | K61: 38 | L61: yr | M61: =IF(Inputs!$F$2=1,K61,IF(S61="Normal",MIN(MAX((_xlfn.NORM.INV(T61,N61,O61)),P61),Q61),IF(S61="Triangular",triangular(P61,K61,Q61,T61),IF(S61="Uniform",(RANDBETWEEN(P61,Q61)),IF(S61="Lognormal",EXP(_xlfn.NORM.INV(T61,LN(N61^2/(SQRT(N61^2+O61^2))),SQRT(LN((N61^2+O61^2)/(N61^2))))),IF(S61="Binary",IF(T61<=R61,1,0),"ERROR")))))) -> 38 | N61: 38 | O61: 22 | P61: 2 | Q61: 82 | R61: - | S61: Lognormal | T61: 0.3758929372 | Z61: 24
B62: Field depth | F62: Field_depth | J62: 3937 | K62: =IF(GOR>10000,Z62,7122) -> 7122 | L62: ft | M62: =IF(Inputs!$F$2=1,K62,IF(S62="Normal",MIN(MAX((_xlfn.NORM.INV(T62,N62,O62)),P62),Q62),IF(S62="Triangular",triangular(P62,K62,Q62,T62),IF(S62="Uniform",(RANDBETWEEN(P62,Q62)),IF(S62="Lognormal",EXP(_xlfn.NORM.INV(T62,LN(N62^2/(SQRT(N62^2+O62^2))),SQRT(LN((N62^2+O62^2)/(N62^2))))),IF(S62="Binary",IF(T62<=R62,1,0),"ERROR")))))) -> 7122 | N62: 7121.65772 | O62: 3851.054259 | P62: 59.05512 | Q62: 35836.61532 | R62: - | S62: Lognormal | T62: 0.6221191883 | Z62: 8285
B63: Oil production volume | F63: Oil_prod | J63: 175000 | K63: 2098 | L63: bbl/d | M63: =IF(Inputs!$F$2=1,K63,IF(S63="Normal",MIN(MAX((_xlfn.NORM.INV(T63,N63,O63)),P63),Q63),IF(S63="Triangular",triangular(P63,K63,Q63,T63),IF(S63="Uniform",(RANDBETWEEN(P63,Q63)),IF(S63="Lognormal",EXP(_xlfn.NORM.INV(T63,LN(N63^2/(SQRT(N63^2+O63^2))),SQRT(LN((N63^2+O63^2)/(N63^2))))),IF(S63="Binary",IF(T63<=R63,1,0),"ERROR")))))) -> 2098 | N63: 2098.422078 | O63: 2444.869997 | P63: 10 | Q63: 10000 | R63: - | S63: Lognormal | T63: 0.1392387748 | V63: Raw crude production volume before upgrading or dilution | Z63: 744
B64: Number of producing wells | F64: Num_prod_wells | I64: =IF(J64>0,"OK",IF(SUM(J55:J56)=1,"OK","ERROR")) -> OK | J64: 24 | K64: =IF(OR(Oil_sands_mine_int_01=1,Oil_sands_mine_nonint_01=1),0,IF(ROUND(J63/87.5,0)<1,1,ROUNDUP(J63/87.5,0))) -> 2000 | L64: - | M64: =IF(Inputs!$F$2=1,K64,ROUNDUP(IF(S64="Normal",MIN(MAX((_xlfn.NORM.INV(T64,N64,O64)),P64),Q64),IF(S64="Triangular",triangular(P64,K64,Q64,T64),IF(S64="Uniform",(RANDBETWEEN(P64,Q64)),IF(S64="Lognormal",EXP(_xlfn.NORM.INV(T64,LN(N64^2/(SQRT(N64^2+O64^2))),SQRT(LN((N64^2+O64^2)/(N64^2))))),IF(S64="Binary",IF(T64<=R64,1,0),"ERROR"))))),0)) -> 2000 | N64: =IF(ROUND(J63/87.5,0)<1,1,ROUND(J63/87.5,0)) -> 2000 | O64: =IF(ROUND(O63/87.5,0)<1,1,ROUND(O63/87.5,0)) -> 28 | P64: =IF(ROUND(P63/87.5,0)<1,1,ROUND(P63/87.5,0)) -> 1 | Q64: =IF(ROUND(Q63/87.5,0)<1,1,ROUND(Q63/87.5,0)) -> 114 | R64: - | S64: Lognormal | T64: 0.7579849958
B65: Number of water injecting wells | F65: Num_water_inj_wells | J65: 20 | K65: =IF(OR(Oil_sands_mine_int_01=1,Oil_sands_mine_nonint_01=1),0,IF($J$63<=10,ROUNDUP(J64*0.143,0),IF(AND($J$63>10,$J$63<=100),ROUNDUP(J64*0.267,0),IF(AND($J$63>100,$J$63<=1000),ROUNDUP(J64*0.512,0),ROUNDUP(J64*0.829,0))))) -> 20 | L65: - | M65: =IF(Inputs!$F$2=1,K65,ROUNDUP(IF(S65="Normal",MIN(MAX((_xlfn.NORM.INV(T65,N65,O65)),P65),Q65),IF(S65="Triangular",triangular(P65,K65,Q65,T65),IF(S65="Uniform",(RANDBETWEEN(P65,Q65)),IF(S65="Lognormal",EXP(_xlfn.NORM.INV(T65,LN(N65^2/(SQRT(N65^2+O65^2))),SQRT(LN((N65^2+O65^2)/(N65^2))))),IF(S65="Binary",IF(T65<=R65,1,0),"ERROR"))))),0)) -> 20 | N65: =IF($J$63<=10,ROUNDUP(J64*0.143,0),IF(AND($J$63>10,$J$63<=100),ROUNDUP(J64*0.267,0),IF(AND($J$63>100,$J$63<=1000),ROUNDUP(J64*0.512,0),ROUNDUP(J64*0.829,0)))) -> 20 | O65: =IF($J$63<=10,ROUNDUP(O64*0.167,0),IF(AND($J$63>10,$J$63<=100),ROUNDUP(O64*0.259,0),IF(AND($J$63>100,$J$63<=1000),ROUNDUP(O64*0.281,0),ROUNDUP(O64*0.287,0)))) -> 9 | P65: =IF($J$63<=10,ROUNDUP(P64*0.143,0),IF(AND($J$63>10,$J$63<=100),ROUNDUP(P64*0.267,0),IF(AND($J$63>100,$J$63<=1000),ROUNDUP(P64*0.512,0),ROUNDUP(P64*0.829,0)))) -> 1 | Q65: =IF($J$63<=10,ROUNDUP(Q64*0.143,0),IF(AND($J$63>10,$J$63<=100),ROUNDUP(Q64*0.267,0),IF(AND($J$63>100,$J$63<=1000),ROUNDUP(Q64*0.512,0),ROUNDUP(Q64*0.829,0)))) -> 95 | R65: - | S65: Lognormal | T65: 0.5789313912
B66: Well diameter | F66: Well_diam | J66: 8 | K66: =(1.05+4.5)/2 -> 2.775 | L66: in | M66: =IF(Inputs!$F$2=1,K66,IF(S66="Normal",MIN(MAX((_xlfn.NORM.INV(T66,N66,O66)),P66),Q66),IF(S66="Triangular",triangular(P66,K66,Q66,T66),IF(S66="Uniform",(RANDBETWEEN(P66,Q66)),IF(S66="Lognormal",EXP(_xlfn.NORM.INV(T66,LN(N66^2/(SQRT(N66^2+O66^2))),SQRT(LN((N66^2+O66^2)/(N66^2))))),IF(S66="Binary",IF(T66<=R66,1,0),"ERROR")))))) -> 2.775 | N66: =(1.05+4.5)/2 -> 2.775 | O66: 1 | P66: 1.05 | Q66: 4.5 | R66: - | S66: Triangular | T66: 0.5220370293
B67: Productivity index | F67: Prod_index | J67: 90.9 | K67: 6.8 | L67: bbl/psi-d | M67: =IF(Inputs!$F$2=1,K67,IF(S67="Normal",MIN(MAX((_xlfn.NORM.INV(T67,N67,O67)),P67),Q67),IF(S67="Triangular",triangular(P67,K67,Q67,T67),IF(S67="Uniform",(RANDBETWEEN(P67,Q67)),IF(S67="Lognormal",EXP(_xlfn.NORM.INV(T67,LN(N67^2/(SQRT(N67^2+O67^2))),SQRT(LN((N67^2+O67^2)/(N67^2))))),IF(S67="Binary",IF(T67<=R67,1,0),"ERROR")))))) -> 6.8 | N67: 17.115 | O67: 17.811 | P67: 1 | Q67: 50 | R67: - | S67: Lognormal | T67: 0.1623856425
B68: Average reservoir pressure | F68: Res_press | J68: 3655 | K68: =IF(AND('Active Field'!J59="California",'Active Field'!J54=1),100,0.5*(J62*0.43)) -> 846.455 | L68: psia | M68: =IF(Inputs!$F$2=1,K68,IF(S68="Normal",MIN(MAX((_xlfn.NORM.INV(T68,N68,O68)),P68),Q68),IF(S68="Triangular",triangular(P68,K68,Q68,T68),IF(S68="Uniform",(RANDBETWEEN(P68,Q68)),IF(S68="Lognormal",EXP(_xlfn.NORM.INV(T68,LN(N68^2/(SQRT(N68^2+O68^2))),SQRT(LN((N68^2+O68^2)/(N68^2))))),IF(S68="Binary",IF(T68<=R68,1,0),"ERROR")))))) -> 846.455 | N68: =0.5*(J62/2.31) -> 852.1645022 | O68: =0.5*(J62/2.31)*0.5 -> 426.0822511 | P68: =0.95*P62/2.31 -> 24.28673766 | Q68: =0.95*(Q62/2.31) -> 14738.00197 | R68: - | S68: Lognormal | T68: 0.7698432207
B69: Average reservoir temperature | F69: Res_temp | J69: 91.30016619 | K69: =70+1.8*J62/100 -> 140.866 | L69: ◦F | M69: =IF(Inputs!$F$2=1,K69,IF(S69="Normal",MIN(MAX((_xlfn.NORM.INV(T69,N69,O69)),P69),Q69),IF(S69="Triangular",triangular(P69,K69,Q69,T69),IF(S69="Uniform",(RANDBETWEEN(P69,Q69)),IF(S69="Lognormal",EXP(_xlfn.NORM.INV(T69,LN(N69^2/(SQRT(N69^2+O69^2))),SQRT(LN((N69^2+O69^2)/(N69^2))))),IF(S69="Binary",IF(T69<=R69,1,0),"ERROR")))))) -> 140.866 | N69: =70+1.8*(J62/100) -> 140.866 | O69: =70+1.8*(O62/100) -> 139.3189767 | P69: =70+1*(P62/70) -> 70.84364457 | Q69: =70+1*(Q62/70) -> 581.9516474 | R69: - | S69: Normal | T69: 0.5494602323
B70: Offshore? | F70: Offshore_01 | J70: 0 | K70: 0 | M70: =IF(Inputs!$F$2=1,K70,IF(S70="Normal",MIN(MAX((_xlfn.NORM.INV(T70,N70,O70)),P70),Q70),IF(S70="Triangular",triangular(P70,K70,Q70,T70),IF(S70="Uniform",(RANDBETWEEN(P70,Q70)),IF(S70="Lognormal",EXP(_xlfn.NORM.INV(T70,LN(N70^2/(SQRT(N70^2+O70^2))),SQRT(LN((N70^2+O70^2)/(N70^2))))),IF(S70="Binary",IF(T70<=R70,1,0),"ERROR")))))) -> 0 | N70: 0 | O70: 0 | P70: 0 | Q70: 0 | R70: 0.2 | S70: Binary | T70: 0.8421399593
A72: Fluid properties
B73: API gravity of produced crude | F73: API_grav | J73: 32 | K73: =IF(GOR>10000,Z73,32.8) -> 32.8 | L73: deg. API | M73: =IF(Inputs!$F$2=1,K73,IF(S73="Normal",MIN(MAX((_xlfn.NORM.INV(T73,N73,O73)),P73),Q73),IF(S73="Triangular",triangular(P73,K73,Q73,T73),IF(S73="Uniform",(RANDBETWEEN(P73,Q73)),IF(S73="Lognormal",EXP(_xlfn.NORM.INV(T73,LN(N73^2/(SQRT(N73^2+O73^2))),SQRT(LN((N73^2+O73^2)/(N73^2))))),IF(S73="Binary",IF(T73<=R73,1,0),"ERROR")))))) -> 32.8 | N73: 32.82997231 | O73: 8.363521016 | P73: 4 | Q73: 87.9 | R73: - | S73: Normal | T73: 0.7570084929 | Z73: 47
B74: Associated gas composition
F75: Gas_comp_N2 | I75: N2 | J75: 4.148285024 | K75: =IF(Inputs!$AF$2="Global ",'Regionalized defaults'!$C$9,IF(Inputs!$AF$2="CA-LCFS",'Regionalized defaults'!$D$9)) -> 2.7 | L75: mol% | M75: =IF(Inputs!$F$2=1,K75,IF(S75="Normal",MIN(MAX((_xlfn.NORM.INV(T75,N75,O75)),P75),Q75),IF(S75="Triangular",triangular(P75,K75,Q75,T75),IF(S75="Uniform",(RANDBETWEEN(P75,Q75)),IF(S75="Lognormal",EXP(_xlfn.NORM.INV(T75,LN(N75^2/(SQRT(N75^2+O75^2))),SQRT(LN((N75^2+O75^2)/(N75^2))))),IF(S75="Binary",IF(T75<=R75,1,0),"ERROR")))))) -> 2.7 | N75: =K75 -> 2.7 | P75: 0.838185 | Q75: 8.231654 | R75: - | S75: Triangular | T75: 0.5711797476 | V75: Composition on dry basis
F76: Gas_comp_CO2 | I76: CO2 | J76: 0.8267230803 | K76: =IF(Inputs!$AF$2="Global ",'Regionalized defaults'!$C$10,IF(Inputs!$AF$2="CA-LCFS",'Regionalized defaults'!$D$10)) -> 6.9 | L76: mol% | M76: =IF(Inputs!$F$2=1,K76,IF(S76="Normal",MIN(MAX((_xlfn.NORM.INV(T76,N76,O76)),P76),Q76),IF(S76="Triangular",triangular(P76,K76,Q76,T76),IF(S76="Uniform",(RANDBETWEEN(P76,Q76)),IF(S76="Lognormal",EXP(_xlfn.NORM.INV(T76,LN(N76^2/(SQRT(N76^2+O76^2))),SQRT(LN((N76^2+O76^2)/(N76^2))))),IF(S76="Binary",IF(T76<=R76,1,0),"ERROR")))))) -> 6.9 | N76: 6.9 | P76: 0 | Q76: 1.785578 | R76: - | S76: Triangular | T76: 0.6398354173 | V76: Based on range of reported basin-level mean values in NETL 2019
F77: Gas_comp_C1 | I77: C1 | J77: 87.37693107 | K77: =IF(Inputs!$AF$2="Global ",'Regionalized defaults'!$C$11,IF(Inputs!$AF$2="CA-LCFS",'Regionalized defaults'!$D$11)) -> 83.3 | L77: mol% | M77: =IF(Inputs!$F$2=1,K77,IF(S77="Normal",MIN(MAX((_xlfn.NORM.INV(T77,N77,O77)),P77),Q77),IF(S77="Triangular",triangular(P77,K77,Q77,T77),IF(S77="Uniform",(RANDBETWEEN(P77,Q77)),IF(S77="Lognormal",EXP(_xlfn.NORM.INV(T77,LN(N77^2/(SQRT(N77^2+O77^2))),SQRT(LN((N77^2+O77^2)/(N77^2))))),IF(S77="Binary",IF(T77<=R77,1,0),"ERROR")))))) -> 83.3 | N77: 83.3 | P77: 78.57595 | Q77: 95.93285 | R77: - | S77: Triangular | T77: 0.3378601074
F78: Gas_comp_C2 | I78: C2 | J78: 4.452450575 | K78: =IF(Inputs!$AF$2="Global ",'Regionalized defaults'!$C$12,IF(Inputs!$AF$2="CA-LCFS",'Regionalized defaults'!$D$12)) -> 4.9 | L78: mol% | M78: =IF(Inputs!$F$2=1,K78,IF(S78="Normal",MIN(MAX((_xlfn.NORM.INV(T78,N78,O78)),P78),Q78),IF(S78="Triangular",triangular(P78,K78,Q78,T78),IF(S78="Uniform",(RANDBETWEEN(P78,Q78)),IF(S78="Lognormal",EXP(_xlfn.NORM.INV(T78,LN(N78^2/(SQRT(N78^2+O78^2))),SQRT(LN((N78^2+O78^2)/(N78^2))))),IF(S78="Binary",IF(T78<=R78,1,0),"ERROR")))))) -> 4.9 | N78: 4.9 | P78: 1.741266 | Q78: 10.8381 | R78: - | S78: Triangular | T78: 0.2193109393
F79: Gas_comp_C3 | I79: C3 | J79: 2.229929397 | K79: =IF(Inputs!$AF$2="Global ",'Regionalized defaults'!$C$13,IF(Inputs!$AF$2="CA-LCFS",'Regionalized defaults'!$D$13)) -> 1.5 | L79: mol% | M79: =IF(Inputs!$F$2=1,K79,IF(S79="Normal",MIN(MAX((_xlfn.NORM.INV(T79,N79,O79)),P79),Q79),IF(S79="Triangular",triangular(P79,K79,Q79,T79),IF(S79="Uniform",(RANDBETWEEN(P79,Q79)),IF(S79="Lognormal",EXP(_xlfn.NORM.INV(T79,LN(N79^2/(SQRT(N79^2+O79^2))),SQRT(LN((N79^2+O79^2)/(N79^2))))),IF(S79="Binary",IF(T79<=R79,1,0),"ERROR")))))) -> 1.5 | N79: 1.5 | P79: 0.24279 | Q79: 4.383266 | R79: - | S79: Triangular | T79: 0.5858837366
F80: Gas_comp_C4 | I80: C4+ | J80: 0.9526523291 | K80: =IF(Inputs!$AF$2="Global ",'Regionalized defaults'!$C$14,IF(Inputs!$AF$2="CA-LCFS",'Regionalized defaults'!$D$14)) -> 0.7 | L80: mol% | M80: =IF(Inputs!$F$2=1,K80,IF(S80="Normal",MIN(MAX((_xlfn.NORM.INV(T80,N80,O80)),P80),Q80),IF(S80="Triangular",triangular(P80,K80,Q80,T80),IF(S80="Uniform",(RANDBETWEEN(P80,Q80)),IF(S80="Lognormal",EXP(_xlfn.NORM.INV(T80,LN(N80^2/(SQRT(N80^2+O80^2))),SQRT(LN((N80^2+O80^2)/(N80^2))))),IF(S80="Binary",IF(T80<=R80,1,0),"ERROR")))))) -> 0.7 | N80: 0.7 | P80: 0.058367 | Q80: 1.717372 | R80: - | S80: Triangular | T80: 0.6408894658
F81: Gas_comp_H2S | I81: H2S | J81: 0.01302852095 | K81: =IF(Inputs!$AF$2="Global ",'Regionalized defaults'!$C$15,IF(Inputs!$AF$2="CA-LCFS",'Regionalized defaults'!$D$15)) -> 0 | L81: mol% | M81: =IF(Inputs!$F$2=1,K81,IF(S81="Normal",MIN(MAX((_xlfn.NORM.INV(T81,N81,O81)),P81),Q81),IF(S81="Triangular",triangular(P81,K81,Q81,T81),IF(S81="Uniform",(RANDBETWEEN(P81,Q81)),IF(S81="Lognormal",EXP(_xlfn.NORM.INV(T81,LN(N81^2/(SQRT(N81^2+O81^2))),SQRT(LN((N81^2+O81^2)/(N81^2))))),IF(S81="Binary",IF(T81<=R81,1,0),"ERROR")))))) -> 0 | N81: 0 | P81: 0 | Q81: 0.05 | R81: - | S81: Triangular | T81: 0.4491999149 | V81: Add nominally small range for H2S
H82: =SUM(J75:J81) -> 100 | I82: =IF(SUM(J75:J81)=100,"OK","ERROR") -> OK
A84: Production practices
B85: Gas-to-oil ratio (GOR) | F85: GOR | J85: 584.29 | K85: =IF(API_grav<20,1122.4,IF(AND(API_grav>=20,API_grav<=30),1205.4,2429.3)) -> 2429.3 | L85: scf/bbl oil | M85: =IF(Inputs!$F$2=1,K85,IF(S85="Normal",MIN(MAX((_xlfn.NORM.INV(T85,N85,O85)),P85),Q85),IF(S85="Triangular",triangular(P85,K85,Q85,T85),IF(S85="Uniform",(RANDBETWEEN(P85,Q85)),IF(S85="Lognormal",EXP(_xlfn.NORM.INV(T85,LN(N85^2/(SQRT(N85^2+O85^2))),SQRT(LN((N85^2+O85^2)/(N85^2))))),IF(S85="Binary",IF(T85<=R85,1,0),"ERROR")))))) -> 2429.3 | N85: =IF(API_grav<20,1122.4,IF(AND(API_grav>=20,API_grav<=30),1205.4,2429.3)) -> 2429.3 | O85: =IF($J$73<20,2829.68,IF(AND($J$73>=20,$J$73<=30),2277.922,3635.852)) -> 3635.852 | P85: =IF($J$73<20,1,IF(AND($J$73>=20,$J$73<=30),36.3,1)) -> 1 | Q85: =IF($J$73<20,2545,IF(AND($J$73>=20,$J$73<=30),11725,33847)) -> 33847 | R85: - | S85: Lognormal | T85: 0.7917856574 | V85: In the case of gas lift, the gas oil ratio should include produced gas from the reservoir as well as injected lift gas.
B86: Water-to-oil ratio (WOR) | F86: WOR | I86: =I316 -> 0 | J86: 0.5 | K86: =IF(Steam_flooding_01=0,IF(4.021*EXP(0.024*Field_age)-4.021<=100,4.021*EXP(0.024*Field_age)-4.021,100),SOR) -> 1.34203812 | L86: bbl water/bbl oil | M86: =IF(Inputs!$F$2=1,K86,IF(S86="Normal",MIN(MAX((_xlfn.NORM.INV(T86,N86,O86)),P86),Q86),IF(S86="Triangular",triangular(P86,K86,Q86,T86),IF(S86="Uniform",(RANDBETWEEN(P86,Q86)),IF(S86="Lognormal",EXP(_xlfn.NORM.INV(T86,LN(N86^2/(SQRT(N86^2+O86^2))),SQRT(LN((N86^2+O86^2)/(N86^2))))),IF(S86="Binary",IF(T86<=R86,1,0),"ERROR")))))) -> 1.34203812 | N86: =4.021*EXP(0.024*Field_age)-4.021 -> 1.34203812 | O86: =0.012*Field_age^1.6622 -> 0.7464424218 | P86: =4.021*EXP(0.024*$P$61)-4.021 -> 0.1977152051 | Q86: 33.37 | R86: - | S86: Lognormal | T86: 0.3989771605
B87: Water injection ratio | F87: WIR | I87: =IF(AND(J87="NA",J51=1),"ERROR","OK") -> OK | J87: 1.5 | K87: =J86+1 -> 1.5 | L87: bbl water/bbl oil | M87: =IF(Inputs!$F$2=1,K87,IF(S87="Normal",MIN(MAX((_xlfn.NORM.INV(T87,N87,O87)),P87),Q87),IF(S87="Triangular",triangular(P87,K87,Q87,T87),IF(S87="Uniform",(RANDBETWEEN(P87,Q87)),IF(S87="Lognormal",EXP(_xlfn.NORM.INV(T87,LN(N87^2/(SQRT(N87^2+O87^2))),SQRT(LN((N87^2+O87^2)/(N87^2))))),IF(S87="Binary",IF(T87<=R87,1,0),"ERROR")))))) -> 1.5 | N87: =J86+1 -> 1.5 | O87: 0 | P87: =J86+1 -> 1.5 | Q87: =J86+1 -> 1.5 | R87: - | S87: Uniform | T87: 0.8600564599
B88: Gas lifting injection ratio | F88: GLIR | I88: =IF(AND(J88="NA",J52=1),"ERROR","OK") -> OK | J88: 30.26 | K88: =363.8 -> 363.8 | L88: scf/bbl liquid | M88: =IF(Inputs!$F$2=1,K88,IF(S88="Normal",MIN(MAX((_xlfn.NORM.INV(T88,N88,O88)),P88),Q88),IF(S88="Triangular",triangular(P88,K88,Q88,T88),IF(S88="Uniform",(RANDBETWEEN(P88,Q88)),IF(S88="Lognormal",EXP(_xlfn.NORM.INV(T88,LN(N88^2/(SQRT(N88^2+O88^2))),SQRT(LN((N88^2+O88^2)/(N88^2))))),IF(S88="Binary",IF(T88<=R88,1,0),"ERROR")))))) -> 363.8 | N88: 362.8561605 | O88: 507.3754753 | P88: 500 | Q88: 2500 | R88: - | S88: Lognormal | T88: 0.06635713577 | V88: Gas lifting injection (does not include gas reinjected into the reservoir)
B89: Gas flooding injection ratio | F89: GFIR | I89: =IF(AND(J89="NA",J53=1),"ERROR","OK") -> OK | J89: 375 | K89: =IF(Flood_gas_type=1, 1.5*J85, IF(Flood_gas_type=2, 1200, IF(Flood_gas_type=3, 10000, 1.5*J85))) -> 876.435 | L89: scf/bbl oil | M89: =IF(Inputs!$F$2=1,K89,IF(S89="Normal",MIN(MAX((_xlfn.NORM.INV(T89,N89,O89)),P89),Q89),IF(S89="Triangular",triangular(P89,K89,Q89,T89),IF(S89="Uniform",(RANDBETWEEN(P89,Q89)),IF(S89="Lognormal",EXP(_xlfn.NORM.INV(T89,LN(N89^2/(SQRT(N89^2+O89^2))),SQRT(LN((N89^2+O89^2)/(N89^2))))),IF(S89="Binary",IF(T89<=R89,1,0),"ERROR")))))) -> 876.435 | N89: 375 | O89: 0 | P89: 374.5 | Q89: 375 | R89: - | S89: Uniform | T89: 0.6279713511
B90: Flood gas | F90: Flood_gas_type | J90: 1 | K90: 1 | L90: NA | M90: =IF(Inputs!$F$2=1,K90,IF(S90="Normal",MIN(MAX((_xlfn.NORM.INV(T90,N90,O90)),P90),Q90),IF(S90="Triangular",triangular(P90,K90,Q90,T90),IF(S90="Uniform",(RANDBETWEEN(P90,Q90)),IF(S90="Lognormal",EXP(_xlfn.NORM.INV(T90,LN(N90^2/(SQRT(N90^2+O90^2))),SQRT(LN((N90^2+O90^2)/(N90^2))))),IF(S90="Binary",IF(T90<=R90,1,0),"ERROR")))))) -> 1 | N90: 1 | O90: 0 | P90: 1 | Q90: 1 | R90: - | S90: Uniform | T90: 0.3663393855
C91: 1 = Natural gas
C92: 2 = Nitrogen (N2)
C93: 3 = Carbon Dioxide (CO2)
B96: Carbon dioxide flooding and sequestration parameters
C97: Fraction of CO2 breaking through to producers | F97: Perc_CO2_breakthrough | J97: 66.55758247 | K97: 59 | L97: % | M97: =IF(Inputs!$F$2=1,K97,IF(S97="Normal",MIN(MAX((_xlfn.NORM.INV(T97,N97,O97)),P97),Q97),IF(S97="Triangular",triangular(P97,K97,Q97,T97),IF(S97="Uniform",(RANDBETWEEN(P97,Q97)),IF(S97="Lognormal",EXP(_xlfn.NORM.INV(T97,LN(N97^2/(SQRT(N97^2+O97^2))),SQRT(LN((N97^2+O97^2)/(N97^2))))),IF(S97="Binary",IF(T97<=R97,1,0),"ERROR")))))) -> 59 | N97: 59 | O97: 20 | P97: 0 | Q97: 100 | R97: - | S97: Normal | T97: 0.6472398043
C98: Source of makeup CO2 | F98: Source_CO2 | J98: 1 | K98: 1 | L98: NA | M98: =IF(Inputs!$F$2=1,K98,IF(S98="Normal",MIN(MAX((_xlfn.NORM.INV(T98,N98,O98)),P98),Q98),IF(S98="Triangular",triangular(P98,K98,Q98,T98),IF(S98="Uniform",(RANDBETWEEN(P98,Q98)),IF(S98="Lognormal",EXP(_xlfn.NORM.INV(T98,LN(N98^2/(SQRT(N98^2+O98^2))),SQRT(LN((N98^2+O98^2)/(N98^2))))),IF(S98="Binary",IF(T98<=R98,1,0),"ERROR")))))) -> 1 | N98: 1 | O98: 0 | P98: 1 | Q98: 1 | R98: - | S98: Uniform | T98: 0.4494970441
D99: 1 = Natural subsurface reservoir
D100: 2 = Anthropogenic
C101: Percentage of sequestration credit assigned to the oilfield | F101: Perc_sequestration_credit | J101: 0 | K101: 0 | L101: % | M101: =IF(Inputs!$F$2=1,K101,IF(S101="Normal",MIN(MAX((_xlfn.NORM.INV(T101,N101,O101)),P101),Q101),IF(S101="Triangular",triangular(P101,K101,Q101,T101),IF(S101="Uniform",(RANDBETWEEN(P101,Q101)),IF(S101="Lognormal",EXP(_xlfn.NORM.INV(T101,LN(N101^2/(SQRT(N101^2+O101^2))),SQRT(LN((N101^2+O101^2)/(N101^2))))),IF(S101="Binary",IF(T101<=R101,1,0),"ERROR")))))) -> 0 | N101: 0 | O101: 0 | P101: 0 | Q101: 0 | R101: - | S101: Uniform | T101: 0.5453498363
B102: Steam-to-oil ratio (SOR) | F102: SOR | I102: =IF(AND(J102="NA",J54=1),"ERROR","OK") -> OK | J102: 2.794762337 | K102: =IF(J54=1,3,0) -> 0 | L102: bbl steam/bbl oil | M102: =IF(Inputs!$F$2=1,K102,IF(S102="Normal",MIN(MAX((_xlfn.NORM.INV(T102,N102,O102)),P102),Q102),IF(S102="Triangular",triangular(P102,K102,Q102,T102),IF(S102="Uniform",(RANDBETWEEN(P102,Q102)),IF(S102="Lognormal",EXP(_xlfn.NORM.INV(T102,LN(N102^2/(SQRT(N102^2+O102^2))),SQRT(LN((N102^2+O102^2)/(N102^2))))),IF(S102="Binary",IF(T102<=R102,1,0),"ERROR")))))) -> 0 | N102: 3.5 | O102: 2 | P102: 0.25 | Q102: 5 | R102: - | S102: Lognormal | T102: 0.4374179244
B103: Fraction of required electricity generated onsite | F103: Fraction_elec_onsite | I103: =IF(J70=1,IF(J103<>1,"ERROR","OK"),"OK") -> OK | J103: 1 | K103: =IF(J70=1,1,0) -> 0 | L103: - | M103: =IF(Inputs!$F$2=1,K103,IF(S103="Normal",MIN(MAX((_xlfn.NORM.INV(T103,N103,O103)),P103),Q103),IF(S103="Triangular",triangular(P103,K103,Q103,T103),IF(S103="Uniform",(RANDBETWEEN(P103,Q103)),IF(S103="Lognormal",EXP(_xlfn.NORM.INV(T103,LN(N103^2/(SQRT(N103^2+O103^2))),SQRT(LN((N103^2+O103^2)/(N103^2))))),IF(S103="Binary",IF(T103<=R103,1,0),"ERROR")))))) -> 0 | N103: 0.5 | O103: 0.25 | P103: 0 | Q103: 1 | R103: - | S103: Normal | T103: 0.1598342657
B104: Fraction of remaining gas reinjected | F104: Fraction_remaining_gas_inj | I104: =IF(AND(AND(J53=1,J90=1),NOT(J104=1)),"ERROR","OK") -> OK | J104: 1 | K104: =IF(J53=1,1,IF(J50=1,0.5,0)) -> 0.5 | L104: - | M104: =IF(OR(J90=2,J90=3),0,IF(Inputs!$F$2=1,K104,IF(J85>10000,0,IF(AND(J53=1,J90=1),1,IF(J50=0,0,IF(MIN(MAX((_xlfn.NORM.INV(T104,N104,O104)),P104),Q104)<0,0.5,MIN(MAX((_xlfn.NORM.INV(T104,N104,O104)),P104),Q104))))))) -> 0.5 | N104: 0.5 | O104: 0.25 | P104: 0 | Q104: 1 | R104: - | S104: Normal | T104: 0.9842234254 | V104: 1.0 if gas flooding applies (Note: Do not enter NA at all times). If the field is a "gas" field with GOR in excess of 10,000 scf per bbl, we assume gas produciton is a main driver of economics. In these cases, flooding with HC gas does not make sense. On the other hand, if an "oil" field with GOR < 10,000 scf/bbl there should be some probability that gas reinjection will be used.
B105: Fraction of water produced that is reinjected | F105: Fraction_water_reinjected | I105: =IF(AND(J51=1,NOT(Fraction_water_reinjected=1)),"ERROR","OK") -> OK | J105: 1 | K105: 1 | L105: - | M105: =IF(J51=1,1,IF(Inputs!$F$2 = 1,K105,IF(J49=0,0,IF(MIN(MAX((_xlfn.NORM.INV(T105,N105,O105)),P105),Q105)<0,0.77,MIN(MAX((_xlfn.NORM.INV(T105,N105,O105)),P105),Q105))))) -> 1 | N105: 0.77 | O105: 0.38 | P105: 0 | Q105: 1 | R105: - | S105: Normal | T105: 0.9736413956 | V105: 1.0 if water flooding applies (Note: Do not enter NA at all times)
B106: Fraction of steam generation via co-generation | F106: Fraction_steam_cogen | J106: 0.1559263727 | K106: 0 | L106: - | M106: =IF(Inputs!$F$2=1,K106,IF(S106="Normal",MIN(MAX((_xlfn.NORM.INV(T106,N106,O106)),P106),Q106),IF(S106="Triangular",triangular(P106,K106,Q106,T106),IF(S106="Uniform",(RANDBETWEEN(P106,Q106)),IF(S106="Lognormal",EXP(_xlfn.NORM.INV(T106,LN(N106^2/(SQRT(N106^2+O106^2))),SQRT(LN((N106^2+O106^2)/(N106^2))))),IF(S106="Binary",IF(T106<=R106,1,0),"ERROR")))))) -> 0 | N106: 0.37 | O106: 0.42 | P106: 0 | Q106: 1 | R106: - | S106: Normal | T106: 0.3051311374
B107: Fraction of steam generation via solar thermal | F107: Fraction_steam_solar | J107: 0 | K107: 0 | L107: - | M107: 0
A108: Processing practices
B109: Heater/treater | F109: Heater_treater | J109: 0 | K109: =IF(J73<18,1,0) -> 0 | L109: NA | M109: =IF(Inputs!$F$2=1,K109,IF(S109="Normal",MIN(MAX((_xlfn.NORM.INV(T109,N109,O109)),P109),Q109),IF(S109="Triangular",triangular(P109,K109,Q109,T109),IF(S109="Uniform",(RANDBETWEEN(P109,Q109)),IF(S109="Lognormal",EXP(_xlfn.NORM.INV(T109,LN(N109^2/(SQRT(N109^2+O109^2))),SQRT(LN((N109^2+O109^2)/(N109^2))))),IF(S109="Binary",IF(T109<=R109,1,0),"ERROR")))))) -> 0 | N109: 0 | O109: 0 | P109: 0 | Q109: 0 | R109: =IF(J86>10,1,IF(J86>5,0.5,IF(J86>1,0.25,0))) -> 0 | S109: Binary | T109: 0.3489309549
B110: Stabilizer column | F110: Stabilizer | J110: 1 | K110: =IF(OR(J55+J56=1,AND(J85<=500,J52=0)),0,1) -> 1 | L110: NA | M110: =IF(Inputs!$F$2=1,K110,IF(S110="Normal",MIN(MAX((_xlfn.NORM.INV(T110,N110,O110)),P110),Q110),IF(S110="Triangular",triangular(P110,K110,Q110,T110),IF(S110="Uniform",(RANDBETWEEN(P110,Q110)),IF(S110="Lognormal",EXP(_xlfn.NORM.INV(T110,LN(N110^2/(SQRT(N110^2+O110^2))),SQRT(LN((N110^2+O110^2)/(N110^2))))),IF(S110="Binary",IF(T110<=R110,1,0),"ERROR")))))) -> 1 | N110: 0 | O110: 0 | P110: 0 | Q110: 0 | R110: =IF(J73>40,1,IF(J73>30,0.5,IF(J73>20,0.25,0))) -> 0.5 | S110: Binary | T110: 0.2902243733
B111: Upgrader type | F111: Upgrader_type | I111: =IF(AND(Upgrader_type<>0,Stabilizer=1),"ERROR","OK") -> OK | J111: 0 | K111: 0 | M111: =IF(Inputs!$F$2=1,K111,IF(S111="Normal",MIN(MAX((_xlfn.NORM.INV(T111,N111,O111)),P111),Q111),IF(S111="Triangular",triangular(P111,K111,Q111,T111),IF(S111="Uniform",(RANDBETWEEN(P111,Q111)),IF(S111="Lognormal",EXP(_xlfn.NORM.INV(T111,LN(N111^2/(SQRT(N111^2+O111^2))),SQRT(LN((N111^2+O111^2)/(N111^2))))),IF(S111="Binary",IF(T111<=R111,1,0),"ERROR")))))) -> 0 | N111: 0 | O111: 0 | P111: 0 | Q111: 0 | R111: 0 | S111: Uniform | T111: 0.6857655048
C112: 0 = None
C113: 1 = Delayed coking
C114: 2 = Hydroconversion
C115: 3 = Combined hydroconversion and fluid coking
B116: Associated Gas Processing Path | F116: Gas_processing_path | I116: =IF(J53=1,IF(J90=3,IF(J116<6,"ERROR","OK"),"OK"),"OK") -> OK | J116: 5 | K116: 5 | M116: =IF(Inputs!$F$2=1,K116,IF(S116="Normal",MIN(MAX((_xlfn.NORM.INV(T116,N116,O116)),P116),Q116),IF(S116="Triangular",triangular(P116,K116,Q116,T116),IF(S116="Uniform",(RANDBETWEEN(P116,Q116)),IF(S116="Lognormal",EXP(_xlfn.NORM.INV(T116,LN(N116^2/(SQRT(N116^2+O116^2))),SQRT(LN((N116^2+O116^2)/(N116^2))))),IF(S116="Binary",IF(T116<=R116,1,0),"ERROR")))))) -> 5 | N116: 5 | O116: 0 | P116: 5 | Q116: 5 | R116: - | S116: Uniform | T116: 0.5283779502
C117: 1 = None | I117: =IF(OR(J55=1,J56=1),IF(J116=1,"OK","ERROR"),"OK") -> OK
C118: 2 = Minimal: Dehydrator
C119: 3 = Acid Gas: Dehydrator + Amine Process
C120: 4 = Wet Gas: Dehydrator + Demethanizer
C121: 5 = Acid Wet Gas: Dehydrator + Amine Process + Demethanizer
C122: 6 = Sour gas reinjection: Dehydration then direct injection of sour CO2-rich stream
C123: 7 = CO2-EOR Membrane: Dehydrator + Compressor + Membrane + Amine Process + Demethanizer
C124: 8 = CO2-EOR Ryan Holmes: Dehydrator + Ryan Holmes Process (Demethanizer Included)
B125: Ratio of flaring to oil production | F125: FOR | J125: 293.7859461 | K125: =IFERROR(VLOOKUP(Country,Flaring!C126:K227,Year_counter_flaring,FALSE),N125) -> 218.2733352 | L125: scf/bbl | M125: =IF(Inputs!$F$2=1,K125,IF(S125="Normal",MIN(MAX((_xlfn.NORM.INV(T125,N125,O125)),P125),Q125),IF(S125="Triangular",triangular(P125,K125,Q125,T125),IF(S125="Uniform",(RANDBETWEEN(P125,Q125)),IF(S125="Lognormal",EXP(_xlfn.NORM.INV(T125,LN(N125^2/(SQRT(N125^2+O125^2))),SQRT(LN((N125^2+O125^2)/(N125^2))))),IF(S125="Binary",IF(T125<=R125,1,0),"ERROR")))))) -> 218.2733352 | N125: =IFERROR(VLOOKUP(Country,Flaring!C126:K227,Year_counter_flaring,FALSE),N125) -> 218.2733352 | O125: =1/3*N125 -> 72.7577784 | P125: 11 | Q125: 3010 | R125: - | S125: Normal | T125: 0.8503330946 | V125: Default calculated based on satellite data from NOAA
B126: Ratio of venting to oil production | F126: VOR | J126: 9.186879464 | K126: 5 | L126: scf/bbl | M126: =IF(Inputs!$F$2=1,K126,IF(S126="Normal",MIN(MAX((_xlfn.NORM.INV(T126,N126,O126)),P126),Q126),IF(S126="Triangular",triangular(P126,K126,Q126,T126),IF(S126="Uniform",(RANDBETWEEN(P126,Q126)),IF(S126="Lognormal",EXP(_xlfn.NORM.INV(T126,LN(N126^2/(SQRT(N126^2+O126^2))),SQRT(LN((N126^2+O126^2)/(N126^2))))),IF(S126="Binary",IF(T126<=R126,1,0),"ERROR")))))) -> 5 | N126: 10 | O126: 5 | P126: 0 | Q126: 100 | R126: - | S126: Lognormal | T126: 0.52259022 | V126: This is the ratio of venting used as a disposal mechanism (does not include operational venting / default leaks -- this is venting as a substitute for flaring)
B127: Volume fraction of diluent in diluted crude | F127: Fraction_diluent | J127: 0 | K127: =IF(AND(J56=1,J111=0),0.3,0) -> 0 | L127: - | M127: =IF(Inputs!$F$2=1,K127,IF(S127="Normal",MIN(MAX((_xlfn.NORM.INV(T127,N127,O127)),P127),Q127),IF(S127="Triangular",triangular(P127,K127,Q127,T127),IF(S127="Uniform",(RANDBETWEEN(P127,Q127)),IF(S127="Lognormal",EXP(_xlfn.NORM.INV(T127,LN(N127^2/(SQRT(N127^2+O127^2))),SQRT(LN((N127^2+O127^2)/(N127^2))))),IF(S127="Binary",IF(T127<=R127,1,0),"ERROR")))))) -> 0 | N127: 0 | O127: 0 | P127: 0 | Q127: 0 | R127: - | S127: Uniform | T127: 0.02895116806
A129: Land use impacts
B130: Crude ecosystem carbon richness
C131: Low carbon richness (semi-arid grasslands) | F131: Low_ecosystem_richness_01 | J131: 1 | K131: =IF(J70=1,1,0) -> 0 | L131: NA | M131: =IF(Inputs!$F$2=1,'Active Field'!K131,"") -> 0 | N131: 0 | O131: 0 | P131: 0 | Q131: 0 | R131: 0.33
C132: Moderate carbon richness (mixed) | F132: Med_ecosystem_richness_01 | J132: 0 | K132: =IF(J70=1,0,1) -> 1 | L132: NA | M132: =IF(Inputs!$F$2=1,'Active Field'!K132,"") -> 1 | N132: 0 | O132: 0 | P132: 0 | Q132: 0 | R132: 0.66 | S132: Binary | T132: 0.9912212564 | V132: Done in macro
C133: High carbon richness (forested) | F133: High_ecosystem_richness_01 | I133: =IF(SUM(J131:J133)=1,"OK","ERROR") -> OK | J133: 0 | K133: =IF(J70=1,0,0) -> 0 | L133: NA | M133: =IF(Inputs!$F$2=1,'Active Field'!K133,"") -> 0 | N133: 0 | O133: 0 | P133: 0 | Q133: 0 | R133: 1
B134: Field development intensity
C135: Low intensity development and low oxidation | F135: Low_land_disturbance_01 | J135: 1 | K135: =IF(J70=1,1,0) -> 0 | L135: NA | M135: =IF(Inputs!$F$2=1,'Active Field'!K135,"") -> 0 | N135: 0 | O135: 0 | P135: 0 | Q135: 0 | R135: 0.33
C136: Moderate intensity development and moderate oxidation | F136: Med_land_disturbance_01 | J136: 0 | K136: =IF(J70=1,0,1) -> 1 | L136: NA | M136: =IF(Inputs!$F$2=1,'Active Field'!K136,"") -> 1 | N136: 0 | O136: 0 | P136: 0 | Q136: 0 | R136: 0.66 | S136: Binary | T136: 0.6067080985 | V136: Done in macro
C137: High intensity development and high oxidation | F137: High_land_disturbance_01 | I137: =IF(SUM(J135:J137)=1,"OK","ERROR") -> OK | J137: 0 | K137: =IF(J70=1,0,0) -> 0 | L137: NA | M137: =IF(Inputs!$F$2=1,'Active Field'!K137,"") -> 0 | N137: 0 | O137: 0 | P137: 0 | Q137: 0 | R137: 1
A139: Transport and storage
B140: Fraction of oil transported by each mode | V140: The total fraction of all modes may exceed 1.0 because more than one transportation leg may be involved for transporting the oil
C141: Ocean tanker | F141: Fraction_oil_transport_tanker | J141: 1 | K141: 1 | L141: - | M141: =IF(Inputs!$F$2=1,K141,IF(S141="Normal",MIN(MAX((_xlfn.NORM.INV(T141,N141,O141)),P141),Q141),IF(S141="Triangular",triangular(P141,K141,Q141,T141),IF(S141="Uniform",(RANDBETWEEN(P141,Q141)),IF(S141="Lognormal",EXP(_xlfn.NORM.INV(T141,LN(N141^2/(SQRT(N141^2+O141^2))),SQRT(LN((N141^2+O141^2)/(N141^2))))),IF(S141="Binary",IF(T141<=R141,1,0),"ERROR")))))) -> 1 | N141: 0 | O141: 0 | P141: 0 | Q141: 0 | R141: 1 | S141: Binary | T141: 0.4141017199
C142: Barge | F142: Fraction_oil_transport_barge | J142: 0 | K142: 0 | L142: - | M142: =IF(Inputs!$F$2=1,K142,IF(S142="Normal",MIN(MAX((_xlfn.NORM.INV(T142,N142,O142)),P142),Q142),IF(S142="Triangular",triangular(P142,K142,Q142,T142),IF(S142="Uniform",(RANDBETWEEN(P142,Q142)),IF(S142="Lognormal",EXP(_xlfn.NORM.INV(T142,LN(N142^2/(SQRT(N142^2+O142^2))),SQRT(LN((N142^2+O142^2)/(N142^2))))),IF(S142="Binary",IF(T142<=R142,1,0),"ERROR")))))) -> 0 | N142: 0 | O142: 0 | P142: 0 | Q142: 0 | R142: 0 | S142: Binary | T142: 0.4936378598
C143: Pipeline | F143: Fraction_oil_transport_pipeline | J143: 0 | K143: 1 | L143: - | M143: =IF(Inputs!$F$2=1,K143,IF(S143="Normal",MIN(MAX((_xlfn.NORM.INV(T143,N143,O143)),P143),Q143),IF(S143="Triangular",triangular(P143,K143,Q143,T143),IF(S143="Uniform",(RANDBETWEEN(P143,Q143)),IF(S143="Lognormal",EXP(_xlfn.NORM.INV(T143,LN(N143^2/(SQRT(N143^2+O143^2))),SQRT(LN((N143^2+O143^2)/(N143^2))))),IF(S143="Binary",IF(T143<=R143,1,0),"ERROR")))))) -> 1 | N143: 0 | O143: 0 | P143: 0 | Q143: 0 | R143: 1 | S143: Binary | T143: 0.3787477016
C144: Rail | F144: Fraction_oil_transport_rail | J144: 0 | K144: 0 | L144: - | M144: =IF(Inputs!$F$2=1,K144,IF(S144="Normal",MIN(MAX((_xlfn.NORM.INV(T144,N144,O144)),P144),Q144),IF(S144="Triangular",triangular(P144,K144,Q144,T144),IF(S144="Uniform",(RANDBETWEEN(P144,Q144)),IF(S144="Lognormal",EXP(_xlfn.NORM.INV(T144,LN(N144^2/(SQRT(N144^2+O144^2))),SQRT(LN((N144^2+O144^2)/(N144^2))))),IF(S144="Binary",IF(T144<=R144,1,0),"ERROR")))))) -> 0 | N144: 0 | O144: 0 | P144: 0 | Q144: 0 | R144: 0 | S144: Binary | T144: 0.03976339102
C145: Truck | F145: Fraction_oil_transport_truck | J145: 0 | K145: 0 | L145: - | M145: =IF(Inputs!$F$2=1,K145,IF(S145="Normal",MIN(MAX((_xlfn.NORM.INV(T145,N145,O145)),P145),Q145),IF(S145="Triangular",triangular(P145,K145,Q145,T145),IF(S145="Uniform",(RANDBETWEEN(P145,Q145)),IF(S145="Lognormal",EXP(_xlfn.NORM.INV(T145,LN(N145^2/(SQRT(N145^2+O145^2))),SQRT(LN((N145^2+O145^2)/(N145^2))))),IF(S145="Binary",IF(T145<=R145,1,0),"ERROR")))))) -> 0 | N145: 0 | O145: 0 | P145: 0 | Q145: 0 | R145: 0 | S145: Binary | T145: 0.04518067837
B146: Transport distance (one way)
C147: Ocean tanker | F147: Oil_transport_distance_tanker | J147: 7984 | K147: 8000 | L147: Miles | M147: =IF(Inputs!$F$2=1,K147,IF(S147="Normal",MIN(MAX((_xlfn.NORM.INV(T147,N147,O147)),P147),Q147),IF(S147="Triangular",triangular(P147,K147,Q147,T147),IF(S147="Uniform",(RANDBETWEEN(P147,Q147)),IF(S147="Lognormal",EXP(_xlfn.NORM.INV(T147,LN(N147^2/(SQRT(N147^2+O147^2))),SQRT(LN((N147^2+O147^2)/(N147^2))))),IF(S147="Binary",IF(T147<=R147,1,0),"ERROR")))))) -> 8000 | N147: 8000 | O147: 2000 | P147: 1000 | Q147: 12000 | R147: - | S147: Normal | T147: 0.2510357499
C148: Barge | F148: Oil_transport_distance_barge | J148: 0 | K148: 500 | L148: Miles | M148: =IF(Inputs!$F$2=1,K148,IF(S148="Normal",MIN(MAX((_xlfn.NORM.INV(T148,N148,O148)),P148),Q148),IF(S148="Triangular",triangular(P148,K148,Q148,T148),IF(S148="Uniform",(RANDBETWEEN(P148,Q148)),IF(S148="Lognormal",EXP(_xlfn.NORM.INV(T148,LN(N148^2/(SQRT(N148^2+O148^2))),SQRT(LN((N148^2+O148^2)/(N148^2))))),IF(S148="Binary",IF(T148<=R148,1,0),"ERROR")))))) -> 500 | N148: 500 | O148: 150 | P148: 0 | Q148: 1000 | R148: - | S148: Normal | T148: 0.4046497345
C149: Pipeline | F149: Oil_transport_distance_pipeline | J149: 0 | K149: 1000 | L149: Miles | M149: =IF(Inputs!$F$2=1,K149,IF(S149="Normal",MIN(MAX((_xlfn.NORM.INV(T149,N149,O149)),P149),Q149),IF(S149="Triangular",triangular(P149,K149,Q149,T149),IF(S149="Uniform",(RANDBETWEEN(P149,Q149)),IF(S149="Lognormal",EXP(_xlfn.NORM.INV(T149,LN(N149^2/(SQRT(N149^2+O149^2))),SQRT(LN((N149^2+O149^2)/(N149^2))))),IF(S149="Binary",IF(T149<=R149,1,0),"ERROR")))))) -> 1000 | N149: 1000 | O149: 700 | P149: 100 | Q149: 5000 | R149: - | S149: Normal | T149: 0.3177701831
C150: Rail | F150: Oil_transport_distance_rail | J150: 0 | K150: 800 | L150: Miles | M150: =IF(Inputs!$F$2=1,K150,IF(S150="Normal",MIN(MAX((_xlfn.NORM.INV(T150,N150,O150)),P150),Q150),IF(S150="Triangular",triangular(P150,K150,Q150,T150),IF(S150="Uniform",(RANDBETWEEN(P150,Q150)),IF(S150="Lognormal",EXP(_xlfn.NORM.INV(T150,LN(N150^2/(SQRT(N150^2+O150^2))),SQRT(LN((N150^2+O150^2)/(N150^2))))),IF(S150="Binary",IF(T150<=R150,1,0),"ERROR")))))) -> 800 | N150: 800 | O150: 100 | P150: 0 | Q150: 1500 | R150: - | S150: Normal | T150: 0.3940216303
C151: Truck | F151: Oil_transport_distance_truck | J151: 126.3218987 | K151: 100 | L151: Miles | M151: =IF(Inputs!$F$2=1,K151,IF(S151="Normal",MIN(MAX((_xlfn.NORM.INV(T151,N151,O151)),P151),Q151),IF(S151="Triangular",triangular(P151,K151,Q151,T151),IF(S151="Uniform",(RANDBETWEEN(P151,Q151)),IF(S151="Lognormal",EXP(_xlfn.NORM.INV(T151,LN(N151^2/(SQRT(N151^2+O151^2))),SQRT(LN((N151^2+O151^2)/(N151^2))))),IF(S151="Binary",IF(T151<=R151,1,0),"ERROR")))))) -> 100 | N151: 100 | O151: 20 | P151: 0 | Q151: 400 | R151: - | S151: Normal | T151: 0.9059289098
B152: Ocean tanker size, if applicable | F152: Ocean_tanker_size | J152: 255413.8613 | K152: 250000 | L152: Tons | M152: =IF(Inputs!$F$2=1,K152,IF(S152="Normal",MIN(MAX((_xlfn.NORM.INV(T152,N152,O152)),P152),Q152),IF(S152="Triangular",triangular(P152,K152,Q152,T152),IF(S152="Uniform",(RANDBETWEEN(P152,Q152)),IF(S152="Lognormal",EXP(_xlfn.NORM.INV(T152,LN(N152^2/(SQRT(N152^2+O152^2))),SQRT(LN((N152^2+O152^2)/(N152^2))))),IF(S152="Binary",IF(T152<=R152,1,0),"ERROR")))))) -> 250000 | N152: 250000 | O152: 25000 | P152: 50000 | Q152: 300000 | R152: - | S152: Normal | T152: 0.585722208
A154: Small sources emissions | F154: Small_sources_adder | J154: 0.5330895584 | K154: 0.5 | L154: gCO2 eq/MJ | M154: =IF(Inputs!$F$2=1,K154,IF(S154="Normal",MIN(MAX((_xlfn.NORM.INV(T154,N154,O154)),P154),Q154),IF(S154="Triangular",triangular(P154,K154,Q154,T154),IF(S154="Uniform",(RANDBETWEEN(P154,Q154)),IF(S154="Lognormal",EXP(_xlfn.NORM.INV(T154,LN(N154^2/(SQRT(N154^2+O154^2))),SQRT(LN((N154^2+O154^2)/(N154^2))))),IF(S154="Binary",IF(T154<=R154,1,0),"ERROR")))))) -> 0.5 | N154: 0.5 | O154: 0.15 | P154: 0.1 | Q154: 1 | R154: - | S154: Normal | T154: 0.5872969031 | V154: Assumption to account for numerous small sources not included in current version of OPGEE (see `Model organization' sheet for list of sources not explicitly modeled)
J157: Status
A158: Overall error check | J158: =IF(OR(J241="ERROR",J242="ERROR",J243="ERROR",J244="ERROR",J245="ERROR",J246="ERROR",J247="ERROR",J248="ERROR",J249="ERROR",J250="ERROR",J251="ERROR",J252="ERROR",J253="ERROR",J254="ERROR",J255="ERROR",J256="ERROR",J257="ERROR",J258="ERROR",J259="ERROR",J260="ERROR",J261="ERROR",J262="ERROR",J263="ERROR",J264="ERROR",J265="ERROR",J266="ERROR",J267="ERROR",J268="ERROR",J269="ERROR",J270="ERROR",J271="ERROR",J272="ERROR",J273="ERROR"),"ERROR","OK") ->  | M158: For specific error checks see section 7 below
A163: Summary results
A165: These results are derived from calculations in following sheets
G167: Value | H167: Unit | J167: Notes
A168: Exploration
B169: Total energy consumption | G169: ='Energy Summary'!P12/'Energy Summary'!E128 ->  | H169: MJ/MJ | J169: MJ of all energy types consumed per MJ crude oil produced
B170: Total GHG emissions | G170: =G171+G172 ->  | H170: gCO2eq/MJ | J170: g CO2 eq. per MJ of crude oil produced
C171: Combustion/land use | G171: =('GHG Summary'!H8+'GHG Summary'!I8) / 'Energy Summary'!F128*1000000 ->  | H171: gCO2eq/MJ | J171: g CO2 eq. per MJ of crude oil produced
C172: VFF | G172: =('GHG Summary'!J8+'GHG Summary'!K8+'GHG Summary'!L8)/'Energy Summary'!F128*1000000 ->  | H172: gCO2eq/MJ | J172: g CO2 eq. per MJ of crude oil produced
A174: Drilling & Development
B175: Total energy consumption | G175: ='Energy Summary'!P13/'Energy Summary'!E128 ->  | H175: MJ/MJ
B176: Total GHG emissions | G176: =SUM(G177:G178) ->  | H176: gCO2eq/MJ
C177: Combustion/land use | G177: =('GHG Summary'!H9+'GHG Summary'!I9) / 'Energy Summary'!F128*1000000 ->  | H177: gCO2eq/MJ
C178: VFF | G178: =('GHG Summary'!J9+'GHG Summary'!K9+'GHG Summary'!L9)/'Energy Summary'!F128*1000000 ->  | H178: gCO2eq/MJ
A180: Crude production & extraction
B181: Total energy consumption | G181: ='Energy Summary'!P14/'Energy Summary'!E128 ->  | H181: MJ/MJ
B182: Total GHG emissions | G182: =(G183+G184) ->  | H182: gCO2eq/MJ | J182: MJ of crude output
C183: Combustion/land use | G183: =(('GHG Summary'!H10+'GHG Summary'!I10)+('Energy Summary'!H14/('Energy Summary'!H14+'Energy Summary'!H35))*'GHG Summary'!H16)/'Energy Summary'!F128*1000000 ->  | H183: gCO2eq/MJ
C184: VFF | G184: =('GHG Summary'!J10+'GHG Summary'!K10+'GHG Summary'!L10)/'Energy Summary'!F128*1000000 ->  | H184: gCO2eq/MJ
A186: Surface processing
B187: Total energy consumption | G187: =('Energy Summary'!P35+'Energy Summary'!P64)/'Energy Summary'!E128 ->  | H187: MJ/MJ | J187: Includes onsite electricity generation
B188: Total GHG emissions | G188: =(G189+G190) ->  | H188: gCO2eq/MJ | J188: MJ of crude output
C189: Combustion/land use | G189: =(('GHG Summary'!H11+'GHG Summary'!I11+'GHG Summary'!H18+'GHG Summary'!I18)+('Energy Summary'!H35/('Energy Summary'!H14+'Energy Summary'!H35))*'GHG Summary'!H16)/'Energy Summary'!F128*1000000 ->  | H189: gCO2eq/MJ
C190: VFF | G190: =('GHG Summary'!J11+'GHG Summary'!K11+'GHG Summary'!L11+'GHG Summary'!J18+'GHG Summary'!K18+'GHG Summary'!L18)/'Energy Summary'!F128*1000000 ->  | H190: gCO2eq/MJ
A192: Liquefied natural gas
B193: Total energy consumption | G193: ='Energy Summary'!P46/'Energy Summary'!E128 ->  | H193: MJ/MJ
B194: Total GHG emissions | G194: =(G195+G196) ->  | H194: gCO2eq/MJ | J194: MJ of crude output
C195: Combustion/land use | G195: =('GHG Summary'!H12+'GHG Summary'!I12) / 'Energy Summary'!F128*1000000 ->  | H195: gCO2eq/MJ
C196: VFF | G196: =('GHG Summary'!J12+'GHG Summary'!K12+'GHG Summary'!L12)/'Energy Summary'!F128*1000000 ->  | H196: gCO2eq/MJ
A198: Maintenance
B199: Total energy consumption | G199: ='Energy Summary'!P50/'Energy Summary'!E128 ->  | H199: MJ/MJ
B200: Total GHG emissions | G200: =(G201+G202) ->  | H200: gCO2eq/MJ | J200: MJ of crude output
C201: Combustion/land use | G201: 0 | H201: gCO2eq/MJ
C202: VFF | G202: =('GHG Summary'!J13+'GHG Summary'!K13+'GHG Summary'!L13)/'Energy Summary'!F128*1000000 ->  | H202: gCO2eq/MJ
A204: Waste disposal
B205: Total energy consumption | G205: ='Energy Summary'!P51/'Energy Summary'!E128 ->  | H205: MJ/MJ | J205: Waste disposal energy use is not included in the current version of the model
B206: Total GHG emissions | G206: 0 | H206: gCO2eq/MJ | J206: Waste disposal emissions are not included in the current version of the model
C207: Combustion/land use | G207: 0 | H207: gCO2eq/MJ
C208: VFF | G208: 0 | H208: gCO2eq/MJ
A210: Crude transport & storage
B211: Total energy consumption | G211: ='Energy Summary'!P52/'Energy Summary'!E89 ->  | H211: MJ/MJ
B212: Total GHG emissions | G212: =G213+G214 ->  | H212: gCO2eq/MJ | J212: MJ of oil transported, not MJ of oil + gas in the case of allocation method
C213: Combustion/land use | G213: =('GHG Summary'!H15+'GHG Summary'!I15) / 'Energy Summary'!F121*1000000 -> 
C214: VFF | G214: =('GHG Summary'!J15+'GHG Summary'!K15+'GHG Summary'!L15)/'Energy Summary'!F121*1000000 -> 
B215: Loss factor | G215: =(Losses_feed/1000000)+1 -> 1.000062 | H215: NA | J215: Calculated from crude oil losses
A217: Gas transport, storage, and distribution
B218: Total energy consumption | G218: ='Energy Summary'!P62/'Energy Summary'!E128 ->  | H218: MJ/MJ
B219: Total GHG emissions | G219: =G220+G221 ->  | H219: gCO2eq/MJ | J219: MJ of gas transported, not MJ of oil + gas in the case of allocation method
C220: Combustion/land use | G220: =('GHG Summary'!H17+'GHG Summary'!I17) / 'Energy Summary'!F121*1000000 ->  | H220: gCO2eq/MJ
C221: VFF | G221: =('GHG Summary'!J17+'GHG Summary'!K17+'GHG Summary'!L17)/'Energy Summary'!F121*1000000 ->  | H221: gCO2eq/MJ
A223: Other small sources | G223: =Small_sources_adder -> 0.5330895584 | H223: gCO2eq/MJ | J223: See sheet "Model Organization" for list of all sources not explicitly modeled in OPGEE. These sources are included here as "other small sources" and assigned default value of 0.5 gCO2 eq./MJ
A225: Offsite emissions credit/debit | G225: =('GHG Summary'!G118+'GHG Summary'!H118)/'Energy Summary'!F128*1000000 ->  | H225: gCO2eq/MJ | J225: Credits (negative emissions) from fuels export + debts (positive emissions) from fuels import. If analysis boundaries include embodied emissions from oilfield infrastructure construction, these are added to offsite emissions.
A227: Lifecycle energy consumption | G227: =(G169+G175+G181+G187+G193+G199+G205)*G215+G211 ->  | H227: MJ/MJ
A229: Carbon dioxide sequestration | J229: See sheet "GHG Emissions" for detailed calculations
B230: Total CO2 sequestered | G230: =-1*'GHG Summary'!G108/'Energy Summary'!F128*1000000 ->  | H230: gCO2/MJ
A232: Lifecycle GHG emissions | G232: =(G170+G176+G182+G188+G194+G200+G206+G219+G223+G225+G230)*G215+G212 ->  | H232: gCO2eq/MJ | J232: MJ of crude at refinery gate
... 98 more rows

Sheet Energy Summary
A1: Energy summary | G1: Field: | H1: =Field_name -> Girassol | P1: =HYPERLINK("#Home_Inputs","To: Inputs") -> To: Inputs | R1: =HYPERLINK("#Home_ActiveField","To: Active") -> To: Active | T1: =HYPERLINK("#Home_FlowSheet","To: Flows") -> To: Flows
A3: This sheet compiles results on energy consumption from all other sheets for use in the "User inputs & Results" sheet.
A5: Measure for output energy content: | E5: =Inputs!$M$2 -> LHV
B7: Table 1: Energy consumption by process stage
B8: Process stage | H8: Natural gas | I8: Upgrader process gas | J8: NGL | K8: Crude oil | L8: Diesel | M8: Residual fuel | N8: Petroleum coke | O8: Electricity | P8: Total
H11: mmbtu/d | I11: mmbtu/d | J11: mmbtu/d | K11: mmbtu/d | L11: mmbtu/d | M11: mmbtu/d | N11: mmbtu/d | O11: kWh/d | P11: mmbtu/d
B12: Exploration | H12: =Exploration!B32 -> 0 | I12: =Exploration!C32 -> 0 | J12: =Exploration!D32 -> 0 | K12: =Exploration!E32 -> 0 | L12: =Exploration!F32 ->  | M12: =Exploration!G32 -> 0 | N12: =Exploration!H32 -> 0 | O12: =Exploration!I32 -> 0 | P12: =SUM(H12:N12)+O12*btu_per_kWh/1000000 -> 
B13: Drilling & Development | H13: ='Drilling & development'!B70 -> 0 | I13: ='Drilling & development'!C70 -> 0 | J13: ='Drilling & development'!D70 -> 0 | K13: ='Drilling & development'!E70 -> 0 | L13: ='Drilling & development'!F70 -> 0 | M13: ='Drilling & development'!G70 -> 0 | N13: ='Drilling & development'!H70 -> 0 | O13: ='Drilling & development'!I70 -> 0 | P13: 0
B14: Production & Extraction | H14: =SUM(H15:H34) ->  | I14: 0 | J14: 0 | K14: 0 | L14: 0 | M14: 0 | N14: 0 | P14: =SUM(H14:N14)+O14*btu_per_kWh/1000000 -> 
B15: - Reservoir | H15: =Reservoir!B88 -> 0 | I15: =Reservoir!C88 -> 0 | J15: =Reservoir!D88 -> 0 | K15: =Reservoir!E88 -> 0 | L15: =Reservoir!F88 -> 0 | M15: =Reservoir!G88 -> 0 | N15: =Reservoir!H88 -> 0 | O15: =Reservoir!I88 -> 0 | P15: 0
B16: - Downhole pump (Lifting) | H16: ='Well and downhole pump'!B135 -> 0 | I16: ='Well and downhole pump'!C135 -> 0 | J16: ='Well and downhole pump'!D135 -> 0 | K16: ='Well and downhole pump'!E135 -> 0 | L16: ='Well and downhole pump'!F135 -> 0 | M16: ='Well and downhole pump'!G135 -> 0 | N16: ='Well and downhole pump'!H135 -> 0 | O16: ='Well and downhole pump'!I135 -> 0 | P16: 0
B17: - Crude oil storage | H17: ='Crude Oil Storage'!B60 -> 0 | I17: ='Crude Oil Storage'!C60 -> 0 | J17: ='Crude Oil Storage'!D60 -> 0 | K17: ='Crude Oil Storage'!E60 -> 0 | L17: ='Crude Oil Storage'!F60 -> 0 | M17: ='Crude Oil Storage'!G60 -> 0 | N17: ='Crude Oil Storage'!H60 -> 0 | O17: ='Crude Oil Storage'!I60 -> 0 | P17: =SUM(H17:N17)+O17*btu_per_kWh/1000000 -> 0
B18: - Gas lifting compressor | H18: ='Gas Lifting Compressor'!B77 -> 145.2101163 | I18: ='Gas Lifting Compressor'!C77 -> 0 | J18: ='Gas Lifting Compressor'!D77 -> 0 | K18: ='Gas Lifting Compressor'!E77 -> 0 | L18: ='Gas Lifting Compressor'!F77 -> 0 | M18: ='Gas Lifting Compressor'!G77 -> 0 | N18: ='Gas Lifting Compressor'!H77 -> 0 | O18: ='Gas Lifting Compressor'!I77 -> 0 | P18: 145.2101163
B19: - Mining | H19: ='Bitumen mining'!B71 -> 0 | I19: ='Bitumen mining'!C71 -> 0 | J19: ='Bitumen mining'!D71 -> 0 | K19: ='Bitumen mining'!E71 -> 0 | L19: ='Bitumen mining'!F71 -> 0 | M19: ='Bitumen mining'!G71 -> 0 | N19: ='Bitumen mining'!H71 -> 0 | O19: ='Bitumen mining'!I71 -> 0 | P19: 0
B20: - Water injection | H20: ='Water Injection'!B70 -> 896.6935352 | I20: ='Water Injection'!C70 -> 0 | J20: ='Water Injection'!D70 -> 0 | K20: ='Water Injection'!E70 -> 0 | L20: ='Water Injection'!F70 -> 0 | M20: ='Water Injection'!G70 -> 0 | N20: ='Water Injection'!H70 -> 0 | O20: ='Water Injection'!I70 -> 0 | P20: 896.6935352
B21: - HC gas reinjection compressor | H21: ='Gas Reinjection Compressor'!B76 -> 0 | I21: ='Gas Reinjection Compressor'!C76 -> 0 | J21: ='Gas Reinjection Compressor'!D76 -> 0 | K21: ='Gas Reinjection Compressor'!E76 -> 0 | L21: ='Gas Reinjection Compressor'!F76 -> 0 | M21: ='Gas Reinjection Compressor'!G76 -> 0 | N21: ='Gas Reinjection Compressor'!H76 -> 0 | O21: ='Gas Reinjection Compressor'!I76 -> 0 | P21: 0
B22: - CO2 gas reinjection compressor | H22: ='CO2 Reinjection Compressor'!B149 ->  | I22: ='CO2 Reinjection Compressor'!C149 -> 0 | J22: ='CO2 Reinjection Compressor'!D149 -> 0 | K22: ='CO2 Reinjection Compressor'!E149 -> 0 | L22: ='CO2 Reinjection Compressor'!F149 -> 0 | M22: ='CO2 Reinjection Compressor'!G149 -> 0 | N22: ='CO2 Reinjection Compressor'!H149 -> 0 | O22: ='CO2 Reinjection Compressor'!I149 -> 
B23: - Sour gas reinjection compressor | H23: ='Sour Gas Reinjection Compressor'!B91 -> 0 | I23: ='Sour Gas Reinjection Compressor'!C91 -> 0 | J23: ='Sour Gas Reinjection Compressor'!D91 -> 0 | K23: ='Sour Gas Reinjection Compressor'!E91 -> 0 | L23: ='Sour Gas Reinjection Compressor'!F91 -> 0 | M23: ='Sour Gas Reinjection Compressor'!G91 -> 0 | N23: ='Sour Gas Reinjection Compressor'!H91 -> 0 | O23: ='Sour Gas Reinjection Compressor'!I91 -> 0 | P23: 0
B24: - Gas flooding compressor | H24: ='Gas Flooding Compressor'!B98 -> 0 | I24: ='Gas Flooding Compressor'!C98 -> 0 | J24: ='Gas Flooding Compressor'!D98 -> 0 | K24: ='Gas Flooding Compressor'!E98 -> 0 | L24: ='Gas Flooding Compressor'!F98 -> 0 | M24: ='Gas Flooding Compressor'!G98 -> 0 | N24: ='Gas Flooding Compressor'!H98 -> 0 | O24: ='Gas Flooding Compressor'!I98 -> 0 | P24: 0
B25: - Steam injection | H25: ='Steam injection wells'!B46 -> 0 | I25: ='Steam injection wells'!C46 -> 0 | J25: ='Steam injection wells'!D46 -> 0 | K25: ='Steam injection wells'!E46 -> 0 | L25: ='Steam injection wells'!F46 -> 0 | M25: ='Steam injection wells'!G46 -> 0 | N25: ='Steam injection wells'!H46 -> 0 | O25: ='Steam injection wells'!I46 -> 0 | P25: 0
B26: - Flaring | H26: =Flaring!B84 -> 0 | I26: =Flaring!C84 -> 0 | J26: =Flaring!D84 -> 0 | K26: =Flaring!E84 -> 0 | L26: =Flaring!F84 -> 0 | M26: =Flaring!G84 -> 0 | N26: =Flaring!H84 -> 0 | O26: =Flaring!I84 -> 0 | P26: 0
B27: - Separation | H27: =Separation!B235 -> 0 | I27: =Separation!C235 -> 0 | J27: =Separation!D235 -> 0 | K27: =Separation!E235 -> 0 | L27: =Separation!F235 -> 0 | M27: =Separation!G235 -> 0 | N27: =Separation!H235 -> 0 | O27: =Separation!I235 -> 0 | P27: 0
B28: - Produced water treatment | H28: ='Produced Water Treatment'!B107 -> 0 | I28: ='Produced Water Treatment'!C107 -> 0 | J28: ='Produced Water Treatment'!D107 -> 0 | K28: ='Produced Water Treatment'!E107 -> 0 | L28: ='Produced Water Treatment'!F107 -> 0 | M28: ='Produced Water Treatment'!G107 -> 0 | N28: ='Produced Water Treatment'!H107 -> 0 | O28: ='Produced Water Treatment'!I107 -> 
B29: - Makeup watter treatment | H29: ='Makeup Water Treatment'!B94 -> 0 | I29: ='Makeup Water Treatment'!C94 -> 0 | J29: ='Makeup Water Treatment'!D94 -> 0 | K29: ='Makeup Water Treatment'!E94 -> 0 | L29: ='Makeup Water Treatment'!F94 -> 0 | M29: ='Makeup Water Treatment'!G94 -> 0 | N29: ='Makeup Water Treatment'!H94 -> 0 | O29: ='Makeup Water Treatment'!I94 -> 
B30: - Steam generation | H30: ='Steam Generation'!B271 -> 0 | I30: ='Steam Generation'!C271 -> 0 | J30: ='Steam Generation'!D271 -> 0 | K30: ='Steam Generation'!E271 -> 0 | L30: ='Steam Generation'!F271 -> 0 | M30: ='Steam Generation'!G271 -> 0 | N30: ='Steam Generation'!H271 -> 0 | O30: ='Steam Generation'!I271 -> 0 | P30: 0
B31: - Crude oil dewatering | H31: ='Crude oil dewatering'!B53 -> 0 | I31: ='Crude oil dewatering'!C53 -> 0 | J31: ='Crude oil dewatering'!D53 -> 0 | K31: ='Crude oil dewatering'!E53 -> 0 | L31: ='Crude oil dewatering'!F53 -> 0 | M31: ='Crude oil dewatering'!G53 -> 0 | N31: ='Crude oil dewatering'!H53 -> 0 | O31: ='Crude oil dewatering'!I53 -> 0 | P31: 0
B32: - Crude oil stabilization | H32: ='Crude oil stabilization'!B90 ->  | I32: ='Crude oil stabilization'!C90 -> 0 | J32: ='Crude oil stabilization'!D90 -> 0 | K32: ='Crude oil stabilization'!E90 -> 0 | L32: ='Crude oil stabilization'!F90 -> 0 | M32: ='Crude oil stabilization'!G90 -> 0 | N32: ='Crude oil stabilization'!H90 -> 0 | O32: ='Crude oil stabilization'!I90 -> 0
B33: - VRU compressor | H33: ='VRU Compressor'!B77 ->  | I33: ='VRU Compressor'!C77 -> 0 | J33: ='VRU Compressor'!D77 -> 0 | K33: ='VRU Compressor'!E77 -> 0 | L33: ='VRU Compressor'!F77 -> 0 | M33: ='VRU Compressor'!G77 -> 0 | N33: ='VRU Compressor'!H77 -> 0 | O33: ='VRU Compressor'!I77 ->  | P33: =SUM(H33:N33)+O33*btu_per_kWh/1000000 -> 
B34: - Venting | H34: =Venting!B50 -> 0 | I34: =Venting!C50 -> 0 | J34: =Venting!D50 -> 0 | K34: =Venting!E50 -> 0 | L34: =Venting!F50 -> 0 | M34: =Venting!G50 -> 0 | N34: =Venting!H50 -> 0 | O34: =Venting!I50 -> 0 | P34: =SUM(H34:N34)+O34*btu_per_kWh/1000000 -> 0
B35: Surface Processing | H35: =SUM(H36:H45) ->  | I35: 0 | J35: 0 | K35: 0 | L35: 0 | M35: 0 | N35: 0 | P35: =SUM(H35:N35)+O35*btu_per_kWh/1000000 -> 
B36: - Heavy oil upgrading | H36: ='Heavy Oil Upgrading'!B148 -> 0 | I36: ='Heavy Oil Upgrading'!C148 -> 0 | J36: ='Heavy Oil Upgrading'!D148 -> 0 | K36: ='Heavy Oil Upgrading'!E148 -> 0 | L36: ='Heavy Oil Upgrading'!F148 -> 0 | M36: ='Heavy Oil Upgrading'!G148 -> 0 | N36: ='Heavy Oil Upgrading'!H148 -> 0 | O36: ='Heavy Oil Upgrading'!I148 -> 0 | P36: 0
B37: - Heavy oil dilution | H37: ='Heavy Oil Dilution'!B87 -> 0 | I37: ='Heavy Oil Dilution'!C87 -> 0 | J37: ='Heavy Oil Dilution'!D87 -> 0 | K37: ='Heavy Oil Dilution'!E87 -> 0 | L37: ='Heavy Oil Dilution'!F87 -> 0 | M37: ='Heavy Oil Dilution'!G87 -> 0 | N37: ='Heavy Oil Dilution'!H87 -> 0 | O37: ='Heavy Oil Dilution'!I87 -> 0 | P37: 0
B38: - Gas gathering | H38: ='Gas Gathering'!B49 -> 0 | I38: ='Gas Gathering'!C49 -> 0 | J38: ='Gas Gathering'!D49 -> 0 | K38: ='Gas Gathering'!E49 -> 0 | L38: ='Gas Gathering'!F49 -> 0 | M38: ='Gas Gathering'!G49 -> 0 | N38: ='Gas Gathering'!H49 -> 0 | O38: ='Gas Gathering'!I49 -> 0 | P38: 0
B39: - Gas dehydration | H39: ='Gas dehydration'!B208 ->  | I39: ='Gas dehydration'!C208 -> 0 | J39: ='Gas dehydration'!D208 -> 0 | K39: ='Gas dehydration'!E208 -> 0 | L39: ='Gas dehydration'!F208 -> 0 | M39: ='Gas dehydration'!G208 -> 0 | N39: ='Gas dehydration'!H208 -> 0 | O39: ='Gas dehydration'!I208 -> 
B40: - Acid gas removal | H40: ='Acid Gas Removal'!B249 ->  | I40: ='Acid Gas Removal'!C249 -> 0 | J40: ='Acid Gas Removal'!D249 -> 0 | K40: ='Acid Gas Removal'!E249 -> 0 | L40: ='Acid Gas Removal'!F249 -> 0 | M40: ='Acid Gas Removal'!G249 -> 0 | N40: ='Acid Gas Removal'!H249 -> 0 | O40: ='Acid Gas Removal'!I249 ->  | P40: =SUM(H40:N40)+O40*btu_per_kWh/1000000 -> 
B41: - Demethanizer | H41: =Demethanizer!B241 ->  | I41: =Demethanizer!C241 -> 0 | J41: =Demethanizer!D241 -> 0 | K41: =Demethanizer!E241 -> 0 | L41: =Demethanizer!F241 -> 0 | M41: =Demethanizer!G241 -> 0 | N41: =Demethanizer!H241 -> 0 | O41: =Demethanizer!I241 -> 
B42: - Chiller | H42: =Chiller!B52 -> 0 | I42: =Chiller!C52 -> 0 | J42: =Chiller!D52 -> 0 | K42: =Chiller!E52 -> 0 | L42: =Chiller!F52 -> 0 | M42: =Chiller!G52 -> 0 | N42: =Chiller!H52 -> 0 | O42: =Chiller!I52 -> 0 | P42: 0
B43: - Pre-membrane compressor | H43: ='Pre-membrane Compressor'!B74 -> 0 | I43: ='Pre-membrane Compressor'!C74 -> 0 | J43: ='Pre-membrane Compressor'!D74 -> 0 | K43: ='Pre-membrane Compressor'!E74 -> 0 | L43: ='Pre-membrane Compressor'!F74 -> 0 | M43: ='Pre-membrane Compressor'!G74 -> 0 | N43: ='Pre-membrane Compressor'!H74 -> 0 | O43: ='Pre-membrane Compressor'!I74 -> 0 | P43: 0
B44: - CO2 membrane | H44: ='CO2 Membrane'!B96 -> 0 | I44: ='CO2 Membrane'!C96 -> 0 | J44: ='CO2 Membrane'!D96 -> 0 | K44: ='CO2 Membrane'!E96 -> 0 | L44: ='CO2 Membrane'!F96 -> 0 | M44: ='CO2 Membrane'!G96 -> 0 | N44: ='CO2 Membrane'!H96 -> 0 | O44: ='CO2 Membrane'!I96 -> 0 | P44: 0
B45: - Ryan-Holmes unit | H45: ='Ryan-Holmes'!B75 -> 0 | I45: ='Ryan-Holmes'!C75 -> 0 | J45: ='Ryan-Holmes'!D75 -> 0 | K45: ='Ryan-Holmes'!E75 -> 0 | L45: ='Ryan-Holmes'!F75 -> 0 | M45: ='Ryan-Holmes'!G75 -> 0 | N45: ='Ryan-Holmes'!H75 -> 0 | O45: ='Ryan-Holmes'!I75 -> 0 | P45: 0
B46: Liquefied Natural Gas | H46: =SUM(H47:H49) -> 0 | I46: =SUM(I47:I49) -> 0 | J46: 0 | K46: 0 | L46: 0 | M46: 0 | N46: 0 | O46: 0 | P46: 0
B47: - Liquefaction | H47: ='LNG Liquefaction'!B100 -> 0 | I47: ='LNG Liquefaction'!C100 -> 0 | J47: ='LNG Liquefaction'!D100 -> 0 | K47: ='LNG Liquefaction'!E100 -> 0 | L47: ='LNG Liquefaction'!F100 -> 0 | M47: ='LNG Liquefaction'!G100 -> 0 | N47: ='LNG Liquefaction'!H100 -> 0 | O47: ='LNG Liquefaction'!I100 -> 0 | P47: =SUM(H47:N47)+O47*btu_per_kWh/1000000 -> 0
B48: - Transport | H48: ='LNG transport'!B108 -> 0 | I48: ='LNG transport'!C108 -> 0 | J48: ='LNG transport'!D108 -> 0 | K48: ='LNG transport'!E108 -> 0 | L48: ='LNG transport'!F108 -> 0 | M48: ='LNG transport'!G108 -> 0 | N48: ='LNG transport'!H108 -> 0 | O48: ='LNG transport'!I108 -> 0 | P48: =SUM(H48:N48)+O48*btu_per_kWh/1000000 -> 0
B49: - Regasification | H49: ='LNG regasification'!B95 -> 0 | I49: ='LNG regasification'!C95 -> 0 | J49: ='LNG regasification'!D95 -> 0 | K49: ='LNG regasification'!E95 -> 0 | L49: ='LNG regasification'!F95 -> 0 | M49: ='LNG regasification'!G95 -> 0 | N49: ='LNG regasification'!H95 -> 0 | O49: ='LNG regasification'!I95 -> 0 | P49: =SUM(H49:N49)+O49*btu_per_kWh/1000000 -> 0
B50: Maintenance | H50: 0 | I50: 0 | J50: 0 | K50: 0 | L50: 0 | M50: 0 | N50: 0 | O50: 0 | P50: =SUM(H50:N50)+O50*btu_per_kWh/1000000 -> 0
B51: Waste disposal | H51: 0 | I51: 0 | J51: 0 | K51: 0 | L51: 0 | M51: 0 | N51: 0 | O51: 0 | P51: =SUM(H51:N51)+O51*btu_per_kWh/1000000 -> 0
B52: Transport & Storage | H52: =SUM(H53:H60) ->  | I52: =SUM(I53:I60) -> 0 | J52: 0 | K52: 0 | N52: 0 | P52: =SUM(P53:P58) -> 
B53: - Crude oil transport | H53: ='Crude Oil Transport'!B120 ->  | I53: ='Crude Oil Transport'!C120 -> 0 | J53: ='Crude Oil Transport'!D120 -> 0 | K53: ='Crude Oil Transport'!E120 -> 0 | L53: ='Crude Oil Transport'!F120 ->  | M53: ='Crude Oil Transport'!G120 ->  | N53: ='Crude Oil Transport'!H120 -> 0 | O53: ='Crude Oil Transport'!I120 ->  | P53: =SUM(H53:N53)+O53*btu_per_kWh/1000000 -> 
B54: - Diluent transport | H54: ='Diluent Transport'!B120 -> 0 | I54: ='Diluent Transport'!C120 -> 0 | J54: ='Diluent Transport'!D120 -> 0 | K54: ='Diluent Transport'!E120 -> 0 | L54: ='Diluent Transport'!F120 -> 0 | M54: ='Diluent Transport'!G120 -> 0 | N54: ='Diluent Transport'!H120 -> 0 | O54: ='Diluent Transport'!I120 -> 0 | P54: 0
B55: - Gas transmission | H55: ='Gas transmission compressors'!B116 -> 0 | I55: ='Gas transmission compressors'!C116 -> 0 | J55: ='Gas transmission compressors'!D116 -> 0 | K55: ='Gas transmission compressors'!E116 -> 0 | L55: ='Gas transmission compressors'!F116 -> 0 | M55: ='Gas transmission compressors'!G116 -> 0 | N55: ='Gas transmission compressors'!H116 -> 0 | O55: ='Gas transmission compressors'!I116 -> 0 | P55: 0
B56: - Storage compressor | H56: ='Storage Compressor'!B79 -> 0 | I56: ='Storage Compressor'!C79 -> 0 | J56: ='Storage Compressor'!D79 -> 0 | K56: ='Storage Compressor'!E79 -> 0 | L56: ='Storage Compressor'!F79 -> 0 | M56: ='Storage Compressor'!G79 -> 0 | N56: ='Storage Compressor'!H79 -> 0 | O56: ='Storage Compressor'!I79 -> 0 | P56: 0
B57: - Post-storage compressor | H57: ='Post-Storage Compressor'!B78 -> 0 | I57: ='Post-Storage Compressor'!C78 -> 0 | J57: ='Post-Storage Compressor'!D78 -> 0 | K57: ='Post-Storage Compressor'!E78 -> 0 | L57: ='Post-Storage Compressor'!F78 -> 0 | M57: ='Post-Storage Compressor'!G78 -> 0 | N57: ='Post-Storage Compressor'!H78 -> 0 | O57: ='Post-Storage Compressor'!I78 -> 0 | P57: 0
B58: - Gas storage wells | H58: ='Gas storage wells'!B48 -> 0 | I58: ='Gas storage wells'!C48 -> 0 | J58: ='Gas storage wells'!D48 -> 0 | K58: ='Gas storage wells'!E48 -> 0 | L58: ='Gas storage wells'!F48 -> 0 | M58: ='Gas storage wells'!G48 -> 0 | N58: ='Gas storage wells'!H48 -> 0 | O58: ='Gas storage wells'!I48 -> 0 | P58: 0
B59: - Storage separator | H59: ='Storage separator'!B49 -> 0 | I59: ='Storage separator'!C49 -> 0 | J59: ='Storage separator'!D49 -> 0 | K59: ='Storage separator'!E49 -> 0 | L59: ='Storage separator'!F49 -> 0 | M59: ='Storage separator'!G49 -> 0 | N59: ='Storage separator'!H49 -> 0 | O59: ='Storage separator'!I49 -> 0 | P59: 0
B60: - Petcoke handling and storage | H60: ='Petcoke transport'!B106 -> 0 | I60: ='Petcoke transport'!C106 -> 0 | J60: ='Petcoke transport'!D106 -> 0 | K60: ='Petcoke transport'!E106 -> 0 | L60: ='Petcoke transport'!F106 -> 0 | M60: ='Petcoke transport'!G106 -> 0 | N60: ='Petcoke transport'!H106 -> 0 | O60: ='Petcoke transport'!I106 -> 0 | P60: 0
B61: Other | H61: 0 | I61: 0 | J61: 0 | K61: 0 | L61: 0 | M61: 0 | N61: 0 | O61: 0 | P61: 0
B62: Gas distribution | H62: =SUM(H63) -> 0 | I62: 0 | J62: 0 | K62: 0 | L62: 0 | M62: 0 | N62: 0 | O62: 0 | P62: 0
B63: - Gas distribution | H63: ='Gas distribution'!B47 -> 0 | I63: ='Gas distribution'!C47 -> 0 | J63: ='Gas distribution'!D47 -> 0 | K63: ='Gas distribution'!E47 -> 0 | L63: ='Gas distribution'!F47 -> 0 | M63: ='Gas distribution'!G47 -> 0 | N63: ='Gas distribution'!H47 -> 0 | O63: ='Gas distribution'!I47 -> 0 | P63: =SUM(H63:N63)+O63*btu_per_kWh/1000000 -> 0
B64: Fuel consumed for electricity generation | H64: ='Electricity Gen and Imports'!B142 ->  | I64: ='Electricity Gen and Imports'!C142 -> 0 | J64: ='Electricity Gen and Imports'!D142 -> 0 | K64: ='Electricity Gen and Imports'!E142 -> 0 | L64: ='Electricity Gen and Imports'!F142 -> 0 | M64: ='Electricity Gen and Imports'!G142 -> 0 | N64: ='Electricity Gen and Imports'!H142 -> 0 | O64: ='Electricity Gen and Imports'!I142 -> 0 | P64: =SUM(H64:N64)+O64*btu_per_kWh/1000000 -> 
G65: Total = | H65: =H12+H13+H14+H35+H50+H51+H52+H61+H64+H46+H62 ->  | I65: =I12+I13+I14+I35+I50+I51+I52+I61+I64+I46+I62 -> 0 | J65: 0 | K65: 0 | N65: 0
J66: Do not include NGLs used as diluent in this column, as they are not consumed
B68: Table 2: Gross energy consumption by fuel type
B69: Gross energy consumption by fuel type
E70: Total | F70: Unit | G70: Measure
B71: Natural gas | E71: =H65 ->  | F71: mmbtu/d | G71: LHV | H71: All consumption streams measured in LHV
B72: Upgrader process gas | E72: =I65 -> 0 | F72: mmbtu/d | G72: LHV
B73: NGL | E73: =J65 -> 0 | F73: mmbtu/d | G73: LHV
B74: Crude oil | E74: =K65 -> 0 | F74: mmbtu/d | G74: LHV
B75: Diesel | E75: =L65 ->  | F75: mmbtu/d | G75: LHV
B76: Residual fuel | E76: =M65 ->  | F76: mmbtu/d | G76: LHV
B77: Petroleum coke | E77: =N65 -> 0 | F77: mmbtu/d | G77: LHV
B78: Electricity | E78: =O65*btu_per_kWh/1000000 ->  | F78: mmbtu/d | G78: LHV
D79: Total = | E79: =SUM(E71:E78) ->  | F79: mmbtu/d | G79: LHV
B82: Table 3: Energy exports/imports by fuel type
B83: Energy exports/imports by fuel type
E84: Exports | F84: Imports | G84: Displacement? | H84: Unit | I84: Exports measure
B85: Natural gas | E85: =IF(Inputs!U2="Field",SUMPRODUCT('Flow Sheet'!AX12:AX23,'Energy Summary'!M136:M147),IF(Inputs!U2="Transmission",SUMPRODUCT('Flow Sheet'!BB12:BB23,'Energy Summary'!M136:M147)+SUMPRODUCT('Flow Sheet'!BH12:BH23,'Energy Summary'!M136:M147),IF(Inputs!U2="Distribution",SUMPRODUCT('Flow Sheet'!BK12:BK23,'Energy Summary'!M136:M147),"ERROR"))) -> 0 | F85: =SUMPRODUCT('Flow Sheet'!HV12:HV23,M136:M147)+SUMPRODUCT('Gas Flooding Compressor'!F16:F27,M136:M147) ->  | G85: =IF(Inputs!Y2="Displacement",1,IF(Inputs!Y2="Allocation",0,IF(Inputs!Y2="Stream-specific",'Fuel Cycle'!L10,"ERROR"))) -> 0 | H85: mmbtu/d | I85: =$E$5 -> LHV
B86: Upgrader process gas | E86: =SUMPRODUCT('Flow Sheet'!CJ12:CJ23,'Energy Summary'!M136:M147) -> 0 | F86: 0 | G86: =IF(Inputs!Y2="Displacement",1,IF(Inputs!Y2="Allocation",0,IF(Inputs!Y2="Stream-specific",1,"ERROR"))) -> 1 | H86: mmbtu/d | I86: =$E$5 -> LHV
B87: NGL+LPG | E87: ='Flow Sheet'!W9*'Energy Summary'!M134+SUMPRODUCT('Flow Sheet'!W12:W23,'Energy Summary'!M136:M147)+('Flow Sheet'!CP17*'Energy Summary'!M141) ->  | F87: 0 | G87: =IF(Inputs!Y2="Displacement",1,IF(Inputs!Y2="Allocation",0,IF(Inputs!Y2="Stream-specific",'Fuel Cycle'!L12,"ERROR"))) -> 0 | H87: mmbtu/d | I87: LHV
B88: Diluent (NGL) | E88: =F88 -> 0 | F88: =IF(Fraction_diluent>0,diluent_bbl_per_day*LHV_diluent_mmbtu_per_bbl,0) -> 0 | G88: =IF(Inputs!Y2="Displacement",1,IF(Inputs!Y2="Allocation",0,IF(Inputs!Y2="Stream-specific",1,"ERROR"))) -> 1 | H88: mmbtu/d | I88: LHV | J88: NGL imported for dilution
B89: Crude oil (does not contain diluent if any) | E89: =IF(Inputs!Q2="Field",INDEX(FlowTable,M_O,13)*M133+INDEX(FlowTable,M_LPG,13)*M134+('Flow Sheet'!V17*M141+'Flow Sheet'!V18*M142+'Flow Sheet'!V19*M143),IF(Inputs!Q2="Refinery",INDEX(FlowTable,M_O,14)*M133+INDEX(FlowTable,M_LPG,14)*M134+('Flow Sheet'!V17*M141+'Flow Sheet'!V18*M142+'Flow Sheet'!V19*M143),"ERROR"))-E88 ->  | F89: 0 | G89: =IF(Inputs!Y2="Displacement",1,IF(Inputs!Y2="Allocation",0,IF(Inputs!Y2="Stream-specific",'Fuel Cycle'!L11,"ERROR"))) -> 0 | H89: mmbtu/d | I89: LHV | J89: Crude oil plus any NGLs blended into crude stream (either through dilution or simple blending of demethanizer output)
B90: Diesel | E90: 0 | F90: =E75 ->  | G90: =IF(Inputs!Y2="Displacement",1,IF(Inputs!Y2="Allocation",0,IF(Inputs!Y2="Stream-specific",1,"ERROR"))) -> 1 | H90: mmbtu/d | I90: LHV
B91: Residual fuel | E91: 0 | F91: =E76 ->  | G91: =IF(Inputs!Y2="Displacement",1,IF(Inputs!Y2="Allocation",0,IF(Inputs!Y2="Stream-specific",1,"ERROR"))) -> 1 | H91: mmbtu/d | I91: LHV
B92: Petroleum coke | E92: =-'Flow Sheet'!HH7*'Energy Summary'!M135 -> 0 | F92: 0 | G92: =IF(Inputs!Y2="Displacement",1,IF(Inputs!Y2="Allocation",0,IF(Inputs!Y2="Stream-specific",1,"ERROR"))) -> 1 | H92: mmbtu/d | I92: LHV
B93: Electricity | E93: ='Flow Sheet'!GV25*3600000000/1055.05/1000000 ->  | F93: ='Flow Sheet'!HW25*3600000000/1055.05/1000000 ->  | G93: =IF(Inputs!Y2="Displacement",1,IF(Inputs!Y2="Allocation",0,IF(Inputs!Y2="Stream-specific",'Fuel Cycle'!L13,"ERROR"))) -> 1 | H93: mmbtu/d | I93: LHV | J93: Electricity consumed minus electricity generated onsite minus electricity co-generated in steam generation
B94: Total | E94: =SUM(E85:E93) ->  | F94: =SUM(F85:F93) ->  | G94: - | H94: mmbtu/d | I94: LHV
B95: Total primary export | E95: =IF(Inputs!I2="Oil",E89+E88,IF(Inputs!I2="Gas",E85,"ERROR")) ->  | F95: - | G95: - | H95: mmbtu/d | I95: LHV
B96: Total non-primary exports | E96: =E94-E95 ->  | F96: - | G96: - | H96: mmbtu/d | I96: LHV
B98: Table 4: Indirect energy consumption
B99: Energy for fuel supply/export | I99: Note(s):
E100: Fuel cycle credits for exports | F100: Fuel cycle debits for imports | G100: Unit | H100: Measure
B101: Energy for natural gas supply/export | E101: =E85*IF(G85=1,'Fuel Cycle'!E36,0) -> 0 | F101: =F85*IF(G85=1,'Fuel Cycle'!E36,'Fuel Cycle'!D58) ->  | G101: mmbtu/d | H101: LHV | I101: All consumption streams measured in LHV
B102: Energy for NGL supply/export | E102: =E87*IF(G87=1,'Fuel Cycle'!E36,0) ->  | F102: =F87*IF(G87=1,'Fuel Cycle'!E36,'Fuel Cycle'!D58) -> 0 | G102: mmbtu/d | H102: LHV
B103: Energy for Diesel supply/export | E103: 0 | F103: =F90*'Fuel Cycle'!D60 ->  | G103: mmbtu/d | H103: LHV | I103: No diesel export
B104: Energy for electricity supply/export | E104: ='Energy Summary'!E93*IF(G93=1,'Fuel Cycle'!E39,0) ->  | F104: ='Energy Summary'!F93*IF(G93=1,'Fuel Cycle'!E39,'Fuel Cycle'!D61) ->  | G104: mmbtu/d | H104: LHV
B105: Energy for crude oil supply/export | E105: ='Energy Summary'!E89*IF(G89=1,'Fuel Cycle'!E37,0) ->  | F105: =F89 -> 0 | G105: mmbtu/d | H105: LHV | I105: The upstream energy consumption is accounted by subtracting this amount from the crude oil output
B106: Energy for residual fuel supply | E106: ='Energy Summary'!E91*IF(G91=1,'Fuel Cycle'!E41,'Fuel Cycle'!D63) -> 0 | F106: ='Energy Summary'!F91*IF(G91=1,'Fuel Cycle'!E41,'Fuel Cycle'!D63) ->  | G106: mmbtu/d | H106: LHV
D107: Total = | E107: =SUM(E101:E106) ->  | G107: mmbtu/d | H107: LHV
B108: Negative (-) value is an energy credit from exported fuel
B111: Table 5: Embodied energy consumption
B112: Energy for fuel supply/export
E113: Total | F113: Unit | G113: Measure | H113: Note(s):
B114: Embodied energy in oilfield materials | E114: =IF('Embodied Emissions'!M7=1,'Embodied Emissions'!M664*Oil_prod,0) -> 0 | F114: mmbtu/d | G114: LHV | H114: By default, embodied emissions are not included. See sheet "Embodied emissions"
D115: Total = | E115: =SUM(E114:E114) -> 0 | F115: mmbtu/d | G115: LHV | H115: All consumption streams measured in LHV
B119: Table 6: Summary results for further calculation
E120: mmbtu/d | F120: MJ/d | G120: Measure
B121: Primary product output | D121: =Inputs!I2 -> Oil | E121: =E95 ->  | F121: =E121*J_per_btu ->  | G121: =$E$5 -> LHV
B122: Secondary product output | E122: =E96 ->  | F122: =E122*J_per_btu ->  | G122: LHV
B123: - Oil | E123: =IF(D121="Oil",0,E89) -> 0 | F123: =E123*J_per_btu -> 0 | G123: LHV
B124: - Gas | E124: =IF(D121="Gas",0,E85) -> 0 | F124: =E124*J_per_btu -> 0 | G124: LHV
B125: - NGL | E125: =E87 ->  | G125: LHV
B126: - Electricity | E126: =IF(E93>0,E93,0) ->  | G126: LHV | H126: Note(s):
B127: Effective output energy stream | E127: =E121+E123*(1-G89)+E124*(1-G85)+E125*(1-G87)+E126*(1-G93) ->  | F127: =E127*J_per_btu ->  | G127: LHV | H127: This effective output only changes for the field itself
B128: Denominator for computing CI | E128: =IF(Inputs!Y2="Displacement",E121,IF(Inputs!Y2="Allocation",E127,IF(Inputs!Y2="Stream-specific",E127,"ERROR"))) ->  | F128: =IF(Inputs!Y2="Displacement",F121,IF(Inputs!Y2="Allocation",F127,IF(Inputs!Y2="Stream-specific",F127,"ERROR"))) ->  | G128: LHV | H128: Downstream CI (i.e., transport of crude in the case of crude oil primary product) only uses the energy content of the primary stream in all cases to avoid allocating some of the crude transport emissions to the gas produced at the field boundary.
K133: Crude oil | M133: =IF(E5="LHV",'Fuel Specs'!M14/1000000/kg_per_pound*1000,'Fuel Specs'!M15/1000000/kg_per_pound*1000) ->  | N133: =$E$5 -> LHV | O133: mmbtu/tonne
A134: Summary energy densities | K134: NGL | M134: =IF(E5="LHV",'Fuel Specs'!X357*1000/453/1000,'Fuel Specs'!V357*1000/453/1000) -> 45.90958594 | N134: LHV | O134: mmbtu/tonne
K135: Petroleum coke | M135: =IF(E5="LHV",'Fuel Specs'!E309/2000*1000/453/1000,'Fuel Specs'!F309/2000*1000/453/1000) -> 29.74550662 | N135: LHV | O135: mmbtu/tonne
K136: N2, Ar | M136: =IF($E$5="LHV",'Fuel Specs'!U121,'Fuel Specs'!T121) -> 0 | N136: LHV | O136: mmbtu/tonne
K137: O2 | M137: =IF($E$5="LHV",'Fuel Specs'!U122,'Fuel Specs'!T122) -> 0 | N137: LHV | O137: mmbtu/tonne
K138: CO2 | M138: =IF($E$5="LHV",'Fuel Specs'!U123,'Fuel Specs'!T123) -> 0 | N138: LHV | O138: mmbtu/tonne
K139: H2O | M139: =IF($E$5="LHV",'Fuel Specs'!U124,'Fuel Specs'!T124) -> 0 | N139: LHV | O139: mmbtu/tonne
K140: CH4 | M140: =IF($E$5="LHV",'Fuel Specs'!U125,'Fuel Specs'!T125) -> 47.50551876 | N140: LHV | O140: mmbtu/tonne
K141: C2H6 | M141: =IF($E$5="LHV",'Fuel Specs'!U126,'Fuel Specs'!T126) -> 45.10375276 | N141: LHV | O141: mmbtu/tonne
K142: C3H8 | M142: =IF($E$5="LHV",'Fuel Specs'!U127,'Fuel Specs'!T127) -> 44.02649007 | N142: LHV | O142: mmbtu/tonne
K143: C4H10 | M143: =IF($E$5="LHV",'Fuel Specs'!U128,'Fuel Specs'!T128) -> 43.44370861 | N143: LHV | O143: mmbtu/tonne
K144: CO | M144: =IF($E$5="LHV",'Fuel Specs'!U129,'Fuel Specs'!T129) -> 9.59602649 | N144: LHV | O144: mmbtu/tonne
K145: H2 | M145: =IF($E$5="LHV",'Fuel Specs'!U130,'Fuel Specs'!T130) -> 113.9580574 | N145: LHV | O145: mmbtu/tonne
K146: H2S | M146: =IF($E$5="LHV",'Fuel Specs'!U131,'Fuel Specs'!T131) -> 14.44812362 | N146: LHV | O146: mmbtu/tonne
K147: SO2 | M147: =IF($E$5="LHV",'Fuel Specs'!U132,'Fuel Specs'!T132) -> 0 | N147: LHV | O147: mmbtu/tonne

Sheet GHG Summary
A1: GHG emissions summary | G1: Field: | H1: =Field_name -> Girassol | P1: =HYPERLINK("#Home_Inputs","To: Inputs") -> To: Inputs | R1: =HYPERLINK("#Home_ActiveField","To: Active") -> To: Active | T1: =HYPERLINK("#Home_FlowSheet","To: Flows") -> To: Flows
A3: This sheet compiles emissions quantities from the various pages for use in the "User Inputs & Results" sheet.
B5: GHG emissions summary panel
B6: Stage | H6: Combust. | I6: Land use | J6: VFF | M6: Total | N6: Unit | O6: Notes:
J7: Venting | K7: Flaring | L7: Fugitives | O7: NGL emissions factor is assumed the same as natural gas
B8: Exploration | H8: =H25 ->  | I8: =I25 -> 0 | J8: 0 | K8: 0 | L8: 0 | M8: =M25 ->  | N8: tCO2eq/d
B9: Drilling & Development | H9: =H26 -> 0 | I9: =I26 ->  | J9: 0 | K9: 0 | L9: 0 | M9: =M26 ->  | N9: tCO2eq/d
B10: Production & Extraction | H10: =H27 ->  | I10: =I27 -> 0 | J10: =J27 ->  | K10: =K27 -> 4042.166295 | L10: =L27 ->  | M10: =M27 ->  | N10: tCO2eq/d
B11: Surface Processing | H11: =H51 ->  | I11: 0 | K11: 0 | N11: tCO2eq/d
B12: Liquefied Natural Gas | H12: =H62 -> 0 | I12: =I62 -> 0 | J12: 0 | K12: 0 | L12: =L62 -> 0 | M12: =M62 -> 0 | N12: tCO2eq/d
B13: Maintenance | H13: =H66 -> 0 | I13: 0 | J13: 0 | K13: 0 | L13: 0 | M13: 0 | N13: tCO2eq/d
B14: Waste disposal | H14: 0 | I14: 0 | J14: 0 | K14: 0 | L14: 0 | M14: 0 | N14: tCO2eq/d
B15: Crude oil transport and storage | H15: =H68 ->  | I15: 0 | J15: 0 | K15: 0 | L15: =L68 -> 0 | M15: =M68 ->  | N15: tCO2eq/d | O15: Transport and storage emissions only added if system boundary is refinery
B16: Other | H16: =H77+H79 -> 0 | I16: =I79+I77 -> 0 | J16: =J79+J77 -> 0 | K16: 0 | L16: 0 | M16: 0 | N16: tCO2eq/d
B17: Gas transport, storage, and distribution | H17: =H71+H80 -> 0 | I17: =I71+I80 -> 0 | J17: 0 | K17: 0 | L17: 0 | M17: 0 | N17: tCO2eq/d
B18: Electricity generation | H18: =H82 ->  | I18: =I82 -> 0 | J18: 0 | K18: 0 | L18: 0 | M18: =M82 ->  | N18: tCO2eq/d
B19: Total = | H19: =SUM(H8:H18) ->  | I19: =SUM(I8:I18) ->  | J19: =SUM(J8:J18) ->  | K19: =SUM(K8:K18) -> 4042.166295 | L19: =SUM(L8:L18) ->  | M19: =SUM(H19:L19) ->  | N19: tCO2eq/d
B21: Table 1: GHG emissions by process stage
B22: Process stage | H22: Combust. | I22: Land use | J22: VFF | M22: Total
J23: Venting | K23: Flaring | L23: Fugitives
H24: tCO2eq./d | I24: tCO2eq./d | J24: tCO2eq./d | K24: tCO2eq./d | L24: tCO2eq./d | M24: tCO2eq./d
B25: Exploration | H25: =Exploration!B37 ->  | I25: =Exploration!C37 -> 0 | J25: =Exploration!D37 -> 0 | K25: =Exploration!E37 -> 0 | L25: =Exploration!F37 -> 0 | M25: =SUM(H25:L25) -> 
B26: Drilling & Development | H26: ='Drilling & development'!B75 -> 0 | I26: ='Drilling & development'!C75 ->  | J26: ='Drilling & development'!D75 -> 0 | K26: ='Drilling & development'!E75 -> 0 | L26: ='Drilling & development'!F75 -> 0 | M26: =SUM(H26:L26) -> 
B27: Production & Extraction | H27: =SUM(H28:H50) ->  | I27: =SUM(I28:I50) -> 0 | J27: =SUM(J28:J50) ->  | K27: =SUM(K28:K50) -> 4042.166295 | L27: =SUM(L28:L50) ->  | M27: =SUM(H27:L27) -> 
B28: - Reservoir | H28: =Reservoir!B93 -> 0 | I28: =Reservoir!C93 -> 0 | J28: =Reservoir!D93 -> 0 | K28: =Reservoir!E93 -> 0 | L28: =Reservoir!F93 -> 0 | M28: =SUM(H28:L28) -> 0
B29: - Well and downhole pump | H29: ='Well and downhole pump'!B140 -> 0 | I29: ='Well and downhole pump'!C140 -> 0 | J29: ='Well and downhole pump'!D140 -> 12.86209724 | K29: ='Well and downhole pump'!E140 -> 0 | L29: ='Well and downhole pump'!F140 -> 9.12494009 | M29: =SUM(H29:L29) -> 21.98703733
B30: - Crude oil storage | H30: ='Crude Oil Storage'!B65 -> 0 | I30: ='Crude Oil Storage'!C65 -> 0 | J30: ='Crude Oil Storage'!D65 ->  | K30: ='Crude Oil Storage'!E65 -> 0 | L30: ='Crude Oil Storage'!F65 -> 0 | M30: =SUM(H30:L30) -> 
B31: - Gas lifting compressor | H31: ='Gas Lifting Compressor'!B82 -> 9.902398562 | I31: ='Gas Lifting Compressor'!C82 -> 0 | J31: ='Gas Lifting Compressor'!D82 -> 0 | K31: ='Gas Lifting Compressor'!E82 -> 0 | L31: ='Gas Lifting Compressor'!F82 -> 0 | M31: =SUM(H31:L31) -> 9.902398562
B32: - Bitumen mining | H32: ='Bitumen mining'!B76 -> 0 | I32: ='Bitumen mining'!C76 -> 0 | J32: ='Bitumen mining'!D76 -> 0 | K32: ='Bitumen mining'!E76 -> 0 | L32: ='Bitumen mining'!F76 -> 0 | M32: 0
B33: - Water injection | H33: ='Water Injection'!B75 -> 61.14874776 | I33: ='Water Injection'!C75 -> 0 | J33: ='Water Injection'!D75 -> 0 | K33: ='Water Injection'!E75 -> 0 | L33: ='Water Injection'!F75 -> 0 | M33: 61.14874776
B34: - HC gas reinjection compressor | H34: ='Gas Reinjection Compressor'!B81 -> 0 | I34: ='Gas Reinjection Compressor'!C81 -> 0 | J34: ='Gas Reinjection Compressor'!D81 -> 0 | K34: ='Gas Reinjection Compressor'!E81 -> 0 | L34: ='Gas Reinjection Compressor'!F81 -> 0 | M34: =SUM(H34:L34) -> 0
B35: - CO2 gas reinjection compressor | H35: ='CO2 Reinjection Compressor'!B154 ->  | I35: ='CO2 Reinjection Compressor'!C154 -> 0 | J35: ='CO2 Reinjection Compressor'!D154 -> 0 | K35: ='CO2 Reinjection Compressor'!E154 -> 0 | L35: ='CO2 Reinjection Compressor'!F154 -> 0 | M35: =SUM(H35:L35) -> 
B36: - Sour gas reinjection compressor | H36: ='Sour Gas Reinjection Compressor'!B96 -> 0 | I36: ='Sour Gas Reinjection Compressor'!C96 -> 0 | J36: ='Sour Gas Reinjection Compressor'!D96 -> 0 | K36: ='Sour Gas Reinjection Compressor'!E96 -> 0 | L36: ='Sour Gas Reinjection Compressor'!F96 -> 0 | M36: =SUM(H36:L36) -> 0
B37: - Gas flooding compressor | H37: ='Gas Flooding Compressor'!B103 -> 0 | I37: ='Gas Flooding Compressor'!C103 -> 0 | J37: ='Gas Flooding Compressor'!D103 -> 0 | K37: ='Gas Flooding Compressor'!E103 -> 0 | L37: ='Gas Flooding Compressor'!F103 -> 0 | M37: 0
B38: - HC gas injection wells | H38: ='HC Gas Injection Wells'!B53 -> 0 | I38: ='HC Gas Injection Wells'!C53 -> 0 | J38: ='HC Gas Injection Wells'!D53 -> 0 | K38: ='HC Gas Injection Wells'!E53 -> 0 | L38: ='HC Gas Injection Wells'!F53 -> 0 | M38: =SUM(H38:L38) -> 0
B39: - CO2 gas injection wells | H39: ='CO2 Injection Wells'!B53 -> 0 | I39: ='CO2 Injection Wells'!C53 -> 0 | J39: ='CO2 Injection Wells'!D53 -> 0 | K39: ='CO2 Injection Wells'!E53 -> 0 | L39: ='CO2 Injection Wells'!F53 -> 0 | M39: =SUM(H39:L39) -> 0
B40: - Gas flooding wells | H40: ='Gas Flood Wells'!B53 -> 0 | I40: ='Gas Flood Wells'!C53 -> 0 | J40: ='Gas Flood Wells'!D53 -> 0 | K40: ='Gas Flood Wells'!E53 -> 0 | L40: ='Gas Flood Wells'!F53 -> 0 | M40: =SUM(H40:L40) -> 0
B41: - Steam injection | H41: ='Steam injection wells'!B51 -> 0 | I41: ='Steam injection wells'!C51 -> 0 | J41: ='Steam injection wells'!D51 -> 0 | K41: ='Steam injection wells'!E51 -> 0 | L41: ='Steam injection wells'!F51 -> 0 | M41: 0
B42: - Flaring | H42: =Flaring!B89 -> 0 | I42: =Flaring!C89 -> 0 | J42: =Flaring!D89 -> 0 | K42: =Flaring!E89 -> 4042.166295 | L42: =Flaring!F89 -> 0 | M42: =SUM(H42:L42) -> 4042.166295
B43: - Separation | H43: =Separation!B240 -> 0 | I43: =Separation!C240 -> 0 | J43: =Separation!D240 -> 0 | K43: =Separation!E240 -> 0 | L43: =Separation!F240 -> 1.25645039 | M43: =SUM(H43:L43) -> 1.25645039
B44: - Produced water treatment | H44: ='Produced Water Treatment'!B112 -> 0 | I44: ='Produced Water Treatment'!C112 -> 0 | J44: ='Produced Water Treatment'!D112 -> 0 | K44: ='Produced Water Treatment'!E112 -> 0 | L44: ='Produced Water Treatment'!F112 -> 0 | M44: 0
B45: - Makeup watter treatment | H45: ='Makeup Water Treatment'!B99 -> 0 | I45: ='Makeup Water Treatment'!C99 -> 0 | J45: ='Makeup Water Treatment'!D99 -> 0 | K45: ='Makeup Water Treatment'!E99 -> 0 | L45: ='Makeup Water Treatment'!F99 -> 0 | M45: 0
B46: - Steam generation | H46: ='Steam Generation'!B276 -> 0 | I46: ='Steam Generation'!C276 -> 0 | J46: ='Steam Generation'!D276 -> 0 | K46: ='Steam Generation'!E276 -> 0 | L46: ='Steam Generation'!F276 -> 0 | M46: =SUM(H46:L46) -> 0
B47: - Crude oil dewatering | H47: ='Crude oil dewatering'!B58 -> 0 | I47: ='Crude oil dewatering'!C58 -> 0 | J47: ='Crude oil dewatering'!D58 -> 0 | K47: ='Crude oil dewatering'!E58 -> 0 | L47: ='Crude oil dewatering'!F58 -> 0 | M47: 0
B48: - Crude oil stabilization | H48: ='Crude oil stabilization'!B95 ->  | I48: ='Crude oil stabilization'!C95 -> 0 | J48: ='Crude oil stabilization'!D95 -> 0 | K48: ='Crude oil stabilization'!E95 -> 0 | L48: ='Crude oil stabilization'!F95 -> 0 | M48: =SUM(H48:L48) -> 
B49: - VRU compressor | H49: ='VRU Compressor'!B82 ->  | I49: ='VRU Compressor'!C82 -> 0 | J49: ='VRU Compressor'!D82 -> 0 | K49: ='VRU Compressor'!E82 -> 0 | L49: ='VRU Compressor'!F82 ->  | M49: =SUM(H49:L49) -> 
B50: - Venting | H50: =Venting!B55 -> 0 | I50: =Venting!C55 -> 0 | J50: =Venting!D55 -> 334.0818404 | K50: =Venting!E55 -> 0 | L50: =Venting!F55 -> 0 | M50: =SUM(H50:L50) -> 334.0818404
B51: Surface Processing | H51: =SUM(H52:H61) ->  | I51: =SUM(I52:I61) -> 0 | J51: =SUM(J52:J61) ->  | K51: =SUM(K52:K61) -> 0 | L51: =SUM(L52:L61) ->  | M51: =SUM(H51:L51) -> 
B52: - Heavy oil upgrading | H52: ='Heavy Oil Upgrading'!B153 -> 0 | I52: ='Heavy Oil Upgrading'!C153 -> 0 | J52: ='Heavy Oil Upgrading'!D153 -> 0 | K52: ='Heavy Oil Upgrading'!E153 -> 0 | L52: ='Heavy Oil Upgrading'!F153 -> 0 | M52: 0
B53: - Heavy oil dilution | H53: ='Heavy Oil Dilution'!B92 -> 0 | I53: ='Heavy Oil Dilution'!C92 -> 0 | J53: ='Heavy Oil Dilution'!D92 -> 0 | K53: ='Heavy Oil Dilution'!E92 -> 0 | L53: ='Heavy Oil Dilution'!F92 -> 0 | M53: 0
B54: - Gas gathering | H54: ='Gas Gathering'!B54 -> 0 | I54: ='Gas Gathering'!C54 -> 0 | J54: ='Gas Gathering'!D54 -> 0 | K54: ='Gas Gathering'!E54 -> 0 | L54: ='Gas Gathering'!F54 ->  | M54: =SUM(H54:L54) -> 
B55: - Gas dehydration | H55: ='Gas dehydration'!B212 ->  | I55: ='Gas dehydration'!C212 -> 0 | J55: ='Gas dehydration'!D212 ->  | K55: ='Gas dehydration'!E212 -> 0 | L55: ='Gas dehydration'!F212 -> 0 | M55: =SUM(H55:L55) -> 
B56: - Acid gas removal | H56: ='Acid Gas Removal'!B254 ->  | I56: ='Acid Gas Removal'!C254 -> 0 | J56: ='Acid Gas Removal'!D254 ->  | K56: ='Acid Gas Removal'!E254 -> 0 | L56: ='Acid Gas Removal'!F254 -> 0 | M56: =SUM(H56:L56) -> 
B57: - Demethanizer | H57: =Demethanizer!B245 ->  | I57: =Demethanizer!C245 -> 0 | J57: =Demethanizer!D245 -> 0 | K57: =Demethanizer!E245 -> 0 | L57: =Demethanizer!F245 ->  | M57: =SUM(H57:L57) -> 
B58: - Chiller | H58: =Chiller!B57 -> 0 | I58: =Chiller!C57 -> 0 | J58: =Chiller!D57 -> 0 | K58: =Chiller!E57 -> 0 | L58: =Chiller!F57 -> 0 | M58: 0
B59: - Pre-membrane compressor | H59: ='Pre-membrane Compressor'!B78 -> 0 | I59: ='Pre-membrane Compressor'!C78 -> 0 | J59: ='Pre-membrane Compressor'!D78 -> 0 | K59: ='Pre-membrane Compressor'!E78 -> 0 | L59: ='Pre-membrane Compressor'!F78 -> 0 | M59: =SUM(H59:L59) -> 0
B60: - CO2 membrane | H60: ='CO2 Membrane'!B101 -> 0 | I60: ='CO2 Membrane'!C101 -> 0 | J60: ='CO2 Membrane'!D101 -> 0 | K60: ='CO2 Membrane'!E101 -> 0 | L60: ='CO2 Membrane'!F101 -> 0 | M60: 0
B61: - Ryan-Holmes unit | H61: ='Ryan-Holmes'!B80 -> 0 | I61: ='Ryan-Holmes'!C80 -> 0 | J61: ='Ryan-Holmes'!D80 -> 0 | K61: ='Ryan-Holmes'!E80 -> 0 | L61: ='Ryan-Holmes'!F80 -> 0 | M61: 0
B62: Liquefied Natural Gas | H62: =SUM(H63:H65) -> 0 | I62: =SUM(I63:I65) -> 0 | J62: =SUM(J63:J65) -> 0 | K62: =SUM(K63:K65) -> 0 | L62: =SUM(L63:L65) -> 0 | M62: =SUM(H62:L62) -> 0
B63: - Liquefaction | H63: ='LNG Liquefaction'!B105 -> 0 | I63: ='LNG Liquefaction'!C105 -> 0 | J63: ='LNG Liquefaction'!D105 -> 0 | K63: ='LNG Liquefaction'!E105 -> 0 | L63: ='LNG Liquefaction'!F105 -> 0 | M63: 0
B64: - Transport | H64: ='LNG transport'!B113 -> 0 | I64: ='LNG transport'!C113 -> 0 | J64: ='LNG transport'!D113 -> 0 | K64: ='LNG transport'!E113 -> 0 | L64: ='LNG transport'!F113 -> 0 | M64: 0
B65: - Regasification | H65: ='LNG regasification'!B100 -> 0 | I65: ='LNG regasification'!C100 -> 0 | J65: ='LNG regasification'!D100 -> 0 | K65: ='LNG regasification'!E100 -> 0 | L65: ='LNG regasification'!F100 -> 0 | M65: 0
B66: Maintenance | H66: 0 | I66: 0 | J66: 0 | K66: 0 | L66: 0 | M66: 0
B67: Waste disposal | H67: 0 | I67: 0 | J67: 0 | K67: 0 | L67: 0 | M67: 0
B68: Crude oil transport & storage | H68: =SUM(H69:H70) ->  | I68: =SUM(I69:I70) -> 0 | J68: 0 | K68: 0 | L68: 0 | M68: =SUM(H68:L68) -> 
B69: - Crude oil transport | H69: ='Crude Oil Transport'!B125 ->  | I69: ='Crude Oil Transport'!C125 -> 0 | J69: ='Crude Oil Transport'!D125 -> 0 | K69: ='Crude Oil Transport'!E125 -> 0 | L69: ='Crude Oil Transport'!F125 -> 0
B70: - Diluent transport | H70: ='Diluent Transport'!B125 -> 0 | I70: ='Diluent Transport'!C125 -> 0 | J70: ='Diluent Transport'!D125 -> 0 | K70: ='Diluent Transport'!E125 -> 0 | L70: ='Diluent Transport'!F125 -> 0 | M70: 0
B71: Gas transport + storage | H71: =SUM(H72:H76) -> 0 | I71: =SUM(I72:I76) -> 0 | J71: 0 | K71: 0 | L71: 0 | M71: 0
B72: - Gas transmission compressors | H72: ='Gas transmission compressors'!B121 -> 0 | I72: ='Gas transmission compressors'!C121 -> 0 | J72: ='Gas transmission compressors'!D121 -> 0 | K72: ='Gas transmission compressors'!E121 -> 0 | L72: ='Gas transmission compressors'!F121 -> 0 | M72: =SUM(H72:L72) -> 0
B73: - Storage compressor | H73: ='Storage Compressor'!B84 -> 0 | I73: ='Storage Compressor'!C84 -> 0 | J73: ='Storage Compressor'!D84 -> 0 | K73: ='Storage Compressor'!E84 -> 0 | L73: ='Storage Compressor'!F84 -> 0 | M73: =SUM(H73:L73) -> 0
B74: - Post-storage compressor | H74: ='Post-Storage Compressor'!B83 -> 0 | I74: ='Post-Storage Compressor'!C83 -> 0 | J74: ='Post-Storage Compressor'!D83 -> 0 | K74: ='Post-Storage Compressor'!E83 -> 0 | L74: ='Post-Storage Compressor'!F83 -> 0 | M74: =SUM(H74:L74) -> 0
B75: - Gas storage wells | H75: ='Gas storage wells'!B53 -> 0 | I75: ='Gas storage wells'!C53 -> 0 | J75: ='Gas storage wells'!D53 -> 0 | K75: ='Gas storage wells'!E53 -> 0 | L75: ='Gas storage wells'!F53 -> 0 | M75: 0
B76: - Storage separator | H76: ='Storage separator'!B54 -> 0 | I76: ='Storage separator'!C54 -> 0 | J76: ='Storage separator'!D54 -> 0 | K76: ='Storage separator'!E54 -> 0 | L76: ='Storage separator'!F54 -> 0 | M76: 0
B77: Other product transport + storage | H77: =SUM(H78) -> 0 | I77: =SUM(I78) -> 0 | J77: 0 | K77: 0 | L77: 0 | M77: 0
B78: - Petcoke handling and storage | H78: ='Petcoke transport'!B111 -> 0 | I78: ='Petcoke transport'!C111 -> 0 | J78: ='Petcoke transport'!D111 -> 0 | K78: ='Petcoke transport'!E111 -> 0 | L78: ='Petcoke transport'!F111 -> 0 | M78: =SUM(H78:L78) -> 0
B79: Other | H79: 0 | I79: 0 | J79: 0 | K79: 0 | L79: 0 | M79: 0
B80: Gas distribution | H80: =SUM(H81) -> 0 | I80: =SUM(I81) -> 0 | J80: =SUM(J81) -> 0 | K80: =SUM(K81) -> 0 | L80: =SUM(L81) -> 0 | M80: =SUM(H80:L80) -> 0
B81: - Gas distribution | H81: ='Gas distribution'!B52 -> 0 | I81: ='Gas distribution'!C52 -> 0 | J81: ='Gas distribution'!D52 -> 0 | K81: ='Gas distribution'!E52 -> 0 | L81: ='Gas distribution'!F52 -> 0 | M81: =SUM(H81:L81) -> 0
B82: Fuel consumed for electricity generation | H82: ='Electricity Gen and Imports'!B147 ->  | I82: ='Electricity Gen and Imports'!C147 -> 0 | J82: ='Electricity Gen and Imports'!D147 -> 0 | K82: ='Electricity Gen and Imports'!E147 -> 0 | L82: ='Electricity Gen and Imports'!F147 -> 0 | M82: =SUM(H82:L82) -> 
G83: Total = | H83: =H25+H26+H27+H51+H66+H67+H68+H79+H82+H62+H80 ->  | I83: =I25+I26+I27+I51+I66+I67+I68+I79+I82+I62+I80 ->  | J83: =J25+J26+J27+J51+J66+J67+J68+J79+J82+J62+J80 ->  | K83: =K25+K26+K27+K51+K66+K67+K68+K79+K82+K62+K80 -> 4042.166295 | L83: =L25+L26+L27+L51+L66+L67+L68+L79+L82+L62+L80 ->  | M83: =SUM(H83:L83) -> 
B85: Indirect or offsite GHG emissions
B86: GHG emissions from fuel supply/export | G86: Credits for exports | H86: Debits for imports | I86: Displacement? | J86: Unit
K87: Notes:
B88: GHG emissions from natural gas supply/export | G88: =IF(Inputs!I2="Oil",-'Energy Summary'!E85*IF(I88=1,'Fuel Cycle'!D47,0)/1000000,0) -> 0 | H88: ='Energy Summary'!F85*'Fuel Cycle'!D72/1000000 ->  | I88: =IF(Inputs!Y2="Displacement",1,IF(Inputs!Y2="Allocation",0,IF(Inputs!Y2="Stream-specific",'Fuel Cycle'!L10,"ERROR"))) -> 0 | J88: tCO2eq/d | K88: If displacement is not chosen, use allocation by default
B89: GHG emissions from NGL supply/export | G89: =-'Energy Summary'!E87*IF(I89=1,'Fuel Cycle'!D47,0)/1000000 ->  | H89: ='Energy Summary'!F86*'Fuel Cycle'!D72/1000000 -> 0 | I89: =IF(Inputs!Y2="Displacement",1,IF(Inputs!Y2="Allocation",0,IF(Inputs!Y2="Stream-specific",'Fuel Cycle'!L12,"ERROR"))) -> 0 | J89: tCO2eq/d
B90: GHG emissions from diluent supply | G90: 0 | H90: ='Energy Summary'!F88*'Fuel Cycle'!D72/1000000 -> 0 | I90: =IF(Inputs!Y2="Displacement",1,IF(Inputs!Y2="Allocation",0,IF(Inputs!Y2="Stream-specific",1,"ERROR"))) -> 1 | J90: tCO2eq/d | K90: Diluent supply emissions include emissions for diluent production only. Transport of diluent is treated above in the main table under row "Diluent Transport".
B91: GHG emissions from diesel supply/export | G91: 0 | H91: ='Energy Summary'!F90*'Fuel Cycle'!D74/1000000 ->  | I91: =IF(Inputs!Y2="Displacement",1,IF(Inputs!Y2="Allocation",0,IF(Inputs!Y2="Stream-specific",1,"ERROR"))) -> 1 | J91: tCO2eq/d
B92: GHG emissions from electricity supply/export | G92: =-'Energy Summary'!E93*IF(I92=1,'Fuel Cycle'!D50,0)/1000000 ->  | H92: ='Energy Summary'!F93*'Fuel Cycle'!D75/1000000 ->  | I92: =IF(Inputs!Y2="Displacement",1,IF(Inputs!Y2="Allocation",0,IF(Inputs!Y2="Stream-specific",'Fuel Cycle'!L13,"ERROR"))) -> 1 | J92: tCO2eq/d
B93: GHG emissions from crude oil supply/export | G93: =IF(Inputs!I2="Oil",0,-'Energy Summary'!E89*IF(I93=1,'Fuel Cycle'!D48,0)/1000000) -> 0 | H93: 0 | I93: =IF(Inputs!Y2="Displacement",1,IF(Inputs!Y2="Allocation",0,IF(Inputs!Y2="Stream-specific",'Fuel Cycle'!L11,"ERROR"))) -> 0 | J93: tCO2eq/d | K93: Crude oil is the main product
B94: GHG emissions from residual fuel supply/export | G94: 0 | H94: ='Energy Summary'!F91*'Fuel Cycle'!D77/1000000 ->  | I94: =IF(Inputs!Y2="Displacement",1,IF(Inputs!Y2="Allocation",0,IF(Inputs!Y2="Stream-specific",1,"ERROR"))) -> 1 | J94: tCO2eq/d
B95: Total = | G95: =SUM(G88:G94) ->  | H95: =SUM(H88:H94) ->  | J95: tCO2eq/d
B97: CO2 balance from CO2 flooding and CCS
B98: CO2 balance
G99: Total | H99: Unit | I99: Notes:
B100: CO2 injected (gross) | G100: =IF(AND(Gas_flooding_01=1, Flood_gas_type=3),'Flow Sheet'!BX14+'Flow Sheet'!CC14+'Flow Sheet'!CG14, 0) -> 0 | H100: tCO2eq/d
B101: CO2 sequestered (net CO2 injection) | G101: ='Flow Sheet'!CG14 -> 0 | H101: tCO2eq/d | I101: It is assumed that all CO2 injected into the reservoir is sequestered either immediately or following production-separation-reinjection
B102: CO2 lost from long-term leakage | G102: =G101*Leakage_rate_sequestered_CO2/100 -> 0 | H102: tCO2eq/d | I102: The estimated 100-year leakage rate is applied to the daily sequestration rate
B103: CO2 lost from post-production blow-down | G103: =IF(AND(Gas_flooding_01=1, Flood_gas_type=3), G101*fraction_CO2_lost_blowdown/100, 0) -> 0 | H103: tCO2eq/d
B104: CO2 lost from venting and fugitives in CO2 recycling | G104: =IF(AND(Gas_flooding_01=1, Flood_gas_type=3), 'CO2 Reinjection Compressor'!M18,0) -> 0 | H104: tCO2eq/d | I104: Mass flow of CO2 in fugitives stream from CO2 reinjection compressor
B105: CO2 emitted from work of separation and injection | G105: =IF(AND(Gas_flooding_01=1, Flood_gas_type=3), (('Gas Flooding Compressor'!B98+'CO2 Reinjection Compressor'!B149+'Sour Gas Reinjection Compressor'!B91)*'Emissions Factors'!$H$15+('Gas Flooding Compressor'!I98+'CO2 Reinjection Compressor'!I149+'Sour Gas Reinjection Compressor'!I91)*mmbtu_per_MWh*(1/1000)*'Electricity Gen and Imports'!M126), 0)/1000000 -> 0 | H105: tCO2eq/d | I105: Currently only work of flood gas injection compressor
B106: CO2 emitted during drilling and production of purpose-drilled anthropogenic CO2 | G106: =IF(Source_CO2=1,G101/44/mol_per_scf*'Fuel Specs'!B223/1000000*'Fuel Cycle'!D79,0) -> 0 | H106: tCO2eq/d | I106: Assume that CO2 drilling, production, and transport emits the same amount of CO2 per SCF handled as natural gas
B107: CO2 contained as carbon in produced oil | G107: =IF(AND(Gas_flooding_01=1, Flood_gas_type=3), Oil_prod*gal_per_bbl*liters_per_gal*Oil_sg*VLOOKUP(API_grav,'Fuel Specs'!B20:Q61,3)/100*1000*44/12, 0)/1000000 -> 0 | H107: tCO2eq/d
B108: CO2 sequestration credited to the oilfield | G108: =IF(AND(Gas_flooding_01=1, Flood_gas_type=3), IF(Source_CO2=1, 0, Perc_sequestration_credit/100*(G101-G102-G103)), 0) -> 0 | H108: tCO2eq/d
B110: Embodied emissions
B111: GHG emissions from from purchasing of material inputs
G112: Total | H112: Unit
B113: Embodied emissions in oilfield material | G113: =IF('Embodied Emissions'!M7=1,'Embodied Emissions'!M652*Oil_prod,0)/1000000 -> 0 | H113: tCO2eq/d
B114: Total = | G114: =SUM(G113:G113) -> 0 | H114: tCO2eq/d
B116: Summary offsite emissions credit
B117: Adjustment for output stream-specific emissions credit | G117: Imports | H117: Exports | I117: Unit
B118: Summary offsite emissions credit | G118: =(H90+H88+H89+H91+H92+H93+H94+G106+G114) ->  | H118: =(G90+G88+G89+G91+G92+G93+G94+G114) ->  | I118: tCO2eq/d

Sheet Flow Sheet
A1: Active field flow sheet | G1: Field: | H1: =Field_name -> Girassol | P1: =HYPERLINK("#Home_Inputs","To: Inputs") -> To: Inputs | R1: =HYPERLINK("#Home_ActiveField","To: Active") -> To: Active | T1: =HYPERLINK("#Home_FlowSheet","To: Flows") -> To: Flows
C3: Index code ↓ | F3: Stream number → | AD3: Gas streams ---> | DA3: Water streams ---> | EY3: Fuel gas streams ---> | FX3: Electricity streams ---> | HG3: Solid product streams ---> | HV3: Import streams ---> | IU3: Fugitive and vented streams --->
A4: Stream number: | C4: STREAM_NUM | D4: 1 | F4: 1 | G4: 2 | H4: 3 | I4: 4 | J4: 5 | K4: 6 | L4: 7 | M4: 8 | N4: 9 | O4: 10 | P4: 11 | Q4: 12 | R4: 13 | S4: 14 | T4: 15 | U4: 16 | V4: 17 | W4: 18 | X4: 19 | Y4: 20 | Z4: 21 | AA4: 22 | AB4: 23 | AC4: 24 | AD4: 25 | AE4: 26 | AF4: 27 | AG4: 28 | AH4: 29 | AI4: 30 | AJ4: 31 | AK4: 32 | AL4: 33 | AM4: 34 | AN4: 35 | AO4: 36 | AP4: 37 | AQ4: 38 | AR4: 39 | AS4: 40 | AT4: 41 | AU4: 42 | AV4: 43 | AW4: 44 | AX4: 45 | AY4: 46 | AZ4: 47 | BA4: 48 | BB4: 49 | BC4: 50 | BD4: 51 | BE4: 52 | BF4: 53 | BG4: 54 | BH4: 55 | BI4: 56 | BJ4: 57 | BK4: 58 | BL4: 59 | BM4: 60 | BN4: 61 | BO4: 62 | BP4: 63 | BQ4: 64 | BR4: 65 | BS4: 66 | BT4: 67 | BU4: 68 | BV4: 69 | BW4: 70 | BX4: 71 | BY4: 72 | BZ4: 73 | CA4: 74 | CB4: 75 | CC4: 76 | CD4: 77 | CE4: 78 | CF4: 79 | CG4: 80 | CH4: 81 | CI4: 82 | CJ4: 83 | CK4: 84 | CL4: 85 | CM4: 86 | CN4: 87 | CO4: 88 | CP4: 89 | CQ4: 90 | CR4: 91 | CS4: 92 | CT4: 93 | CU4: 94 | CV4: 95 | CW4: 96 | CX4: 97 | CY4: 98 | CZ4: 99 | DA4: 100 | DB4: 101 | DC4: 102 | DD4: 103 | DE4: 104 | DF4: 105 | DG4: 106 | DH4: 107 | DI4: 108 | DJ4: 109 | DK4: 110 | DL4: 111 | DM4: 112 | DN4: 113 | DO4: 114 | DP4: 115 | DQ4: 116 | DR4: 117 | DS4: 118 | DT4: 119 | DU4: 120 | DV4: 121 | DW4: 122 | DX4: 123 | DY4: 124 | DZ4: 125 | EA4: 126 | EB4: 127 | EC4: 128 | ED4: 129 | EE4: 130 | EF4: 131 | EG4: 132 | EH4: 133 | EI4: 134 | EJ4: 135 | EK4: 136 | EL4: 137 | EM4: 138 | EN4: 139 | EO4: 140 | EP4: 141 | EQ4: 142 | ER4: 143 | ES4: 144 | ET4: 145 | EU4: 146 | EV4: 147 | EW4: 148 | EX4: 149 | EY4: 150 | EZ4: 151 | FA4: 152 | FB4: 153 | FC4: 154 | FD4: 155 | FE4: 156 | FF4: 157 | FG4: 158 | FH4: 159 | FI4: 160 | FJ4: 161 | FK4: 162 | FL4: 163 | FM4: 164 | FN4: 165 | FO4: 166 | FP4: 167 | FQ4: 168 | FR4: 169 | FS4: 170 | FT4: 171 | FU4: 172 | FV4: 173 | FW4: 174 | FX4: 175 | FY4: 176 | FZ4: 177 | GA4: 178 | GB4: 179 | GC4: 180 | GD4: 181 | GE4: 182 | GF4: 183 | GG4: 184 | GH4: 185 | GI4: 186 | GJ4: 187 | GK4: 188 | GL4: 189 | GM4: 190 | GN4: 191 | GO4: 192 | GP4: 193 | GQ4: 194 | GR4: 195 | GS4: 196 | GT4: 197 | GU4: 198 | GV4: 199 | GW4: 200 | GX4: 201 | GY4: 202 | GZ4: 203 | HA4: 204 | HB4: 205 | HC4: 206 | HD4: 207 | HE4: 208 | HF4: 209 | HG4: 210 | HH4: 211 | HI4: 212 | HJ4: 213 | HK4: 214 | HL4: 215 | HM4: 216 | HN4: 217 | HO4: 218 | HP4: 219 | HQ4: 220 | HR4: 221 | HS4: 222 | HT4: 223 | HU4: 224 | HV4: 225 | HW4: 226 | HX4: 227 | HY4: 228 | HZ4: 229 | IA4: 230 | IB4: 231 | IC4: 232 | ID4: 233 | IE4: 234 | IF4: 235 | IG4: 236 | IH4: 237 | II4: 238 | IJ4: 239 | IK4: 240 | IL4: 241 | IM4: 242 | IN4: 243 | IO4: 244 | IP4: 245 | IQ4: 246 | IR4: 247 | IS4: 248 | IT4: 249 | IU4: 250 | IV4: 251 | IW4: 252 | IX4: 253 | IY4: 254 | IZ4: 255 | JA4: 256 | JB4: 257 | JC4: 258 | JD4: 259 | JE4: 260 | JF4: 261 | JG4: 262 | JH4: 263 | JI4: 264 | JJ4: 265 | JK4: 266 | JL4: 267 | JM4: 268 | JN4: 269 | JO4: 270 | JP4: 271 | JQ4: 272 | JR4: 273 | JS4: 274 | JT4: 275 | JU4: 276 | JV4: 277 | JW4: 278 | JX4: 279 | JY4: 280 | JZ4: 281 | KA4: 282 | KB4: 283 | KC4: 284 | KD4: 285 | KE4: 286 | KF4: 287 | KG4: 288 | KH4: 289 | KI4: 290 | KJ4: 291 | KK4: 292 | KL4: 293 | KM4: 294 | KN4: 295 | KO4: 296 | KP4: 297 | KQ4: 298 | KR4: 299 | KS4: 300 | KX4: Inputs | LC4: Outputs | LJ4: Totals
A5: Stream description: | C5: STREAM_NAME | D5: 2 | F5: Crude oil in reservoir | G5: Bitumen in mine | H5: Crude oil at well bottom | I5: Crude oil at wellhead | J5: Bitumen from mine to upgrader | K5: Bitumen from mine to dilution | L5: Crude oil after separator | M5: Crude oil to stabilizer | N5: Crude oil to storage | O5: Stabilized crude to storage | P5: Upgraded crude to storage | Q5: Diluted bitumen to storage | R5: Crude oil to transport | S5: Transported crude oil at refinery | T5: Petcoke export from upgrader | U5: NGL/diluent to dilution | V5: ='NGL or Diluent Prod and Imports'!M9 -> LPG to blend with crude oil | W5: ='NGL or Diluent Prod and Imports'!N9 -> LPG to direct sales exports | X5: ='Crude oil dewatering'!O9 -> Crude oil to upgrader | Y5: Crude oil to dilution | AD5: Gas in reservoir | AE5: Gas at well bottom | AF5: Gas at wellhead | AG5: Gas after separator | AH5: Gas to flare | AI5: Post-flare gas to vent | AJ5: Post-vent gas to gathering | AK5: Stabilizer gas to gathering | AL5: VRU gas to gathering | AM5: Gathered gas to dehydrator | AN5: Dehydrated gas to CO2 EOR processing | AO5: Dehydrated gas to AGR | AP5: Gas to demethnizer | AQ5: Demethanizer light product | AR5: Demethanizer heavy product | AS5: Lifting gas to compressor | AT5: Gas to consumption, sales, reinjection | AU5: Lifting gas to wellbore | AV5: ='Fuel Gas Consumed'!K9 -> Gas to reinjection and export | AW5: ='Fuel Gas Consumed'!J9 -> Gas consumed | AX5: ='Gas Partition B'!J9 -> Gas exported | AY5: ='Gas Partition B'!K9 -> Gas to reinjection | AZ5: Gas to reinjection wells | BA5: ='HC Gas Injection Wells'!J9 -> HC gas to reservoir | BB5: ='Gas transmission compressors'!N9 -> Gas to distribution | BC5: ='Gas transmission compressors'!J9 -> Gas to storage compressor | BD5: ='Storage Compressor'!J9 -> Gas to storage well | BE5: ='Gas storage wells'!J9 -> Gas to storage reservoir | BF5: Gas to storage separator | BG5: ='Storage separator'!K9 -> Gas to storage boosting compressor | BH5: ='Post-Storage Compressor'!J9 -> Gas to distribution (from storage) | BI5: ='Gas distribution'!L9 -> Gas to metering and regulation | BJ5: ='Gas distribution'!N9 -> Gas to distribution piping | BK5: ='Gas distribution'!P9 -> Gas to customer meter | BL5: ='Gas distribution'!R9 -> Gas to end use appliance or equipment | BM5: ='Gas distribution'!T9 -> End use consumed gas | BN5: Gas to pre-membrane chiller | BO5: =Chiller!J9 -> Gas to pre-membrane compressor | BP5: ='Pre-membrane Compressor'!J9 -> Gas to CO2 separation membrane | BQ5: ='CO2 Membrane'!J9 -> Hydrocarbon rich gas to AGR | BR5: ='CO2 Membrane'!K9 -> CO2 rich stream from membrane | BS5: Gas to Ryan-Holmes process | BT5: ='Ryan-Holmes'!J9 -> Light HC stream from Ryan-Holmes | BU5: ='Ryan-Holmes'!K9 -> Heavy HC stream from Ryan-Holmes | BV5: ='Ryan-Holmes'!L9 -> CO2 stream from Ryan-Holmes | BW5: Gas to sour gas reinjection compressor | BX5: ='Sour Gas Reinjection Compressor'!J9 -> Sour gas to injection wells | BY5: ='Sour Gas Injection Wells'!J9 -> Sour gas to reservoir | BZ5: ='Acid Gas Removal'!L9 -> Tail gas CO2 to reinjection | CA5: Total CO2 to reinjection compressor | CB5: ='CO2 Reinjection Compressor'!L9 -> CO2 to injection wells | CC5: ='CO2 Injection Wells'!J9 -> CO2 to reservoir | CD5: ='Gas Flooding Compressor'!E9 -> CO2 from offsite for gas flooding | CE5: ='Gas Flooding Compressor'!F9 -> Hydrocarbons from offsite for gas flooding | CF5: ='Gas Flooding Compressor'!G9 -> N2 from offiste for gas flooding | CG5: ='Gas Flooding Compressor'!L9 -> Gas to gas flooding injection wells | CH5: ='Crude Oil Storage'!O9 -> Storage vapors to flare | CI5: Strorage vapors to VRU | CJ5: Process gas export from upgrader | CK5: Mine offgas to flare | CL5: Gas to liquefaction | CM5: Natural gas to transport | CN5: Natural gas from transport | CO5: LNG gas from regasification | CP5: Ethane to petrochemicals | CQ5: Claus unit throughput | CR5: Recycled CO2 from CO2 flooding | CS5: Flood Gas to reservoir | DA5: Water in reservoir | DB5: Water at well bottom | DC5: Water at wellhead | DD5: Water after separator | DE5: ='Makeup Water Treatment'!E9 -> Makeup water to treatment | DF5: ='Steam Generation'!E9 -> Treated makeup water to steam injection | DG5: Treated makeup water to reinjection well | DH5: ='Makeup Water Treatment'!L9 -> Makeup water treatment waste | DI5: ='Steam Generation'!L9 -> steam injection wells | DJ5: ='Steam Generation'!M9 -> waste water from blowdown | DK5: ='Steam injection wells'!J9 -> Steam injection into reservoir | DL5: ='Produced Water Treatment'!L9 -> Treated produced water to steam | DM5: ='Produced Water Treatment'!M9 -> Water from produced water treatment to surface disposal | DN5: ='Produced Water Treatment'!N9 -> Water from produced water treatment to reinjection | DO5: ='Produced Water Treatment'!O9 -> Produced water to sub-surface dispoal | DP5: Water from crude oil dewatering to produced water treatment | DQ5: ='Water Injection'!K9 -> Water to water flooding injection wells | DR5: ='Storage separator'!F9 -> Gas to storage separator | DS5: ='Steam Generation'!N9 -> blowdown recycled to treatement | EY5: ='Fuel Gas Imports'!K9 -> Fuel gas - Downhole pump | EZ5: ='Fuel Gas Imports'!L9 -> Fuel gas - Dehydrator | FA5: ='Fuel Gas Imports'!M9 -> Fuel gas - AGR | FB5: ='Fuel Gas Imports'!N9 -> Fuel gas - Demethanizer | FC5: ='Gas Lifting Compressor'!L9 -> Fuel gas - Lifting gas compressor | FD5: ='Gas Reinjection Compressor'!L9 -> Fuel gas - Gas reinjection compressor | FE5: ='Fuel Gas Imports'!O9 -> Fuel gas - Pre-membrane compressor | FF5: ='Fuel Gas Imports'!P9 -> Fuel gas - Ryan-homes | FG5: ='Fuel Gas Imports'!Q9 -> Fuel gas - Sour gas reinjection | FH5: ='Fuel Gas Imports'!R9 -> Fuel gas - CO2 reinjection compressor | FI5: ='Fuel Gas Imports'!S9 -> Fuel gas - Dewatering | FJ5: ='Fuel Gas Imports'!T9 -> Fuel gas - Stabilizer | FK5: ='Fuel Gas Imports'!U9 -> Fuel gas - Steam generation | FL5: ='Fuel Gas Imports'!V9 -> Fuel gas - Water reinjection | FM5: ='Fuel Gas Imports'!W9 -> Fuel gas - Heavy oil upgrading | FN5: ='Fuel Gas Imports'!X9 -> Fuel gas - Gas flooding compressor | FO5: ='Fuel Gas Imports'!Y9 -> Fuel gas - VRU compressor | FP5: ='Fuel Gas Imports'!Z9 -> Fuel gas - Mining | FQ5: ='Fuel Gas Imports'!AA9 -> Fuel gas - Crude oil transport | FR5: ='Gas transmission compressors'!M9 -> Fuel gas - Transmission compressor | FS5: ='Storage Compressor'!L9 -> Fuel gas - Storage compressor | FT5: Fuel gas - Post-storage compressor | FU5: Fuel gas - Liquefaction | FV5: Fuel gas - Regasification | FW5: Fuel gas - Onsite electricity generation | FX5: ='Electricity Gen and Imports'!L9 -> Electricity - Downhole pump | FY5: ='Electricity Gen and Imports'!M9 -> Electricity - Dehydrator | FZ5: ='Electricity Gen and Imports'!N9 -> Electricity - AGR | GA5: ='Electricity Gen and Imports'!O9 -> Electricity - Lifting gas compressor | GB5: ='Electricity Gen and Imports'!P9 -> Electricity - Reinjection compressor | GC5: ='Electricity Gen and Imports'!Q9 -> Electricity - Pre-membrane chiller | GD5: ='Electricity Gen and Imports'!R9 -> Electricity - Pre-membrane compressor | GE5: ='Electricity Gen and Imports'!S9 -> Electricity - Sour gas reinjection compressor | GF5: ='Electricity Gen and Imports'!T9 -> Electricity - CO2 reinjection compressor | GG5: ='Electricity Gen and Imports'!U9 -> Electricity - Crude oil dewatering | GH5: ='Electricity Gen and Imports'!V9 -> Electricity - Crude oil stabilization | GI5: ='Electricity Gen and Imports'!W9 -> Electricity - Produced water treatment | GJ5: ='Electricity Gen and Imports'!X9 -> Electricity - Steam generation | GK5: ='Electricity Gen and Imports'!Y9 -> Electricity - Makeup water treatment | GL5: ='Electricity Gen and Imports'!Z9 -> Electricity - Water reinjection | GM5: ='Electricity Gen and Imports'!AA9 -> Electricity - Heavy oil upgrading | GN5: ='Electricity Gen and Imports'!AB9 -> Electricity - Gas flooding compressor | GO5: ='Electricity Gen and Imports'!AC9 -> Electricity - VRU compressor | GP5: ='Electricity Gen and Imports'!AD9 -> Electricity - Mining | GQ5: ='Electricity Gen and Imports'!AE9 -> Electricity - Crude oil transport | GR5: ='Electricity Gen and Imports'!AF9 -> Electricity - Transmission compressor | GS5: ='Electricity Gen and Imports'!AG9 -> Electricity - Storage compressor | GT5: ='Electricity Gen and Imports'!AH9 -> Electricity - Post-storage compressor | GU5: Electricity cogenerated with steam | GV5: Electricity exports | GW5: Electricity - Demethanizer | HG5: Petroleumn coke to stockpile/sequester | HH5: Petroleum coke to market | HV5: Net imports for fuel gas | HW5: Net electricity imports | HX5: NGL imports for diluent | IU5: Fugitives - Wellhead | IV5: Fugitives - Separator | IW5: Purposeful venting | IX5: Fugitives - Misc. | IY5: Fugitives - Gathering | IZ5: Venting - Dehydrator | JA5: Venting - AGR | JB5: Fugitives - Demethanizer | JC5: Fugitives - Lifting gas compressor | JD5: Fugitives - HC reinjection compressor | JE5: Fugitives - HC reinjection wells | JF5: Fugitives - Transmission compressor | JG5: Fugitives - Storage compressor | JH5: Fugitives - Storage wells | JI5: Fugitives - Storage separator | JJ5: Fugitives - Post-storage compressor | JK5: Fugitives - Distribution step down | JL5: Fugitives - Metering and regulation | JM5: Fugitives - Distribution piping | JN5: Fugitives - Customer meter | JO5: Fugitives - End use appliances and equip. | JP5: Fugitives - Pre-membrane chiller | JQ5: Fugitives - Pre-membrane compressor | JR5: Fugitives - Ryan-Holmes process | JS5: Fugitives - Sour gas compressor | JT5: Fugitives - Sour gas injection wells | JU5: Fugitives - CO2 reinjection compressor | JV5: Fugitives - CO2 reinjection wells | JW5: Fugitives - Gas flooding compressor | JX5: Vents - HC tanks | JY5: Fugitives - VRU compressor | JZ5: Mine face fugitives | KA5: Liquefaction flaring and fugitives | KB5: Fugitives - Completions | KC5: Fugitives - Workovers | KD5: Fugitives - Stabilizer | KE5: Claus unit exhaust | KF5: On-site meter | KG5: On-site dehydrator | KH5: On-site reciprocating compressor | KI5: On-site heater | KJ5: On-site header | KK5: Chemical injection pumps | KL5: Pneumatic controllers | KM5: Liquids unloadings | KN5: On-site tanks - leaks | KO5: On-site tanks - vents | KP5: HC Gas flood well fugitives | KQ5: Methane slip at flare | KX5: From production well | KY5: From makeup | KZ5: From procesing stream | LA5: From rest of economy | LC5: Reinjected as water | LD5: Reinjected as steam | LE5: Disposed | LF5: - | LG5: Transport to market | LH5: To other stream | LJ5: Total inputs | LK5: Total outputs | LL5: Ratio
A6: Phase | B6: Component | C6: - | D6: 3 | E6: Unit | F6: Value | G6: Value | H6: Value | I6: Value | J6: Value | K6: Value | L6: Value | M6: Value | N6: Value | O6: Value | P6: Value | Q6: Value | R6: Value | S6: Value | T6: Value | U6: Value | V6: Value | W6: Value | X6: Value | Y6: Value | Z6: Value | AA6: Value | AB6: Value | AC6: Value | AD6: Value | AE6: Value | AF6: Value | AG6: Value | AH6: Value | AI6: Value | AJ6: Value | AK6: Value | AL6: Value | AM6: Value | AN6: Value | AO6: Value | AP6: Value | AQ6: Value | AR6: Value | AS6: Value | AT6: Value | AU6: Value | AV6: ='Fuel Gas Consumed'!K10 -> Mass | AW6: Value | AX6: Value | AY6: Value | AZ6: Value | BA6: Value | BB6: Value | BC6: Value | BD6: Value | BE6: Value | BF6: Value | BG6: Value | BH6: Value | BI6: Value | BJ6: Value | BK6: Value | BL6: Value | BM6: Value | BN6: Value | BO6: Value | BP6: Value | BQ6: Value | BR6: Value | BS6: Value | BT6: Value | BU6: Value | BV6: Value | BW6: Value | BX6: Value | BY6: Value | BZ6: Value | CA6: Value | CB6: Value | CC6: Value | CD6: Value | CE6: Value | CF6: Value | CG6: Value | CH6: Value | CI6: Value | CJ6: Value | CK6: Value | CL6: Value | CM6: Value | CN6: Value | CO6: Value | CP6: Value | CQ6: Value | CR6: Value | CS6: Value | CT6: Value | CU6: Value | CV6: Value | CW6: Value | CX6: Value | CY6: Value | CZ6: Value | DA6: Value | DB6: Value | DC6: Value | DD6: Value | DE6: Value | DF6: Value | DG6: Value | DH6: Value | DI6: Value | DJ6: Value | DK6: Value | DL6: Value | DM6: Value | DN6: Value | DO6: Value | DP6: Value | DQ6: Value | DR6: Value | DS6: Value | DT6: Value | DU6: Value | DV6: Value | DW6: Value | DX6: Value | DY6: Value | DZ6: Value | EA6: Value | EB6: Value | EC6: Value | ED6: Value | EE6: Value | EF6: Value | EG6: Value | EH6: Value | EI6: Value | EJ6: Value | EK6: Value | EL6: Value | EM6: Value | EN6: Value | EO6: Value | EP6: Value | EQ6: Value | ER6: Value | ES6: Value | ET6: Value | EU6: Value | EV6: Value | EW6: Value | EX6: Value | EY6: Value | EZ6: Value | FA6: Value | FB6: Value | FC6: Value | FD6: Value | FE6: Value | FF6: Value | FG6: Value | FH6: Value | FI6: Value | FJ6: Value | FK6: Value | FL6: Value | FM6: Value | FN6: Value | FO6: Value | FP6: Value | FQ6: Value | FR6: Value | FS6: Value | FT6: Value | FU6: Value | FV6: Value | FW6: Value | FX6: Value | FY6: Value | FZ6: Value | GA6: Value | GB6: Value | GC6: Value | GD6: Value | GE6: Value | GF6: Value | GG6: Value | GH6: Value | GI6: Value | GJ6: Value | GK6: Value | GL6: Value | GM6: Value | GN6: Value | GO6: Value | GP6: Value | GQ6: Value | GR6: Value | GS6: Value | GT6: Value | GU6: Value | GV6: Value | GW6: Value | GX6: Value | GY6: Value | GZ6: Value | HA6: Value | HB6: Value | HC6: Value | HD6: Value | HE6: Value | HF6: Value | HG6: Value | HH6: Value | HI6: Value | HJ6: Value | HK6: Value | HL6: Value | HM6: Value | HN6: Value | HO6: Value | HP6: Value | HQ6: Value | HR6: Value | HS6: Value | HT6: Value | HU6: Value | HV6: Value | HW6: Value | HX6: Value | HY6: Value | HZ6: Value | IA6: Value | IB6: Value | IC6: Value | ID6: Value | IE6: Value | IF6: Value | IG6: Value | IH6: Value | II6: Value | IJ6: Value | IK6: Value | IL6: Value | IM6: Value | IN6: Value | IO6: Value | IP6: Value | IQ6: Value | IR6: Value | IS6: Value | IT6: Value | IU6: Value | IV6: Value | IW6: Value | IX6: Value | IY6: Value | IZ6: Value | JA6: Value | JB6: Value | JC6: Value | JD6: Value | JE6: Value | JF6: Value | JG6: Value | JH6: Value | JI6: Value | JJ6: Value | JK6: Value | JL6: Value | JM6: Value | JN6: Value | JO6: Value | JP6: Value | JQ6: Value | JR6: Value | JS6: Value | JT6: Value | JU6: Value | JV6: Value | JW6: Value | JX6: Value | JY6: Value | JZ6: Value | KA6: Value | KB6: Value | KC6: Value | KD6: Value | KE6: Value | KF6: Value | KG6: Value | KH6: Value | KI6: Value | KJ6: Value | KK6: Value | KL6: Value | KM6: Value | KN6: Value | KO6: Value | KP6: Value | KQ6: Value | KR6: Value | KS6: Value
A7: Solid | B7: Petroleum coke | C7: M_PC | D7: 4 | E7: tonne/d | F7: =Reservoir!F11 -> 0 | G7: ='Bitumen mining'!E11 -> 0 | H7: ='Well and downhole pump'!E11 -> 0 | I7: =Separation!E11 -> 0 | J7: ='Heavy Oil Upgrading'!E11 -> 0 | K7: ='Heavy Oil Dilution'!E11 -> 0 | L7: =Separation!M11 -> 0 | M7: ='Crude oil dewatering'!M11 -> 0 | N7: ='Crude oil dewatering'!N11 -> 0 | O7: ='Crude oil stabilization'!J11 -> 0 | P7: ='Heavy Oil Upgrading'!M11 -> 0 | Q7: ='Heavy Oil Dilution'!L11 -> 0 | R7: ='Crude Oil Storage'!N11 -> 0 | S7: ='Crude Oil Transport'!J11 -> 0 | T7: ='Heavy Oil Upgrading'!N11 -> 0 | U7: ='Heavy Oil Dilution'!F11 -> 0 | V7: ='NGL or Diluent Prod and Imports'!M11 -> 0 | W7: ='NGL or Diluent Prod and Imports'!N11 -> 0 | X7: ='Crude oil dewatering'!O11 -> 0 | Y7: ='Crude oil dewatering'!P11 -> 0 | AD7: =Reservoir!H11 -> 0 | AE7: ='Well and downhole pump'!G11 -> 0 | AF7: =Separation!G11 -> 0 | AG7: =Separation!L11 -> 0 | AH7: =Flaring!K11 -> 0 | AI7: =Flaring!L11 -> 0 | AJ7: =Venting!J11 -> 0 | AK7: ='Crude oil stabilization'!K11 -> 0 | AL7: ='VRU Compressor'!J11 -> 0 | AM7: ='Gas Gathering'!M11 -> 0 | AN7: ='Gas dehydration'!J11 -> 0 | AO7: ='Gas dehydration'!K11 -> 0 | AP7: ='Acid Gas Removal'!O11 -> 0 | AQ7: =Demethanizer!J11 -> 0 | AR7: =Demethanizer!K11 -> 0 | AS7: ='Gas Partition A'!K11 -> 0 | AT7: ='Gas Partition A'!L11 ->  | AU7: ='Gas Lifting Compressor'!J11 -> 0 | AV7: ='Fuel Gas Consumed'!K11 -> 0 | AW7: ='Fuel Gas Consumed'!J11 ->  | AX7: ='Gas Partition B'!J11 -> 0 | AY7: ='Gas Partition B'!K11 -> 0 | AZ7: ='Gas Reinjection Compressor'!J11 -> 0 | BA7: ='HC Gas Injection Wells'!J11 -> 0 | BB7: ='Gas transmission compressors'!N11 -> 0 | BC7: ='Gas transmission compressors'!J11 -> 0 | BD7: ='Storage Compressor'!J11 -> 0 | BE7: ='Gas storage wells'!J11 -> 0 | BF7: =BE7 -> 0 | BG7: ='Storage separator'!K11 -> 0 | BH7: ='Post-Storage Compressor'!J11 -> 0 | BI7: ='Gas distribution'!L11 -> 0 | BJ7: ='Gas distribution'!N11 -> 0 | BK7: ='Gas distribution'!P11 -> 0 | BL7: ='Gas distribution'!R11 -> 0 | BM7: ='Gas distribution'!T11 -> 0 | BN7: =IF($BX$155="ON",AN7,0) -> 0 | BO7: =Chiller!J11 -> 0 | BP7: ='Pre-membrane Compressor'!J11 -> 0 | BQ7: ='CO2 Membrane'!J11 -> 0 | BR7: ='CO2 Membrane'!K11 -> 0 | BS7: =IF($BY$235="ON",AN7,0) -> 0 | BT7: ='Ryan-Holmes'!J11 -> 0 | BU7: ='Ryan-Holmes'!K11 -> 0 | BV7: ='Ryan-Holmes'!L11 -> 0 | BW7: =IF($BX$286="ON",AN7,0) -> 0 | BX7: ='Sour Gas Reinjection Compressor'!J11 -> 0 | BY7: ='Sour Gas Injection Wells'!J11 -> 0 | BZ7: ='Acid Gas Removal'!L11 -> 0 | CA7: =BR7+BV7+BZ7 -> 0 | CB7: ='CO2 Reinjection Compressor'!L11 -> 0 | CC7: ='CO2 Injection Wells'!J11 -> 0 | CD7: ='Gas Flooding Compressor'!E11 -> 0 | CE7: ='Gas Flooding Compressor'!F11 -> 0 | CF7: ='Gas Flooding Compressor'!G11 -> 0 | CG7: ='Gas Flooding Compressor'!L11 -> 0 | CH7: ='Crude Oil Storage'!O11 -> 0 | CI7: ='Crude Oil Storage'!P11 -> 0 | CJ7: ='Heavy Oil Upgrading'!O11 -> 0 | CK7: ='Bitumen mining'!M11 -> 0 | CL7: ='Gas transmission compressors'!K11 -> 0 | CM7: ='LNG Liquefaction'!K11 -> 0 | CN7: ='LNG transport'!J11 -> 0 | CO7: ='LNG regasification'!J11 -> 0 | CP7: =Demethanizer!L11 -> 0 | CR7: =Reservoir!I11 -> 0 | CS7: ='Gas Flood Wells'!J11 -> 0 | DA7: =Reservoir!G11 -> 0 | DB7: ='Well and downhole pump'!F11 -> 0 | DC7: =Separation!F11 -> 0 | DD7: =Separation!N11 -> 0 | DE7: ='Makeup Water Treatment'!E11 -> 0 | DF7: ='Steam Generation'!E11 -> 0 | DG7: ='Water Injection'!E11 -> 0 | DH7: ='Makeup Water Treatment'!L11 -> 0 | DI7: ='Steam Generation'!L11 -> 0 | DJ7: ='Steam Generation'!M11 -> 0 | DK7: ='Steam injection wells'!J11 -> 0 | DL7: ='Produced Water Treatment'!L11 -> 0 | DM7: ='Produced Water Treatment'!M11 -> 0 | DN7: ='Produced Water Treatment'!N11 -> 0 | DO7: ='Produced Water Treatment'!O11 -> 0 | DP7: ='Crude oil dewatering'!L11 -> 0 | DQ7: ='Water Injection'!K11 -> 0 | DR7: ='Storage separator'!F11 -> 0 | DS7: ='Steam Generation'!N11 -> 0 | EY7: ='Fuel Gas Imports'!K11 -> 0 | EZ7: ='Fuel Gas Imports'!L11 -> 0 | FA7: ='Fuel Gas Imports'!M11 -> 0 | FB7: ='Fuel Gas Imports'!N11 -> 0 | FC7: ='Gas Lifting Compressor'!L11 -> 0 | FD7: ='Gas Reinjection Compressor'!L11 -> 0 | FE7: ='Fuel Gas Imports'!O11 -> 0 | FF7: ='Fuel Gas Imports'!P11 -> 0 | FG7: ='Fuel Gas Imports'!Q11 -> 0 | FH7: ='Fuel Gas Imports'!R11 -> 0 | FI7: ='Fuel Gas Imports'!S11 -> 0 | FJ7: ='Fuel Gas Imports'!T11 -> 0 | FK7: ='Fuel Gas Imports'!U11 -> 0 | FL7: ='Fuel Gas Imports'!V11 -> 0 | FM7: ='Fuel Gas Imports'!W11 -> 0 | FN7: ='Fuel Gas Imports'!X11 -> 0 | FO7: ='Fuel Gas Imports'!Y11 -> 0 | FP7: ='Fuel Gas Imports'!Z11 -> 0 | FQ7: ='Fuel Gas Imports'!AA11 -> 0 | FR7: ='Gas transmission compressors'!M11 -> 0 | FS7: ='Storage Compressor'!L11 -> 0 | FT7: ='Post-Storage Compressor'!K11 -> 0 | FU7: ='LNG Liquefaction'!L11 -> 0 | FV7: ='LNG regasification'!K11 -> 0 | FW7: ='Fuel Gas Imports'!AB11 -> 0 | FX7: ='Electricity Gen and Imports'!L11 -> 0 | FY7: ='Electricity Gen and Imports'!M11 -> 0 | FZ7: ='Electricity Gen and Imports'!N11 -> 0 | GA7: ='Electricity Gen and Imports'!O11 -> 0 | GB7: ='Electricity Gen and Imports'!P11 -> 0 | GC7: ='Electricity Gen and Imports'!Q11 -> 0 | GD7: ='Electricity Gen and Imports'!R11 -> 0 | GE7: ='Electricity Gen and Imports'!S11 -> 0 | GF7: ='Electricity Gen and Imports'!T11 -> 0 | GG7: ='Electricity Gen and Imports'!U11 -> 0 | GH7: ='Electricity Gen and Imports'!V11 -> 0 | GI7: ='Electricity Gen and Imports'!W11 -> 0 | GJ7: ='Electricity Gen and Imports'!X11 -> 0 | GK7: ='Electricity Gen and Imports'!Y11 -> 0 | GL7: ='Electricity Gen and Imports'!Z11 -> 0 | GM7: ='Electricity Gen and Imports'!AA11 -> 0 | GN7: ='Electricity Gen and Imports'!AB11 -> 0 | GO7: ='Electricity Gen and Imports'!AC11 -> 0 | GP7: ='Electricity Gen and Imports'!AD11 -> 0 | GQ7: ='Electricity Gen and Imports'!AE11 -> 0 | GR7: ='Electricity Gen and Imports'!AF11 -> 0 | GS7: ='Electricity Gen and Imports'!AG11 -> 0 | GT7: ='Electricity Gen and Imports'!AH11 -> 0 | GU7: ='Steam Generation'!O11 -> 0 | GV7: ='Electricity Gen and Imports'!AI11 -> 0 | GW7: ='Electricity Gen and Imports'!AJ11 -> 0 | HG7: ='Petcoke transport'!J11 -> 0 | HH7: ='Petcoke transport'!K11 -> 0 | HV7: ='Fuel Gas Imports'!F11 -> 0 | HW7: ='Electricity Gen and Imports'!G11 -> 0 | HX7: ='NGL or Diluent Prod and Imports'!G11 -> 0 | IU7: ='Well and downhole pump'!P11 -> 0 | IV7: =Separation!O11 -> 0 | IW7: =Venting!K11 -> 0 | IX7: =Venting!L11 -> 0 | IY7: ='Gas Gathering'!L11 -> 0 | IZ7: ='Gas dehydration'!L11 -> 0 | JA7: ='Acid Gas Removal'!K11 -> 0 | JB7: =Demethanizer!M11 -> 0 | JC7: ='Gas Lifting Compressor'!K11 -> 0 | JD7: ='Gas Reinjection Compressor'!K11 -> 0 | JE7: ='HC Gas Injection Wells'!K11 -> 0 | JF7: ='Gas transmission compressors'!L11 -> 0 | JG7: ='Storage Compressor'!K11 -> 0 | JH7: ='Gas storage wells'!K11 -> 0 | JI7: ='Storage separator'!L11 -> 0 | JJ7: ='Post-Storage Compressor'!L11 -> 0 | JK7: ='Gas distribution'!M11 -> 0 | JL7: ='Gas distribution'!O11 -> 0 | JM7: ='Gas distribution'!Q11 -> 0 | JN7: ='Gas distribution'!S11 -> 0 | JO7: ='Gas distribution'!U11 -> 0 | JP7: =Chiller!K11 -> 0 | JQ7: ='Pre-membrane Compressor'!K11 -> 0 | JR7: ='Ryan-Holmes'!M11 -> 0 | JS7: ='Sour Gas Reinjection Compressor'!K11 -> 0 | JT7: ='Sour Gas Injection Wells'!K11 -> 0 | JU7: ='CO2 Reinjection Compressor'!M11 -> 0 | JV7: ='CO2 Injection Wells'!K11 -> 0 | JW7: ='Gas Flooding Compressor'!M11 -> 0 | JX7: ='Crude Oil Storage'!Q11 -> 0 | JY7: ='VRU Compressor'!K11 -> 0 | JZ7: ='Bitumen mining'!L11 -> 0 | KA7: ='LNG Liquefaction'!J11 -> 0 | KB7: ='Well and downhole pump'!Q11 -> 0 | KC7: ='Well and downhole pump'!R11 -> 0 | KD7: ='Crude oil stabilization'!L11 -> 0 | KF7: ='Well and downhole pump'!S11 -> 0 | KG7: ='Well and downhole pump'!T11 -> 0 | KH7: ='Well and downhole pump'!U11 -> 0 | KI7: ='Well and downhole pump'!V11 -> 0 | KJ7: ='Well and downhole pump'!W11 -> 0 | KK7: ='Well and downhole pump'!X11 -> 0 | KL7: ='Well and downhole pump'!Y11 -> 0 | KM7: ='Well and downhole pump'!Z11 -> 0 | KN7: ='Well and downhole pump'!AA11 -> 0 | KO7: ='Well and downhole pump'!AB11 -> 0 | KP7: ='Gas Flood Wells'!K11 -> 0 | KQ7: =Flaring!M11 -> 0 | KV7: Petroleum coke | KZ7: =T7 -> 0 | LE7: =HG7 -> 0 | LF7: 0 | LG7: =HH7 -> 0 | LH7: =L7 -> 0 | LJ7: =SUM(KX7:LB7) -> 0 | LK7: =SUM(LC7:LH7) -> 0 | LL7: =IF(AND(LJ7=0,LK7=0),1,LK7/LJ7) -> 1 | LM7: =IF(AND(LL7>=0.999,LL7<1.001),"OK","ERROR") -> OK
A8: Liquid | B8: Crude oil | C8: M_O | D8: 5 | E8: tonne/d | F8: =Reservoir!F12 ->  | G8: ='Bitumen mining'!E12 -> 0 | H8: ='Well and downhole pump'!E12 ->  | I8: =Separation!E12 ->  | J8: ='Heavy Oil Upgrading'!E12 -> 0 | K8: ='Heavy Oil Dilution'!E12 -> 0 | L8: =Separation!M12 ->  | M8: ='Crude oil dewatering'!M12 ->  | N8: ='Crude oil dewatering'!N12 -> 0 | O8: ='Crude oil stabilization'!J12 ->  | P8: ='Heavy Oil Upgrading'!M12 -> 0 | Q8: ='Heavy Oil Dilution'!L12 -> 0 | R8: ='Crude Oil Storage'!N12 ->  | S8: ='Crude Oil Transport'!J12 ->  | T8: ='Heavy Oil Upgrading'!N12 -> 0 | U8: ='Heavy Oil Dilution'!F12 -> 0 | V8: ='NGL or Diluent Prod and Imports'!M12 -> 0 | W8: ='NGL or Diluent Prod and Imports'!N12 -> 0 | X8: ='Crude oil dewatering'!O12 -> 0 | Y8: ='Crude oil dewatering'!P12 -> 0 | AD8: =Reservoir!H12 -> 0 | AE8: ='Well and downhole pump'!G12 -> 0 | AF8: =Separation!G12 -> 0 | AG8: =Separation!L12 -> 0 | AH8: =Flaring!K12 -> 0 | AI8: =Flaring!L12 -> 0 | AJ8: =Venting!J12 -> 0 | AK8: ='Crude oil stabilization'!K12 -> 0 | AL8: ='VRU Compressor'!J12 -> 0 | AM8: ='Gas Gathering'!M12 -> 0 | AN8: ='Gas dehydration'!J12 -> 0 | AO8: ='Gas dehydration'!K12 -> 0 | AP8: ='Acid Gas Removal'!O12 -> 0 | AQ8: =Demethanizer!J12 -> 0 | AR8: =Demethanizer!K12 -> 0 | AS8: ='Gas Partition A'!K12 -> 0 | AT8: ='Gas Partition A'!L12 ->  | AU8: ='Gas Lifting Compressor'!J12 -> 0 | AV8: ='Fuel Gas Consumed'!K12 -> 0 | AW8: ='Fuel Gas Consumed'!J12 ->  | AX8: ='Gas Partition B'!J12 -> 0 | AY8: ='Gas Partition B'!K12 -> 0 | AZ8: ='Gas Reinjection Compressor'!J12 -> 0 | BA8: ='HC Gas Injection Wells'!J12 -> 0 | BB8: ='Gas transmission compressors'!N12 -> 0 | BC8: ='Gas transmission compressors'!J12 -> 0 | BD8: ='Storage Compressor'!J12 -> 0 | BE8: ='Gas storage wells'!J12 -> 0 | BF8: 0 | BG8: ='Storage separator'!K12 -> 0 | BH8: ='Post-Storage Compressor'!J12 -> 0 | BI8: ='Gas distribution'!L12 -> 0 | BJ8: ='Gas distribution'!N12 -> 0 | BK8: ='Gas distribution'!P12 -> 0 | BL8: ='Gas distribution'!R12 -> 0 | BM8: ='Gas distribution'!T12 -> 0 | BN8: 0 | BO8: =Chiller!J12 -> 0 | BP8: ='Pre-membrane Compressor'!J12 -> 0 | BQ8: ='CO2 Membrane'!J12 -> 0 | BR8: ='CO2 Membrane'!K12 -> 0 | BS8: 0 | BT8: ='Ryan-Holmes'!J12 -> 0 | BU8: ='Ryan-Holmes'!K12 -> 0 | BV8: ='Ryan-Holmes'!L12 -> 0 | BW8: 0 | BX8: ='Sour Gas Reinjection Compressor'!J12 -> 0 | BY8: ='Sour Gas Injection Wells'!J12 -> 0 | BZ8: ='Acid Gas Removal'!L12 -> 0 | CA8: 0 | CB8: ='CO2 Reinjection Compressor'!L12 -> 0 | CC8: ='CO2 Injection Wells'!J12 -> 0 | CD8: ='Gas Flooding Compressor'!E12 -> 0 | CE8: ='Gas Flooding Compressor'!F12 -> 0 | CF8: ='Gas Flooding Compressor'!G12 -> 0 | CG8: ='Gas Flooding Compressor'!L12 -> 0 | CH8: ='Crude Oil Storage'!O12 -> 0 | CI8: ='Crude Oil Storage'!P12 -> 0 | CJ8: ='Heavy Oil Upgrading'!O12 -> 0 | CK8: ='Bitumen mining'!M12 -> 0 | CL8: ='Gas transmission compressors'!K12 -> 0 | CM8: ='LNG Liquefaction'!K12 -> 0 | CN8: ='LNG transport'!J12 -> 0 | CO8: ='LNG regasification'!J12 -> 0 | CP8: =Demethanizer!L12 -> 0 | CR8: =Reservoir!I12 -> 0 | CS8: ='Gas Flood Wells'!J12 -> 0 | DA8: =Reservoir!G12 -> 0 | DB8: ='Well and downhole pump'!F12 -> 0 | DC8: =Separation!F12 -> 0 | DD8: =Separation!N12 -> 0 | DE8: ='Makeup Water Treatment'!E12 -> 0 | DF8: ='Steam Generation'!E12 -> 0 | DG8: ='Water Injection'!E12 -> 0 | DH8: ='Makeup Water Treatment'!L12 -> 0 | DI8: ='Steam Generation'!L12 -> 0 | DJ8: ='Steam Generation'!M12 -> 0 | DK8: ='Steam injection wells'!J12 -> 0 | DL8: ='Produced Water Treatment'!L12 -> 0 | DM8: ='Produced Water Treatment'!M12 -> 0 | DN8: ='Produced Water Treatment'!N12 -> 0 | DO8: ='Produced Water Treatment'!O12 -> 0 | DP8: ='Crude oil dewatering'!L12 -> 0 | DQ8: ='Water Injection'!K12 -> 0 | DR8: ='Storage separator'!F12 -> 0 | DS8: ='Steam Generation'!N12 -> 0 | EY8: ='Fuel Gas Imports'!K12 -> 0 | EZ8: ='Fuel Gas Imports'!L12 -> 0 | FA8: ='Fuel Gas Imports'!M12 -> 0 | FB8: ='Fuel Gas Imports'!N12 -> 0 | FC8: ='Gas Lifting Compressor'!L12 -> 0 | FD8: ='Gas Reinjection Compressor'!L12 -> 0 | FE8: ='Fuel Gas Imports'!O12 -> 0 | FF8: ='Fuel Gas Imports'!P12 -> 0 | FG8: ='Fuel Gas Imports'!Q12 -> 0 | FH8: ='Fuel Gas Imports'!R12 -> 0 | FI8: ='Fuel Gas Imports'!S12 -> 0 | FJ8: ='Fuel Gas Imports'!T12 -> 0 | FK8: ='Fuel Gas Imports'!U12 -> 0 | FL8: ='Fuel Gas Imports'!V12 -> 0 | FM8: ='Fuel Gas Imports'!W12 -> 0 | FN8: ='Fuel Gas Imports'!X12 -> 0 | FO8: ='Fuel Gas Imports'!Y12 -> 0 | FP8: ='Fuel Gas Imports'!Z12 -> 0 | FQ8: ='Fuel Gas Imports'!AA12 -> 0 | FR8: ='Gas transmission compressors'!M12 -> 0 | FS8: ='Storage Compressor'!L12 -> 0 | FT8: ='Post-Storage Compressor'!K12 -> 0 | FU8: ='LNG Liquefaction'!L12 -> 0 | FV8: ='LNG regasification'!K12 -> 0 | FW8: ='Fuel Gas Imports'!AB12 -> 0 | FX8: ='Electricity Gen and Imports'!L12 -> 0 | FY8: ='Electricity Gen and Imports'!M12 -> 0 | FZ8: ='Electricity Gen and Imports'!N12 -> 0 | GA8: ='Electricity Gen and Imports'!O12 -> 0 | GB8: ='Electricity Gen and Imports'!P12 -> 0 | GC8: ='Electricity Gen and Imports'!Q12 -> 0 | GD8: ='Electricity Gen and Imports'!R12 -> 0 | GE8: ='Electricity Gen and Imports'!S12 -> 0 | GF8: ='Electricity Gen and Imports'!T12 -> 0 | GG8: ='Electricity Gen and Imports'!U12 -> 0 | GH8: ='Electricity Gen and Imports'!V12 -> 0 | GI8: ='Electricity Gen and Imports'!W12 -> 0 | GJ8: ='Electricity Gen and Imports'!X12 -> 0 | GK8: ='Electricity Gen and Imports'!Y12 -> 0 | GL8: ='Electricity Gen and Imports'!Z12 -> 0 | GM8: ='Electricity Gen and Imports'!AA12 -> 0 | GN8: ='Electricity Gen and Imports'!AB12 -> 0 | GO8: ='Electricity Gen and Imports'!AC12 -> 0 | GP8: ='Electricity Gen and Imports'!AD12 -> 0 | GQ8: ='Electricity Gen and Imports'!AE12 -> 0 | GR8: ='Electricity Gen and Imports'!AF12 -> 0 | GS8: ='Electricity Gen and Imports'!AG12 -> 0 | GT8: ='Electricity Gen and Imports'!AH12 -> 0 | GU8: ='Steam Generation'!O12 -> 0 | GV8: ='Electricity Gen and Imports'!AI12 -> 0 | GW8: ='Electricity Gen and Imports'!AJ12 -> 0 | HG8: ='Petcoke transport'!J12 -> 0 | HH8: ='Petcoke transport'!K12 -> 0 | HV8: ='Fuel Gas Imports'!F12 -> 0 | HW8: ='Electricity Gen and Imports'!G12 -> 0 | HX8: ='NGL or Diluent Prod and Imports'!G12 -> 0 | IU8: ='Well and downhole pump'!P12 -> 0 | IV8: =Separation!O12 -> 0 | IW8: =Venting!K12 -> 0 | IX8: =Venting!L12 -> 0 | IY8: ='Gas Gathering'!L12 -> 0 | IZ8: ='Gas dehydration'!L12 -> 0 | JA8: ='Acid Gas Removal'!K12 -> 0 | JB8: =Demethanizer!M12 -> 0 | JC8: ='Gas Lifting Compressor'!K12 -> 0 | JD8: ='Gas Reinjection Compressor'!K12 -> 0 | JE8: ='HC Gas Injection Wells'!K12 -> 0 | JF8: ='Gas transmission compressors'!L12 -> 0 | JG8: ='Storage Compressor'!K12 -> 0 | JH8: ='Gas storage wells'!K12 -> 0 | JI8: ='Storage separator'!L12 -> 0 | JJ8: ='Post-Storage Compressor'!L12 -> 0 | JK8: ='Gas distribution'!M12 -> 0 | JL8: ='Gas distribution'!O12 -> 0 | JM8: ='Gas distribution'!Q12 -> 0 | JN8: ='Gas distribution'!S12 -> 0 | JO8: ='Gas distribution'!U12 -> 0 | JP8: =Chiller!K12 -> 0 | JQ8: ='Pre-membrane Compressor'!K12 -> 0 | JR8: ='Ryan-Holmes'!M12 -> 0 | JS8: ='Sour Gas Reinjection Compressor'!K12 -> 0 | JT8: ='Sour Gas Injection Wells'!K12 -> 0 | JU8: ='CO2 Reinjection Compressor'!M12 -> 0 | JV8: ='CO2 Injection Wells'!K12 -> 0 | JW8: ='Gas Flooding Compressor'!M12 -> 0 | JX8: ='Crude Oil Storage'!Q12 -> 0 | JY8: ='VRU Compressor'!K12 -> 0 | JZ8: ='Bitumen mining'!L12 -> 0 | KA8: ='LNG Liquefaction'!J12 -> 0 | KB8: ='Well and downhole pump'!Q12 -> 0 | KC8: ='Well and downhole pump'!R12 -> 0 | KD8: ='Crude oil stabilization'!L12 -> 0 | KF8: ='Well and downhole pump'!S12 -> 0 | KG8: ='Well and downhole pump'!T12 -> 0 | KH8: ='Well and downhole pump'!U12 -> 0 | KI8: ='Well and downhole pump'!V12 -> 0 | KJ8: ='Well and downhole pump'!W12 -> 0 | KK8: ='Well and downhole pump'!X12 -> 0 | KL8: ='Well and downhole pump'!Y12 -> 0 | KM8: ='Well and downhole pump'!Z12 -> 0 | KN8: ='Well and downhole pump'!AA12 -> 0 | KO8: ='Well and downhole pump'!AB12 -> 0 | KP8: ='Gas Flood Wells'!K12 -> 0 | KQ8: =Flaring!M12 -> 0 | KV8: Unstabilized crude oil | KX8: =L8+K8+J8 ->  | LA8: =U8 -> 0 | LF8: 0 | LG8: =S8 ->  | LH8: =T7+AK24+CH24+CI24+CJ24+JX24 ->  | LJ8: =SUM(KX8:LB8) ->  | LK8: =SUM(LC8:LH8) ->  | LL8: =IF(AND(LJ8=0,LK8=0),1,LK8/LJ8) ->  | LM8: =IF(OR(Oil_sands_mine_int_01=1,Oil_sands_mine_nonint_01=1),IF(AND(LL8>=0.995,LL8<1.005),"OK","ERROR"),IF(AND(LL8>=0.995,LL8<1.005),"OK","ERROR")) ->  | LN8: Upgrader can cause some mass balance issues (small) due to use of empirical data. Set epsilon to 0.5%.
A9: Liquid | B9: Liquified petroleum gas (LPG) | C9: M_LPG | D9: 6 | E9: tonne/d | F9: =Reservoir!F13 -> 0 | G9: ='Bitumen mining'!E13 -> 0 | H9: ='Well and downhole pump'!E13 -> 0 | I9: =Separation!E13 -> 0 | J9: ='Heavy Oil Upgrading'!E13 -> 0 | K9: ='Heavy Oil Dilution'!E13 -> 0 | L9: =Separation!M13 -> 0 | M9: ='Crude oil dewatering'!M13 -> 0 | N9: ='Crude oil dewatering'!N13 -> 0 | O9: ='Crude oil stabilization'!J13 -> 0 | P9: ='Heavy Oil Upgrading'!M13 -> 0 | Q9: ='Heavy Oil Dilution'!L13 -> 0 | R9: ='Crude Oil Storage'!N13 -> 0 | S9: ='Crude Oil Transport'!J13 -> 0 | T9: ='Heavy Oil Upgrading'!N13 -> 0 | U9: ='Heavy Oil Dilution'!F13 -> 0 | V9: ='NGL or Diluent Prod and Imports'!M13 ->  | W9: ='NGL or Diluent Prod and Imports'!N13 ->  | X9: ='Crude oil dewatering'!O13 -> 0 | Y9: ='Crude oil dewatering'!P13 -> 0 | AD9: =Reservoir!H13 -> 0 | AE9: ='Well and downhole pump'!G13 -> 0 | AF9: =Separation!G13 -> 0 | AG9: =Separation!L13 -> 0 | AH9: =Flaring!K13 -> 0 | AI9: =Flaring!L13 -> 0 | AJ9: =Venting!J13 -> 0 | AK9: ='Crude oil stabilization'!K13 -> 0 | AL9: ='VRU Compressor'!J13 -> 0 | AM9: ='Gas Gathering'!M13 -> 0 | AN9: ='Gas dehydration'!J13 -> 0 | AO9: ='Gas dehydration'!K13 -> 0 | AP9: ='Acid Gas Removal'!O13 -> 0 | AQ9: =Demethanizer!J13 -> 0 | AR9: =Demethanizer!K13 -> 0 | AS9: ='Gas Partition A'!K13 -> 0 | AT9: ='Gas Partition A'!L13 ->  | AU9: ='Gas Lifting Compressor'!J13 -> 0 | AV9: ='Fuel Gas Consumed'!K13 -> 0 | AW9: ='Fuel Gas Consumed'!J13 ->  | AX9: ='Gas Partition B'!J13 -> 0 | AY9: ='Gas Partition B'!K13 -> 0 | AZ9: ='Gas Reinjection Compressor'!J13 -> 0 | BA9: ='HC Gas Injection Wells'!J13 -> 0 | BB9: ='Gas transmission compressors'!N13 -> 0 | BC9: ='Gas transmission compressors'!J13 -> 0 | BD9: ='Storage Compressor'!J13 -> 0 | BE9: ='Gas storage wells'!J13 -> 0 | BF9: 0 | BG9: ='Storage separator'!K13 -> 0 | BH9: ='Post-Storage Compressor'!J13 -> 0 | BI9: ='Gas distribution'!L13 -> 0 | BJ9: ='Gas distribution'!N13 -> 0 | BK9: ='Gas distribution'!P13 -> 0 | BL9: ='Gas distribution'!R13 -> 0 | BM9: ='Gas distribution'!T13 -> 0 | BN9: 0 | BO9: =Chiller!J13 -> 0 | BP9: ='Pre-membrane Compressor'!J13 -> 0 | BQ9: ='CO2 Membrane'!J13 -> 0 | BR9: ='CO2 Membrane'!K13 -> 0 | BS9: 0 | BT9: ='Ryan-Holmes'!J13 -> 0 | BU9: ='Ryan-Holmes'!K13 -> 0 | BV9: ='Ryan-Holmes'!L13 -> 0 | BW9: 0 | BX9: ='Sour Gas Reinjection Compressor'!J13 -> 0 | BY9: ='Sour Gas Injection Wells'!J13 -> 0 | BZ9: ='Acid Gas Removal'!L13 -> 0 | CA9: 0 | CB9: ='CO2 Reinjection Compressor'!L13 -> 0 | CC9: ='CO2 Injection Wells'!J13 -> 0 | CD9: ='Gas Flooding Compressor'!E13 -> 0 | CE9: ='Gas Flooding Compressor'!F13 -> 0 | CF9: ='Gas Flooding Compressor'!G13 -> 0 | CG9: ='Gas Flooding Compressor'!L13 -> 0 | CH9: ='Crude Oil Storage'!O13 -> 0 | CI9: ='Crude Oil Storage'!P13 -> 0 | CJ9: ='Heavy Oil Upgrading'!O13 -> 0 | CK9: ='Bitumen mining'!M13 -> 0 | CL9: ='Gas transmission compressors'!K13 -> 0 | CM9: ='LNG Liquefaction'!K13 -> 0 | CN9: ='LNG transport'!J13 -> 0 | CO9: ='LNG regasification'!J13 -> 0 | CP9: =Demethanizer!L13 -> 0 | CR9: =Reservoir!I13 -> 0 | CS9: ='Gas Flood Wells'!J13 -> 0 | DA9: =Reservoir!G13 -> 0 | DB9: ='Well and downhole pump'!F13 -> 0 | DC9: =Separation!F13 -> 0 | DD9: =Separation!N13 -> 0 | DE9: ='Makeup Water Treatment'!E13 -> 0 | DF9: ='Steam Generation'!E13 -> 0 | DG9: ='Water Injection'!E13 -> 0 | DH9: ='Makeup Water Treatment'!L13 -> 0 | DI9: ='Steam Generation'!L13 -> 0 | DJ9: ='Steam Generation'!M13 -> 0 | DK9: ='Steam injection wells'!J13 -> 0 | DL9: ='Produced Water Treatment'!L13 -> 0 | DM9: ='Produced Water Treatment'!M13 -> 0 | DN9: ='Produced Water Treatment'!N13 -> 0 | DO9: ='Produced Water Treatment'!O13 -> 0 | DP9: ='Crude oil dewatering'!L13 -> 0 | DQ9: ='Water Injection'!K13 -> 0 | DR9: ='Storage separator'!F13 -> 0 | DS9: ='Steam Generation'!N13 -> 0 | EY9: ='Fuel Gas Imports'!K13 -> 0 | EZ9: ='Fuel Gas Imports'!L13 -> 0 | FA9: ='Fuel Gas Imports'!M13 -> 0 | FB9: ='Fuel Gas Imports'!N13 -> 0 | FC9: ='Gas Lifting Compressor'!L13 -> 0 | FD9: ='Gas Reinjection Compressor'!L13 -> 0 | FE9: ='Fuel Gas Imports'!O13 -> 0 | FF9: ='Fuel Gas Imports'!P13 -> 0 | FG9: ='Fuel Gas Imports'!Q13 -> 0 | FH9: ='Fuel Gas Imports'!R13 -> 0 | FI9: ='Fuel Gas Imports'!S13 -> 0 | FJ9: ='Fuel Gas Imports'!T13 -> 0 | FK9: ='Fuel Gas Imports'!U13 -> 0 | FL9: ='Fuel Gas Imports'!V13 -> 0 | FM9: ='Fuel Gas Imports'!W13 -> 0 | FN9: ='Fuel Gas Imports'!X13 -> 0 | FO9: ='Fuel Gas Imports'!Y13 -> 0 | FP9: ='Fuel Gas Imports'!Z13 -> 0 | FQ9: ='Fuel Gas Imports'!AA13 -> 0 | FR9: ='Gas transmission compressors'!M13 -> 0 | FS9: ='Storage Compressor'!L13 -> 0 | FT9: ='Post-Storage Compressor'!K13 -> 0 | FU9: ='LNG Liquefaction'!L13 -> 0 | FV9: ='LNG regasification'!K13 -> 0 | FW9: ='Fuel Gas Imports'!AB13 -> 0 | FX9: ='Electricity Gen and Imports'!L13 -> 0 | FY9: ='Electricity Gen and Imports'!M13 -> 0 | FZ9: ='Electricity Gen and Imports'!N13 -> 0 | GA9: ='Electricity Gen and Imports'!O13 -> 0 | GB9: ='Electricity Gen and Imports'!P13 -> 0 | GC9: ='Electricity Gen and Imports'!Q13 -> 0 | GD9: ='Electricity Gen and Imports'!R13 -> 0 | GE9: ='Electricity Gen and Imports'!S13 -> 0 | GF9: ='Electricity Gen and Imports'!T13 -> 0 | GG9: ='Electricity Gen and Imports'!U13 -> 0 | GH9: ='Electricity Gen and Imports'!V13 -> 0 | GI9: ='Electricity Gen and Imports'!W13 -> 0 | GJ9: ='Electricity Gen and Imports'!X13 -> 0 | GK9: ='Electricity Gen and Imports'!Y13 -> 0 | GL9: ='Electricity Gen and Imports'!Z13 -> 0 | GM9: ='Electricity Gen and Imports'!AA13 -> 0 | GN9: ='Electricity Gen and Imports'!AB13 -> 0 | GO9: ='Electricity Gen and Imports'!AC13 -> 0 | GP9: ='Electricity Gen and Imports'!AD13 -> 0 | GQ9: ='Electricity Gen and Imports'!AE13 -> 0 | GR9: ='Electricity Gen and Imports'!AF13 -> 0 | GS9: ='Electricity Gen and Imports'!AG13 -> 0 | GT9: ='Electricity Gen and Imports'!AH13 -> 0 | GU9: ='Steam Generation'!O13 -> 0 | GV9: ='Electricity Gen and Imports'!AI13 -> 0 | GW9: ='Electricity Gen and Imports'!AJ13 -> 0 | HG9: ='Petcoke transport'!J13 -> 0 | HH9: ='Petcoke transport'!K13 -> 0 | HV9: ='Fuel Gas Imports'!F13 -> 0 | HW9: ='Electricity Gen and Imports'!G13 -> 0 | HX9: ='NGL or Diluent Prod and Imports'!G13 -> 0 | IU9: ='Well and downhole pump'!P13 -> 0 | IV9: =Separation!O13 -> 0 | IW9: =Venting!K13 -> 0 | IX9: =Venting!L13 -> 0 | IY9: ='Gas Gathering'!L13 -> 0 | IZ9: ='Gas dehydration'!L13 -> 0 | JA9: ='Acid Gas Removal'!K13 -> 0 | JB9: =Demethanizer!M13 -> 0 | JC9: ='Gas Lifting Compressor'!K13 -> 0 | JD9: ='Gas Reinjection Compressor'!K13 -> 0 | JE9: ='HC Gas Injection Wells'!K13 -> 0 | JF9: ='Gas transmission compressors'!L13 -> 0 | JG9: ='Storage Compressor'!K13 -> 0 | JH9: ='Gas storage wells'!K13 -> 0 | JI9: ='Storage separator'!L13 -> 0 | JJ9: ='Post-Storage Compressor'!L13 -> 0 | JK9: ='Gas distribution'!M13 -> 0 | JL9: ='Gas distribution'!O13 -> 0 | JM9: ='Gas distribution'!Q13 -> 0 | JN9: ='Gas distribution'!S13 -> 0 | JO9: ='Gas distribution'!U13 -> 0 | JP9: =Chiller!K13 -> 0 | JQ9: ='Pre-membrane Compressor'!K13 -> 0 | JR9: ='Ryan-Holmes'!M13 -> 0 | JS9: ='Sour Gas Reinjection Compressor'!K13 -> 0 | JT9: ='Sour Gas Injection Wells'!K13 -> 0 | JU9: ='CO2 Reinjection Compressor'!M13 -> 0 | JV9: ='CO2 Injection Wells'!K13 -> 0 | JW9: ='Gas Flooding Compressor'!M13 -> 0 | JX9: ='Crude Oil Storage'!Q13 -> 0 | JY9: ='VRU Compressor'!K13 -> 0 | JZ9: ='Bitumen mining'!L13 -> 0 | KA9: ='LNG Liquefaction'!J13 -> 0 | KB9: ='Well and downhole pump'!Q13 -> 0 | KC9: ='Well and downhole pump'!R13 -> 0 | KD9: ='Crude oil stabilization'!L13 -> 0 | KF9: ='Well and downhole pump'!S13 -> 0 | KG9: ='Well and downhole pump'!T13 -> 0 | KH9: ='Well and downhole pump'!U13 -> 0 | KI9: ='Well and downhole pump'!V13 -> 0 | KJ9: ='Well and downhole pump'!W13 -> 0 | KK9: ='Well and downhole pump'!X13 -> 0 | KL9: ='Well and downhole pump'!Y13 -> 0 | KM9: ='Well and downhole pump'!Z13 -> 0 | KN9: ='Well and downhole pump'!AA13 -> 0 | KO9: ='Well and downhole pump'!AB13 -> 0 | KP9: ='Gas Flood Wells'!K13 -> 0 | KQ9: =Flaring!M13 -> 0 | KV9: Natural gas liquids / Diluent | KZ9: =AR16+AR18+AR19+BU24 ->  | LA9: =HX9 -> 0 | LF9: 0 | LG9: =W9+V9 ->  | LH9: =IF(AW211="ON",LA9,0) -> 0 | LJ9: =SUM(KX9:LB9) ->  | LK9: =SUM(LC9:LH9) ->  | LL9: =IF(AND(LJ9=0,LK9=0),1,LK9/LJ9) ->  | LM9: =IF(AND(LL9>=0.999,LL9<1.001),"OK","ERROR") -> 
A10: Liquid | B10: Water | C10: M_W | D10: 7 | E10: tonne/d | F10: =Reservoir!F14 ->  | G10: ='Bitumen mining'!E14 -> 0 | H10: ='Well and downhole pump'!E14 ->  | I10: =Separation!E14 ->  | J10: ='Heavy Oil Upgrading'!E14 -> 0 | K10: ='Heavy Oil Dilution'!E14 -> 0 | L10: =Separation!M14 ->  | M10: ='Crude oil dewatering'!M14 -> 0 | N10: ='Crude oil dewatering'!N14 -> 0 | O10: ='Crude oil stabilization'!J14 -> 0 | P10: ='Heavy Oil Upgrading'!M14 -> 0 | Q10: ='Heavy Oil Dilution'!L14 -> 0 | R10: ='Crude Oil Storage'!N14 -> 0 | S10: ='Crude Oil Transport'!J14 -> 0 | T10: ='Heavy Oil Upgrading'!N14 -> 0 | U10: ='Heavy Oil Dilution'!F14 -> 0 | V10: ='NGL or Diluent Prod and Imports'!M14 -> 0 | W10: ='NGL or Diluent Prod and Imports'!N14 -> 0 | X10: ='Crude oil dewatering'!O14 -> 0 | Y10: ='Crude oil dewatering'!P14 -> 0 | AD10: =Reservoir!H14 -> 0 | AE10: ='Well and downhole pump'!G14 -> 0 | AF10: =Separation!G14 -> 0 | AG10: =Separation!L14 -> 0 | AH10: =Flaring!K14 -> 0 | AI10: =Flaring!L14 -> 0 | AJ10: =Venting!J14 -> 0 | AK10: ='Crude oil stabilization'!K14 -> 0 | AL10: ='VRU Compressor'!J14 -> 0 | AM10: ='Gas Gathering'!M14 -> 0 | AN10: ='Gas dehydration'!J14 -> 0 | AO10: ='Gas dehydration'!K14 -> 0 | AP10: ='Acid Gas Removal'!O14 -> 0 | AQ10: =Demethanizer!J14 -> 0 | AR10: =Demethanizer!K14 -> 0 | AS10: ='Gas Partition A'!K14 -> 0 | AT10: ='Gas Partition A'!L14 ->  | AU10: ='Gas Lifting Compressor'!J14 -> 0 | AV10: ='Fuel Gas Consumed'!K14 -> 0 | AW10: ='Fuel Gas Consumed'!J14 ->  | AX10: ='Gas Partition B'!J14 -> 0 | AY10: ='Gas Partition B'!K14 -> 0 | AZ10: ='Gas Reinjection Compressor'!J14 -> 0 | BA10: ='HC Gas Injection Wells'!J14 -> 0 | BB10: ='Gas transmission compressors'!N14 -> 0 | BC10: ='Gas transmission compressors'!J14 -> 0 | BD10: ='Storage Compressor'!J14 -> 0 | BE10: ='Gas storage wells'!J14 -> 0 | BF10: 0 | BG10: ='Storage separator'!K14 -> 0 | BH10: ='Post-Storage Compressor'!J14 -> 0 | BI10: ='Gas distribution'!L14 -> 0 | BJ10: ='Gas distribution'!N14 -> 0 | BK10: ='Gas distribution'!P14 -> 0 | BL10: ='Gas distribution'!R14 -> 0 | BM10: ='Gas distribution'!T14 -> 0 | BN10: 0 | BO10: =Chiller!J14 -> 0 | BP10: ='Pre-membrane Compressor'!J14 -> 0 | BQ10: ='CO2 Membrane'!J14 -> 0 | BR10: ='CO2 Membrane'!K14 -> 0 | BS10: 0 | BT10: ='Ryan-Holmes'!J14 -> 0 | BU10: ='Ryan-Holmes'!K14 -> 0 | BV10: ='Ryan-Holmes'!L14 -> 0 | BW10: 0 | BX10: ='Sour Gas Reinjection Compressor'!J14 -> 0 | BY10: ='Sour Gas Injection Wells'!J14 -> 0 | BZ10: ='Acid Gas Removal'!L14 -> 0 | CA10: 0 | CB10: ='CO2 Reinjection Compressor'!L14 -> 0 | CC10: ='CO2 Injection Wells'!J14 -> 0 | CD10: ='Gas Flooding Compressor'!E14 -> 0 | CE10: ='Gas Flooding Compressor'!F14 -> 0 | CF10: ='Gas Flooding Compressor'!G14 -> 0 | CG10: ='Gas Flooding Compressor'!L14 -> 0 | CH10: ='Crude Oil Storage'!O14 -> 0 | CI10: ='Crude Oil Storage'!P14 -> 0 | CJ10: ='Heavy Oil Upgrading'!O14 -> 0 | CK10: ='Bitumen mining'!M14 -> 0 | CL10: ='Gas transmission compressors'!K14 -> 0 | CM10: ='LNG Liquefaction'!K14 -> 0 | CN10: ='LNG transport'!J14 -> 0 | CO10: ='LNG regasification'!J14 -> 0 | CP10: =Demethanizer!L14 -> 0 | CR10: =Reservoir!I14 -> 0 | CS10: ='Gas Flood Wells'!J14 -> 0 | DA10: =Reservoir!G14 ->  | DB10: ='Well and downhole pump'!F14 ->  | DC10: =Separation!F14 ->  | DD10: =Separation!N14 ->  | DE10: ='Makeup Water Treatment'!E14 ->  | DF10: ='Steam Generation'!E14 -> 0 | DG10: ='Water Injection'!E14 ->  | DH10: ='Makeup Water Treatment'!L14 ->  | DI10: ='Steam Generation'!L14 -> 0 | DJ10: ='Steam Generation'!M14 -> 0 | DK10: ='Steam injection wells'!J14 -> 0 | DL10: ='Produced Water Treatment'!L14 -> 0 | DM10: ='Produced Water Treatment'!M14 ->  | DN10: ='Produced Water Treatment'!N14 ->  | DO10: ='Produced Water Treatment'!O14 ->  | DP10: ='Crude oil dewatering'!L14 ->  | DQ10: ='Water Injection'!K14 -> 13911.38875 | DR10: ='Storage separator'!F14 -> 0 | DS10: ='Steam Generation'!N14 -> 0 | EY10: ='Fuel Gas Imports'!K14 -> 0 | EZ10: ='Fuel Gas Imports'!L14 -> 0 | FA10: ='Fuel Gas Imports'!M14 -> 0 | FB10: ='Fuel Gas Imports'!N14 -> 0 | FC10: ='Gas Lifting Compressor'!L14 -> 0 | FD10: ='Gas Reinjection Compressor'!L14 -> 0 | FE10: ='Fuel Gas Imports'!O14 -> 0 | FF10: ='Fuel Gas Imports'!P14 -> 0 | FG10: ='Fuel Gas Imports'!Q14 -> 0 | FH10: ='Fuel Gas Imports'!R14 -> 0 | FI10: ='Fuel Gas Imports'!S14 -> 0 | FJ10: ='Fuel Gas Imports'!T14 -> 0 | FK10: ='Fuel Gas Imports'!U14 -> 0 | FL10: ='Fuel Gas Imports'!V14 -> 0 | FM10: ='Fuel Gas Imports'!W14 -> 0 | FN10: ='Fuel Gas Imports'!X14 -> 0 | FO10: ='Fuel Gas Imports'!Y14 -> 0 | FP10: ='Fuel Gas Imports'!Z14 -> 0 | FQ10: ='Fuel Gas Imports'!AA14 -> 0 | FR10: ='Gas transmission compressors'!M14 -> 0 | FS10: ='Storage Compressor'!L14 -> 0 | FT10: ='Post-Storage Compressor'!K14 -> 0 | FU10: ='LNG Liquefaction'!L14 -> 0 | FV10: ='LNG regasification'!K14 -> 0 | FW10: ='Fuel Gas Imports'!AB14 -> 0 | FX10: ='Electricity Gen and Imports'!L14 -> 0 | FY10: ='Electricity Gen and Imports'!M14 -> 0 | FZ10: ='Electricity Gen and Imports'!N14 -> 0 | GA10: ='Electricity Gen and Imports'!O14 -> 0 | GB10: ='Electricity Gen and Imports'!P14 -> 0 | GC10: ='Electricity Gen and Imports'!Q14 -> 0 | GD10: ='Electricity Gen and Imports'!R14 -> 0 | GE10: ='Electricity Gen and Imports'!S14 -> 0 | GF10: ='Electricity Gen and Imports'!T14 -> 0 | GG10: ='Electricity Gen and Imports'!U14 -> 0 | GH10: ='Electricity Gen and Imports'!V14 -> 0 | GI10: ='Electricity Gen and Imports'!W14 -> 0 | GJ10: ='Electricity Gen and Imports'!X14 -> 0 | GK10: ='Electricity Gen and Imports'!Y14 -> 0 | GL10: ='Electricity Gen and Imports'!Z14 -> 0 | GM10: ='Electricity Gen and Imports'!AA14 -> 0 | GN10: ='Electricity Gen and Imports'!AB14 -> 0 | GO10: ='Electricity Gen and Imports'!AC14 -> 0 | GP10: ='Electricity Gen and Imports'!AD14 -> 0 | GQ10: ='Electricity Gen and Imports'!AE14 -> 0 | GR10: ='Electricity Gen and Imports'!AF14 -> 0 | GS10: ='Electricity Gen and Imports'!AG14 -> 0 | GT10: ='Electricity Gen and Imports'!AH14 -> 0 | GU10: ='Steam Generation'!O14 -> 0 | GV10: ='Electricity Gen and Imports'!AI14 -> 0 | GW10: ='Electricity Gen and Imports'!AJ14 -> 0 | HG10: ='Petcoke transport'!J14 -> 0 | HH10: ='Petcoke transport'!K14 -> 0 | HV10: ='Fuel Gas Imports'!F14 -> 0 | HW10: ='Electricity Gen and Imports'!G14 -> 0 | HX10: ='NGL or Diluent Prod and Imports'!G14 -> 0 | IU10: ='Well and downhole pump'!P14 -> 0 | IV10: =Separation!O14 -> 0 | IW10: =Venting!K14 -> 0 | IX10: =Venting!L14 -> 0 | IY10: ='Gas Gathering'!L14 -> 0 | IZ10: ='Gas dehydration'!L14 -> 0 | JA10: ='Acid Gas Removal'!K14 -> 0 | JB10: =Demethanizer!M14 -> 0 | JC10: ='Gas Lifting Compressor'!K14 -> 0 | JD10: ='Gas Reinjection Compressor'!K14 -> 0 | JE10: ='HC Gas Injection Wells'!K14 -> 0 | JF10: ='Gas transmission compressors'!L14 -> 0 | JG10: ='Storage Compressor'!K14 -> 0 | JH10: ='Gas storage wells'!K14 -> 0 | JI10: ='Storage separator'!L14 -> 0 | JJ10: ='Post-Storage Compressor'!L14 -> 0 | JK10: ='Gas distribution'!M14 -> 0 | JL10: ='Gas distribution'!O14 -> 0 | JM10: ='Gas distribution'!Q14 -> 0 | JN10: ='Gas distribution'!S14 -> 0 | JO10: ='Gas distribution'!U14 -> 0 | JP10: =Chiller!K14 -> 0 | JQ10: ='Pre-membrane Compressor'!K14 -> 0 | JR10: ='Ryan-Holmes'!M14 -> 0 | JS10: ='Sour Gas Reinjection Compressor'!K14 -> 0 | JT10: ='Sour Gas Injection Wells'!K14 -> 0 | JU10: ='CO2 Reinjection Compressor'!M14 -> 0 | JV10: ='CO2 Injection Wells'!K14 -> 0 | JW10: ='Gas Flooding Compressor'!M14 -> 0 | JX10: ='Crude Oil Storage'!Q14 -> 0 | JY10: ='VRU Compressor'!K14 -> 0 | JZ10: ='Bitumen mining'!L14 -> 0 | KA10: ='LNG Liquefaction'!J14 -> 0 | KB10: ='Well and downhole pump'!Q14 -> 0 | KC10: ='Well and downhole pump'!R14 -> 0 | KD10: ='Crude oil stabilization'!L14 -> 0 | KF10: ='Well and downhole pump'!S14 -> 0 | KG10: ='Well and downhole pump'!T14 -> 0 | KH10: ='Well and downhole pump'!U14 -> 0 | KI10: ='Well and downhole pump'!V14 -> 0 | KJ10: ='Well and downhole pump'!W14 -> 0 | KK10: ='Well and downhole pump'!X14 -> 0 | KL10: ='Well and downhole pump'!Y14 -> 0 | KM10: ='Well and downhole pump'!Z14 -> 0 | KN10: ='Well and downhole pump'!AA14 -> 0 | KO10: ='Well and downhole pump'!AB14 -> 0 | KP10: ='Gas Flood Wells'!K14 -> 0 | KQ10: =Flaring!M14 -> 0 | KV10: Water | KX10: =DB10+H10 ->  | KY10: =DE10 ->  | LC10: =DQ10 -> 13911.38875 | LD10: =DK10 -> 0 | LE10: =DH10+DJ10+DM10+DO10 ->  | LF10: 0 | LJ10: =KX10+KY10 ->  | LK10: =LC10+LD10+LE10 ->  | LL10: =IF(AND(LJ10=0,LK10=0),1,LK10/LJ10) ->  | LM10: =IF(AND(LL10>=0.999,LL10<1.001),"OK","ERROR") -> 
A11: Liquid | B11: Total liquids | C11: M_TOTLIQ | D11: 8 | E11: tonne/d | F11: =Reservoir!F15 ->  | G11: ='Bitumen mining'!E15 -> 0 | H11: ='Well and downhole pump'!E15 ->  | I11: =Separation!E15 ->  | J11: ='Heavy Oil Upgrading'!E15 -> 0 | K11: ='Heavy Oil Dilution'!E15 -> 0 | L11: =Separation!M15 ->  | M11: ='Crude oil dewatering'!M15 ->  | N11: ='Crude oil dewatering'!N15 -> 0 | O11: ='Crude oil stabilization'!J15 ->  | P11: ='Heavy Oil Upgrading'!M15 -> 0 | Q11: ='Heavy Oil Dilution'!L15 -> 0 | R11: ='Crude Oil Storage'!N15 ->  | S11: ='Crude Oil Transport'!J15 ->  | T11: ='Heavy Oil Upgrading'!N15 -> 0 | U11: ='Heavy Oil Dilution'!F15 -> 0 | V11: ='NGL or Diluent Prod and Imports'!M15 ->  | W11: ='NGL or Diluent Prod and Imports'!N15 ->  | X11: ='Crude oil dewatering'!O15 -> 0 | Y11: ='Crude oil dewatering'!P15 -> 0 | AD11: =Reservoir!H15 -> 0 | AE11: ='Well and downhole pump'!G15 -> 0 | AF11: =Separation!G15 -> 0 | AG11: =Separation!L15 -> 0 | AH11: =Flaring!K15 -> 0 | AI11: =Flaring!L15 -> 0 | AJ11: =Venting!J15 -> 0 | AK11: ='Crude oil stabilization'!K15 -> 0 | AL11: ='VRU Compressor'!J15 -> 0 | AM11: ='Gas Gathering'!M15 -> 0 | AN11: ='Gas dehydration'!J15 -> 0 | AO11: ='Gas dehydration'!K15 -> 0 | AP11: ='Acid Gas Removal'!O15 -> 0 | AQ11: =Demethanizer!J15 -> 0 | AR11: =Demethanizer!K15 -> 0 | AS11: ='Gas Partition A'!K15 -> 0 | AT11: ='Gas Partition A'!L15 ->  | AU11: ='Gas Lifting Compressor'!J15 -> 0 | AV11: ='Fuel Gas Consumed'!K15 -> 0 | AW11: ='Fuel Gas Consumed'!J15 ->  | AX11: ='Gas Partition B'!J15 -> 0 | AY11: ='Gas Partition B'!K15 -> 0 | AZ11: ='Gas Reinjection Compressor'!J15 -> 0 | BA11: ='HC Gas Injection Wells'!J15 -> 0 | BB11: ='Gas transmission compressors'!N15 -> 0 | BC11: ='Gas transmission compressors'!J15 -> 0 | BD11: ='Storage Compressor'!J15 -> 0 | BE11: ='Gas storage wells'!J15 -> 0 | BF11: 0 | BG11: ='Storage separator'!K15 -> 0 | BH11: ='Post-Storage Compressor'!J15 -> 0 | BI11: ='Gas distribution'!L15 -> 0 | BJ11: ='Gas distribution'!N15 -> 0 | BK11: ='Gas distribution'!P15 -> 0 | BL11: ='Gas distribution'!R15 -> 0 | BM11: ='Gas distribution'!T15 -> 0 | BN11: 0 | BO11: =Chiller!J15 -> 0 | BP11: ='Pre-membrane Compressor'!J15 -> 0 | BQ11: ='CO2 Membrane'!J15 -> 0 | BR11: ='CO2 Membrane'!K15 -> 0 | BS11: 0 | BT11: ='Ryan-Holmes'!J15 -> 0 | BU11: ='Ryan-Holmes'!K15 -> 0 | BV11: ='Ryan-Holmes'!L15 -> 0 | BW11: 0 | BX11: ='Sour Gas Reinjection Compressor'!J15 -> 0 | BY11: ='Sour Gas Injection Wells'!J15 -> 0 | BZ11: ='Acid Gas Removal'!L15 -> 0 | CA11: 0 | CB11: ='CO2 Reinjection Compressor'!L15 -> 0 | CC11: ='CO2 Injection Wells'!J15 -> 0 | CD11: ='Gas Flooding Compressor'!E15 -> 0 | CE11: ='Gas Flooding Compressor'!F15 -> 0 | CF11: ='Gas Flooding Compressor'!G15 -> 0 | CG11: ='Gas Flooding Compressor'!L15 -> 0 | CH11: ='Crude Oil Storage'!O15 -> 0 | CI11: ='Crude Oil Storage'!P15 -> 0 | CJ11: ='Heavy Oil Upgrading'!O15 -> 0 | CK11: ='Bitumen mining'!M15 -> 0 | CL11: ='Gas transmission compressors'!K15 -> 0 | CM11: ='LNG Liquefaction'!K15 -> 0 | CN11: ='LNG transport'!J15 -> 0 | CO11: ='LNG regasification'!J15 -> 0 | CP11: =Demethanizer!L15 -> 0 | CR11: =Reservoir!I15 -> 0 | CS11: ='Gas Flood Wells'!J15 -> 0 | DA11: =Reservoir!G15 ->  | DB11: ='Well and downhole pump'!F15 ->  | DC11: =Separation!F15 ->  | DD11: =Separation!N15 ->  | DE11: ='Makeup Water Treatment'!E15 ->  | DF11: ='Steam Generation'!E15 -> 0 | DG11: ='Water Injection'!E15 ->  | DH11: ='Makeup Water Treatment'!L15 ->  | DI11: ='Steam Generation'!L15 -> 0 | DJ11: ='Steam Generation'!M15 -> 0 | DK11: ='Steam injection wells'!J15 -> 0 | DL11: ='Produced Water Treatment'!L15 -> 0 | DM11: ='Produced Water Treatment'!M15 ->  | DN11: ='Produced Water Treatment'!N15 ->  | DO11: ='Produced Water Treatment'!O15 ->  | DP11: ='Crude oil dewatering'!L15 ->  | DQ11: ='Water Injection'!K15 -> 13911.38875 | DR11: ='Storage separator'!F15 -> 0 | DS11: ='Steam Generation'!N15 -> 0 | EY11: ='Fuel Gas Imports'!K15 -> 0 | EZ11: ='Fuel Gas Imports'!L15 -> 0 | FA11: ='Fuel Gas Imports'!M15 -> 0 | FB11: ='Fuel Gas Imports'!N15 -> 0 | FC11: ='Gas Lifting Compressor'!L15 -> 0 | FD11: ='Gas Reinjection Compressor'!L15 -> 0 | FE11: ='Fuel Gas Imports'!O15 -> 0 | FF11: ='Fuel Gas Imports'!P15 -> 0 | FG11: ='Fuel Gas Imports'!Q15 -> 0 | FH11: ='Fuel Gas Imports'!R15 -> 0 | FI11: ='Fuel Gas Imports'!S15 -> 0 | FJ11: ='Fuel Gas Imports'!T15 -> 0 | FK11: ='Fuel Gas Imports'!U15 -> 0 | FL11: ='Fuel Gas Imports'!V15 -> 0 | FM11: ='Fuel Gas Imports'!W15 -> 0 | FN11: ='Fuel Gas Imports'!X15 -> 0 | FO11: ='Fuel Gas Imports'!Y15 -> 0 | FP11: ='Fuel Gas Imports'!Z15 -> 0 | FQ11: ='Fuel Gas Imports'!AA15 -> 0 | FR11: ='Gas transmission compressors'!M15 -> 0 | FS11: ='Storage Compressor'!L15 -> 0 | FT11: ='Post-Storage Compressor'!K15 -> 0 | FU11: ='LNG Liquefaction'!L15 -> 0 | FV11: ='LNG regasification'!K15 -> 0 | FW11: ='Fuel Gas Imports'!AB15 -> 0 | FX11: ='Electricity Gen and Imports'!L15 -> 0 | FY11: ='Electricity Gen and Imports'!M15 -> 0 | FZ11: ='Electricity Gen and Imports'!N15 -> 0 | GA11: ='Electricity Gen and Imports'!O15 -> 0 | GB11: ='Electricity Gen and Imports'!P15 -> 0 | GC11: ='Electricity Gen and Imports'!Q15 -> 0 | GD11: ='Electricity Gen and Imports'!R15 -> 0 | GE11: ='Electricity Gen and Imports'!S15 -> 0 | GF11: ='Electricity Gen and Imports'!T15 -> 0 | GG11: ='Electricity Gen and Imports'!U15 -> 0 | GH11: ='Electricity Gen and Imports'!V15 -> 0 | GI11: ='Electricity Gen and Imports'!W15 -> 0 | GJ11: ='Electricity Gen and Imports'!X15 -> 0 | GK11: ='Electricity Gen and Imports'!Y15 -> 0 | GL11: ='Electricity Gen and Imports'!Z15 -> 0 | GM11: ='Electricity Gen and Imports'!AA15 -> 0 | GN11: ='Electricity Gen and Imports'!AB15 -> 0 | GO11: ='Electricity Gen and Imports'!AC15 -> 0 | GP11: ='Electricity Gen and Imports'!AD15 -> 0 | GQ11: ='Electricity Gen and Imports'!AE15 -> 0 | GR11: ='Electricity Gen and Imports'!AF15 -> 0 | GS11: ='Electricity Gen and Imports'!AG15 -> 0 | GT11: ='Electricity Gen and Imports'!AH15 -> 0 | GU11: ='Steam Generation'!O15 -> 0 | GV11: ='Electricity Gen and Imports'!AI15 -> 0 | GW11: ='Electricity Gen and Imports'!AJ15 -> 0 | HG11: ='Petcoke transport'!J15 -> 0 | HH11: ='Petcoke transport'!K15 -> 0 | HV11: ='Fuel Gas Imports'!F15 -> 0 | HW11: ='Electricity Gen and Imports'!G15 -> 0 | HX11: ='NGL or Diluent Prod and Imports'!G15 -> 0 | IU11: ='Well and downhole pump'!P15 -> 0 | IV11: =Separation!O15 -> 0 | IW11: =Venting!K15 -> 0 | IX11: =Venting!L15 -> 0 | IY11: ='Gas Gathering'!L15 -> 0 | IZ11: ='Gas dehydration'!L15 -> 0 | JA11: ='Acid Gas Removal'!K15 -> 0 | JB11: =Demethanizer!M15 -> 0 | JC11: ='Gas Lifting Compressor'!K15 -> 0 | JD11: ='Gas Reinjection Compressor'!K15 -> 0 | JE11: ='HC Gas Injection Wells'!K15 -> 0 | JF11: ='Gas transmission compressors'!L15 -> 0 | JG11: ='Storage Compressor'!K15 -> 0 | JH11: ='Gas storage wells'!K15 -> 0 | JI11: ='Storage separator'!L15 -> 0 | JJ11: ='Post-Storage Compressor'!L15 -> 0 | JK11: ='Gas distribution'!M15 -> 0 | JL11: ='Gas distribution'!O15 -> 0 | JM11: ='Gas distribution'!Q15 -> 0 | JN11: ='Gas distribution'!S15 -> 0 | JO11: ='Gas distribution'!U15 -> 0 | JP11: =Chiller!K15 -> 0 | JQ11: ='Pre-membrane Compressor'!K15 -> 0 | JR11: ='Ryan-Holmes'!M15 -> 0 | JS11: ='Sour Gas Reinjection Compressor'!K15 -> 0 | JT11: ='Sour Gas Injection Wells'!K15 -> 0 | JU11: ='CO2 Reinjection Compressor'!M15 -> 0 | JV11: ='CO2 Injection Wells'!K15 -> 0 | JW11: ='Gas Flooding Compressor'!M15 -> 0 | JX11: ='Crude Oil Storage'!Q15 -> 0 | JY11: ='VRU Compressor'!K15 -> 0 | JZ11: ='Bitumen mining'!L15 -> 0 | KA11: ='LNG Liquefaction'!J15 -> 0 | KB11: ='Well and downhole pump'!Q15 -> 0 | KC11: ='Well and downhole pump'!R15 -> 0 | KD11: ='Crude oil stabilization'!L15 -> 0 | KF11: ='Well and downhole pump'!S15 -> 0 | KG11: ='Well and downhole pump'!T15 -> 0 | KH11: ='Well and downhole pump'!U15 -> 0 | KI11: ='Well and downhole pump'!V15 -> 0 | KJ11: ='Well and downhole pump'!W15 -> 0 | KK11: ='Well and downhole pump'!X15 -> 0 | KL11: ='Well and downhole pump'!Y15 -> 0 | KM11: ='Well and downhole pump'!Z15 -> 0 | KN11: ='Well and downhole pump'!AA15 -> 0 | KO11: ='Well and downhole pump'!AB15 -> 0 | KP11: ='Gas Flood Wells'!K15 -> 0 | KQ11: =Flaring!M15 -> 0 | KX11: From well | KY11: From offsite | KZ11: Imported fuel gas | LA11: From stabilizer and tank | LB11: Upgrading proc. gas | LC11: Flared | LD11: Reinjected | LE11: Consumed | LF11: Vented and fugitives | LG11: Transport to market | LH11: To other stream | LJ11: Total inputs | LK11: Total outputs | LL11: Ratio
A12: Gas | B12: N2 | C12: M_N2 | D12: 9 | E12: tonne/d | F12: =Reservoir!F16 -> 0 | G12: ='Bitumen mining'!E16 -> 0 | H12: ='Well and downhole pump'!E16 -> 0 | I12: =Separation!E16 -> 0 | J12: ='Heavy Oil Upgrading'!E16 -> 0 | K12: ='Heavy Oil Dilution'!E16 -> 0 | L12: =Separation!M16 -> 0 | M12: ='Crude oil dewatering'!M16 -> 0 | N12: ='Crude oil dewatering'!N16 -> 0 | O12: ='Crude oil stabilization'!J16 -> 0 | P12: ='Heavy Oil Upgrading'!M16 -> 0 | Q12: ='Heavy Oil Dilution'!L16 -> 0 | R12: ='Crude Oil Storage'!N16 -> 0 | S12: ='Crude Oil Transport'!J16 -> 0 | T12: ='Heavy Oil Upgrading'!N16 -> 0 | U12: ='Heavy Oil Dilution'!F16 -> 0 | V12: ='NGL or Diluent Prod and Imports'!M16 -> 0 | W12: ='NGL or Diluent Prod and Imports'!N16 -> 0 | X12: ='Crude oil dewatering'!O16 -> 0 | Y12: ='Crude oil dewatering'!P16 -> 0 | AD12: =Reservoir!H16 -> 142.0818845 | AE12: ='Well and downhole pump'!G16 -> 142.0818845 | AF12: =Separation!G16 -> 143.058785 | AG12: =Separation!L16 -> 143.0550087 | AH12: =Flaring!K16 -> 62.31029843 | AI12: =Flaring!L16 -> 76.21655959 | AJ12: =Venting!J16 -> 75.19288694 | AK12: ='Crude oil stabilization'!K16 -> 0 | AL12: ='VRU Compressor'!J16 ->  | AM12: ='Gas Gathering'!M16 ->  | AN12: ='Gas dehydration'!J16 -> 0 | AO12: ='Gas dehydration'!K16 ->  | AP12: ='Acid Gas Removal'!O16 ->  | AQ12: =Demethanizer!J16 ->  | AR12: =Demethanizer!K16 ->  | AS12: ='Gas Partition A'!K16 -> 1.063771256 | AT12: ='Gas Partition A'!L16 ->  | AU12: ='Gas Lifting Compressor'!J16 -> 1.04298406 | AV12: ='Fuel Gas Consumed'!K16 -> 0 | AW12: ='Fuel Gas Consumed'!J16 ->  | AX12: ='Gas Partition B'!J16 -> 0 | AY12: ='Gas Partition B'!K16 -> 0 | AZ12: ='Gas Reinjection Compressor'!J16 -> 0 | BA12: ='HC Gas Injection Wells'!J16 -> 0 | BB12: ='Gas transmission compressors'!N16 -> 0 | BC12: ='Gas transmission compressors'!J16 -> 0 | BD12: ='Storage Compressor'!J16 -> 0 | BE12: ='Gas storage wells'!J16 -> 0 | BF12: 0 | BG12: ='Storage separator'!K16 -> 0 | BH12: ='Post-Storage Compressor'!J16 -> 0 | BI12: ='Gas distribution'!L16 -> 0 | BJ12: ='Gas distribution'!N16 -> 0 | BK12: ='Gas distribution'!P16 -> 0 | BL12: ='Gas distribution'!R16 -> 0 | BM12: ='Gas distribution'!T16 -> 0 | BN12: 0 | BO12: =Chiller!J16 -> 0 | BP12: ='Pre-membrane Compressor'!J16 -> 0 | BQ12: ='CO2 Membrane'!J16 -> 0 | BR12: ='CO2 Membrane'!K16 -> 0 | BS12: 0 | BT12: ='Ryan-Holmes'!J16 -> 0 | BU12: ='Ryan-Holmes'!K16 -> 0 | BV12: ='Ryan-Holmes'!L16 -> 0 | BW12: 0 | BX12: ='Sour Gas Reinjection Compressor'!J16 -> 0 | BY12: ='Sour Gas Injection Wells'!J16 -> 0 | BZ12: ='Acid Gas Removal'!L16 ->  | CA12: =BR12+BV12+BZ12 ->  | CB12: ='CO2 Reinjection Compressor'!L16 -> 0 | CC12: ='CO2 Injection Wells'!J16 -> 0 | CD12: ='Gas Flooding Compressor'!E16 -> 0 | CE12: ='Gas Flooding Compressor'!F16 -> 0 | CF12: ='Gas Flooding Compressor'!G16 -> 0 | CG12: ='Gas Flooding Compressor'!L16 -> 0 | CH12: ='Crude Oil Storage'!O16 ->  | CI12: ='Crude Oil Storage'!P16 ->  | CJ12: ='Heavy Oil Upgrading'!O16 -> 0 | CK12: ='Bitumen mining'!M16 -> 0 | CL12: ='Gas transmission compressors'!K16 -> 0 | CM12: ='LNG Liquefaction'!K16 -> 0 | CN12: ='LNG transport'!J16 -> 0 | CO12: ='LNG regasification'!J16 -> 0 | CP12: =Demethanizer!L16 -> 0 | CR12: =Reservoir!I16 -> 0 | CS12: ='Gas Flood Wells'!J16 -> 0 | DA12: =Reservoir!G16 -> 0 | DB12: ='Well and downhole pump'!F16 -> 0 | DC12: =Separation!F16 -> 0 | DD12: =Separation!N16 -> 0 | DE12: ='Makeup Water Treatment'!E16 -> 0 | DF12: ='Steam Generation'!E16 -> 0 | DG12: ='Water Injection'!E16 -> 0 | DH12: ='Makeup Water Treatment'!L16 -> 0 | DI12: ='Steam Generation'!L16 -> 0 | DJ12: ='Steam Generation'!M16 -> 0 | DK12: ='Steam injection wells'!J16 -> 0 | DL12: ='Produced Water Treatment'!L16 -> 0 | DM12: ='Produced Water Treatment'!M16 -> 0 | DN12: ='Produced Water Treatment'!N16 -> 0 | DO12: ='Produced Water Treatment'!O16 -> 0 | DP12: ='Crude oil dewatering'!L16 -> 0 | DQ12: ='Water Injection'!K16 -> 0 | DR12: ='Storage separator'!F16 -> 0 | DS12: ='Steam Generation'!N16 -> 0 | EY12: ='Fuel Gas Imports'!K16 ->  | EZ12: ='Fuel Gas Imports'!L16 ->  | FA12: ='Fuel Gas Imports'!M16 ->  | FB12: ='Fuel Gas Imports'!N16 ->  | FC12: ='Gas Lifting Compressor'!L16 -> 0.02078719633 | FD12: ='Gas Reinjection Compressor'!L16 -> 0 | FE12: ='Fuel Gas Imports'!O16 ->  | FF12: ='Fuel Gas Imports'!P16 ->  | FG12: ='Fuel Gas Imports'!Q16 ->  | FH12: ='Fuel Gas Imports'!R16 ->  | FI12: ='Fuel Gas Imports'!S16 ->  | FJ12: ='Fuel Gas Imports'!T16 ->  | FK12: ='Fuel Gas Imports'!U16 ->  | FL12: ='Fuel Gas Imports'!V16 ->  | FM12: ='Fuel Gas Imports'!W16 ->  | FN12: ='Fuel Gas Imports'!X16 ->  | FO12: ='Fuel Gas Imports'!Y16 ->  | FP12: ='Fuel Gas Imports'!Z16 ->  | FQ12: ='Fuel Gas Imports'!AA16 ->  | FR12: ='Gas transmission compressors'!M16 -> 0 | FS12: ='Storage Compressor'!L16 -> 0 | FT12: ='Post-Storage Compressor'!K16 -> 0 | FU12: ='LNG Liquefaction'!L16 -> 0 | FV12: ='LNG regasification'!K16 -> 0 | FW12: ='Fuel Gas Imports'!AB16 ->  | FX12: ='Electricity Gen and Imports'!L16 -> 0 | FY12: ='Electricity Gen and Imports'!M16 -> 0 | FZ12: ='Electricity Gen and Imports'!N16 -> 0 | GA12: ='Electricity Gen and Imports'!O16 -> 0 | GB12: ='Electricity Gen and Imports'!P16 -> 0 | GC12: ='Electricity Gen and Imports'!Q16 -> 0 | GD12: ='Electricity Gen and Imports'!R16 -> 0 | GE12: ='Electricity Gen and Imports'!S16 -> 0 | GF12: ='Electricity Gen and Imports'!T16 -> 0 | GG12: ='Electricity Gen and Imports'!U16 -> 0 | GH12: ='Electricity Gen and Imports'!V16 -> 0 | GI12: ='Electricity Gen and Imports'!W16 -> 0 | GJ12: ='Electricity Gen and Imports'!X16 -> 0 | GK12: ='Electricity Gen and Imports'!Y16 -> 0 | GL12: ='Electricity Gen and Imports'!Z16 -> 0 | GM12: ='Electricity Gen and Imports'!AA16 -> 0 | GN12: ='Electricity Gen and Imports'!AB16 -> 0 | GO12: ='Electricity Gen and Imports'!AC16 -> 0 | GP12: ='Electricity Gen and Imports'!AD16 -> 0 | GQ12: ='Electricity Gen and Imports'!AE16 -> 0 | GR12: ='Electricity Gen and Imports'!AF16 -> 0 | GS12: ='Electricity Gen and Imports'!AG16 -> 0 | GT12: ='Electricity Gen and Imports'!AH16 -> 0 | GU12: ='Steam Generation'!O16 -> 0 | GV12: ='Electricity Gen and Imports'!AI16 -> 0 | GW12: ='Electricity Gen and Imports'!AJ16 -> 0 | HG12: ='Petcoke transport'!J16 -> 0 | HH12: ='Petcoke transport'!K16 -> 0 | HV12: ='Fuel Gas Imports'!F16 ->  | HW12: ='Electricity Gen and Imports'!G16 -> 0 | HX12: ='NGL or Diluent Prod and Imports'!G16 -> 0 | IU12: ='Well and downhole pump'!P16 -> 0.007190813014 | IV12: =Separation!O16 -> 0.003776344269 | IW12: =Venting!K16 -> 1.023672653 | IX12: =Venting!L16 -> 0 | IY12: ='Gas Gathering'!L16 ->  | IZ12: ='Gas dehydration'!L16 ->  | JA12: ='Acid Gas Removal'!K16 ->  | JB12: =Demethanizer!M16 ->  | JC12: ='Gas Lifting Compressor'!K16 -> 0 | JD12: ='Gas Reinjection Compressor'!K16 -> 0 | JE12: ='HC Gas Injection Wells'!K16 -> 0 | JF12: ='Gas transmission compressors'!L16 -> 0 | JG12: ='Storage Compressor'!K16 -> 0 | JH12: ='Gas storage wells'!K16 -> 0 | JI12: ='Storage separator'!L16 -> 0 | JJ12: ='Post-Storage Compressor'!L16 -> 0 | JK12: ='Gas distribution'!M16 -> 0 | JL12: ='Gas distribution'!O16 -> 0 | JM12: ='Gas distribution'!Q16 -> 0 | JN12: ='Gas distribution'!S16 -> 0 | JO12: ='Gas distribution'!U16 -> 0 | JP12: =Chiller!K16 -> 0 | JQ12: ='Pre-membrane Compressor'!K16 -> 0 | JR12: ='Ryan-Holmes'!M16 -> 0 | JS12: ='Sour Gas Reinjection Compressor'!K16 -> 0 | JT12: ='Sour Gas Injection Wells'!K16 -> 0 | JU12: ='CO2 Reinjection Compressor'!M16 -> 0 | JV12: ='CO2 Injection Wells'!K16 -> 0 | JW12: ='Gas Flooding Compressor'!M16 -> 0 | JX12: ='Crude Oil Storage'!Q16 ->  | JY12: ='VRU Compressor'!K16 ->  | JZ12: ='Bitumen mining'!L16 -> 0 | KA12: ='LNG Liquefaction'!J16 -> 0 | KB12: ='Well and downhole pump'!Q16 -> 0.01471026649 | KC12: ='Well and downhole pump'!R16 -> 0.001374796873 | KD12: ='Crude oil stabilization'!L16 -> 0 | KF12: ='Well and downhole pump'!S16 -> 0 | KG12: ='Well and downhole pump'!T16 -> 0 | KH12: ='Well and downhole pump'!U16 -> 0 | KI12: ='Well and downhole pump'!V16 -> 0.001048211646 | KJ12: ='Well and downhole pump'!W16 -> 0.009601649385 | KK12: ='Well and downhole pump'!X16 -> 0.001830632704 | KL12: ='Well and downhole pump'!Y16 -> 0 | KM12: ='Well and downhole pump'!Z16 -> 0 | KN12: ='Well and downhole pump'!AA16 -> 0.007754300726 | KO12: ='Well and downhole pump'!AB16 -> 0.02257281567 | KP12: ='Gas Flood Wells'!K16 -> 0 | KQ12: =Flaring!M16 -> 4.528150678
